{"text_format":"1","workbook":"xlsx","n_sheets":12,"sheets":["INICIO","INDICADORES","REGISTRO1","REGISTRO2","RUBRICA","COTEJO","PORTAFOLIO","ANECDOTICO","OBSERVACION","MATRIZ","REGISTRO_PE","DATOS"],"not_rendered":{"charts":6,"images":13,"macros":1,"external_links":0,"defined_names":26,"comments":1,"pivot_tables":0},"unopened":[],"bounds":{"document_bytes":16777216,"sheet_cells":100000,"rows_first":2000,"rows_last":500,"rows_between":2000,"halvings":0,"cell_chars":16384,"cell_head_chars":4096},"cells_cut":0,"cells_raw":0,"read":"whole","date_system":"1900"}

{"sheet":"INICIO","index":0,"n_rows":37,"n_cols":7,"rows_kept":37,"cut":false,"hidden":false,"merged":[[18,1,18,6],[19,1,19,6],[20,1,20,6],[13,1,13,4],[14,3,14,4],[15,1,15,6],[16,1,16,6],[17,1,17,6],[37,2,37,6],[25,1,25,6],[26,1,26,6],[36,1,36,6],[27,1,27,6],[31,1,31,6],[32,1,32,6],[33,1,33,6],[30,0,33,0],[34,0,36,0],[11,1,11,4],[16,0,20,0],[21,0,25,0],[26,0,29,0],[21,1,21,6],[22,1,22,6],[23,1,23,6],[24,1,24,6],[34,1,34,6],[35,1,35,6],[28,1,28,6],[29,1,29,6],[30,1,30,6],[12,1,12,4]]}
[]
[]
[]
[]
[]
[]
[]
[]
[]
[]
["DATOS PRINCIPALES",null,null,null,"AÑO",2015]
["I.E. ","86031 NUESTRA SEÑORA DE LA ASUNCIÓN"]
["AREA:","MATEMÁTICA"]
["DOCENTE","José Antonio Melgar Camayo",null,null,null,"BIM / TRIM","II"]
["GRADO","PRIMERO","SECCIÓN","A",null,"UNIDAD",3]
["COMPETENCIAS","CAPACIDADES"]
[{"$f":"IF(IF(B13=\"MATEMÁTICA\",DATOS!B2,IF(B13=\"COMUNICACIÓN\",DATOS!B7,IF(B13=\"CIENCIA, TECNOLOGÍA Y AMBIENTE\",DATOS!B13,IF(B13=\"PERSONA, FAMILIA Y RELACIONES HUMANAS\",DATOS!B18,IF(B13=\"HISTORIA, GEOGRAFÍA Y ECONOMÍA\",DATOS!B23,IF(B13=\"FORMACIÓN CIUDADANA Y CÍVICA\",DATOS!B28,IF(B13=\"ARTE\",DATOS!B33,IF(B13=\"EDUCACIÓN FÍSICA\",DATOS!B38,IF(B13=\"EDUCACIÓN PARA EL TRABAJO\",DATOS!B43,IF(B13=\"EDUCACIÓN RELIGIOSA\",DATOS!B48,IF(B13=\"INGLÉS\",DATOS!B53,\"\")))))))))))=\"\",\"\",IF(B13=\"MATEMÁTICA\",DATOS!B2,IF(B13=\"COMUNICACIÓN\",DATOS!B7,IF(B13=\"CIENCIA, TECNOLOGÍA Y AMBIENTE\",DATOS!B13,IF(B13=\"PERSONA, FAMILIA Y RELACIONES HUMANAS\",DATOS!B18,IF(B13=\"HISTORIA, GEOGRAFÍA Y ECONOMÍA\",DATOS!B23,IF(B13=\"FORMACIÓN CIUDADANA Y CÍVICA\",DATOS!B28,IF(B13=\"ARTE\",DATOS!B33,IF(B13=\"EDUCACIÓN FÍSICA\",DATOS!B38,IF(B13=\"EDUCACIÓN PARA EL TRABAJO\",DATOS!B43,IF(B13=\"EDUCACIÓN RELIGIOSA\",DATOS!B48,IF(B13=\"INGLÉS\",DATOS!B53,\"\"))))))))))))","v":"Actúa y piensa matemáticamente en situaciones de cantidad"},{"$f":"IF(A17=\"\",\"\",(IF(VLOOKUP(A17,DATOS!B2:G55,2,FALSE)=0,\"\",VLOOKUP(A17,DATOS!B2:G55,2,FALSE))))","v":"Matematiza situaciones"}]
[null,{"$f":"IF(A17=\"\",\"\",IF(VLOOKUP(A17,DATOS!B2:G55,3,FALSE)=0,\"\",VLOOKUP(A17,DATOS!B2:G55,3,FALSE)))","v":"Comunica y representa ideas matemáticas"}]
[null,{"$f":"IF(A17=\"\",\"\",IF(VLOOKUP(A17,DATOS!B2:G55,4,FALSE)=0,\"\",VLOOKUP(A17,DATOS!B2:G55,4,FALSE)))","v":"Elabora y usa estrategias "}]
[null,{"$f":"IF(A17=\"\",\"\",IF(VLOOKUP(A17,DATOS!B2:G55,5,FALSE)=0,\"\",VLOOKUP(A17,DATOS!B2:G55,5,FALSE)))","v":"Razona  y argumenta generando ideas matemáticas "}]
[null,{"$f":"IF(A17=\"\",\"\",IF(VLOOKUP(A17,DATOS!B2:G55,6,FALSE)=0,\"\",VLOOKUP(A17,DATOS!B2:G55,6,FALSE)))","v":""}]
[{"$f":"IF(IF(B13=\"MATEMÁTICA\",DATOS!B3,IF(B13=\"COMUNICACIÓN\",DATOS!B8,IF(B13=\"CIENCIA, TECNOLOGÍA Y AMBIENTE\",DATOS!B14,IF(B13=\"PERSONA, FAMILIA Y RELACIONES HUMANAS\",DATOS!B19,IF(B13=\"HISTORIA, GEOGRAFÍA Y ECONOMÍA\",DATOS!B24,IF(B13=\"FORMACIÓN CIUDADANA Y CÍVICA\",DATOS!B29,IF(B13=\"ARTE\",DATOS!B34,IF(B13=\"EDUCACIÓN FÍSICA\",DATOS!B39,IF(B13=\"EDUCACIÓN PARA EL TRABAJO\",DATOS!B44,IF(B13=\"EDUCACIÓN RELIGIOSA\",DATOS!B49,IF(B13=\"INGLÉS\",DATOS!B55,\"\")))))))))))=\"\",\"\",IF(B13=\"MATEMÁTICA\",DATOS!B3,IF(B13=\"COMUNICACIÓN\",DATOS!B8,IF(B13=\"CIENCIA, TECNOLOGÍA Y AMBIENTE\",DATOS!B14,IF(B13=\"PERSONA, FAMILIA Y RELACIONES HUMANAS\",DATOS!B19,IF(B13=\"HISTORIA, GEOGRAFÍA Y ECONOMÍA\",DATOS!B24,IF(B13=\"FORMACIÓN CIUDADANA Y CÍVICA\",DATOS!B29,IF(B13=\"ARTE\",DATOS!B34,IF(B13=\"EDUCACIÓN FÍSICA\",DATOS!B39,IF(B13=\"EDUCACIÓN PARA EL TRABAJO\",DATOS!B44,IF(B13=\"EDUCACIÓN RELIGIOSA\",DATOS!B49,IF(B13=\"INGLÉS\",DATOS!B55,\"\"))))))))))))","v":"Actúa y piensa matemáticamente en situaciones de regularidad, equivalencia y cambio"},{"$f":"IF(A22=\"\",\"\",IF(VLOOKUP(A22,DATOS!B2:G55,2,FALSE)=0,\"\",VLOOKUP(A22,DATOS!B2:G55,2,FALSE)))","v":"Matematiza situaciones"}]
[null,{"$f":"IF(A22=\"\",\"\",IF(VLOOKUP(A22,DATOS!B2:G55,3,FALSE)=0,\"\",VLOOKUP(A22,DATOS!B2:G55,3,FALSE)))","v":"Comunica y representa ideas matemáticas"}]
[null,{"$f":"IF(A22=\"\",\"\",IF(VLOOKUP(A22,DATOS!B2:G55,4,FALSE)=0,\"\",VLOOKUP(A22,DATOS!B2:G55,4,FALSE)))","v":"Elabora y usa estrategias "}]
[null,{"$f":"IF(A22=\"\",\"\",IF(VLOOKUP(A22,DATOS!B2:G55,5,FALSE)=0,\"\",VLOOKUP(A22,DATOS!B2:G55,5,FALSE)))","v":"Razona  y argumenta generando ideas matemáticas "}]
[null,{"$f":"IF(A22=\"\",\"\",IF(VLOOKUP(A22,DATOS!B2:G55,6,FALSE)=0,\"\",VLOOKUP(A22,DATOS!B2:G55,6,FALSE)))","v":""}]
[{"$f":"IF(IF(B13=\"MATEMÁTICA\",DATOS!B4,IF(B13=\"COMUNICACIÓN\",DATOS!B9,IF(B13=\"CIENCIA, TECNOLOGÍA Y AMBIENTE\",DATOS!B15,IF(B13=\"PERSONA, FAMILIA Y RELACIONES HUMANAS\",DATOS!B20,IF(B13=\"HISTORIA, GEOGRAFÍA Y ECONOMÍA\",DATOS!B25,IF(B13=\"FORMACIÓN CIUDADANA Y CÍVICA\",DATOS!B35,IF(B13=\"ARTE\",DATOS!B35,IF(B13=\"EDUCACIÓN FÍSICA\",DATOS!B40,IF(B13=\"EDUCACIÓN PARA EL TRABAJO\",DATOS!B45,IF(B13=\"EDUCACIÓN RELIGIOSA\",DATOS!B50,IF(B13=\"INGLÉS\",DATOS!B55,\"\")))))))))))=\"\",\"\",IF(B13=\"MATEMÁTICA\",DATOS!B4,IF(B13=\"COMUNICACIÓN\",DATOS!B9,IF(B13=\"CIENCIA, TECNOLOGÍA Y AMBIENTE\",DATOS!B15,IF(B13=\"PERSONA, FAMILIA Y RELACIONES HUMANAS\",DATOS!B20,IF(B13=\"HISTORIA, GEOGRAFÍA Y ECONOMÍA\",DATOS!B25,IF(B13=\"FORMACIÓN CIUDADANA Y CÍVICA\",DATOS!B35,IF(B13=\"ARTE\",DATOS!B35,IF(B13=\"EDUCACIÓN FÍSICA\",DATOS!B40,IF(B13=\"EDUCACIÓN PARA EL TRABAJO\",DATOS!B45,IF(B13=\"EDUCACIÓN RELIGIOSA\",DATOS!B50,IF(B13=\"INGLÉS\",DATOS!B55,\"\"))))))))))))","v":"Actúa y piensa matemáticamente en situaciones de forma, movimiento y localización"},{"$f":"IF(A27=\"\",\"\",IF(VLOOKUP(A27,DATOS!B2:G55,2,FALSE)=\"\",\"\",VLOOKUP(A27,DATOS!B2:G55,2,FALSE)))","v":"Matematiza situaciones"}]
[null,{"$f":"IF(A27=\"\",\"\",IF(VLOOKUP(A27,DATOS!B2:G55,3,FALSE)=\"\",\"\",VLOOKUP(A27,DATOS!B2:G55,3,FALSE)))","v":"Comunica y representa ideas matemáticas"}]
[null,{"$f":"IF(A27=\"\",\"\",IF(VLOOKUP(A27,DATOS!B2:G55,4,FALSE)=\"\",\"\",VLOOKUP(A27,DATOS!B2:G55,4,FALSE)))","v":"Elabora y usa estrategias "}]
[null,{"$f":"IF(A27=\"\",\"\",IF(VLOOKUP(A27,DATOS!B2:G55,5,FALSE)=0,\"\",VLOOKUP(A27,DATOS!B2:G55,5,FALSE)))","v":"Razona  y argumenta generando ideas matemáticas "}]
[{"$f":"IF(IF(B13=\"MATEMÁTICA\",DATOS!B5,IF(B13=\"COMUNICACIÓN\",DATOS!B10,IF(B13=\"CIENCIA, TECNOLOGÍA Y AMBIENTE\",DATOS!B16,IF(B13=\"PERSONA, FAMILIA Y RELACIONES HUMANAS\",DATOS!B21,IF(B13=\"HISTORIA, GEOGRAFÍA Y ECONOMÍA\",DATOS!B26,IF(B13=\"FORMACIÓN CIUDADANA Y CÍVICA\",DATOS!B57,IF(B13=\"ARTE\",DATOS!B36,IF(B13=\"EDUCACIÓN FÍSICA\",DATOS!B41,IF(B13=\"EDUCACIÓN PARA EL TRABAJO\",DATOS!B46,IF(B13=\"EDUCACIÓN RELIGIOSA\",DATOS!B51,IF(B13=\"INGLÉS\",DATOS!B56,\"\")))))))))))=\"\",\"\",IF(B13=\"MATEMÁTICA\",DATOS!B5,IF(B13=\"COMUNICACIÓN\",DATOS!B10,IF(B13=\"CIENCIA, TECNOLOGÍA Y AMBIENTE\",DATOS!B16,IF(B13=\"PERSONA, FAMILIA Y RELACIONES HUMANAS\",DATOS!B21,IF(B13=\"HISTORIA, GEOGRAFÍA Y ECONOMÍA\",DATOS!B26,IF(B13=\"FORMACIÓN CIUDADANA Y CÍVICA\",DATOS!B57,IF(B13=\"ARTE\",DATOS!B36,IF(B13=\"EDUCACIÓN FÍSICA\",DATOS!B41,IF(B13=\"EDUCACIÓN PARA EL TRABAJO\",DATOS!B46,IF(B13=\"EDUCACIÓN RELIGIOSA\",DATOS!B51,IF(B13=\"INGLÉS\",DATOS!B56,\"\"))))))))))))","v":"Actúa y piensa matemáticamente en situaciones de gestión de datos e incertidumbre"},{"$f":"IF(A31=\"\",\"\",VLOOKUP(A31,DATOS!B2:G55,2,FALSE))","v":"Matematiza situaciones"}]
[null,{"$f":"IF(A31=\"\",\"\",VLOOKUP(A31,DATOS!B2:G55,3,FALSE))","v":"Comunica y representa ideas matemáticas"}]
[null,{"$f":"IF(A31=\"\",\"\",IF(VLOOKUP(A31,DATOS!B2:G55,4,FALSE)=0,\"\",VLOOKUP(A31,DATOS!B2:G55,4,FALSE)))","v":"Elabora y usa estrategias "}]
[null,{"$f":"IF(A31=\"\",\"\",IF(VLOOKUP(A31,DATOS!B2:G55,5,FALSE)=0,\"\",VLOOKUP(A31,DATOS!B2:G55,5,FALSE)))","v":"Razona  y argumenta generando ideas matemáticas "}]
[{"$f":"IF(IF(B13=\"MATEMÁTICA\",DATOS!B6,IF(B13=\"COMUNICACIÓN\",DATOS!B11,IF(B13=\"CIENCIA, TECNOLOGÍA Y AMBIENTE\",DATOS!B17,IF(B13=\"PERSONA, FAMILIA Y RELACIONES HUMANAS\",DATOS!B22,IF(B13=\"HISTORIA, GEOGRAFÍA Y ECONOMÍA\",DATOS!B27,IF(B13=\"FORMACIÓN CIUDADANA Y CÍVICA\",DATOS!B58,IF(B13=\"ARTE\",DATOS!B37,IF(B13=\"EDUCACIÓN FÍSICA\",DATOS!B42,IF(B13=\"EDUCACIÓN PARA EL TRABAJO\",DATOS!B47,IF(B13=\"EDUCACIÓN RELIGIOSA\",DATOS!B52,IF(B13=\"INGLÉS\",DATOS!B57,\"\")))))))))))=\"\",\"\",IF(B13=\"MATEMÁTICA\",DATOS!B6,IF(B13=\"COMUNICACIÓN\",DATOS!B11,IF(B13=\"CIENCIA, TECNOLOGÍA Y AMBIENTE\",DATOS!B17,IF(B13=\"PERSONA, FAMILIA Y RELACIONES HUMANAS\",DATOS!B22,IF(B13=\"HISTORIA, GEOGRAFÍA Y ECONOMÍA\",DATOS!B27,IF(B13=\"FORMACIÓN CIUDADANA Y CÍVICA\",DATOS!B58,IF(B13=\"ARTE\",DATOS!B37,IF(B13=\"EDUCACIÓN FÍSICA\",DATOS!B42,IF(B13=\"EDUCACIÓN PARA EL TRABAJO\",DATOS!B47,IF(B13=\"EDUCACIÓN RELIGIOSA\",DATOS!B52,IF(B13=\"INGLÉS\",DATOS!B57,\"\"))))))))))))","v":""},{"$f":"IF(A35=\"\",\"\",VLOOKUP(A35,DATOS!B2:G55,2,FALSE))","v":""}]
[null,{"$f":"IF(A35=\"\",\"\",VLOOKUP(A35,DATOS!B2:G55,3,FALSE))","v":""}]
[null,{"$f":"IF(A35=\"\",\"\",VLOOKUP(A35,DATOS!B2:G55,4,FALSE))","v":""}]

{"sheet":"INDICADORES","index":1,"n_rows":114,"n_cols":15,"rows_kept":114,"cut":false,"hidden":false,"merged":[[20,1,24,1],[20,0,24,0],[45,1,49,1],[50,1,54,1],[45,0,49,0],[50,0,54,0],[0,1,0,3],[2,0,2,3],[5,1,9,1],[5,0,9,0],[15,1,19,1],[15,0,19,0],[10,0,14,0],[10,1,14,1],[71,0,75,0],[71,1,75,1],[65,0,70,0],[65,1,70,1],[25,0,29,0],[25,1,29,1],[30,0,34,0],[30,1,34,1],[35,0,39,0],[35,1,39,1],[40,1,44,1],[40,0,44,0],[55,0,59,0],[55,1,59,1],[60,0,64,0],[60,1,64,1],[94,0,98,0],[94,1,98,1],[81,0,86,0],[81,1,86,1],[76,0,80,0],[76,1,80,1],[87,0,93,0],[87,1,93,1],[109,0,113,0],[109,1,113,1],[104,0,108,0],[104,1,108,1],[99,0,103,0],[99,1,103,1]]}
["I.E.:",{"$f":"IF(INICIO!B12=\"\",\"\",INICIO!B12)","v":"86031 NUESTRA SEÑORA DE LA ASUNCIÓN"}]
["Grado y Sección:",{"$f":"INICIO!B15&\" - \"&INICIO!D15","v":"PRIMERO - A"},"Prof.",{"$f":"IF(INICIO!B14=\"\",\"\",INICIO!B14)","v":"José Antonio Melgar Camayo"}]
[{"$f":"\"REGISTRO AUXILIAR DE \"&INICIO!B13","v":"REGISTRO AUXILIAR DE MATEMÁTICA"}]
[]
["COMPETENCIA","CAPACIDAD","IEC","INDICADOR"]
[{"$f":"IF(LEN(B6)>0,IF(INICIO!A17=0,\"\",INICIO!A17),\"\")","v":"Actúa y piensa matemáticamente en situaciones de cantidad"},{"$f":"IF(INICIO!B17=0,\"\",INICIO!B17)","v":"Matematiza situaciones"},"IEC1",null,null,null,null,{"$f":"C6","v":"IEC1"}]
[null,null,"IEC2",null,null,null,null,{"$f":"C7","v":"IEC2"}]
[null,null,"IEC3",null,null,null,null,"IEC3",null,null,null,null,null,null,{"$f":"IF(INDICADORES!B21=\"\",\"\",INDICADORES!B21)","v":"Razona  y argumenta generando ideas matemáticas "}]
[null,null,"IEC4",null,null,null,null,"IEC4"]
[null,null,"IEC5",null,null,null,null,"IEC5"]
[{"$f":"IF(LEN(B11)>0,IF(INICIO!A17=0,\"\",INICIO!A17),\"\")","v":"Actúa y piensa matemáticamente en situaciones de cantidad"},{"$f":"IF(INICIO!B18=0,\"\",INICIO!B18)","v":"Comunica y representa ideas matemáticas"},"IEC6",null,null,null,null,"IEC6"]
[null,null,"IEC7",null,null,null,null,"IEC7"]
[null,null,"IEC8",null,null,null,null,"IEC8"]
[null,null,"IEC9",null,null,null,null,"IEC9"]
[null,null,"IEC10",null,null,null,null,"IEC10"]
[{"$f":"IF(LEN(B16)>0,IF(INICIO!A17=0,\"\",INICIO!A17),\"\")","v":"Actúa y piensa matemáticamente en situaciones de cantidad"},{"$f":"IF(INICIO!B19=0,\"\",INICIO!B19)","v":"Elabora y usa estrategias "},"IEC11",null,null,null,null,"IEC11"]
[null,null,"IEC12",null,null,null,null,"IEC12"]
[null,null,"IEC13",null,null,null,null,"IEC13"]
[null,null,"IEC14",null,null,null,null,"IEC14"]
[null,null,"IEC15",null,null,null,null,"IEC15"]
[{"$f":"IF(LEN(B21)>0,IF(INICIO!A17=0,\"\",INICIO!A17),\"\")","v":"Actúa y piensa matemáticamente en situaciones de cantidad"},{"$f":"IF(INICIO!B20=0,\"\",INICIO!B20)","v":"Razona  y argumenta generando ideas matemáticas "},"IEC16",null,null,null,null,"IEC16"]
[null,null,"IEC17",null,null,null,null,"IEC17"]
[null,null,"IEC18",null,null,null,null,"IEC18"]
[null,null,"IEC19",null,null,null,null,"IEC19"]
[null,null,"IEC20",null,null,null,null,"IEC20"]
[{"$f":"IF(LEN(B26)>0,IF(INICIO!A17=0,\"\",INICIO!A17),\"\")","v":""},{"$f":"IF(INICIO!B21=\"\",\"\",INICIO!B21)","v":""},"IEC21",null,null,null,null,"IEC21"]
[null,null,"IEC22",null,null,null,null,"IEC22"]
[null,null,"IEC23",null,null,null,null,"IEC23"]
[null,null,"IEC24",null,null,null,null,"IEC24"]
[null,null,"IEC25",null,null,null,null,"IEC25"]
[{"$f":"IF(LEN(B31)>0,IF(INICIO!A22=0,\"\",INICIO!A22),\"\")","v":"Actúa y piensa matemáticamente en situaciones de regularidad, equivalencia y cambio"},{"$f":"IF(INICIO!B22=\"\",\"\",INICIO!B22)","v":"Matematiza situaciones"},"IEC26",null,null,null,null,"IEC26"]
[null,null,"IEC27",null,null,null,null,"IEC27"]
[null,null,"IEC28",null,null,null,null,"IEC28"]
[null,null,"IEC29",null,null,null,null,"IEC29"]
[null,null,"IEC30",null,null,null,null,"IEC30"]
[{"$f":"IF(LEN(B36)>0,IF(INICIO!A22=0,\"\",INICIO!A22),\"\")","v":"Actúa y piensa matemáticamente en situaciones de regularidad, equivalencia y cambio"},{"$f":"IF(INICIO!B23=\"\",\"\",INICIO!B23)","v":"Comunica y representa ideas matemáticas"},"IEC31",null,null,null,null,"IEC31"]
[null,null,"IEC32",null,null,null,null,"IEC32"]
[null,null,"IEC33",null,null,null,null,"IEC33"]
[null,null,"IEC34",null,null,null,null,"IEC34"]
[null,null,"IEC35",null,null,null,null,"IEC35"]
[{"$f":"IF(LEN(B41)>0,IF(INICIO!A22=0,\"\",INICIO!A22),\"\")","v":"Actúa y piensa matemáticamente en situaciones de regularidad, equivalencia y cambio"},{"$f":"IF(INICIO!B24=\"\",\"\",INICIO!B24)","v":"Elabora y usa estrategias "},"IEC36",null,null,null,null,"IEC36"]
[null,null,"IEC37",null,null,null,null,"IEC37"]
[null,null,"IEC38",null,null,null,null,"IEC38"]
[null,null,"IEC39",null,null,null,null,"IEC39"]
[null,null,"IEC40",null,null,null,null,"IEC40"]
[{"$f":"IF(LEN(B46)>0,IF(INICIO!A22=0,\"\",INICIO!A22),\"\")","v":"Actúa y piensa matemáticamente en situaciones de regularidad, equivalencia y cambio"},{"$f":"IF(INICIO!B25=\"\",\"\",INICIO!B25)","v":"Razona  y argumenta generando ideas matemáticas "},"IEC41",null,null,null,null,"IEC41"]
[null,null,"IEC42",null,null,null,null,"IEC42"]
[null,null,"IEC43",null,null,null,null,"IEC43"]
[null,null,"IEC44",null,null,null,null,"IEC44"]
[null,null,"IEC45",null,null,null,null,"IEC45"]
[{"$f":"IF(LEN(B51)>0,IF(INICIO!A22=0,\"\",INICIO!A22),\"\")","v":""},{"$f":"IF(INICIO!B26=\"\",\"\",INICIO!B26)","v":""},"IEC46",null,null,null,null,"IEC46"]
[null,null,"IEC47",null,null,null,null,"IEC47"]
[null,null,"IEC48",null,null,null,null,"IEC48"]
[null,null,"IEC49",null,null,null,null,"IEC49"]
[null,null,"IEC50",null,null,null,null,"IEC50"]
[{"$f":"IF(LEN(B56)>0,IF(INICIO!A27=0,\"\",INICIO!A27),\"\")","v":"Actúa y piensa matemáticamente en situaciones de forma, movimiento y localización"},{"$f":"IF(INICIO!B27=\"\",\"\",INICIO!B27)","v":"Matematiza situaciones"},"IEC51",null,null,null,null,"IEC51"]
[null,null,"IEC52",null,null,null,null,"IEC52"]
[null,null,"IEC53",null,null,null,null,"IEC53"]
[null,null,"IEC54",null,null,null,null,"IEC54"]
[null,null,"IEC55",null,null,null,null,"IEC55"]
[{"$f":"IF(LEN(B61)>0,IF(INICIO!A27=0,\"\",INICIO!A27),\"\")","v":"Actúa y piensa matemáticamente en situaciones de forma, movimiento y localización"},{"$f":"IF(INICIO!B28=\"\",\"\",INICIO!B28)","v":"Comunica y representa ideas matemáticas"},"IEC56",null,null,null,null,"IEC56"]
[null,null,"IEC57",null,null,null,null,"IEC57"]
[null,null,"IEC58",null,null,null,null,"IEC58"]
[null,null,"IEC59",null,null,null,null,"IEC59"]
[null,null,"IEC60",null,null,null,null,"IEC60"]
[{"$f":"IF(LEN(B66)>0,IF(INICIO!A27=0,\"\",INICIO!A27),\"\")","v":"Actúa y piensa matemáticamente en situaciones de forma, movimiento y localización"},{"$f":"IF(INICIO!B29=\"\",\"\",INICIO!B29)","v":"Elabora y usa estrategias "},"IEC61",null,null,null,null,"IEC61"]
[null,null,"IEC62",null,null,null,null,"IEC62"]
[null,null,"IEC63",null,null,null,null,"IEC63"]
[null,null,"IEC64",null,null,null,null,"IEC64"]
[null,null,"IEC65",null,null,null,null,"IEC65"]
[null,null,"IEC66",null,null,null,null,{"$f":"C71","v":"IEC66"}]
[{"$f":"IF(LEN(B72)>0,IF(INICIO!A27=0,\"\",INICIO!A27),\"\")","v":"Actúa y piensa matemáticamente en situaciones de forma, movimiento y localización"},{"$f":"IF(INICIO!B30=\"\",\"\",INICIO!B30)","v":"Razona  y argumenta generando ideas matemáticas "},"IEC67",null,null,null,null,"IEC67"]
[null,null,"IEC68",null,null,null,null,"IEC68"]
[null,null,"IEC69",null,null,null,null,"IEC69"]
[null,null,"IEC70",null,null,null,null,"IEC70"]
[null,null,"IEC71",null,null,null,null,"IEC71"]
[{"$f":"IF(LEN(B77)>0,IF(INICIO!A31=0,\"\",INICIO!A31),\"\")","v":"Actúa y piensa matemáticamente en situaciones de gestión de datos e incertidumbre"},{"$f":"IF(INICIO!B31=\"\",\"\",INICIO!B31)","v":"Matematiza situaciones"},"IEC72",null,null,null,null,"IEC72"]
[null,null,"IEC73",null,null,null,null,"IEC73"]
[null,null,"IEC74",null,null,null,null,"IEC74"]
[null,null,"IEC75",null,null,null,null,"IEC75"]
[null,null,"IEC76",null,null,null,null,"IEC76"]
[{"$f":"IF(LEN(B82)>0,IF(INICIO!A31=0,\"\",INICIO!A31),\"\")","v":"Actúa y piensa matemáticamente en situaciones de gestión de datos e incertidumbre"},{"$f":"IF(INICIO!B32=\"\",\"\",INICIO!B32)","v":"Comunica y representa ideas matemáticas"},"IEC77",null,null,null,null,"IEC77"]
[null,null,"IEC78",null,null,null,null,"IEC78"]
[null,null,"IEC79",null,null,null,null,"IEC79"]
[null,null,"IEC80",null,null,null,null,"IEC80"]
[null,null,"IEC81",null,null,null,null,"IEC81"]
[null,null,"IEC82",null,null,null,null,"IEC82"]
[{"$f":"IF(LEN(B88)>0,IF(INICIO!A31=0,\"\",INICIO!A31),\"\")","v":"Actúa y piensa matemáticamente en situaciones de gestión de datos e incertidumbre"},{"$f":"IF(INICIO!B33=\"\",\"\",INICIO!B33)","v":"Elabora y usa estrategias "},"IEC83",null,null,null,null,"IEC83"]
[null,null,"IEC84",null,null,null,null,"IEC84"]
[null,null,"IEC85",null,null,null,null,"IEC85"]
[null,null,"IEC86",null,null,null,null,"IEC86"]
[null,null,"IEC87",null,null,null,null,"IEC87"]
[null,null,"IEC88",null,null,null,null,"IEC88"]
[null,null,"IEC89",null,null,null,null,"IEC89"]
[{"$f":"IF(LEN(B95)>0,IF(INICIO!A31=0,\"\",INICIO!A31),\"\")","v":"Actúa y piensa matemáticamente en situaciones de gestión de datos e incertidumbre"},{"$f":"IF(INICIO!B34=\"\",\"\",INICIO!B34)","v":"Razona  y argumenta generando ideas matemáticas "},"IEC90",null,null,null,null,"IEC90"]
[null,null,"IEC91",null,null,null,null,"IEC91"]
[null,null,"IEC92",null,null,null,null,"IEC92"]
[null,null,"IEC93",null,null,null,null,"IEC93"]
[null,null,"IEC94",null,null,null,null,"IEC94"]
[{"$f":"IF(LEN(B100)>0,IF(INICIO!A35=0,\"\",INICIO!A35),\"\")","v":""},{"$f":"IF(INICIO!B35=\"\",\"\",INICIO!B35)","v":""},"IEC95",null,null,null,null,"IEC95"]
[null,null,"IEC96",null,null,null,null,"IEC96"]
[null,null,"IEC97",null,null,null,null,"IEC97"]
[null,null,"IEC98",null,null,null,null,"IEC98"]
[null,null,"IEC99",null,null,null,null,"IEC99"]
[{"$f":"IF(LEN(B105)>0,IF(INICIO!A35=0,\"\",INICIO!A35),\"\")","v":""},{"$f":"IF(INICIO!B36=\"\",\"\",INICIO!B36)","v":""},"IEC100",null,null,null,null,"IEC100"]
[null,null,"IEC101",null,null,null,null,"IEC101"]
[null,null,"IEC102",null,null,null,null,"IEC102"]
[null,null,"IEC103",null,null,null,null,"IEC103"]
[null,null,"IEC104",null,null,null,null,"IEC104"]
[{"$f":"IF(LEN(B110)>0,IF(INICIO!A35=0,\"\",INICIO!A35),\"\")","v":""},{"$f":"IF(INICIO!B37=\"\",\"\",INICIO!B37)","v":""},"IEC105",null,null,null,null,"IEC105"]
[null,null,"IEC106",null,null,null,null,"IEC106"]
[null,null,"IEC107",null,null,null,null,"IEC107"]
[null,null,"IEC108",null,null,null,null,"IEC108"]
[null,null,"IEC109",null,null,null,null,"IEC109"]

{"sheet":"REGISTRO1","index":2,"n_rows":65,"n_cols":138,"rows_kept":65,"cut":false,"hidden":false,"merged":[[4,137,7,137],[5,0,5,1],[5,132,5,136],[6,0,6,1],[6,2,6,7],[6,8,6,13],[6,136,7,136],[6,32,6,37],[6,20,6,25],[6,26,6,31],[6,93,6,99],[6,132,7,132],[6,134,7,134],[4,0,4,24],[6,135,7,135],[6,133,7,133],[57,2,57,7],[59,2,59,7],[4,38,4,39],[5,87,5,113],[5,114,5,131],[5,62,5,86],[6,120,6,125],[6,126,6,131],[6,87,6,92],[6,108,6,113],[6,114,6,119],[6,14,6,19],[6,100,6,107],[0,2,0,22],[4,32,4,37],[6,81,6,86],[5,2,5,31],[5,32,5,61],[6,38,6,43],[6,62,6,67],[6,68,6,73],[6,74,6,80],[4,25,4,29],[4,30,4,31],[6,44,6,49],[6,50,6,55],[6,56,6,61],[2,0,2,37],[62,2,62,7],[63,2,63,7],[64,2,64,7],[58,2,58,7],[63,8,63,10],[64,8,64,10],[60,2,60,7],[61,2,61,7]]}
[null,null,{"$f":"IF(INICIO!B12=\"\",\"\",\"I.E. \"&INICIO!B12)","v":"I.E. 86031 NUESTRA SEÑORA DE LA ASUNCIÓN"}]
[]
[{"$f":"\"REGISTRO AUXILIAR DEL AREA DE  \"&INICIO!B13","v":"REGISTRO AUXILIAR DEL AREA DE  MATEMÁTICA"}]
[]
[{"$f":"\"EVALUACIÓN DEL ÁREA DE \"&INICIO!B13","v":"EVALUACIÓN DEL ÁREA DE MATEMÁTICA"},null,null,null,null,null,null,null,null,null,null,null,null,null,null,null,null,null,null,null,null,null,null,null,null,"UNIDAD",null,null,null,null,{"$f":"IF(INICIO!G15=\"\",\"\",INICIO!G15)","v":3},null,"BIM / TRIM",null,null,null,null,null,{"$f":"IF(INICIO!G14=\"\",\"\",INICIO!G14)","v":"II"},null,null,null,null,null,null,null,null,null,null,null,null,null,null,null,null,null,null,null,null,null,null,null,null,null,null,null,null,null,null,null,null,null,null,null,null,null,null,null,null,null,null,null,null,null,null,null,null,null,null,null,null,null,null,null,null,null,null,null,null,null,null,null,null,null,null,null,null,null,null,null,null,null,null,null,null,null,null,null,null,null,null,null,null,null,null,null,null,null,null,null,null,null,null,null,null,null,null,"PROMEDIO DE UNIDAD"]
[{"$f":"\"DOCENTE: \"&INICIO!B14","v":"DOCENTE: José Antonio Melgar Camayo"},null,{"$f":"IF(INICIO!A17=0,\"\",INICIO!A17)","v":"Actúa y piensa matemáticamente en situaciones de cantidad"},null,null,null,null,null,null,null,null,null,null,null,null,null,null,null,null,null,null,null,null,null,null,null,null,null,null,null,null,null,{"$f":"IF(INICIO!A22=0,\"\",INICIO!A22)","v":"Actúa y piensa matemáticamente en situaciones de regularidad, equivalencia y cambio"},null,null,null,null,null,null,null,null,null,null,null,null,null,null,null,null,null,null,null,null,null,null,null,null,null,null,null,null,null,{"$f":"IF(INICIO!A27=\"\",\"\",INICIO!A27)","v":"Actúa y piensa matemáticamente en situaciones de forma, movimiento y localización"},null,null,null,null,null,null,null,null,null,null,null,null,null,null,null,null,null,null,null,null,null,null,null,null,{"$f":"IF(INICIO!A31=\"\",\"\",INICIO!A31)","v":"Actúa y piensa matemáticamente en situaciones de gestión de datos e incertidumbre"},null,null,null,null,null,null,null,null,null,null,null,null,null,null,null,null,null,null,null,null,null,null,null,null,null,null,{"$f":"IF(INICIO!A35=\"\",\"\",INICIO!A35)","v":""},null,null,null,null,null,null,null,null,null,null,null,null,null,null,null,null,null,"PROMEDIO"]
[{"$f":"\"GRADO Y SECCIÓN: \"&INDICADORES!B2","v":"GRADO Y SECCIÓN: PRIMERO - A"},null,{"$f":"IF(INICIO!B17=\"\",\"\",INICIO!B17)","v":"Matematiza situaciones"},null,null,null,null,null,{"$f":"IF(INICIO!B18=\"\",\"\",INICIO!B18)","v":"Comunica y representa ideas matemáticas"},null,null,null,null,null,{"$f":"IF(INICIO!B19=\"\",\"\",INICIO!B19)","v":"Elabora y usa estrategias "},null,null,null,null,null,{"$f":"IF(INICIO!B20=\"\",\"\",INICIO!B20)","v":"Razona  y argumenta generando ideas matemáticas "},null,null,null,null,null,{"$f":"IF(INICIO!B21=\"\",\"\",INICIO!B21)","v":""},null,null,null,null,null,{"$f":"IF(INICIO!B22=\"\",\"\",INICIO!B22)","v":"Matematiza situaciones"},null,null,null,null,null,{"$f":"IF(INICIO!B23=\"\",\"\",INICIO!B23)","v":"Comunica y representa ideas matemáticas"},null,null,null,null,null,{"$f":"IF(INICIO!B24=\"\",\"\",INICIO!B24)","v":"Elabora y usa estrategias "},null,null,null,null,null,{"$f":"IF(INICIO!B25=\"\",\"\",INICIO!B25)","v":"Razona  y argumenta generando ideas matemáticas "},null,null,null,null,null,{"$f":"IF(INICIO!B26=\"\",\"\",INICIO!B26)","v":""},null,null,null,null,null,{"$f":"IF(INICIO!B27=\"\",\"\",INICIO!B27)","v":"Matematiza situaciones"},null,null,null,null,null,{"$f":"IF(INICIO!B28=\"\",\"\",INICIO!B28)","v":"Comunica y representa ideas matemáticas"},null,null,null,null,null,{"$f":"IF(INICIO!B29=\"\",\"\",INICIO!B29)","v":"Elabora y usa estrategias "},null,null,null,null,null,null,{"$f":"IF(INICIO!B30=\"\",\"\",INICIO!B30)","v":"Razona  y argumenta generando ideas matemáticas "},null,null,null,null,null,{"$f":"IF(INICIO!B31=\"\",\"\",INICIO!B31)","v":"Matematiza situaciones"},null,null,null,null,null,{"$f":"IF(INICIO!B32=\"\",\"\",INICIO!B32)","v":"Comunica y representa ideas matemáticas"},null,null,null,null,null,null,{"$f":"IF(INICIO!B33=\"\",\"\",INICIO!B33)","v":"Elabora y usa estrategias "},null,null,null,null,null,null,null,{"$f":"IF(INICIO!B34=\"\",\"\",INICIO!B34)","v":"Razona  y argumenta generando ideas matemáticas "},null,null,null,null,null,{"$f":"IF(INICIO!B35=\"\",\"\",INICIO!B35)","v":""},null,null,null,null,null,{"$f":"IF(INICIO!B36=\"\",\"\",INICIO!B36)","v":""},null,null,null,null,null,{"$f":"IF(INICIO!B37=\"\",\"\",INICIO!B37)","v":""},null,null,null,null,null,{"$f":"IF(INICIO!A17=0,\"\",INICIO!A17)","v":"Actúa y piensa matemáticamente en situaciones de cantidad"},{"$f":"IF(INICIO!A22=0,\"\",INICIO!A22)","v":"Actúa y piensa matemáticamente en situaciones de regularidad, equivalencia y cambio"},{"$f":"IF(INICIO!A27=\"\",\"\",INICIO!A27)","v":"Actúa y piensa matemáticamente en situaciones de forma, movimiento y localización"},{"$f":"IF(INICIO!A31=\"\",\"\",INICIO!A31)","v":"Actúa y piensa matemáticamente en situaciones de gestión de datos e incertidumbre"},{"$f":"IF(INICIO!A35=\"\",\"\",INICIO!A35)","v":""}]
["N°","APELLIDOS Y NOMBRES",{"$f":"IF(LEN(INDICADORES!D6)>0,INDICADORES!C6,\"\")","v":""},{"$f":"IF(LEN(INDICADORES!D7)>0,INDICADORES!C7,\"\")","v":""},{"$f":"IF(LEN(INDICADORES!D8)>0,INDICADORES!C8,\"\")","v":""},{"$f":"IF(LEN(INDICADORES!D9)>0,INDICADORES!C9,\"\")","v":""},{"$f":"IF(LEN(INDICADORES!D10)>0,INDICADORES!C10,\"\")","v":""},"PROMEDIO C1",{"$f":"IF(LEN(INDICADORES!D11)>0,INDICADORES!C11,\"\")","v":""},{"$f":"IF(LEN(INDICADORES!D12)>0,INDICADORES!C12,\"\")","v":""},{"$f":"IF(LEN(INDICADORES!D13)>0,INDICADORES!C13,\"\")","v":""},{"$f":"IF(LEN(INDICADORES!D14)>0,INDICADORES!C14,\"\")","v":""},{"$f":"IF(LEN(INDICADORES!D15)>0,INDICADORES!C15,\"\")","v":""},"PROMEDIO C2",{"$f":"IF(LEN(INDICADORES!D16)>0,INDICADORES!C16,\"\")","v":""},{"$f":"IF(LEN(INDICADORES!D17)>0,INDICADORES!C17,\"\")","v":""},{"$f":"IF(LEN(INDICADORES!D18)>0,INDICADORES!C18,\"\")","v":""},{"$f":"IF(LEN(INDICADORES!D19)>0,INDICADORES!C19,\"\")","v":""},{"$f":"IF(LEN(INDICADORES!D20)>0,INDICADORES!C20,\"\")","v":""},"PROMEDIO C3",{"$f":"IF(LEN(INDICADORES!D21)>0,INDICADORES!C21,\"\")","v":""},{"$f":"IF(LEN(INDICADORES!D22)>0,INDICADORES!C22,\"\")","v":""},{"$f":"IF(LEN(INDICADORES!D23)>0,INDICADORES!C23,\"\")","v":""},{"$f":"IF(LEN(INDICADORES!D24)>0,INDICADORES!C24,\"\")","v":""},{"$f":"IF(LEN(INDICADORES!D25)>0,INDICADORES!C25,\"\")","v":""},"PROMEDIO C4",{"$f":"IF(LEN(INDICADORES!D26)>0,INDICADORES!C26,\"\")","v":""},{"$f":"IF(LEN(INDICADORES!D27)>0,INDICADORES!C27,\"\")","v":""},{"$f":"IF(LEN(INDICADORES!D28)>0,INDICADORES!C28,\"\")","v":""},{"$f":"IF(LEN(INDICADORES!D29)>0,INDICADORES!C29,\"\")","v":""},{"$f":"IF(LEN(INDICADORES!D30)>0,INDICADORES!C30,\"\")","v":""},"PROMEDIO C5",{"$f":"IF(LEN(INDICADORES!D31)>0,INDICADORES!C31,\"\")","v":""},{"$f":"IF(LEN(INDICADORES!D32)>0,INDICADORES!C32,\"\")","v":""},{"$f":"IF(LEN(INDICADORES!D33)>0,INDICADORES!C33,\"\")","v":""},{"$f":"IF(LEN(INDICADORES!D34)>0,INDICADORES!C34,\"\")","v":""},{"$f":"IF(LEN(INDICADORES!D35)>0,INDICADORES!C35,\"\")","v":""},"PROMEDIO C1",{"$f":"IF(LEN(INDICADORES!D36)>0,INDICADORES!C36,\"\")","v":""},{"$f":"IF(LEN(INDICADORES!D37)>0,INDICADORES!C37,\"\")","v":""},{"$f":"IF(LEN(INDICADORES!D38)>0,INDICADORES!C38,\"\")","v":""},{"$f":"IF(LEN(INDICADORES!D39)>0,INDICADORES!C39,\"\")","v":""},{"$f":"IF(LEN(INDICADORES!D40)>0,INDICADORES!C40,\"\")","v":""},"PROMEDIO C2",{"$f":"IF(LEN(INDICADORES!D41)>0,INDICADORES!C41,\"\")","v":""},{"$f":"IF(LEN(INDICADORES!D42)>0,INDICADORES!C42,\"\")","v":""},{"$f":"IF(LEN(INDICADORES!D43)>0,INDICADORES!C43,\"\")","v":""},{"$f":"IF(LEN(INDICADORES!D44)>0,INDICADORES!C44,\"\")","v":""},{"$f":"IF(LEN(INDICADORES!D45)>0,INDICADORES!C45,\"\")","v":""},"PROMEDIO C3",{"$f":"IF(LEN(INDICADORES!D46)>0,INDICADORES!C46,\"\")","v":""},{"$f":"IF(LEN(INDICADORES!D47)>0,INDICADORES!C47,\"\")","v":""},{"$f":"IF(LEN(INDICADORES!D48)>0,INDICADORES!C48,\"\")","v":""},{"$f":"IF(LEN(INDICADORES!D49)>0,INDICADORES!C49,\"\")","v":""},{"$f":"IF(LEN(INDICADORES!D50)>0,INDICADORES!C50,\"\")","v":""},"PROMEDIO C4",{"$f":"IF(LEN(INDICADORES!D51)>0,INDICADORES!C51,\"\")","v":""},{"$f":"IF(LEN(INDICADORES!D52)>0,INDICADORES!C52,\"\")","v":""},{"$f":"IF(LEN(INDICADORES!D53)>0,INDICADORES!C53,\"\")","v":""},{"$f":"IF(LEN(INDICADORES!D54)>0,INDICADORES!C54,\"\")","v":""},{"$f":"IF(LEN(INDICADORES!D55)>0,INDICADORES!C55,\"\")","v":""},"PROMEDIO C5",{"$f":"IF(LEN(INDICADORES!D56)>0,INDICADORES!C56,\"\")","v":""},{"$f":"IF(LEN(INDICADORES!D57)>0,INDICADORES!C57,\"\")","v":""},{"$f":"IF(LEN(INDICADORES!D58)>0,INDICADORES!C58,\"\")","v":""},{"$f":"IF(LEN(INDICADORES!D59)>0,INDICADORES!C59,\"\")","v":""},{"$f":"IF(LEN(INDICADORES!D60)>0,INDICADORES!C60,\"\")","v":""},"PROMEDIO C1",{"$f":"IF(LEN(INDICADORES!D61)>0,INDICADORES!C61,\"\")","v":""},{"$f":"IF(LEN(INDICADORES!D62)>0,INDICADORES!C62,\"\")","v":""},{"$f":"IF(LEN(INDICADORES!D63)>0,INDICADORES!C63,\"\")","v":""},{"$f":"IF(LEN(INDICADORES!D64)>0,INDICADORES!C64,\"\")","v":""},{"$f":"IF(LEN(INDICADORES!D65)>0,INDICADORES!C65,\"\")","v":""},"PROMEDIO C2",{"$f":"IF(LEN(INDICADORES!D66)>0,INDICADORES!C66,\"\")","v":""},{"$f":"IF(LEN(INDICADORES!D67)>0,INDICADORES!C67,\"\")","v":""},{"$f":"IF(LEN(INDICADORES!D68)>0,INDICADORES!C68,\"\")","v":""},{"$f":"IF(LEN(INDICADORES!D69)>0,INDICADORES!C69,\"\")","v":""},{"$f":"IF(LEN(INDICADORES!D70)>0,INDICADORES!C70,\"\")","v":""},{"$f":"IF(LEN(INDICADORES!D71)>0,INDICADORES!C71,\"\")","v":""},"PROMEDIO C3",{"$f":"IF(LEN(INDICADORES!D72)>0,INDICADORES!C72,\"\")","v":""},{"$f":"IF(LEN(INDICADORES!D73)>0,INDICADORES!C73,\"\")","v":""},{"$f":"IF(LEN(INDICADORES!D74)>0,INDICADORES!C74,\"\")","v":""},{"$f":"IF(LEN(INDICADORES!D75)>0,INDICADORES!C75,\"\")","v":""},{"$f":"IF(LEN(INDICADORES!D76)>0,INDICADORES!C76,\"\")","v":""},"PROMEDIO C4",{"$f":"IF(LEN(INDICADORES!D77)>0,INDICADORES!C77,\"\")","v":""},{"$f":"IF(LEN(INDICADORES!D78)>0,INDICADORES!C78,\"\")","v":""},{"$f":"IF(LEN(INDICADORES!D79)>0,INDICADORES!C79,\"\")","v":""},{"$f":"IF(LEN(INDICADORES!D80)>0,INDICADORES!C80,\"\")","v":""},{"$f":"IF(LEN(INDICADORES!D81)>0,INDICADORES!C81,\"\")","v":""},"PROMEDIO C1",{"$f":"IF(LEN(INDICADORES!D82)>0,INDICADORES!C82,\"\")","v":""},{"$f":"IF(LEN(INDICADORES!D83)>0,INDICADORES!C83,\"\")","v":""},{"$f":"IF(LEN(INDICADORES!D84)>0,INDICADORES!C84,\"\")","v":""},{"$f":"IF(LEN(INDICADORES!D85)>0,INDICADORES!C85,\"\")","v":""},{"$f":"IF(LEN(INDICADORES!D86)>0,INDICADORES!C86,\"\")","v":""},{"$f":"IF(LEN(INDICADORES!D87)>0,INDICADORES!C87,\"\")","v":""},"PROMEDIO C2",{"$f":"IF(LEN(INDICADORES!D88)>0,INDICADORES!C88,\"\")","v":""},{"$f":"IF(LEN(INDICADORES!D89)>0,INDICADORES!C89,\"\")","v":""},{"$f":"IF(LEN(INDICADORES!D90)>0,INDICADORES!C90,\"\")","v":""},{"$f":"IF(LEN(INDICADORES!D91)>0,INDICADORES!C91,\"\")","v":""},{"$f":"IF(LEN(INDICADORES!D92)>0,INDICADORES!C92,\"\")","v":""},{"$f":"IF(LEN(INDICADORES!D93)>0,INDICADORES!C93,\"\")","v":""},{"$f":"IF(LEN(INDICADORES!D94)>0,INDICADORES!C94,\"\")","v":""},"PROMEDIO C3",{"$f":"IF(LEN(INDICADORES!D95)>0,INDICADORES!C95,\"\")","v":""},{"$f":"IF(LEN(INDICADORES!D96)>0,INDICADORES!C96,\"\")","v":""},{"$f":"IF(LEN(INDICADORES!D97)>0,INDICADORES!C97,\"\")","v":""},{"$f":"IF(LEN(INDICADORES!D98)>0,INDICADORES!C98,\"\")","v":""},{"$f":"IF(LEN(INDICADORES!D99)>0,INDICADORES!C99,\"\")","v":""},"PROMEDIO C4",{"$f":"IF(LEN(INDICADORES!D100)>0,INDICADORES!C100,\"\")","v":""},{"$f":"IF(LEN(INDICADORES!D101)>0,INDICADORES!C101,\"\")","v":""},{"$f":"IF(LEN(INDICADORES!D102)>0,INDICADORES!C102,\"\")","v":""},{"$f":"IF(LEN(INDICADORES!D103)>0,INDICADORES!C103,\"\")","v":""},{"$f":"IF(LEN(INDICADORES!D104)>0,INDICADORES!C104,\"\")","v":""},"PROMEDIO C1",{"$f":"IF(LEN(INDICADORES!D105)>0,INDICADORES!C105,\"\")","v":""},{"$f":"IF(LEN(INDICADORES!D106)>0,INDICADORES!C106,\"\")","v":""},{"$f":"IF(LEN(INDICADORES!D107)>0,INDICADORES!C107,\"\")","v":""},{"$f":"IF(LEN(INDICADORES!D108)>0,INDICADORES!C108,\"\")","v":""},{"$f":"IF(LEN(INDICADORES!D109)>0,INDICADORES!C109,\"\")","v":""},"PROMEDIO C2",{"$f":"IF(LEN(INDICADORES!D110)>0,INDICADORES!C110,\"\")","v":""},{"$f":"IF(LEN(INDICADORES!D111)>0,INDICADORES!C111,\"\")","v":""},{"$f":"IF(LEN(INDICADORES!D112)>0,INDICADORES!C112,\"\")","v":""},{"$f":"IF(LEN(INDICADORES!D113)>0,INDICADORES!C113,\"\")","v":""},{"$f":"IF(LEN(INDICADORES!D114)>0,INDICADORES!C114,\"\")","v":""},"PROMEDIO C3"]
[1,null,null,null,null,null,null,{"$f":"IFERROR(ROUND(AVERAGE(C9:G9),0),\"\")","v":""},null,null,null,null,null,{"$f":"IFERROR(ROUND(AVERAGE(I9:M9),0),\"\")","v":""},null,null,null,null,null,{"$f":"IFERROR(ROUND(AVERAGE(O9:S9),0),\"\")","v":""},null,null,null,null,null,{"$f":"IFERROR(ROUND(AVERAGE(U9:Y9),0),\"\")","v":""},null,null,null,null,null,{"$f":"IFERROR(ROUND(AVERAGE(AA9:AE9),0),\"\")","v":""},null,null,null,null,null,{"$f":"IFERROR(ROUND(AVERAGE(AG9:AK9),0),\"\")","v":""},null,null,null,null,null,{"$f":"IFERROR(ROUND(AVERAGE(AM9:AQ9),0),\"\")","v":""},null,null,null,null,null,{"$f":"IFERROR(ROUND(AVERAGE(AS9:AW9),0),\"\")","v":""},null,null,null,null,null,{"$f":"IFERROR(ROUND(AVERAGE(AY9:BC9),0),\"\")","v":""},null,null,null,null,null,{"$f":"IFERROR(ROUND(AVERAGE(BE9:BI9),0),\"\")","v":""},null,null,null,null,null,{"$f":"IFERROR(ROUND(AVERAGE(BK9:BO9),0),\"\")","v":""},null,null,null,null,null,{"$f":"IFERROR(ROUND(AVERAGE(BQ9:BU9),0),\"\")","v":""},null,null,null,null,null,null,{"$f":"IFERROR(ROUND(AVERAGE(BW9:CB9),0),\"\")","v":""},null,null,null,null,null,{"$f":"IFERROR(ROUND(AVERAGE(CD9:CH9),0),\"\")","v":""},null,null,null,null,null,{"$f":"IFERROR(ROUND(AVERAGE(CJ9:CN9),0),\"\")","v":""},null,null,null,null,null,null,{"$f":"IFERROR(ROUND(AVERAGE(CP9:CU9),0),\"\")","v":""},null,null,null,null,null,null,null,{"$f":"IFERROR(ROUND(AVERAGE(CW9:DC9),0),\"\")","v":""},null,null,null,null,null,{"$f":"IFERROR(ROUND(AVERAGE(DE9:DI9),0),\"\")","v":""},null,null,null,null,null,{"$f":"IFERROR(ROUND(AVERAGE(DK9:DO9),0),\"\")","v":""},null,null,null,null,null,{"$f":"IFERROR(ROUND(AVERAGE(DQ9:DU9),0),\"\")","v":""},null,null,null,null,null,{"$f":"IFERROR(ROUND(AVERAGE(DW9:EA9),0),\"\")","v":""},{"$f":"IFERROR(ROUND(AVERAGE(H9,N9,T9,Z9,AF9),0),\"\")","v":""},{"$f":"IFERROR(ROUND(AVERAGE(AL9,AR9,AX9,BD9,BJ9),0),\"\")","v":""},{"$f":"IFERROR(ROUND(AVERAGE(BP9,BV9,CC9,CI9),0),\"\")","v":""},{"$f":"IFERROR(ROUND(AVERAGE(CO9,CV9,DD9,DJ9),0),\"\")","v":""},{"$f":"IFERROR(ROUND(AVERAGE(DP9,DV9,EB9),0),\"\")","v":""},{"$f":"IFERROR(ROUND(AVERAGE(EC9:EG9),0),\"\")","v":""}]
[2,null,null,null,null,null,null,{"$f":"IFERROR(ROUND(AVERAGE(C10:G10),0),\"\")","v":""},null,null,null,null,null,{"$f":"IFERROR(ROUND(AVERAGE(I10:M10),0),\"\")","v":""},null,null,null,null,null,{"$f":"IFERROR(ROUND(AVERAGE(O10:S10),0),\"\")","v":""},null,null,null,null,null,{"$f":"IFERROR(ROUND(AVERAGE(U10:Y10),0),\"\")","v":""},null,null,null,null,null,{"$f":"IFERROR(ROUND(AVERAGE(AA10:AE10),0),\"\")","v":""},null,null,null,null,null,{"$f":"IFERROR(ROUND(AVERAGE(AG10:AK10),0),\"\")","v":""},null,null,null,null,null,{"$f":"IFERROR(ROUND(AVERAGE(AM10:AQ10),0),\"\")","v":""},null,null,null,null,null,{"$f":"IFERROR(ROUND(AVERAGE(AS10:AW10),0),\"\")","v":""},null,null,null,null,null,{"$f":"IFERROR(ROUND(AVERAGE(AY10:BC10),0),\"\")","v":""},null,null,null,null,null,{"$f":"IFERROR(ROUND(AVERAGE(BE10:BI10),0),\"\")","v":""},null,null,null,null,null,{"$f":"IFERROR(ROUND(AVERAGE(BK10:BO10),0),\"\")","v":""},null,null,null,null,null,{"$f":"IFERROR(ROUND(AVERAGE(BQ10:BU10),0),\"\")","v":""},null,null,null,null,null,null,{"$f":"IFERROR(ROUND(AVERAGE(BW10:CB10),0),\"\")","v":""},null,null,null,null,null,{"$f":"IFERROR(ROUND(AVERAGE(CD10:CH10),0),\"\")","v":""},null,null,null,null,null,{"$f":"IFERROR(ROUND(AVERAGE(CJ10:CN10),0),\"\")","v":""},null,null,null,null,null,null,{"$f":"IFERROR(ROUND(AVERAGE(CP10:CU10),0),\"\")","v":""},null,null,null,null,null,null,null,{"$f":"IFERROR(ROUND(AVERAGE(CW10:DC10),0),\"\")","v":""},null,null,null,null,null,"",null,null,null,null,null,"",null,null,null,null,null,{"$f":"IFERROR(ROUND(AVERAGE(DQ10:DU10),0),\"\")","v":""},null,null,null,null,null,{"$f":"IFERROR(ROUND(AVERAGE(DW10:EA10),0),\"\")","v":""},{"$f":"IFERROR(ROUND(AVERAGE(H10,N10,T10,Z10,AF10),0),\"\")","v":""},{"$f":"IFERROR(ROUND(AVERAGE(AL10,AR10,AX10,BD10,BJ10),0),\"\")","v":""},{"$f":"IFERROR(ROUND(AVERAGE(BP10,BV10,CC10,CI10),0),\"\")","v":""},{"$f":"IFERROR(ROUND(AVERAGE(CO10,CV10,DD10,DJ10),0),\"\")","v":""},{"$f":"IFERROR(ROUND(AVERAGE(DP10,DV10,EB10),0),\"\")","v":""},{"$f":"IFERROR(ROUND(AVERAGE(EC10:EG10),0),\"\")","v":""}]
[3,null,null,null,null,null,null,{"$f":"IFERROR(ROUND(AVERAGE(C11:G11),0),\"\")","v":""},null,null,null,null,null,{"$f":"IFERROR(ROUND(AVERAGE(I11:M11),0),\"\")","v":""},null,null,null,null,null,{"$f":"IFERROR(ROUND(AVERAGE(O11:S11),0),\"\")","v":""},null,null,null,null,null,{"$f":"IFERROR(ROUND(AVERAGE(U11:Y11),0),\"\")","v":""},null,null,null,null,null,{"$f":"IFERROR(ROUND(AVERAGE(AA11:AE11),0),\"\")","v":""},null,null,null,null,null,{"$f":"IFERROR(ROUND(AVERAGE(AG11:AK11),0),\"\")","v":""},null,null,null,null,null,{"$f":"IFERROR(ROUND(AVERAGE(AM11:AQ11),0),\"\")","v":""},null,null,null,null,null,{"$f":"IFERROR(ROUND(AVERAGE(AS11:AW11),0),\"\")","v":""},null,null,null,null,null,{"$f":"IFERROR(ROUND(AVERAGE(AY11:BC11),0),\"\")","v":""},null,null,null,null,null,{"$f":"IFERROR(ROUND(AVERAGE(BE11:BI11),0),\"\")","v":""},null,null,null,null,null,{"$f":"IFERROR(ROUND(AVERAGE(BK11:BO11),0),\"\")","v":""},null,null,null,null,null,{"$f":"IFERROR(ROUND(AVERAGE(BQ11:BU11),0),\"\")","v":""},null,null,null,null,null,null,{"$f":"IFERROR(ROUND(AVERAGE(BW11:CB11),0),\"\")","v":""},null,null,null,null,null,{"$f":"IFERROR(ROUND(AVERAGE(CD11:CH11),0),\"\")","v":""},null,null,null,null,null,{"$f":"IFERROR(ROUND(AVERAGE(CJ11:CN11),0),\"\")","v":""},null,null,null,null,null,null,{"$f":"IFERROR(ROUND(AVERAGE(CP11:CU11),0),\"\")","v":""},null,null,null,null,null,null,null,{"$f":"IFERROR(ROUND(AVERAGE(CW11:DC11),0),\"\")","v":""},null,null,null,null,null,"",null,null,null,null,null,"",null,null,null,null,null,{"$f":"IFERROR(ROUND(AVERAGE(DQ11:DU11),0),\"\")","v":""},null,null,null,null,null,{"$f":"IFERROR(ROUND(AVERAGE(DW11:EA11),0),\"\")","v":""},"","","","",{"$f":"IFERROR(ROUND(AVERAGE(DP11,DV11,EB11),0),\"\")","v":""},{"$f":"IFERROR(ROUND(AVERAGE(EC11:EG11),0),\"\")","v":""}]
[4,null,null,null,null,null,null,{"$f":"IFERROR(ROUND(AVERAGE(C12:G12),0),\"\")","v":""},null,null,null,null,null,"",null,null,null,null,null,"",null,null,null,null,null,"",null,null,null,null,null,"",null,null,null,null,null,{"$f":"IFERROR(ROUND(AVERAGE(AG12:AK12),0),\"\")","v":""},null,null,null,null,null,{"$f":"IFERROR(ROUND(AVERAGE(AM12:AQ12),0),\"\")","v":""},null,null,null,null,null,"",null,null,null,null,null,"",null,null,null,null,null,"",null,null,null,null,null,{"$f":"IFERROR(ROUND(AVERAGE(BK12:BO12),0),\"\")","v":""},null,null,null,null,null,"",null,null,null,null,null,null,"",null,null,null,null,null,"",null,null,null,null,null,{"$f":"IFERROR(ROUND(AVERAGE(CJ12:CN12),0),\"\")","v":""},null,null,null,null,null,null,"",null,null,null,null,null,null,null,"",null,null,null,null,null,"",null,null,null,null,null,"",null,null,null,null,null,"",null,null,null,null,null,"","","","","","",{"$f":"IFERROR(ROUND(AVERAGE(EC12:EG12),0),\"\")","v":""}]
[5,null,null,null,null,null,null,"",null,null,null,null,null,"",null,null,null,null,null,"",null,null,null,null,null,"",null,null,null,null,null,"",null,null,null,null,null,"",null,null,null,null,null,"",null,null,null,null,null,"",null,null,null,null,null,"",null,null,null,null,null,"",null,null,null,null,null,"",null,null,null,null,null,"",null,null,null,null,null,null,"",null,null,null,null,null,"",null,null,null,null,null,"",null,null,null,null,null,null,"",null,null,null,null,null,null,null,"",null,null,null,null,null,"",null,null,null,null,null,"",null,null,null,null,null,"",null,null,null,null,null,"","","","","","",""]
[6,null,"",null,null,null,null,"",null,null,null,null,null,"",null,null,null,null,null,"",null,null,null,null,null,"",null,null,null,null,null,"",null,null,null,null,null,"",null,null,null,null,null,"",null,null,null,null,null,"",null,null,null,null,null,"",null,null,null,null,null,"",null,null,null,null,null,"",null,null,null,null,null,"",null,null,null,null,null,null,"",null,null,null,null,null,"",null,null,null,null,null,"",null,null,null,null,null,null,"",null,null,null,null,null,null,null,"",null,null,null,null,null,"",null,null,null,null,null,"",null,null,null,null,null,"",null,null,null,null,null,"","","","","","",""]
[7,null,"",null,null,null,null,"",null,null,null,null,null,"",null,null,null,null,null,"",null,null,null,null,null,"",null,null,null,null,null,"",null,null,null,null,null,"",null,null,null,null,null,"",null,null,null,null,null,"",null,null,null,null,null,"",null,null,null,null,null,"",null,null,null,null,null,"",null,null,null,null,null,"",null,null,null,null,null,null,"",null,null,null,null,null,"",null,null,null,null,null,"",null,null,null,null,null,null,"",null,null,null,null,null,null,null,"",null,null,null,null,null,"",null,null,null,null,null,"",null,null,null,null,null,"",null,null,null,null,null,"","","","","","",""]
[8,null,"",null,null,null,null,"",null,null,null,null,null,"",null,null,null,null,null,"",null,null,null,null,null,"",null,null,null,null,null,"",null,null,null,null,null,"",null,null,null,null,null,"",null,null,null,null,null,"",null,null,null,null,null,"",null,null,null,null,null,"",null,null,null,null,null,"",null,null,null,null,null,"",null,null,null,null,null,null,"",null,null,null,null,null,"",null,null,null,null,null,"",null,null,null,null,null,null,"",null,null,null,null,null,null,null,"",null,null,null,null,null,"",null,null,null,null,null,"",null,null,null,null,null,"",null,null,null,null,null,"","","","","","",""]
[9,null,"",null,null,null,null,"",null,null,null,null,null,"",null,null,null,null,null,"",null,null,null,null,null,"",null,null,null,null,null,"",null,null,null,null,null,"",null,null,null,null,null,"",null,null,null,null,null,"",null,null,null,null,null,"",null,null,null,null,null,"",null,null,null,null,null,"",null,null,null,null,null,"",null,null,null,null,null,null,"",null,null,null,null,null,"",null,null,null,null,null,"",null,null,null,null,null,null,"",null,null,null,null,null,null,null,"",null,null,null,null,null,"",null,null,null,null,null,"",null,null,null,null,null,"",null,null,null,null,null,"","","","","","",""]
[10,null,"",null,null,null,null,"",null,null,null,null,null,"",null,null,null,null,null,"",null,null,null,null,null,"",null,null,null,null,null,"",null,null,null,null,null,"",null,null,null,null,null,"",null,null,null,null,null,"",null,null,null,null,null,"",null,null,null,null,null,"",null,null,null,null,null,"",null,null,null,null,null,"",null,null,null,null,null,null,"",null,null,null,null,null,"",null,null,null,null,null,"",null,null,null,null,null,null,"",null,null,null,null,null,null,null,"",null,null,null,null,null,"",null,null,null,null,null,"",null,null,null,null,null,"",null,null,null,null,null,"","","","","","",""]
[11,null,"",null,null,null,null,"",null,null,null,null,null,"",null,null,null,null,null,"",null,null,null,null,null,"",null,null,null,null,null,"",null,null,null,null,null,"",null,null,null,null,null,"",null,null,null,null,null,"",null,null,null,null,null,"",null,null,null,null,null,"",null,null,null,null,null,"",null,null,null,null,null,"",null,null,null,null,null,null,"",null,null,null,null,null,"",null,null,null,null,null,"",null,null,null,null,null,null,"",null,null,null,null,null,null,null,"",null,null,null,null,null,"",null,null,null,null,null,"",null,null,null,null,null,"",null,null,null,null,null,"","","","","","",""]
[12,null,"",null,null,null,null,"",null,null,null,null,null,"",null,null,null,null,null,"",null,null,null,null,null,"",null,null,null,null,null,"",null,null,null,null,null,"",null,null,null,null,null,"",null,null,null,null,null,"",null,null,null,null,null,"",null,null,null,null,null,"",null,null,null,null,null,"",null,null,null,null,null,"",null,null,null,null,null,null,"",null,null,null,null,null,"",null,null,null,null,null,"",null,null,null,null,null,null,"",null,null,null,null,null,null,null,"",null,null,null,null,null,"",null,null,null,null,null,"",null,null,null,null,null,"",null,null,null,null,null,"","","","","","",""]
[13,null,"",null,null,null,null,"",null,null,null,null,null,"",null,null,null,null,null,"",null,null,null,null,null,"",null,null,null,null,null,"",null,null,null,null,null,"",null,null,null,null,null,"",null,null,null,null,null,"",null,null,null,null,null,"",null,null,null,null,null,"",null,null,null,null,null,"",null,null,null,null,null,"",null,null,null,null,null,null,"",null,null,null,null,null,"",null,null,null,null,null,"",null,null,null,null,null,null,"",null,null,null,null,null,null,null,"",null,null,null,null,null,"",null,null,null,null,null,"",null,null,null,null,null,"",null,null,null,null,null,"","","","","","",""]
[14,null,"",null,null,null,null,"",null,null,null,null,null,"",null,null,null,null,null,"",null,null,null,null,null,"",null,null,null,null,null,"",null,null,null,null,null,"",null,null,null,null,null,"",null,null,null,null,null,"",null,null,null,null,null,"",null,null,null,null,null,"",null,null,null,null,null,"",null,null,null,null,null,"",null,null,null,null,null,null,"",null,null,null,null,null,"",null,null,null,null,null,"",null,null,null,null,null,null,"",null,null,null,null,null,null,null,"",null,null,null,null,null,"",null,null,null,null,null,"",null,null,null,null,null,"",null,null,null,null,null,"","","","","","",""]
[15,null,"",null,null,null,null,"",null,null,null,null,null,"",null,null,null,null,null,"",null,null,null,null,null,"",null,null,null,null,null,"",null,null,null,null,null,"",null,null,null,null,null,"",null,null,null,null,null,"",null,null,null,null,null,"",null,null,null,null,null,"",null,null,null,null,null,"",null,null,null,null,null,"",null,null,null,null,null,null,"",null,null,null,null,null,"",null,null,null,null,null,"",null,null,null,null,null,null,"",null,null,null,null,null,null,null,"",null,null,null,null,null,"",null,null,null,null,null,"",null,null,null,null,null,"",null,null,null,null,null,"","","","","","",""]
[16,null,"",null,null,null,null,"",null,null,null,null,null,"",null,null,null,null,null,"",null,null,null,null,null,"",null,null,null,null,null,"",null,null,null,null,null,"",null,null,null,null,null,"",null,null,null,null,null,"",null,null,null,null,null,"",null,null,null,null,null,"",null,null,null,null,null,"",null,null,null,null,null,"",null,null,null,null,null,null,"",null,null,null,null,null,"",null,null,null,null,null,"",null,null,null,null,null,null,"",null,null,null,null,null,null,null,"",null,null,null,null,null,"",null,null,null,null,null,"",null,null,null,null,null,"",null,null,null,null,null,"","","","","","",""]
[17,null,"",null,null,null,null,"",null,null,null,null,null,"",null,null,null,null,null,{"$f":"IFERROR(ROUND(AVERAGE(O25:S25),0),\"\")","v":""},null,null,null,null,null,"",null,null,null,null,null,"",null,null,null,null,null,"",null,null,null,null,null,"",null,null,null,null,null,"",null,null,null,null,null,"",null,null,null,null,null,"",null,null,null,null,null,"",null,null,null,null,null,"",null,null,null,null,null,null,"",null,null,null,null,null,"",null,null,null,null,null,"",null,null,null,null,null,null,"",null,null,null,null,null,null,null,"",null,null,null,null,null,"",null,null,null,null,null,"",null,null,null,null,null,"",null,null,null,null,null,"","","","","","",""]
[18,null,"",null,null,null,null,"",null,null,null,null,null,"",null,null,null,null,null,"",null,null,null,null,null,"",null,null,null,null,null,"",null,null,null,null,null,"",null,null,null,null,null,"",null,null,null,null,null,"",null,null,null,null,null,"",null,null,null,null,null,"",null,null,null,null,null,"",null,null,null,null,null,"",null,null,null,null,null,null,"",null,null,null,null,null,"",null,null,null,null,null,"",null,null,null,null,null,null,"",null,null,null,null,null,null,null,"",null,null,null,null,null,"",null,null,null,null,null,"",null,null,null,null,null,"",null,null,null,null,null,"","","","","","",""]
[19,null,"",null,null,null,null,"",null,null,null,null,null,"",null,null,null,null,null,"",null,null,null,null,null,"",null,null,null,null,null,"",null,null,null,null,null,"",null,null,null,null,null,"",null,null,null,null,null,"",null,null,null,null,null,"",null,null,null,null,null,"",null,null,null,null,null,"",null,null,null,null,null,"",null,null,null,null,null,null,"",null,null,null,null,null,"",null,null,null,null,null,"",null,null,null,null,null,null,"",null,null,null,null,null,null,null,"",null,null,null,null,null,"",null,null,null,null,null,"",null,null,null,null,null,"",null,null,null,null,null,"","","","","","",""]
[20,null,"",null,null,null,null,"",null,null,null,null,null,"",null,null,null,null,null,"",null,null,null,null,null,"",null,null,null,null,null,"",null,null,null,null,null,"",null,null,null,null,null,"",null,null,null,null,null,"",null,null,null,null,null,"",null,null,null,null,null,"",null,null,null,null,null,"",null,null,null,null,null,"",null,null,null,null,null,null,"",null,null,null,null,null,"",null,null,null,null,null,"",null,null,null,null,null,null,"",null,null,null,null,null,null,null,"",null,null,null,null,null,"",null,null,null,null,null,"",null,null,null,null,null,"",null,null,null,null,null,"","","","","","",""]
[21,null,"",null,null,null,null,"",null,null,null,null,null,"",null,null,null,null,null,"",null,null,null,null,null,"",null,null,null,null,null,"",null,null,null,null,null,"",null,null,null,null,null,"",null,null,null,null,null,"",null,null,null,null,null,"",null,null,null,null,null,"",null,null,null,null,null,"",null,null,null,null,null,"",null,null,null,null,null,null,"",null,null,null,null,null,"",null,null,null,null,null,"",null,null,null,null,null,null,"",null,null,null,null,null,null,null,"",null,null,null,null,null,"",null,null,null,null,null,"",null,null,null,null,null,"",null,null,null,null,null,"","","","","","",""]
[22,null,"",null,null,null,null,"",null,null,null,null,null,"",null,null,null,null,null,"",null,null,null,null,null,"",null,null,null,null,null,"",null,null,null,null,null,"",null,null,null,null,null,"",null,null,null,null,null,"",null,null,null,null,null,"",null,null,null,null,null,"",null,null,null,null,null,"",null,null,null,null,null,"",null,null,null,null,null,null,"",null,null,null,null,null,"",null,null,null,null,null,"",null,null,null,null,null,null,"",null,null,null,null,null,null,null,"",null,null,null,null,null,"",null,null,null,null,null,"",null,null,null,null,null,"",null,null,null,null,null,"","","","","","",""]
[23,null,"",null,null,null,null,"",null,null,null,null,null,"",null,null,null,null,null,"",null,null,null,null,null,"",null,null,null,null,null,"",null,null,null,null,null,"",null,null,null,null,null,"",null,null,null,null,null,"",null,null,null,null,null,"",null,null,null,null,null,"",null,null,null,null,null,"",null,null,null,null,null,"",null,null,null,null,null,null,"",null,null,null,null,null,"",null,null,null,null,null,"",null,null,null,null,null,null,"",null,null,null,null,null,null,null,"",null,null,null,null,null,"",null,null,null,null,null,"",null,null,null,null,null,"",null,null,null,null,null,"","","","","","",""]
[24,null,"",null,null,null,null,"",null,null,null,null,null,"",null,null,null,null,null,"",null,null,null,null,null,"",null,null,null,null,null,"",null,null,null,null,null,"",null,null,null,null,null,"",null,null,null,null,null,"",null,null,null,null,null,"",null,null,null,null,null,"",null,null,null,null,null,"",null,null,null,null,null,"",null,null,null,null,null,null,"",null,null,null,null,null,"",null,null,null,null,null,"",null,null,null,null,null,null,"",null,null,null,null,null,null,null,"",null,null,null,null,null,"",null,null,null,null,null,"",null,null,null,null,null,"",null,null,null,null,null,"",{"$f":"IFERROR(ROUND(AVERAGE(H32,N32,T32,Z32,AF32),0),\"\")","v":""},"","","","",""]
[25,null,"",null,null,null,null,"",null,null,null,null,null,"",null,null,null,null,null,"",null,null,null,null,null,"",null,null,null,null,null,"",null,null,null,null,null,"",null,null,null,null,null,"",null,null,null,null,null,"",null,null,null,null,null,"",null,null,null,null,null,"",null,null,null,null,null,"",null,null,null,null,null,"",null,null,null,null,null,null,"",null,null,null,null,null,"",null,null,null,null,null,"",null,null,null,null,null,null,"",null,null,null,null,null,null,null,"",null,null,null,null,null,"",null,null,null,null,null,"",null,null,null,null,null,"",null,null,null,null,null,"","","","","","",""]
[26,null,"",null,null,null,null,"",null,null,null,null,null,"",null,null,null,null,null,"",null,null,null,null,null,"",null,null,null,null,null,"",null,null,null,null,null,"",null,null,null,null,null,"",null,null,null,null,null,"",null,null,null,null,null,"",null,null,null,null,null,"",null,null,null,null,null,"",null,null,null,null,null,"",null,null,null,null,null,null,"",null,null,null,null,null,"",null,null,null,null,null,"",null,null,null,null,null,null,"",null,null,null,null,null,null,null,"",null,null,null,null,null,"",null,null,null,null,null,"",null,null,null,null,null,"",null,null,null,null,null,"","","","","","",""]
[27,null,"",null,null,null,null,"",null,null,null,null,null,"",null,null,null,null,null,"",null,null,null,null,null,"",null,null,null,null,null,"",null,null,null,null,null,"",null,null,null,null,null,"",null,null,null,null,null,"",null,null,null,null,null,"",null,null,null,null,null,"",null,null,null,null,null,"",null,null,null,null,null,"",null,null,null,null,null,null,"",null,null,null,null,null,"",null,null,null,null,null,"",null,null,null,null,null,null,"",null,null,null,null,null,null,null,"",null,null,null,null,null,"",null,null,null,null,null,"",null,null,null,null,null,"",null,null,null,null,null,"","","","","","",""]
[28,null,"",null,null,null,null,"",null,null,null,null,null,"",null,null,null,null,null,"",null,null,null,null,null,"",null,null,null,null,null,"",null,null,null,null,null,"",null,null,null,null,null,"",null,null,null,null,null,"",null,null,null,null,null,"",null,null,null,null,null,"",null,null,null,null,null,"",null,null,null,null,null,"",null,null,null,null,null,null,"",null,null,null,null,null,"",null,null,null,null,null,"",null,null,null,null,null,null,"",null,null,null,null,null,null,null,"",null,null,null,null,null,"",null,null,null,null,null,"",null,null,null,null,null,"",null,null,null,null,null,"","","","","","",""]
[29,null,"",null,null,null,null,"",null,null,null,null,null,"",null,null,null,null,null,"",null,null,null,null,null,"",null,null,null,null,null,"",null,null,null,null,null,"",null,null,null,null,null,"",null,null,null,null,null,"",null,null,null,null,null,"",null,null,null,null,null,"",null,null,null,null,null,"",null,null,null,null,null,"",null,null,null,null,null,null,"",null,null,null,null,null,"",null,null,null,null,null,"",null,null,null,null,null,null,"",null,null,null,null,null,null,null,"",null,null,null,null,null,"",null,null,null,null,null,"",null,null,null,null,null,"",null,null,null,null,null,"","","","","","",""]
[30,null,"",null,null,null,null,"",null,null,null,null,null,"",null,null,null,null,null,{"$f":"IFERROR(ROUND(AVERAGE(O38:S38),0),\"\")","v":""},null,null,null,null,null,"",null,null,null,null,null,"",null,null,null,null,null,"",null,null,null,null,null,"",null,null,null,null,null,"",null,null,null,null,null,"",null,null,null,null,null,"",null,null,null,null,null,"",null,null,null,null,null,"",null,null,null,null,null,null,"",null,null,null,null,null,"",null,null,null,null,null,"",null,null,null,null,null,null,"",null,null,null,null,null,null,null,"",null,null,null,null,null,"",null,null,null,null,null,"",null,null,null,null,null,"",null,null,null,null,null,"","","","","","",""]
[31,null,"",null,null,null,null,"",null,null,null,null,null,"",null,null,null,null,null,"",null,null,null,null,null,"",null,null,null,null,null,"",null,null,null,null,null,"",null,null,null,null,null,"",null,null,null,null,null,"",null,null,null,null,null,"",null,null,null,null,null,"",null,null,null,null,null,"",null,null,null,null,null,"",null,null,null,null,null,null,"",null,null,null,null,null,"",null,null,null,null,null,"",null,null,null,null,null,null,"",null,null,null,null,null,null,null,"",null,null,null,null,null,"",null,null,null,null,null,"",null,null,null,null,null,"",null,null,null,null,null,"","","","","","",""]
[32,null,"",null,null,null,null,"",null,null,null,null,null,"",null,null,null,null,null,"",null,null,null,null,null,"",null,null,null,null,null,"",null,null,null,null,null,"",null,null,null,null,null,"",null,null,null,null,null,"",null,null,null,null,null,"",null,null,null,null,null,"",null,null,null,null,null,"",null,null,null,null,null,"",null,null,null,null,null,null,"",null,null,null,null,null,"",null,null,null,null,null,"",null,null,null,null,null,null,"",null,null,null,null,null,null,null,"",null,null,null,null,null,"",null,null,null,null,null,"",null,null,null,null,null,"",null,null,null,null,null,"","","","","","",""]
[33,null,"",null,null,null,null,"",null,null,null,null,null,"",null,null,null,null,null,"",null,null,null,null,null,"",null,null,null,null,null,"",null,null,null,null,null,"",null,null,null,null,null,"",null,null,null,null,null,"",null,null,null,null,null,"",null,null,null,null,null,"",null,null,null,null,null,"",null,null,null,null,null,"",null,null,null,null,null,null,"",null,null,null,null,null,"",null,null,null,null,null,"",null,null,null,null,null,null,"",null,null,null,null,null,null,null,"",null,null,null,null,null,"",null,null,null,null,null,"",null,null,null,null,null,"",null,null,null,null,null,"","","","","","",{"$f":"IFERROR(ROUND(AVERAGE(EC41:EG41),0),\"\")","v":""}]
[34,null,"",null,null,null,null,"",null,null,null,null,null,"",null,null,null,null,null,"",null,null,null,null,null,"",null,null,null,null,null,"",null,null,null,null,null,"",null,null,null,null,null,"",null,null,null,null,null,"",null,null,null,null,null,"",null,null,null,null,null,"",null,null,null,null,null,"",null,null,null,null,null,"",null,null,null,null,null,null,"",null,null,null,null,null,"",null,null,null,null,null,"",null,null,null,null,null,null,"",null,null,null,null,null,null,null,"",null,null,null,null,null,"",null,null,null,null,null,"",null,null,null,null,null,"",null,null,null,null,null,"","","","","","",""]
[35,null,"",null,null,null,null,"",null,null,null,null,null,"",null,null,null,null,null,"",null,null,null,null,null,"",null,null,null,null,null,"",null,null,null,null,null,"",null,null,null,null,null,"",null,null,null,null,null,"",null,null,null,null,null,"",null,null,null,null,null,"",null,null,null,null,null,"",null,null,null,null,null,"",null,null,null,null,null,null,"",null,null,null,null,null,"",null,null,null,null,null,"",null,null,null,null,null,null,"",null,null,null,null,null,null,null,"",null,null,null,null,null,"",null,null,null,null,null,"",null,null,null,null,null,"",null,null,null,null,null,"","","","","","",""]
[36,null,"",null,null,null,null,"",null,null,null,null,null,"",null,null,null,null,null,"",null,null,null,null,null,"",null,null,null,null,null,"",null,null,null,null,null,"",null,null,null,null,null,"",null,null,null,null,null,"",null,null,null,null,null,"",null,null,null,null,null,"",null,null,null,null,null,"",null,null,null,null,null,"",null,null,null,null,null,null,"",null,null,null,null,null,"",null,null,null,null,null,"",null,null,null,null,null,null,"",null,null,null,null,null,null,null,"",null,null,null,null,null,"",null,null,null,null,null,"",null,null,null,null,null,"",null,null,null,null,null,"","","","","","",""]
[37,null,"",null,null,null,null,"",null,null,null,null,null,"",null,null,null,null,null,"",null,null,null,null,null,"",null,null,null,null,null,"",null,null,null,null,null,"",null,null,null,null,null,"",null,null,null,null,null,"",null,null,null,null,null,"",null,null,null,null,null,"",null,null,null,null,null,"",null,null,null,null,null,"",null,null,null,null,null,null,"",null,null,null,null,null,"",null,null,null,null,null,"",null,null,null,null,null,null,"",null,null,null,null,null,null,null,"",null,null,null,null,null,"",null,null,null,null,null,"",null,null,null,null,null,"",null,null,null,null,null,"","","","","","",""]
[38,null,"",null,null,null,null,"",null,null,null,null,null,"",null,null,null,null,null,"",null,null,null,null,null,"",null,null,null,null,null,"",null,null,null,null,null,"",null,null,null,null,null,"",null,null,null,null,null,"",null,null,null,null,null,"",null,null,null,null,null,"",null,null,null,null,null,"",null,null,null,null,null,"",null,null,null,null,null,null,"",null,null,null,null,null,"",null,null,null,null,null,"",null,null,null,null,null,null,"",null,null,null,null,null,null,null,"",null,null,null,null,null,"",null,null,null,null,null,"",null,null,null,null,null,"",null,null,null,null,null,"","","","","","",""]
[39,null,"",null,null,null,null,"",null,null,null,null,null,"",null,null,null,null,null,"",null,null,null,null,null,"",null,null,null,null,null,"",null,null,null,null,null,"",null,null,null,null,null,"",null,null,null,null,null,"",null,null,null,null,null,"",null,null,null,null,null,"",null,null,null,null,null,"",null,null,null,null,null,"",null,null,null,null,null,null,"",null,null,null,null,null,"",null,null,null,null,null,"",null,null,null,null,null,null,"",null,null,null,null,null,null,null,"",null,null,null,null,null,"",null,null,null,null,null,"",null,null,null,null,null,"",null,null,null,null,null,"","","","","","",""]
[40,null,"",null,null,null,null,"",null,null,null,null,null,"",null,null,null,null,null,"",null,null,null,null,null,"",null,null,null,null,null,"",null,null,null,null,null,"",null,null,null,null,null,"",null,null,null,null,null,"",null,null,null,null,null,"",null,null,null,null,null,"",null,null,null,null,null,"",null,null,null,null,null,"",null,null,null,null,null,null,"",null,null,null,null,null,"",null,null,null,null,null,"",null,null,null,null,null,null,"",null,null,null,null,null,null,null,"",null,null,null,null,null,"",null,null,null,null,null,"",null,null,null,null,null,"",null,null,null,null,null,"","","","","","",""]
[]
[]
[]
[]
[]
[]
[]
[]
[null,"ESTADÍSTICA:"]
[null,"TOTAL",{"$f":"IF(COUNT(EH9:EH48)=0,\"\",COUNT(EH9:EH48))","v":""}]
[null,"PROMEDIO",{"$f":"IFERROR(ROUND(AVERAGE(EH9:EH48),2),\"\")","v":""}]
[null,"MEDIANA",{"$f":"IFERROR(MEDIAN(EH9:EH48),\"\")","v":""}]
[null,"MODA",{"$f":"IFERROR(_xlfn.MODE.SNGL(EH9:EH48),\"\")","v":""}]
[null,"NOTA MÁS ALTA",{"$f":"IF(MAX(EH9:EH48)=0,\"\",MAX(EH9:EH48))","v":""}]
[null,"NOTA MÁS BAJA",{"$f":"IF(MIN(EH9:EH48)=0,\"\",MIN(EH9:EH48))","v":""}]
[null,"APROBADOS",{"$f":"IF(COUNT(EH9:EH48)=0,\"\",COUNTIF(EH9:EH48,\">10\"))","v":""},null,null,null,null,null,{"$f":"IFERROR(ROUND(C64*100/C58,2),\"\")","v":""}]
[null,"DESAPROBADOS",{"$f":"IF(COUNT(EH9:EH48)=0,\"\",COUNTIF(EH9:EH48,\"<11\"))","v":""},null,null,null,null,null,{"$f":"IFERROR(ROUND(C65*100/C58,2),\"\")","v":""}]

{"sheet":"REGISTRO2","index":3,"n_rows":66,"n_cols":114,"rows_kept":66,"cut":false,"hidden":false,"merged":[[6,51,7,51],[6,27,7,27],[2,0,2,31],[6,2,6,6],[6,7,6,11],[6,12,6,16],[6,17,6,21],[5,2,5,27],[5,28,5,53],[6,25,7,25],[6,22,7,22],[6,23,7,23],[6,43,6,47],[6,52,7,52],[6,50,7,50],[5,0,5,1],[6,0,6,1],[6,24,7,24],[6,38,6,42],[0,2,0,15],[6,26,7,26],[6,33,6,37],[6,48,7,48],[6,49,7,49],[57,37,57,40],[58,37,58,40],[59,37,59,40],[53,2,53,10],[54,2,54,10],[55,2,55,10],[56,2,56,10],[57,2,57,10],[52,28,52,36],[53,28,53,36],[54,28,54,36],[55,28,55,36],[56,28,56,36],[52,37,52,40],[53,37,53,40],[54,37,54,40],[56,11,56,14],[57,11,57,14],[52,2,52,10],[58,2,58,10],[59,2,59,10],[55,37,55,40],[5,106,5,110],[6,106,7,106],[6,107,7,107],[6,108,7,108],[6,109,7,109],[6,110,7,110],[6,75,7,75],[6,77,7,77],[6,78,7,78],[6,103,7,103],[6,104,7,104],[6,79,7,79],[6,105,7,105],[6,76,7,76],[6,102,7,102],[5,54,5,79],[5,80,5,105],[6,80,6,84],[6,85,6,89],[6,90,6,94],[6,95,6,99],[6,100,7,100],[6,101,7,101],[6,74,7,74],[64,15,64,17],[65,11,65,14],[65,15,65,17],[62,2,62,10],[51,2,51,17],[51,28,51,45],[57,28,57,36],[58,28,58,36],[59,28,59,36],[56,37,56,40],[63,2,63,10],[64,2,64,10],[65,2,65,10],[61,11,61,14],[61,15,61,17],[62,11,62,14],[62,15,62,17],[63,11,63,14],[63,15,63,17],[64,11,64,14],[58,11,58,14],[59,11,59,14],[58,15,58,17],[59,15,59,17],[64,28,64,36],[65,28,65,36],[61,37,61,40],[62,37,62,40],[63,37,63,40],[64,37,64,40],[65,37,65,40],[61,28,61,36],[61,41,61,43],[64,41,64,43],[65,41,65,43],[62,28,62,36],[63,28,63,36],[64,54,64,62],[65,54,65,62],[52,63,52,66],[53,63,53,66],[54,63,54,66],[55,63,55,66],[56,63,56,66],[57,63,57,66],[58,63,58,66],[57,54,57,62],[58,54,58,62],[59,54,59,62],[61,54,61,62],[62,54,62,62],[64,63,64,66],[65,63,65,66],[65,67,65,69],[58,67,58,69],[59,67,59,69],[59,63,59,66],[61,63,61,66],[61,67,61,69],[62,63,62,66],[62,67,62,69],[65,93,65,95],[65,80,65,88],[61,80,61,88],[62,80,62,88],[63,80,63,88],[64,80,64,88],[64,93,64,95],[58,80,58,88],[59,80,59,88],[64,67,64,69],[65,113,65,115],[58,113,58,115],[59,113,59,115],[65,106,65,109],[59,110,59,112],[65,110,65,112],[61,89,61,92],[62,89,62,92],[63,89,63,92],[64,89,64,92],[65,89,65,92],[58,93,58,95],[59,93,59,95],[61,93,61,95],[62,93,62,95],[63,93,63,95],[64,110,64,112],[61,113,61,115],[62,113,62,115],[63,113,63,115],[64,113,64,115],[64,106,64,109],[61,106,61,109],[59,106,59,109],[55,110,55,112],[56,110,56,112],[57,110,57,112],[58,110,58,112],[52,106,52,109],[53,106,53,109],[54,106,54,109],[55,106,55,109],[56,106,56,109],[57,106,57,109],[58,106,58,109],[51,106,51,115],[62,106,62,109],[63,106,63,109],[61,110,61,112],[62,110,62,112],[63,110,63,112],[52,80,52,88],[53,80,53,88],[54,80,54,88],[55,80,55,88],[56,80,56,88],[57,80,57,88],[52,89,52,92],[53,89,53,92],[54,89,54,92],[56,89,56,92],[55,89,55,92],[57,89,57,92],[58,89,58,92],[59,89,59,92],[51,80,51,95],[52,110,52,112],[53,110,53,112],[54,110,54,112],[61,2,61,10],[52,11,52,14],[63,54,63,62],[63,63,63,66],[63,67,63,69],[6,54,6,58],[6,59,6,63],[6,64,6,68],[6,69,6,73],[6,53,7,53],[62,41,62,43],[63,41,63,43],[52,54,52,62],[53,54,53,62],[54,54,54,62],[55,54,55,62],[56,54,56,62],[51,54,51,69],[58,41,58,43],[59,41,59,43],[53,11,53,14],[54,11,54,14],[55,11,55,14],[6,28,6,32]]}
[null,null,{"$f":"\"I.E. \"&INDICADORES!B1","v":"I.E. 86031 NUESTRA SEÑORA DE LA ASUNCIÓN"}]
[]
[{"$f":"\"REGISTRO ANUAL DEL AREA DE \"&INICIO!B13","v":"REGISTRO ANUAL DEL AREA DE MATEMÁTICA"}]
[]
[]
[{"$f":"\"DOCENTE: \"&INDICADORES!D2","v":"DOCENTE: José Antonio Melgar Camayo"},null,"I TRIMESTRE / BIMESTRE",null,null,null,null,null,null,null,null,null,null,null,null,null,null,null,null,null,null,null,null,null,null,null,null,null,"II TRIMESTRE / BIMESTRE",null,null,null,null,null,null,null,null,null,null,null,null,null,null,null,null,null,null,null,null,null,null,null,null,null,"III TRIMESTRE / BIMESTRE",null,null,null,null,null,null,null,null,null,null,null,null,null,null,null,null,null,null,null,null,null,null,null,null,null,"IV BIMESTRE",null,null,null,null,null,null,null,null,null,null,null,null,null,null,null,null,null,null,null,null,null,null,null,null,null,"RESUMEN ANUAL"]
[{"$f":"\"GRADO Y SECCIÓN: \"&INDICADORES!B2","v":"GRADO Y SECCIÓN: PRIMERO - A"},null,"UNIDAD 1",null,null,null,null,"UNIDAD 2",null,null,null,null,"UNIDAD 3",null,null,null,null,"UNIDAD 4",null,null,null,null,"C1","C2","C3","C4","C5","PROMEDIO DE PERIODO","UNIDAD 1",null,null,null,null,"UNIDAD 2",null,null,null,null,"UNIDAD 3",null,null,null,null,"UNIDAD 4",null,null,null,null,"C1","C2","C3","C4","C5","PROMEDIO DE PERIODO","UNIDAD 1",null,null,null,null,"UNIDAD 2",null,null,null,null,"UNIDAD 3",null,null,null,null,"UNIDAD 4",null,null,null,null,"C1","C2","C3","C4","C5","PROMEDIO DE PERIODO","UNIDAD 1",null,null,null,null,"UNIDAD 2",null,null,null,null,"UNIDAD 3",null,null,null,null,"UNIDAD 4",null,null,null,null,"C1","C2","C3","C4","C5","PROMEDIO DE PERIODO","I TRIMESTRE/BIMESTRE","II TRIMESTRE/BIMESTRE","III TRIMESTRE/BIMESTRE","IV BIMESTRE","PROMEDIO ANUAL"]
["N°","APELLIDOS Y NOMBRES","C1","C2","C3","C4","C5","C1","C2","C3","C4","C5","C1","C2","C3","C4","C5","C1","C2","C3","C4","C5",null,null,null,null,null,null,"C1","C2","C3","C4","C5","C1","C2","C3","C4","C5","C1","C2","C3","C4","C5","C1","C2","C3","C4","C5",null,null,null,null,null,null,"C1","C2","C3","C4","C5","C1","C2","C3","C4","C5","C1","C2","C3","C4","C5","C1","C2","C3","C4","C5",null,null,null,null,null,null,"C1","C2","C3","C4","C5","C1","C2","C3","C4","C5","C1","C2","C3","C4","C5","C1","C2","C3","C4","C5"]
[1,null,null,null,null,null,null,null,null,null,null,null,null,null,null,null,null,null,null,null,null,null,{"$f":"IFERROR(ROUND(AVERAGE(C9,H9,M9,R9),0),\"\")","v":""},{"$f":"IFERROR(ROUND(AVERAGE(D9,I9,N9,S9),0),\"\")","v":""},{"$f":"IFERROR(ROUND(AVERAGE(E9,J9,O9,T9),0),\"\")","v":""},{"$f":"IFERROR(ROUND(AVERAGE(F9,K9,P9,U9),0),\"\")","v":""},{"$f":"IFERROR(ROUND(AVERAGE(G9,L9,Q9,V9),0),\"\")","v":""},{"$f":"IFERROR(ROUND(AVERAGE(W9:AA9),0),\"\")","v":""},null,null,null,null,null,null,null,null,null,null,null,null,null,null,null,null,null,null,null,null,{"$f":"IFERROR(ROUND(AVERAGE(AC9,AH9,AM9,AR9),0),\"\")","v":""},{"$f":"IFERROR(ROUND(AVERAGE(AD9,AI9,AN9,AS9),0),\"\")","v":""},{"$f":"IFERROR(ROUND(AVERAGE(AE9,AJ9,AO9,AT9),0),\"\")","v":""},{"$f":"IFERROR(ROUND(AVERAGE(AF9,AK9,AP9,AU9),0),\"\")","v":""},{"$f":"IFERROR(ROUND(AVERAGE(AG9,AL9,AQ9,AV9),0),\"\")","v":""},{"$f":"IFERROR(ROUND(AVERAGE(AW9:BA9),0),\"\")","v":""},null,null,null,null,null,null,null,null,null,null,null,null,null,null,null,null,null,null,null,null,{"$f":"IFERROR(ROUND(AVERAGE(BC9,BH9,BM9,BR9),0),\"\")","v":""},{"$f":"IFERROR(ROUND(AVERAGE(BD9,BI9,BN9,BS9),0),\"\")","v":""},{"$f":"IFERROR(ROUND(AVERAGE(BE9,BJ9,BO9,BT9),0),\"\")","v":""},{"$f":"IFERROR(ROUND(AVERAGE(BF9,BK9,BP9,BU9),0),\"\")","v":""},{"$f":"IFERROR(ROUND(AVERAGE(BG9,BL9,BQ9,BV9),0),\"\")","v":""},{"$f":"IFERROR(ROUND(AVERAGE(BW9:CA9),0),\"\")","v":""},null,null,null,null,null,null,null,null,null,null,null,null,null,null,null,null,null,null,null,null,{"$f":"IFERROR(ROUND(AVERAGE(CC9,CH9,CM9,CR9),0),\"\")","v":""},{"$f":"IFERROR(ROUND(AVERAGE(CD9,CI9,CN9,CS9),0),\"\")","v":""},{"$f":"IFERROR(ROUND(AVERAGE(CE9,CJ9,CO9,CT9),0),\"\")","v":""},{"$f":"IFERROR(ROUND(AVERAGE(CF9,CK9,CP9,CU9),0),\"\")","v":""},{"$f":"IFERROR(ROUND(AVERAGE(CG9,CL9,CQ9,CV9),0),\"\")","v":""},{"$f":"IFERROR(ROUND(AVERAGE(CW9:DA9),0),\"\")","v":""},{"$f":"IF(AB9=\"\",\"\",AB9)","v":""},{"$f":"IF(BB9=\"\",\"\",BB9)","v":""},{"$f":"IF(CB9=\"\",\"\",CB9)","v":""},{"$f":"IF(DB9=\"\",\"\",DB9)","v":""},{"$f":"IFERROR(ROUND(AVERAGE(DC9:DF9),0),\"\")","v":""}]
[2,null,null,null,null,null,null,null,null,null,null,null,null,null,null,null,null,null,null,null,null,null,{"$f":"IFERROR(ROUND(AVERAGE(C10,H10,M10,R10),0),\"\")","v":""},{"$f":"IFERROR(ROUND(AVERAGE(D10,I10,N10,S10),0),\"\")","v":""},{"$f":"IFERROR(ROUND(AVERAGE(E10,J10,O10,T10),0),\"\")","v":""},{"$f":"IFERROR(ROUND(AVERAGE(F10,K10,P10,U10),0),\"\")","v":""},{"$f":"IFERROR(ROUND(AVERAGE(G10,L10,Q10,V10),0),\"\")","v":""},{"$f":"IFERROR(ROUND(AVERAGE(W10:AA10),0),\"\")","v":""},null,null,null,null,null,null,null,null,null,null,null,null,null,null,null,null,null,null,null,null,{"$f":"IFERROR(ROUND(AVERAGE(AC10,AH10,AM10,AR10),0),\"\")","v":""},{"$f":"IFERROR(ROUND(AVERAGE(AD10,AI10,AN10,AS10),0),\"\")","v":""},{"$f":"IFERROR(ROUND(AVERAGE(AE10,AJ10,AO10,AT10),0),\"\")","v":""},{"$f":"IFERROR(ROUND(AVERAGE(AF10,AK10,AP10,AU10),0),\"\")","v":""},{"$f":"IFERROR(ROUND(AVERAGE(AG10,AL10,AQ10,AV10),0),\"\")","v":""},{"$f":"IFERROR(ROUND(AVERAGE(AW10:BA10),0),\"\")","v":""},null,null,null,null,null,null,null,null,null,null,null,null,null,null,null,null,null,null,null,null,{"$f":"IFERROR(ROUND(AVERAGE(BC10,BH10,BM10,BR10),0),\"\")","v":""},{"$f":"IFERROR(ROUND(AVERAGE(BD10,BI10,BN10,BS10),0),\"\")","v":""},{"$f":"IFERROR(ROUND(AVERAGE(BE10,BJ10,BO10,BT10),0),\"\")","v":""},{"$f":"IFERROR(ROUND(AVERAGE(BF10,BK10,BP10,BU10),0),\"\")","v":""},{"$f":"IFERROR(ROUND(AVERAGE(BG10,BL10,BQ10,BV10),0),\"\")","v":""},{"$f":"IFERROR(ROUND(AVERAGE(BW10:CA10),0),\"\")","v":""},null,null,null,null,null,null,null,null,null,null,null,null,null,null,null,null,null,null,null,null,{"$f":"IFERROR(ROUND(AVERAGE(CC10,CH10,CM10,CR10),0),\"\")","v":""},{"$f":"IFERROR(ROUND(AVERAGE(CD10,CI10,CN10,CS10),0),\"\")","v":""},{"$f":"IFERROR(ROUND(AVERAGE(CE10,CJ10,CO10,CT10),0),\"\")","v":""},{"$f":"IFERROR(ROUND(AVERAGE(CF10,CK10,CP10,CU10),0),\"\")","v":""},{"$f":"IFERROR(ROUND(AVERAGE(CG10,CL10,CQ10,CV10),0),\"\")","v":""},{"$f":"IFERROR(ROUND(AVERAGE(CW10:DA10),0),\"\")","v":""},"","","",{"$f":"IF(DB10=\"\",\"\",DB10)","v":""},{"$f":"IFERROR(ROUND(AVERAGE(DC10:DF10),0),\"\")","v":""}]
[3,null,null,null,null,null,null,null,null,null,null,null,null,null,null,null,null,null,null,null,null,null,"",{"$f":"IFERROR(ROUND(AVERAGE(D11,I11,N11,S11),0),\"\")","v":""},{"$f":"IFERROR(ROUND(AVERAGE(E11,J11,O11,T11),0),\"\")","v":""},{"$f":"IFERROR(ROUND(AVERAGE(F11,K11,P11,U11),0),\"\")","v":""},"","",null,null,null,null,null,null,null,null,null,null,null,null,null,null,null,null,null,null,null,null,{"$f":"IFERROR(ROUND(AVERAGE(AC11,AH11,AM11,AR11),0),\"\")","v":""},{"$f":"IFERROR(ROUND(AVERAGE(AD11,AI11,AN11,AS11),0),\"\")","v":""},{"$f":"IFERROR(ROUND(AVERAGE(AE11,AJ11,AO11,AT11),0),\"\")","v":""},"","","",null,null,null,null,null,null,null,null,null,null,null,null,null,null,null,null,null,null,null,null,"","","","","","",null,null,null,null,null,null,null,null,null,null,null,null,null,null,null,null,null,null,null,null,"","","","","","","","","","",""]
[4,null,null,null,null,null,null,null,null,null,null,null,null,null,null,null,null,null,null,null,null,null,"",{"$f":"IFERROR(ROUND(AVERAGE(D12,I12,N12,S12),0),\"\")","v":""},{"$f":"IFERROR(ROUND(AVERAGE(E12,J12,O12,T12),0),\"\")","v":""},{"$f":"IFERROR(ROUND(AVERAGE(F12,K12,P12,U12),0),\"\")","v":""},"","",null,null,null,null,null,null,null,null,null,null,null,null,null,null,null,null,null,null,null,null,"","","",{"$f":"IFERROR(ROUND(AVERAGE(AF12,AK12,AP12,AU12),0),\"\")","v":""},"","",null,null,null,null,null,null,null,null,null,null,null,null,null,null,null,null,null,null,null,null,"","","","","","",null,null,null,null,null,null,null,null,null,null,null,null,null,null,null,null,null,null,null,null,"","","","","","","","","","",""]
[5,null,null,null,null,null,null,null,null,null,null,null,null,null,null,null,null,null,null,null,null,null,{"$f":"IFERROR(ROUND(AVERAGE(C13,H13,M13,R13),0),\"\")","v":""},"","",{"$f":"IFERROR(ROUND(AVERAGE(F13,K13,P13,U13),0),\"\")","v":""},"","",null,null,null,null,null,null,null,null,null,null,null,null,null,null,null,null,null,null,null,null,"","","",{"$f":"IFERROR(ROUND(AVERAGE(AF13,AK13,AP13,AU13),0),\"\")","v":""},{"$f":"IFERROR(ROUND(AVERAGE(AG13,AL13,AQ13,AV13),0),\"\")","v":""},"",null,null,null,null,null,null,null,null,null,null,null,null,null,null,null,null,null,null,null,null,"","","","","","",null,null,null,null,null,null,null,null,null,null,null,null,null,null,null,null,null,null,null,null,"","","","","","","","","","",""]
[6,null,null,null,null,null,null,null,null,null,null,null,null,null,null,null,null,null,null,null,null,null,"","","","","","",null,null,null,null,null,null,null,null,null,null,null,null,null,null,null,null,null,null,null,null,"","","","",{"$f":"IFERROR(ROUND(AVERAGE(AG14,AL14,AQ14,AV14),0),\"\")","v":""},"",null,null,null,null,null,null,null,null,null,null,null,null,null,null,null,null,null,null,null,null,"","","","","","",null,null,null,null,null,null,null,null,null,null,null,null,null,null,null,null,null,null,null,null,"","","","","","","","","","",""]
[7,null,null,null,null,null,null,null,null,null,null,null,null,null,null,null,null,null,null,null,null,null,"","","","",{"$f":"IFERROR(ROUND(AVERAGE(G15,L15,Q15,V15),0),\"\")","v":""},"",null,null,null,null,null,null,null,null,null,null,null,null,null,null,null,null,null,null,null,null,"","","","","","",null,null,null,null,null,null,null,null,null,null,null,null,null,null,null,null,null,null,null,null,"","","","","","",null,null,null,null,null,null,null,null,null,null,null,null,null,null,null,null,null,null,null,null,"","","","","","","","","","",""]
[8,null,null,null,null,null,null,null,null,null,null,null,null,null,null,null,null,null,null,null,null,null,"","","","","","",null,null,null,null,null,null,null,null,null,null,null,null,null,null,null,null,null,null,null,null,"","","","","","",null,null,null,null,null,null,null,null,null,null,null,null,null,null,null,null,null,null,null,null,"","","","","","",null,null,null,null,null,null,null,null,null,null,null,null,null,null,null,null,null,null,null,null,"","","","","","","","","","",""]
[9,null,null,null,null,null,null,null,null,null,null,null,null,null,null,null,null,null,null,null,null,null,"","","","","","",null,null,null,null,null,null,null,null,null,null,null,null,null,null,null,null,null,null,null,null,"","","","","","",null,null,null,null,null,null,null,null,null,null,null,null,null,null,null,null,null,null,null,null,"","","","","","",null,null,null,null,null,null,null,null,null,null,null,null,null,null,null,null,null,null,null,null,"","","","","","","","","","",""]
[10,null,null,null,null,null,null,null,null,null,null,null,null,null,null,null,null,null,null,null,null,null,"","","","","","",null,null,null,null,null,null,null,null,null,null,null,null,null,null,null,null,null,null,null,null,"","","","","","",null,null,null,null,null,null,null,null,null,null,null,null,null,null,null,null,null,null,null,null,"","","","","","",null,null,null,null,null,null,null,null,null,null,null,null,null,null,null,null,null,null,null,null,"","","","","","","","","","",""]
[11,null,null,null,null,null,null,null,null,null,null,null,null,null,null,null,null,null,null,null,null,null,"","","","","","",null,null,null,null,null,null,null,null,null,null,null,null,null,null,null,null,null,null,null,null,"","","","","","",null,null,null,null,null,null,null,null,null,null,null,null,null,null,null,null,null,null,null,null,"","","","","","",null,null,null,null,null,null,null,null,null,null,null,null,null,null,null,null,null,null,null,null,"","","","","","","","","","",""]
[12,null,null,null,null,null,null,null,null,null,null,null,null,null,null,null,null,null,null,null,null,null,"","","","","","",null,null,null,null,null,null,null,null,null,null,null,null,null,null,null,null,null,null,null,null,"","","","","","",null,null,null,null,null,null,null,null,null,null,null,null,null,null,null,null,null,null,null,null,"","","","","","",null,null,null,null,null,null,null,null,null,null,null,null,null,null,null,null,null,null,null,null,"","","","","","","","","","",""]
[13,null,null,null,null,null,null,null,null,null,null,null,null,null,null,null,null,null,null,null,null,null,"","","","","","",null,null,null,null,null,null,null,null,null,null,null,null,null,null,null,null,null,null,null,null,"","","","","","",null,null,null,null,null,null,null,null,null,null,null,null,null,null,null,null,null,null,null,null,"","","","","","",null,null,null,null,null,null,null,null,null,null,null,null,null,null,null,null,null,null,null,null,"","","","","","","","","","",""]
[14,null,null,null,null,null,null,null,null,null,null,null,null,null,null,null,null,null,null,null,null,null,"","","","","","",null,null,null,null,null,null,null,null,null,null,null,null,null,null,null,null,null,null,null,null,"","","","","","",null,null,null,null,null,null,null,null,null,null,null,null,null,null,null,null,null,null,null,null,"","","","","","",null,null,null,null,null,null,null,null,null,null,null,null,null,null,null,null,null,null,null,null,"","","","","","","","","","",""]
[15,null,null,null,null,null,null,null,null,null,null,null,null,null,null,null,null,null,null,null,null,null,"","","","","","",null,null,null,null,null,null,null,null,null,null,null,null,null,null,null,null,null,null,null,null,"","","","","","",null,null,null,null,null,null,null,null,null,null,null,null,null,null,null,null,null,null,null,null,"","","","","","",null,null,null,null,null,null,null,null,null,null,null,null,null,null,null,null,null,null,null,null,"","","","","","","","","","",""]
[16,null,null,null,null,null,null,null,null,null,null,null,null,null,null,null,null,null,null,null,null,null,"","","","","","",null,null,null,null,null,null,null,null,null,null,null,null,null,null,null,null,null,null,null,null,"","","","","","",null,null,null,null,null,null,null,null,null,null,null,null,null,null,null,null,null,null,null,null,"","","","","","",null,null,null,null,null,null,null,null,null,null,null,null,null,null,null,null,null,null,null,null,"","","","","","","","","","",""]
[17,null,null,null,null,null,null,null,null,null,null,null,null,null,null,null,null,null,null,null,null,null,"","","","","","",null,null,null,null,null,null,null,null,null,null,null,null,null,null,null,null,null,null,null,null,"","","","","","",null,null,null,null,null,null,null,null,null,null,null,null,null,null,null,null,null,null,null,null,"","","","","","",null,null,null,null,null,null,null,null,null,null,null,null,null,null,null,null,null,null,null,null,"","","","","","","","","","",""]
[18,null,null,null,null,null,null,null,null,null,null,null,null,null,null,null,null,null,null,null,null,null,"","","","","","",null,null,null,null,null,null,null,null,null,null,null,null,null,null,null,null,null,null,null,null,"","","","","","",null,null,null,null,null,null,null,null,null,null,null,null,null,null,null,null,null,null,null,null,"","","","","","",null,null,null,null,null,null,null,null,null,null,null,null,null,null,null,null,null,null,null,null,"","","","","","","","","","",""]
[19,null,null,null,null,null,null,null,null,null,null,null,null,null,null,null,null,null,null,null,null,null,"","","","","","",null,null,null,null,null,null,null,null,null,null,null,null,null,null,null,null,null,null,null,null,"","","","","","",null,null,null,null,null,null,null,null,null,null,null,null,null,null,null,null,null,null,null,null,"","","","","","",null,null,null,null,null,null,null,null,null,null,null,null,null,null,null,null,null,null,null,null,"","","","","","","","","","",""]
[20,null,null,null,null,null,null,null,null,null,null,null,null,null,null,null,null,null,null,null,null,null,"","","","","","",null,null,null,null,null,null,null,null,null,null,null,null,null,null,null,null,null,null,null,null,"","","","","","",null,null,null,null,null,null,null,null,null,null,null,null,null,null,null,null,null,null,null,null,"","","","","","",null,null,null,null,null,null,null,null,null,null,null,null,null,null,null,null,null,null,null,null,"","","","","","","","","","",""]
[21,null,null,null,null,null,null,null,null,null,null,null,null,null,null,null,null,null,null,null,null,null,"","","","","","",null,null,null,null,null,null,null,null,null,null,null,null,null,null,null,null,null,null,null,null,"","","","","","",null,null,null,null,null,null,null,null,null,null,null,null,null,null,null,null,null,null,null,null,"","","","","","",null,null,null,null,null,null,null,null,null,null,null,null,null,null,null,null,null,null,null,null,"","","","","","","","","","",""]
[22,null,null,null,null,null,null,null,null,null,null,null,null,null,null,null,null,null,null,null,null,null,"","","","","","",null,null,null,null,null,null,null,null,null,null,null,null,null,null,null,null,null,null,null,null,"","","","","","",null,null,null,null,null,null,null,null,null,null,null,null,null,null,null,null,null,null,null,null,"","","","","","",null,null,null,null,null,null,null,null,null,null,null,null,null,null,null,null,null,null,null,null,"","","","","","","","","","",""]
[23,null,null,null,null,null,null,null,null,null,null,null,null,null,null,null,null,null,null,null,null,null,"","","","","","",null,null,null,null,null,null,null,null,null,null,null,null,null,null,null,null,null,null,null,null,"","","","","","",null,null,null,null,null,null,null,null,null,null,null,null,null,null,null,null,null,null,null,null,"","","","","","",null,null,null,null,null,null,null,null,null,null,null,null,null,null,null,null,null,null,null,null,"","","","","","","","","","",""]
[24,null,null,null,null,null,null,null,null,null,null,null,null,null,null,null,null,null,null,null,null,null,"","","","","","",null,null,null,null,null,null,null,null,null,null,null,null,null,null,null,null,null,null,null,null,"","","","","","",null,null,null,null,null,null,null,null,null,null,null,null,null,null,null,null,null,null,null,null,"","","","","","",null,null,null,null,null,null,null,null,null,null,null,null,null,null,null,null,null,null,null,null,"","","","","","","","","","",""]
[25,null,null,null,null,null,null,null,null,null,null,null,null,null,null,null,null,null,null,null,null,null,"","","","","","",null,null,null,null,null,null,null,null,null,null,null,null,null,null,null,null,null,null,null,null,"","","","","","",null,null,null,null,null,null,null,null,null,null,null,null,null,null,null,null,null,null,null,null,"","","","","","",null,null,null,null,null,null,null,null,null,null,null,null,null,null,null,null,null,null,null,null,"","","","","","","","","","",""]
[26,null,null,null,null,null,null,null,null,null,null,null,null,null,null,null,null,null,null,null,null,null,"","","","","","",null,null,null,null,null,null,null,null,null,null,null,null,null,null,null,null,null,null,null,null,"","","","","","",null,null,null,null,null,null,null,null,null,null,null,null,null,null,null,null,null,null,null,null,"","","","","","",null,null,null,null,null,null,null,null,null,null,null,null,null,null,null,null,null,null,null,null,"","","","","","","","","","",""]
[27,null,null,null,null,null,null,null,null,null,null,null,null,null,null,null,null,null,null,null,null,null,"","","","","","",null,null,null,null,null,null,null,null,null,null,null,null,null,null,null,null,null,null,null,null,"","","","","","",null,null,null,null,null,null,null,null,null,null,null,null,null,null,null,null,null,null,null,null,"","","","","","",null,null,null,null,null,null,null,null,null,null,null,null,null,null,null,null,null,null,null,null,"","","","","","","","","","",""]
[28,null,null,null,null,null,null,null,null,null,null,null,null,null,null,null,null,null,null,null,null,null,"","","","","","",null,null,null,null,null,null,null,null,null,null,null,null,null,null,null,null,null,null,null,null,"","","","","","",null,null,null,null,null,null,null,null,null,null,null,null,null,null,null,null,null,null,null,null,"","","","","","",null,null,null,null,null,null,null,null,null,null,null,null,null,null,null,null,null,null,null,null,"","","","","","","","","","",""]
[29,null,null,null,null,null,null,null,null,null,null,null,null,null,null,null,null,null,null,null,null,null,"","","","","","",null,null,null,null,null,null,null,null,null,null,null,null,null,null,null,null,null,null,null,null,"","","","","","",null,null,null,null,null,null,null,null,null,null,null,null,null,null,null,null,null,null,null,null,"","","","","","",null,null,null,null,null,null,null,null,null,null,null,null,null,null,null,null,null,null,null,null,"","","","","","","","","","",""]
[30,null,null,null,null,null,null,null,null,null,null,null,null,null,null,null,null,null,null,null,null,null,"","","","","","",null,null,null,null,null,null,null,null,null,null,null,null,null,null,null,null,null,null,null,null,"","","","","","",null,null,null,null,null,null,null,null,null,null,null,null,null,null,null,null,null,null,null,null,"","","","","","",null,null,null,null,null,null,null,null,null,null,null,null,null,null,null,null,null,null,null,null,"","","","","","","","","","",""]
[31,null,null,null,null,null,null,null,null,null,null,null,null,null,null,null,null,null,null,null,null,null,"","","","","","",null,null,null,null,null,null,null,null,null,null,null,null,null,null,null,null,null,null,null,null,"","","","","","",null,null,null,null,null,null,null,null,null,null,null,null,null,null,null,null,null,null,null,null,"","","","","","",null,null,null,null,null,null,null,null,null,null,null,null,null,null,null,null,null,null,null,null,"","","","","","","","","","",""]
[32,null,null,null,null,null,null,null,null,null,null,null,null,null,null,null,null,null,null,null,null,null,"","","","","","",null,null,null,null,null,null,null,null,null,null,null,null,null,null,null,null,null,null,null,null,"","","","","","",null,null,null,null,null,null,null,null,null,null,null,null,null,null,null,null,null,null,null,null,"","","","","","",null,null,null,null,null,null,null,null,null,null,null,null,null,null,null,null,null,null,null,null,"","","","","","","","","","",""]
[33,null,null,null,null,null,null,null,null,null,null,null,null,null,null,null,null,null,null,null,null,null,"","","","","","",null,null,null,null,null,null,null,null,null,null,null,null,null,null,null,null,null,null,null,null,"","","","","","",null,null,null,null,null,null,null,null,null,null,null,null,null,null,null,null,null,null,null,null,"","","","","","",null,null,null,null,null,null,null,null,null,null,null,null,null,null,null,null,null,null,null,null,"","","","","","","","","","",""]
[34,null,null,null,null,null,null,null,null,null,null,null,null,null,null,null,null,null,null,null,null,null,"","","","","","",null,null,null,null,null,null,null,null,null,null,null,null,null,null,null,null,null,null,null,null,"","","","","","",null,null,null,null,null,null,null,null,null,null,null,null,null,null,null,null,null,null,null,null,"","","","","","",null,null,null,null,null,null,null,null,null,null,null,null,null,null,null,null,null,null,null,null,"","","","","","","","","","",""]
[35,null,null,null,null,null,null,null,null,null,null,null,null,null,null,null,null,null,null,null,null,null,"","","","","","",null,null,null,null,null,null,null,null,null,null,null,null,null,null,null,null,null,null,null,null,"","","","","","",null,null,null,null,null,null,null,null,null,null,null,null,null,null,null,null,null,null,null,null,"","","","","","",null,null,null,null,null,null,null,null,null,null,null,null,null,null,null,null,null,null,null,null,"","",{"$f":"IFERROR(ROUND(AVERAGE(CE43,CJ43,CO43,CT43),0),\"\")","v":""},"","","","","","","",""]
[36,null,null,null,null,null,null,null,null,null,null,null,null,null,null,null,null,null,null,null,null,null,"","","","","","",null,null,null,null,null,null,null,null,null,null,null,null,null,null,null,null,null,null,null,null,"","","","","","",null,null,null,null,null,null,null,null,null,null,null,null,null,null,null,null,null,null,null,null,"","","","","","",null,null,null,null,null,null,null,null,null,null,null,null,null,null,null,null,null,null,null,null,"","","",{"$f":"IFERROR(ROUND(AVERAGE(CF44,CK44,CP44,CU44),0),\"\")","v":""},"","","","","","",""]
[37,null,null,null,null,null,null,null,null,null,null,null,null,null,null,null,null,null,null,null,null,null,"","","","","","",null,null,null,null,null,null,null,null,null,null,null,null,null,null,null,null,null,null,null,null,"","","","","","",null,null,null,null,null,null,null,null,null,null,null,null,null,null,null,null,null,null,null,null,"","","","","","",null,null,null,null,null,null,null,null,null,null,null,null,null,null,null,null,null,null,null,null,"","","","","","","","","","",""]
[38,null,null,null,null,null,null,null,null,null,null,null,null,null,null,null,null,null,null,null,null,null,"","","","","","",null,null,null,null,null,null,null,null,null,null,null,null,null,null,null,null,null,null,null,null,"","","","","","",null,null,null,null,null,null,null,null,null,null,null,null,null,null,null,null,null,null,null,null,"","","","","","",null,null,null,null,null,null,null,null,null,null,null,null,null,null,null,null,null,null,null,null,"","","","","","","","","","",""]
[39,null,null,null,null,null,null,null,null,null,null,null,null,null,null,null,null,null,null,null,null,null,"","","","","","",null,null,null,null,null,null,null,null,null,null,null,null,null,null,null,null,null,null,null,null,"","","","","","",null,null,null,null,null,null,null,null,null,null,null,null,null,null,null,null,null,null,null,null,"","","","","","",null,null,null,null,null,null,null,null,null,null,null,null,null,null,null,null,null,null,null,null,"","","","","","","","","","",""]
[40,null,null,null,null,null,null,null,null,null,null,null,null,null,null,null,null,null,null,null,null,null,"","","","","","",null,null,null,null,null,null,null,null,null,null,null,null,null,null,null,null,null,null,null,null,"","","","","","",null,null,null,null,null,null,null,null,null,null,null,null,null,null,null,null,null,null,null,null,"","","","","","",null,null,null,null,null,null,null,null,null,null,null,null,null,null,null,null,null,null,null,null,"","","","","","","","","","",""]
[]
[]
[]
[null,null,"ESTADÍSTICA DEL PRIMER PERIODO",null,null,null,null,null,null,null,null,null,null,null,null,null,null,null,null,null,null,null,null,null,null,null,null,null,"ESTADÍSTICA DEL SEGUNDO PERIODO",null,null,null,null,null,null,null,null,null,null,null,null,null,null,null,null,null,null,null,null,null,null,null,null,null,"ESTADÍSTICA DEL TERCER PERIODO",null,null,null,null,null,null,null,null,null,null,null,null,null,null,null,null,null,null,null,null,null,null,null,null,null,"ESTADÍSTICA DEL CUARTO PERIODO",null,null,null,null,null,null,null,null,null,null,null,null,null,null,null,null,null,null,null,null,null,null,null,null,null,"ESTADÍSTICA ANUAL"]
[null,null,"TOTAL",null,null,null,null,null,null,null,null,{"$f":"IF(COUNT(AB9:AB48)=0,\"\",COUNT(AB9:AB48))","v":""},null,null,null,null,null,null,null,null,null,null,null,null,null,null,null,null,"TOTAL",null,null,null,null,null,null,null,null,{"$f":"IF(COUNT(BB9:BB48)=0,\"\",COUNT(BB9:BB48))","v":""},null,null,null,null,null,null,null,null,null,null,null,null,null,null,null,null,"TOTAL",null,null,null,null,null,null,null,null,{"$f":"IF(COUNT(CB9:CB48)=0,\"\",COUNT(CB9:CB48))","v":""},null,null,null,null,null,null,null,null,null,null,null,null,null,null,null,null,"TOTAL",null,null,null,null,null,null,null,null,{"$f":"IF(COUNT(DB9:DB48)=0,\"\",COUNT(DB9:DB48))","v":""},null,null,null,null,null,null,null,null,null,null,null,null,null,null,null,null,"TOTAL",null,null,null,{"$f":"IF(COUNT(DG9:DG48)=0,\"\",COUNT(DG9:DG48))","v":""}]
[null,null,"PROMEDIO",null,null,null,null,null,null,null,null,{"$f":"IFERROR(ROUND(AVERAGE(AB9:AB48),2),\"\")","v":""},null,null,null,null,null,null,null,null,null,null,null,null,null,null,null,null,"PROMEDIO",null,null,null,null,null,null,null,null,{"$f":"IFERROR(ROUND(AVERAGE(BB9:BB48),2),\"\")","v":""},null,null,null,null,null,null,null,null,null,null,null,null,null,null,null,null,"PROMEDIO",null,null,null,null,null,null,null,null,{"$f":"IFERROR(ROUND(AVERAGE(CB9:CB48),2),\"\")","v":""},null,null,null,null,null,null,null,null,null,null,null,null,null,null,null,null,"PROMEDIO",null,null,null,null,null,null,null,null,{"$f":"IFERROR(ROUND(AVERAGE(DB9:DB48),2),\"\")","v":""},null,null,null,null,null,null,null,null,null,null,null,null,null,null,null,null,"PROMEDIO",null,null,null,{"$f":"IFERROR(ROUND(AVERAGE(DG9:DG48),2),\"\")","v":""}]
[null,null,"MEDIANA",null,null,null,null,null,null,null,null,{"$f":"IFERROR(MEDIAN(AB9:AB48),\"\")","v":""},null,null,null,null,null,null,null,null,null,null,null,null,null,null,null,null,"MEDIANA",null,null,null,null,null,null,null,null,{"$f":"IFERROR(MEDIAN(BB9:BB48),\"\")","v":""},null,null,null,null,null,null,null,null,null,null,null,null,null,null,null,null,"MEDIANA",null,null,null,null,null,null,null,null,{"$f":"IFERROR(MEDIAN(CB9:CB48),\"\")","v":""},null,null,null,null,null,null,null,null,null,null,null,null,null,null,null,null,"MEDIANA",null,null,null,null,null,null,null,null,{"$f":"IFERROR(MEDIAN(DB9:DB48),\"\")","v":""},null,null,null,null,null,null,null,null,null,null,null,null,null,null,null,null,"MEDIANA",null,null,null,{"$f":"IFERROR(MEDIAN(DG9:DG48),\"\")","v":""}]
[null,null,"MODA",null,null,null,null,null,null,null,null,{"$f":"IFERROR(_xlfn.MODE.SNGL(AB9:AB48),\"\")","v":""},null,null,null,null,null,null,null,null,null,null,null,null,null,null,null,null,"MODA",null,null,null,null,null,null,null,null,{"$f":"IFERROR(_xlfn.MODE.SNGL(BB9:BB48),\"\")","v":""},null,null,null,null,null,null,null,null,null,null,null,null,null,null,null,null,"MODA",null,null,null,null,null,null,null,null,{"$f":"IFERROR(_xlfn.MODE.SNGL(CB9:CB48),\"\")","v":""},null,null,null,null,null,null,null,null,null,null,null,null,null,null,null,null,"MODA",null,null,null,null,null,null,null,null,{"$f":"IFERROR(_xlfn.MODE.SNGL(DB9:DB48),\"\")","v":""},null,null,null,null,null,null,null,null,null,null,null,null,null,null,null,null,"MODA",null,null,null,{"$f":"IFERROR(_xlfn.MODE.SNGL(DG9:DG48),\"\")","v":""}]
[null,null,"NOTA MÁS ALTA",null,null,null,null,null,null,null,null,{"$f":"IF(MAX(AB9:AB48)=0,\"\",MAX(AB9:AB48))","v":""},null,null,null,null,null,null,null,null,null,null,null,null,null,null,null,null,"NOTA MÁS ALTA",null,null,null,null,null,null,null,null,{"$f":"IF(MAX(BB9:BB48)=0,\"\",MAX(BB9:BB48))","v":""},null,null,null,null,null,null,null,null,null,null,null,null,null,null,null,null,"NOTA MÁS ALTA",null,null,null,null,null,null,null,null,{"$f":"IF(MAX(CB9:CB48)=0,\"\",MAX(CB9:CB48))","v":""},null,null,null,null,null,null,null,null,null,null,null,null,null,null,null,null,"NOTA MÁS ALTA",null,null,null,null,null,null,null,null,{"$f":"IF(MAX(DB9:DB48)=0,\"\",MAX(DB9:DB48))","v":""},null,null,null,null,null,null,null,null,null,null,null,null,null,null,null,null,"NOTA MÁS ALTA",null,null,null,{"$f":"IF(MAX(DG9:DG48)=0,\"\",MAX(DG9:DG48))","v":""}]
[null,null,"NOTA MÁS BAJA",null,null,null,null,null,null,null,null,{"$f":"IF(MIN(AB9:AB48)=0,\"\",MIN(AB9:AB48))","v":""},null,null,null,null,null,null,null,null,null,null,null,null,null,null,null,null,"NOTA MÁS BAJA",null,null,null,null,null,null,null,null,{"$f":"IF(MIN(BB9:BB48)=0,\"\",MIN(BB9:BB48))","v":""},null,null,null,null,null,null,null,null,null,null,null,null,null,null,null,null,"NOTA MÁS BAJA",null,null,null,null,null,null,null,null,{"$f":"IF(MIN(CB9:CB48)=0,\"\",MIN(CB9:CB48))","v":""},null,null,null,null,null,null,null,null,null,null,null,null,null,null,null,null,"NOTA MÁS BAJA",null,null,null,null,null,null,null,null,{"$f":"IF(MIN(DB9:DB48)=0,\"\",MIN(DB9:DB48))","v":""},null,null,null,null,null,null,null,null,null,null,null,null,null,null,null,null,"NOTA MÁS BAJA",null,null,null,{"$f":"IF(MIN(DG9:DG48)=0,\"\",MIN(DG9:DG48))","v":""}]
[null,null,"APROBADOS",null,null,null,null,null,null,null,null,{"$f":"IF(COUNT(AB9:AB48)=0,\"\",COUNTIF(AB9:AB48,\">10\"))","v":""},null,null,null,{"$f":"IFERROR(ROUND(L59*100/L53,2),\"\")","v":""},null,null,null,null,null,null,null,null,null,null,null,null,"APROBADOS",null,null,null,null,null,null,null,null,{"$f":"IF(COUNT(BB9:BB48)=0,\"\",COUNTIF(BB9:BB48,\">10\"))","v":""},null,null,null,{"$f":"IFERROR(ROUND(AL59*100/AL53,2),\"\")","v":""},null,null,null,null,null,null,null,null,null,null,null,null,"APROBADOS",null,null,null,null,null,null,null,null,{"$f":"IF(COUNT(CB9:CB48)=0,\"\",COUNTIF(CB9:CB48,\">10\"))","v":""},null,null,null,{"$f":"IFERROR(ROUND(BL59*100/BL53,2),\"\")","v":""},null,null,null,null,null,null,null,null,null,null,null,null,"APROBADOS",null,null,null,null,null,null,null,null,{"$f":"IF(COUNT(DB9:DB48)=0,\"\",COUNTIF(DB9:DB48,\">10\"))","v":""},null,null,null,{"$f":"IFERROR(ROUND(CL59*100/CL53,2),\"\")","v":""},null,null,null,null,null,null,null,null,null,null,null,null,"APROBADOS",null,null,null,{"$f":"IF(COUNT(DG9:DG48)=0,\"\",COUNTIF(DG9:DG48,\">10\"))","v":""},null,null,{"$f":"IFERROR(ROUND(DG59*100/DG53,2),\"\")","v":""}]
[null,null,"DESAPROBADOS",null,null,null,null,null,null,null,null,{"$f":"IF(COUNT(AB9:AB48)=0,\"\",COUNTIF(AB9:AB48,\"<11\"))","v":""},null,null,null,{"$f":"IFERROR(ROUND(L60*100/L53,2),\"\")","v":""},null,null,null,null,null,null,null,null,null,null,null,null,"DESAPROBADOS",null,null,null,null,null,null,null,null,{"$f":"IF(COUNT(BB9:BB48)=0,\"\",COUNTIF(BB9:BB48,\"<11\"))","v":""},null,null,null,{"$f":"IFERROR(ROUND(AL60*100/AL53,2),\"\")","v":""},null,null,null,null,null,null,null,null,null,null,null,null,"DESAPROBADOS",null,null,null,null,null,null,null,null,{"$f":"IF(COUNT(CB9:CB48)=0,\"\",COUNTIF(CB9:CB48,\"<11\"))","v":""},null,null,null,{"$f":"IFERROR(ROUND(BL60*100/BL53,2),\"\")","v":""},null,null,null,null,null,null,null,null,null,null,null,null,"DESAPROBADOS",null,null,null,null,null,null,null,null,{"$f":"IF(COUNT(DB9:DB48)=0,\"\",COUNTIF(DB9:DB48,\"<11\"))","v":""},null,null,null,{"$f":"IFERROR(ROUND(CL60*100/CL53,2),\"\")","v":""},null,null,null,null,null,null,null,null,null,null,null,null,"DESAPROBADOS",null,null,null,{"$f":"IF(COUNT(DG9:DG48)=0,\"\",COUNTIF(DG9:DG48,\"<11\"))","v":""},null,null,{"$f":"IFERROR(ROUND(DG60*100/DG53,2),\"\")","v":""}]
[]
[null,null,"INTERVALOS",null,null,null,null,null,null,null,null,"N",null,null,null,"%",null,null,null,null,null,null,null,null,null,null,null,null,"INTERVALOS",null,null,null,null,null,null,null,null,"N",null,null,null,"%",null,null,null,null,null,null,null,null,null,null,null,null,"INTERVALOS",null,null,null,null,null,null,null,null,"N",null,null,null,"%",null,null,null,null,null,null,null,null,null,null,null,null,"INTERVALOS",null,null,null,null,null,null,null,null,"N",null,null,null,"%",null,null,null,null,null,null,null,null,null,null,null,null,"INTERVALOS",null,null,null,"N",null,null,"%"]
[null,null,"18 - 20",null,null,null,null,null,null,null,null,{"$f":"IF(COUNT(AB9:AB48)=0,\"\",COUNTIF(AB9:AB48,\">17\"))","v":""},null,null,null,{"$f":"IFERROR(ROUND((L63*100)/$L$53,2),\"\")","v":""},null,null,null,null,null,null,null,null,null,null,null,null,"18 - 20",null,null,null,null,null,null,null,null,{"$f":"IF(COUNT(BB9:BB48)=0,\"\",COUNTIF(BB9:BB48,\">17\"))","v":""},null,null,null,{"$f":"IFERROR(ROUND((AL63*100)/$AL$53,2),\"\")","v":""},null,null,null,null,null,null,null,null,null,null,null,null,"18 - 20",null,null,null,null,null,null,null,null,{"$f":"IF(COUNT(CB9:CB48)=0,\"\",COUNTIF(CB9:CB48,\">17\"))","v":""},null,null,null,{"$f":"IFERROR(ROUND((BL63*100)/$BL$53,2),\"\")","v":""},null,null,null,null,null,null,null,null,null,null,null,null,"18 - 20",null,null,null,null,null,null,null,null,{"$f":"IF(COUNT(DB9:DB48)=0,\"\",COUNTIF(DB9:DB48,\">17\"))","v":""},null,null,null,{"$f":"IFERROR(ROUND((CL63*100)/$CL$53,2),\"\")","v":""},null,null,null,null,null,null,null,null,null,null,null,null,"18 - 20",null,null,null,{"$f":"IF(COUNT(DG9:DG48)=0,\"\",COUNTIF(DG9:DG48,\">17\"))","v":""},null,null,{"$f":"IFERROR(ROUND((DG63*100)/$DG$53,2),\"\")","v":""}]
[null,null,"14 - 17",null,null,null,null,null,null,null,null,{"$f":"IF(COUNT(AB9:AB48)=0,\"\",COUNTIF(AB9:AB48,\"=14\")+COUNTIF(AB9:AB48,\"=15\")+COUNTIF(AB9:AB48,\"=16\")+COUNTIF(AB9:AB48,\"=17\"))","v":""},null,null,null,{"$f":"IFERROR(ROUND((L64*100)/$L$53,2),\"\")","v":""},null,null,null,null,null,null,null,null,null,null,null,null,"14 - 17",null,null,null,null,null,null,null,null,{"$f":"IF(COUNT(BB9:BB48)=0,\"\",COUNTIF(BB9:BB48,\"=14\")+COUNTIF(BB9:BB48,\"=15\")+COUNTIF(BB9:BB48,\"=16\")+COUNTIF(BB9:BB48,\"=17\"))","v":""},null,null,null,{"$f":"IFERROR(ROUND((AL64*100)/$AL$53,2),\"\")","v":""},null,null,null,null,null,null,null,null,null,null,null,null,"14 - 17",null,null,null,null,null,null,null,null,{"$f":"IF(COUNT(CB9:CB48)=0,\"\",COUNTIF(CB9:CB48,\"=14\")+COUNTIF(CB9:CB48,\"=15\")+COUNTIF(CB9:CB48,\"=16\")+COUNTIF(CB9:CB48,\"=17\"))","v":""},null,null,null,{"$f":"IFERROR(ROUND((BL64*100)/$BL$53,2),\"\")","v":""},null,null,null,null,null,null,null,null,null,null,null,null,"14 - 17",null,null,null,null,null,null,null,null,{"$f":"IF(COUNT(DB9:DB48)=0,\"\",COUNTIF(DB9:DB48,\"=14\")+COUNTIF(DB9:DB48,\"=15\")+COUNTIF(DB9:DB48,\"=16\")+COUNTIF(DB9:DB48,\"=17\"))","v":""},null,null,null,{"$f":"IFERROR(ROUND((CL64*100)/$CL$53,2),\"\")","v":""},null,null,null,null,null,null,null,null,null,null,null,null,"14 - 17",null,null,null,{"$f":"IF(COUNT(DG9:DG48)=0,\"\",COUNTIF(DG9:DG48,\"=14\")+COUNTIF(DG9:DG48,\"=15\")+COUNTIF(DG9:DG48,\"=16\")+COUNTIF(DG9:DG48,\"=17\"))","v":""},null,null,{"$f":"IFERROR(ROUND((DG64*100)/$DG$53,2),\"\")","v":""}]
[null,null,"11 - 13",null,null,null,null,null,null,null,null,{"$f":"IF(COUNT(AB9:AB48)=0,\"\",COUNTIF(AB9:AB48,\"=11\")+COUNTIF(AB9:AB48,\"=12\")+COUNTIF(AB9:AB48,\"=13\"))","v":""},null,null,null,{"$f":"IFERROR(ROUND((L65*100)/$L$53,2),\"\")","v":""},null,null,null,null,null,null,null,null,null,null,null,null,"11 - 13",null,null,null,null,null,null,null,null,{"$f":"IF(COUNT(BB9:BB48)=0,\"\",COUNTIF(BB9:BB48,\"=11\")+COUNTIF(BB9:BB48,\"=12\")+COUNTIF(BB9:BB48,\"=13\"))","v":""},null,null,null,{"$f":"IFERROR(ROUND((AL65*100)/$AL$53,2),\"\")","v":""},null,null,null,null,null,null,null,null,null,null,null,null,"11 - 13",null,null,null,null,null,null,null,null,{"$f":"IF(COUNT(CB9:CB48)=0,\"\",COUNTIF(CB9:CB48,\"=11\")+COUNTIF(CB9:CB48,\"=12\")+COUNTIF(CB9:CB48,\"=13\"))","v":""},null,null,null,"",null,null,null,null,null,null,null,null,null,null,null,null,"11 - 13",null,null,null,null,null,null,null,null,{"$f":"IF(COUNT(DB9:DB48)=0,\"\",COUNTIF(DB9:DB48,\"=11\")+COUNTIF(DB9:DB48,\"=12\")+COUNTIF(DB9:DB48,\"=13\"))","v":""},null,null,null,{"$f":"IFERROR(ROUND((CL65*100)/$CL$53,2),\"\")","v":""},null,null,null,null,null,null,null,null,null,null,null,null,"11 - 13",null,null,null,{"$f":"IF(COUNT(DG9:DG48)=0,\"\",COUNTIF(DG9:DG48,\"=11\")+COUNTIF(DG9:DG48,\"=12\")+COUNTIF(DG9:DG48,\"=13\"))","v":""},null,null,{"$f":"IFERROR(ROUND((DG65*100)/$DG$53,2),\"\")","v":""}]
[null,null,"0 - 10",null,null,null,null,null,null,null,null,{"$f":"IF(COUNT(AB9:AB48)=0,\"\",COUNTIF(AB9:AB48,\"<11\"))","v":""},null,null,null,{"$f":"IFERROR(ROUND((L66*100)/$L$53,2),\"\")","v":""},null,null,null,null,null,null,null,null,null,null,null,null,"0 - 10",null,null,null,null,null,null,null,null,{"$f":"IF(COUNT(BB9:BB48)=0,\"\",COUNTIF(BB9:BB48,\"<11\"))","v":""},null,null,null,{"$f":"IFERROR(ROUND((AL66*100)/$AL$53,2),\"\")","v":""},null,null,null,null,null,null,null,null,null,null,null,null,"0 - 10",null,null,null,null,null,null,null,null,{"$f":"IF(COUNT(CB9:CB48)=0,\"\",COUNTIF(CB9:CB48,\"<11\"))","v":""},null,null,null,"",null,null,null,null,null,null,null,null,null,null,null,null,"0 - 10",null,null,null,null,null,null,null,null,{"$f":"IF(COUNT(DB9:DB48)=0,\"\",COUNTIF(DB9:DB48,\"<11\"))","v":""},null,null,null,{"$f":"IFERROR(ROUND((CL66*100)/$CL$53,2),\"\")","v":""},null,null,null,null,null,null,null,null,null,null,null,null,"0 - 10",null,null,null,{"$f":"IF(COUNT(DG9:DG48)=0,\"\",COUNTIF(DG9:DG48,\"<11\"))","v":""},null,null,{"$f":"IFERROR(ROUND((DG66*100)/$DG$53,2),\"\")","v":""}]

{"sheet":"RUBRICA","index":4,"n_rows":92,"n_cols":42,"rows_kept":92,"cut":false,"hidden":false,"merged":[[90,2,90,6],[90,7,90,9],[91,2,91,6],[91,7,91,9],[5,7,5,11],[5,12,5,16],[5,17,5,21],[5,22,5,26],[88,2,88,6],[84,2,84,6],[85,2,85,6],[86,2,86,6],[87,2,87,6],[6,2,6,6],[6,7,6,11],[6,12,6,16],[6,17,6,21],[6,22,6,26],[61,0,61,21],[54,22,54,25],[55,22,55,25],[56,22,56,25],[52,26,52,27],[53,26,53,27],[4,27,8,27],[0,2,0,19],[2,0,2,26],[4,0,5,1],[4,2,4,26],[5,2,5,6],[6,0,7,1],[89,2,89,6],[52,0,52,21],[53,0,53,21],[54,0,54,21],[55,0,55,21],[56,0,56,21],[57,0,57,21],[58,0,58,21],[59,0,59,21],[60,0,60,21],[57,26,57,27],[57,22,57,25],[58,26,58,27],[59,26,59,27],[60,26,60,27],[52,22,52,25],[53,22,53,25],[54,26,54,27],[55,26,55,27],[56,26,56,27],[61,26,61,27],[76,26,76,27],[58,22,58,25],[59,22,59,25],[60,22,60,25],[61,22,61,25],[76,22,76,25],[70,26,70,27],[71,26,71,27],[72,26,72,27],[73,26,73,27],[74,26,74,27],[75,26,75,27],[62,26,62,27],[68,26,68,27],[69,26,69,27],[63,26,63,27],[64,26,64,27],[65,26,65,27],[66,26,66,27],[67,26,67,27],[76,0,76,21],[70,22,70,25],[71,22,71,25],[72,22,72,25],[73,22,73,25],[74,22,74,25],[75,22,75,25],[70,0,70,21],[71,0,71,21],[72,0,72,21],[73,0,73,21],[74,0,74,21],[75,0,75,21],[67,0,67,21],[68,0,68,21],[69,0,69,21],[62,22,62,25],[63,22,63,25],[64,22,64,25],[65,22,65,25],[66,22,66,25],[67,22,67,25],[62,0,62,21],[63,0,63,21],[64,0,64,21],[65,0,65,21],[66,0,66,21],[68,22,68,25],[69,22,69,25]]}
[null,null,{"$f":"IF(INICIO!B12=\"\",\"\",\"I.E. \"&INICIO!B12)","v":"I.E. 86031 NUESTRA SEÑORA DE LA ASUNCIÓN"}]
[]
[{"$f":"\"RÚBRICA DE EVALUACIÓN -  \"&INICIO!B13","v":"RÚBRICA DE EVALUACIÓN -  MATEMÁTICA"},null,null,null,null,null,null,null,null,null,null,null,null,null,null,null,null,null,null,null,null,null,null,null,null,null,null,null,null,null,null,null,null,null,"Nivel de desempeño"]
[null,null,null,null,null,null,null,null,null,null,null,null,null,null,null,null,null,null,null,null,null,null,null,null,null,null,null,null,null,null,null,null,null,null,5]
[{"$f":"\"DOCENTE: \"&INICIO!B14","v":"DOCENTE: José Antonio Melgar Camayo"},null,"INDICADORES",null,null,null,null,null,null,null,null,null,null,null,null,null,null,null,null,null,null,null,null,null,null,null,null,"NOTA PROMEDIO"]
[null,null,{"$f":"IFERROR(VLOOKUP(C7,INDICADORES!$D$6:$H$114,5,FALSE),\"\")","v":""},null,null,null,null,{"$f":"IFERROR(VLOOKUP(H7,INDICADORES!$D$6:$H$114,5,FALSE),\"\")","v":""},null,null,null,null,{"$f":"IFERROR(VLOOKUP(M7,INDICADORES!$D$6:$H$114,5,FALSE),\"\")","v":""},null,null,null,null,{"$f":"IFERROR(VLOOKUP(R7,INDICADORES!$D$6:$H$114,5,FALSE),\"\")","v":""},null,null,null,null,{"$f":"IFERROR(VLOOKUP(W7,INDICADORES!$D$6:$H$114,5,FALSE),\"\")","v":""}]
[{"$f":"\"GRADO Y SECCIÓN: \"&INDICADORES!B2","v":"GRADO Y SECCIÓN: PRIMERO - A"},null,null,null,null,null,null,null,null,null,null,null,null,null,null,null,null,null,null,null,null,null,null,null,null,null,null,null,null,null,null,null,null,null,null,3]
[null,null,{"$f":"IF(AI4=\"\",\"\",IF(AI4=3,\"3\",IF(AI4=4,\"4\",IF(AI4=5,\"5\",IF(AI4=\"Según Tobbón\",\"5\",\"\")))))","v":"5"},{"$f":"IF(AI4=\"\",\"\",IF(AI4=3,\"2\",IF(AI4=4,\"3\",IF(AI4=5,\"4\",IF(AI4=\"Según Tobbón\",\"4\",\"\")))))","v":"4"},{"$f":"IF(AI4=\"\",\"\",IF(AI4=3,\"1\",IF(AI4=4,\"2\",IF(AI4=5,\"3\",IF(AI4=\"Según Tobbón\",\"3\",\"\")))))","v":"3"},{"$f":"IF(AI4=\"\",\"\",IF(AI4=3,\"\",IF(AI4=4,\"1\",IF(AI4=5,\"2\",IF(AI4=\"Según Tobbón\",\"2\",\"\")))))","v":"2"},{"$f":"IF(AI4=\"\",\"\",IF(AI4=3,\"\",IF(AI4=4,\"\",IF(AI4=5,\"1\",IF(AI4=\"Según Tobbón\",\"1\",\"\")))))","v":"1"},{"$f":"IF(AI4=\"\",\"\",IF(AI4=3,\"3\",IF(AI4=4,\"4\",IF(AI4=5,\"5\",IF(AI4=\"Según Tobbón\",\"5\",\"\")))))","v":"5"},{"$f":"IF(AI4=\"\",\"\",IF(AI4=3,\"2\",IF(AI4=4,\"3\",IF(AI4=5,\"4\",IF(AI4=\"Según Tobbón\",\"4\",\"\")))))","v":"4"},{"$f":"IF(AI4=\"\",\"\",IF(AI4=3,\"1\",IF(AI4=4,\"2\",IF(AI4=5,\"3\",IF(AI4=\"Según Tobbón\",\"3\",\"\")))))","v":"3"},{"$f":"IF(AI4=\"\",\"\",IF(AI4=3,\"\",IF(AI4=4,\"1\",IF(AI4=5,\"2\",IF(AI4=\"Según Tobbón\",\"2\",\"\")))))","v":"2"},{"$f":"IF(AI4=\"\",\"\",IF(AI4=3,\"\",IF(AI4=4,\"\",IF(AI4=5,\"1\",IF(AI4=\"Según Tobbón\",\"1\",\"\")))))","v":"1"},{"$f":"IF(AI4=\"\",\"\",IF(AI4=3,\"3\",IF(AI4=4,\"4\",IF(AI4=5,\"5\",IF(AI4=\"Según Tobbón\",\"5\",\"\")))))","v":"5"},{"$f":"IF(AI4=\"\",\"\",IF(AI4=3,\"2\",IF(AI4=4,\"3\",IF(AI4=5,\"4\",IF(AI4=\"Según Tobbón\",\"4\",\"\")))))","v":"4"},{"$f":"IF(AI4=\"\",\"\",IF(AI4=3,\"1\",IF(AI4=4,\"2\",IF(AI4=5,\"3\",IF(AI4=\"Según Tobbón\",\"3\",\"\")))))","v":"3"},{"$f":"IF(AI4=\"\",\"\",IF(AI4=3,\"\",IF(AI4=4,\"1\",IF(AI4=5,\"2\",IF(AI4=\"Según Tobbón\",\"2\",\"\")))))","v":"2"},{"$f":"IF(AI4=\"\",\"\",IF(AI4=3,\"\",IF(AI4=4,\"\",IF(AI4=5,\"1\",IF(AI4=\"Según Tobbón\",\"1\",\"\")))))","v":"1"},{"$f":"IF(AI4=\"\",\"\",IF(AI4=3,\"3\",IF(AI4=4,\"4\",IF(AI4=5,\"5\",IF(AI4=\"Según Tobbón\",\"5\",\"\")))))","v":"5"},{"$f":"IF(AI4=\"\",\"\",IF(AI4=3,\"2\",IF(AI4=4,\"3\",IF(AI4=5,\"4\",IF(AI4=\"Según Tobbón\",\"4\",\"\")))))","v":"4"},{"$f":"IF(AI4=\"\",\"\",IF(AI4=3,\"1\",IF(AI4=4,\"2\",IF(AI4=5,\"3\",IF(AI4=\"Según Tobbón\",\"3\",\"\")))))","v":"3"},{"$f":"IF(AI4=\"\",\"\",IF(AI4=3,\"\",IF(AI4=4,\"1\",IF(AI4=5,\"2\",IF(AI4=\"Según Tobbón\",\"2\",\"\")))))","v":"2"},{"$f":"IF(AI4=\"\",\"\",IF(AI4=3,\"\",IF(AI4=4,\"\",IF(AI4=5,\"1\",IF(AI4=\"Según Tobbón\",\"1\",\"\")))))","v":"1"},{"$f":"IF(AI4=\"\",\"\",IF(AI4=3,\"3\",IF(AI4=4,\"4\",IF(AI4=5,\"5\",IF(AI4=\"Según Tobbón\",\"5\",\"\")))))","v":"5"},{"$f":"IF(AI4=\"\",\"\",IF(AI4=3,\"2\",IF(AI4=4,\"3\",IF(AI4=5,\"4\",IF(AI4=\"Según Tobbón\",\"4\",\"\")))))","v":"4"},{"$f":"IF(AI4=\"\",\"\",IF(AI4=3,\"1\",IF(AI4=4,\"2\",IF(AI4=5,\"3\",IF(AI4=\"Según Tobbón\",\"3\",\"\")))))","v":"3"},{"$f":"IF(AI4=\"\",\"\",IF(AI4=3,\"\",IF(AI4=4,\"1\",IF(AI4=5,\"2\",IF(AI4=\"Según Tobbón\",\"2\",\"\")))))","v":"2"},{"$f":"IF(AI4=\"\",\"\",IF(AI4=3,\"\",IF(AI4=4,\"\",IF(AI4=5,\"1\",IF(AI4=\"Según Tobbón\",\"1\",\"\")))))","v":"1"},null,null,null,null,null,null,null,null,4]
["N°","APELLIDOS Y NOMBRES",{"$f":"IF(AI4=\"\",\"\",IF(AI4=3,\"Bueno\",IF(AI4=4,\"Bueno\",IF(AI4=5,\"Logro Destacado\",IF(AI4=\"Según Tobbón\",\"Estratégico\",\"\")))))","v":"Logro Destacado"},{"$f":"IF(AI4=\"\",\"\",IF(AI4=3,\"Regular\",IF(AI4=4,\"Regular\",IF(AI4=5,\"Logro Previsto\",IF(AI4=\"Según Tobbón\",\"Autónomo\",\"\")))))","v":"Logro Previsto"},{"$f":"IF(AI4=\"\",\"\",IF(AI4=3,\"Insuficiente\",IF(AI4=4,\"Aceptable\",IF(AI4=5,\"En Proceso\",IF(AI4=\"Según Tobbón\",\"Resolutivo\",\"\")))))","v":"En Proceso"},{"$f":"IF(AI4=\"\",\"\",IF(AI4=3,\"\",IF(AI4=4,\"Deficiente\",IF(AI4=5,\"En Inicio\",IF(AI4=\"Según Tobbón\",\"Receptivo\",\"\")))))","v":"En Inicio"},{"$f":"IF(AI4=\"\",\"\",IF(AI4=3,\"\",IF(AI4=4,\"\",IF(AI4=5,\"No presentó\",IF(AI4=\"Según Tobbón\",\"Preformal\",\"\")))))","v":"No presentó"},{"$f":"IF(AI4=\"\",\"\",IF(AI4=3,\"Bueno\",IF(AI4=4,\"Bueno\",IF(AI4=5,\"Logro Destacado\",IF(AI4=\"Según Tobbón\",\"Estratégico\",\"\")))))","v":"Logro Destacado"},{"$f":"IF(AI4=\"\",\"\",IF(AI4=3,\"Regular\",IF(AI4=4,\"Regular\",IF(AI4=5,\"Logro Previsto\",IF(AI4=\"Según Tobbón\",\"Autónomo\",\"\")))))","v":"Logro Previsto"},{"$f":"IF(AI4=\"\",\"\",IF(AI4=3,\"Insuficiente\",IF(AI4=4,\"Aceptable\",IF(AI4=5,\"En Proceso\",IF(AI4=\"Según Tobbón\",\"Resolutivo\",\"\")))))","v":"En Proceso"},{"$f":"IF(AI4=\"\",\"\",IF(AI4=3,\"\",IF(AI4=4,\"Deficiente\",IF(AI4=5,\"En Inicio\",IF(AI4=\"Según Tobbón\",\"Receptivo\",\"\")))))","v":"En Inicio"},{"$f":"IF(AI4=\"\",\"\",IF(AI4=3,\"\",IF(AI4=4,\"\",IF(AI4=5,\"No presentó\",IF(AI4=\"Según Tobbón\",\"Preformal\",\"\")))))","v":"No presentó"},{"$f":"IF(AI4=\"\",\"\",IF(AI4=3,\"Bueno\",IF(AI4=4,\"Bueno\",IF(AI4=5,\"Logro Destacado\",IF(AI4=\"Según Tobbón\",\"Estratégico\",\"\")))))","v":"Logro Destacado"},{"$f":"IF(AI4=\"\",\"\",IF(AI4=3,\"Regular\",IF(AI4=4,\"Regular\",IF(AI4=5,\"Logro Previsto\",IF(AI4=\"Según Tobbón\",\"Autónomo\",\"\")))))","v":"Logro Previsto"},{"$f":"IF(AI4=\"\",\"\",IF(AI4=3,\"Insuficiente\",IF(AI4=4,\"Aceptable\",IF(AI4=5,\"En Proceso\",IF(AI4=\"Según Tobbón\",\"Resolutivo\",\"\")))))","v":"En Proceso"},{"$f":"IF(AI4=\"\",\"\",IF(AI4=3,\"\",IF(AI4=4,\"Deficiente\",IF(AI4=5,\"En Inicio\",IF(AI4=\"Según Tobbón\",\"Receptivo\",\"\")))))","v":"En Inicio"},{"$f":"IF(AI4=\"\",\"\",IF(AI4=3,\"\",IF(AI4=4,\"\",IF(AI4=5,\"No presentó\",IF(AI4=\"Según Tobbón\",\"Preformal\",\"\")))))","v":"No presentó"},{"$f":"IF(AI4=\"\",\"\",IF(AI4=3,\"Bueno\",IF(AI4=4,\"Bueno\",IF(AI4=5,\"Logro Destacado\",IF(AI4=\"Según Tobbón\",\"Estratégico\",\"\")))))","v":"Logro Destacado"},{"$f":"IF(AI4=\"\",\"\",IF(AI4=3,\"Regular\",IF(AI4=4,\"Regular\",IF(AI4=5,\"Logro Previsto\",IF(AI4=\"Según Tobbón\",\"Autónomo\",\"\")))))","v":"Logro Previsto"},{"$f":"IF(AI4=\"\",\"\",IF(AI4=3,\"Insuficiente\",IF(AI4=4,\"Aceptable\",IF(AI4=5,\"En Proceso\",IF(AI4=\"Según Tobbón\",\"Resolutivo\",\"\")))))","v":"En Proceso"},{"$f":"IF(AI4=\"\",\"\",IF(AI4=3,\"\",IF(AI4=4,\"Deficiente\",IF(AI4=5,\"En Inicio\",IF(AI4=\"Según Tobbón\",\"Receptivo\",\"\")))))","v":"En Inicio"},{"$f":"IF(AI4=\"\",\"\",IF(AI4=3,\"\",IF(AI4=4,\"\",IF(AI4=5,\"No presentó\",IF(AI4=\"Según Tobbón\",\"Preformal\",\"\")))))","v":"No presentó"},{"$f":"IF(AI4=\"\",\"\",IF(AI4=3,\"Bueno\",IF(AI4=4,\"Bueno\",IF(AI4=5,\"Logro Destacado\",IF(AI4=\"Según Tobbón\",\"Estratégico\",\"\")))))","v":"Logro Destacado"},{"$f":"IF(AI4=\"\",\"\",IF(AI4=3,\"Regular\",IF(AI4=4,\"Regular\",IF(AI4=5,\"Logro Previsto\",IF(AI4=\"Según Tobbón\",\"Autónomo\",\"\")))))","v":"Logro Previsto"},{"$f":"IF(AI4=\"\",\"\",IF(AI4=3,\"Insuficiente\",IF(AI4=4,\"Aceptable\",IF(AI4=5,\"En Proceso\",IF(AI4=\"Según Tobbón\",\"Resolutivo\",\"\")))))","v":"En Proceso"},{"$f":"IF(AI4=\"\",\"\",IF(AI4=3,\"\",IF(AI4=4,\"Deficiente\",IF(AI4=5,\"En Inicio\",IF(AI4=\"Según Tobbón\",\"Receptivo\",\"\")))))","v":"En Inicio"},{"$f":"IF(AI4=\"\",\"\",IF(AI4=3,\"\",IF(AI4=4,\"\",IF(AI4=5,\"No presentó\",IF(AI4=\"Según Tobbón\",\"Preformal\",\"\")))))","v":"No presentó"},null,null,null,null,null,null,null,null,5]
[1,null,null,null,null,null,null,null,null,null,null,null,null,null,null,null,null,null,null,null,null,null,null,null,null,null,null,{"$f":"IFERROR(ROUND(SUM(AL10:AP10)/COUNTIF(AL10:AP10,\">0\"),0),\"\")","v":""},null,null,null,null,null,null,{"$f":"IF(AB10=\"\",\"\",IF(SUM(C10:G10)>1,\"Error \"&$C$6,IF(SUM(H10:L10)>1,\"Error \"&$H$6,IF(SUM(M10:Q10)>1,\"Error \"&$M$6,IF(SUM(R10:V10)>1,\"Error \"&$R$6,IF(SUM(W10:AA10)>1,\"Error \"&$W$6,IF(AB10>20,\"Error\",\"\")))))))","v":""},"Según Tobbón",null,{"$f":"ROUND((COUNTIF(C10,1)*$C$8+COUNTIF(D10,1)*$D$8+COUNTIF(E10,1)*$E$8+IFERROR((COUNTIF(F10,1)*$F$8),0)+IFERROR((COUNTIF(G10,1)*$G$8),0))*20/$C$8,0)","v":0},{"$f":"ROUND((COUNTIF(H10,1)*$H$8+COUNTIF(I10,1)*$I$8+COUNTIF(J10,1)*$J$8+IFERROR((COUNTIF(K10,1)*$K$8),0)+IFERROR((COUNTIF(L10,1)*$L$8),0))*20/$H$8,0)","v":0},{"$f":"ROUND((COUNTIF(M10,1)*$M$8+COUNTIF(N10,1)*$N$8+COUNTIF(O10,1)*$O$8+IFERROR((COUNTIF(P10,1)*$P$8),0)+IFERROR((COUNTIF(Q10,1)*$Q$8),0))*20/$M$8,0)","v":0},{"$f":"ROUND((COUNTIF(R10,1)*$R$8+COUNTIF(S10,1)*$S$8+COUNTIF(T10,1)*$T$8+IFERROR((COUNTIF(U10,1)*$U$8),0)+IFERROR((COUNTIF(V10,1)*$V$8),0))*20/$R$8,0)","v":0},{"$f":"ROUND((COUNTIF(W10,1)*$W$8+COUNTIF(X10,1)*$X$8+COUNTIF(Y10,1)*$Y$8+IFERROR((COUNTIF(Z10,1)*$Z$8),0)+IFERROR((COUNTIF(AA10,1)*$AA$8),0))*20/$W$8,0)","v":0}]
[2,null,null,null,null,null,null,null,null,null,null,null,null,null,null,null,null,null,null,null,null,null,null,null,null,null,null,{"$f":"IFERROR(ROUND(SUM(AL11:AP11)/COUNTIF(AL11:AP11,\">0\"),0),\"\")","v":""},null,null,null,null,null,null,{"$f":"IF(AB11=\"\",\"\",IF(SUM(C11:G11)>1,\"Error \"&$C$6,IF(SUM(H11:L11)>1,\"Error \"&$H$6,IF(SUM(M11:Q11)>1,\"Error \"&$M$6,IF(SUM(R11:V11)>1,\"Error \"&$R$6,IF(SUM(W11:AA11)>1,\"Error \"&$W$6,IF(AB11>20,\"Error\",\"\")))))))","v":""},null,null,{"$f":"ROUND((COUNTIF(C11,1)*$C$8+COUNTIF(D11,1)*$D$8+COUNTIF(E11,1)*$E$8+IFERROR((COUNTIF(F11,1)*$F$8),0)+IFERROR((COUNTIF(G11,1)*$G$8),0))*20/$C$8,0)","v":0},{"$f":"ROUND((COUNTIF(H11,1)*$H$8+COUNTIF(I11,1)*$I$8+COUNTIF(J11,1)*$J$8+IFERROR((COUNTIF(K11,1)*$K$8),0)+IFERROR((COUNTIF(L11,1)*$L$8),0))*20/$H$8,0)","v":0},{"$f":"ROUND((COUNTIF(M11,1)*$M$8+COUNTIF(N11,1)*$N$8+COUNTIF(O11,1)*$O$8+IFERROR((COUNTIF(P11,1)*$P$8),0)+IFERROR((COUNTIF(Q11,1)*$Q$8),0))*20/$M$8,0)","v":0},{"$f":"ROUND((COUNTIF(R11,1)*$R$8+COUNTIF(S11,1)*$S$8+COUNTIF(T11,1)*$T$8+IFERROR((COUNTIF(U11,1)*$U$8),0)+IFERROR((COUNTIF(V11,1)*$V$8),0))*20/$R$8,0)","v":0},{"$f":"ROUND((COUNTIF(W11,1)*$W$8+COUNTIF(X11,1)*$X$8+COUNTIF(Y11,1)*$Y$8+IFERROR((COUNTIF(Z11,1)*$Z$8),0)+IFERROR((COUNTIF(AA11,1)*$AA$8),0))*20/$W$8,0)","v":0}]
[3,null,null,null,null,null,null,null,null,null,null,null,null,null,null,null,null,null,null,null,null,null,null,null,null,null,null,"",null,null,null,null,null,null,"",null,null,0,0,0,0,0]
[4,null,null,null,null,null,null,null,null,null,null,null,null,null,null,null,null,null,null,null,null,null,null,null,null,null,null,"",null,null,null,null,null,null,"",null,null,0,0,0,0,0]
[5,null,null,null,null,null,null,null,null,null,null,null,null,null,null,null,null,null,null,null,null,null,null,null,null,null,null,"",null,null,null,null,null,null,"",null,null,0,0,0,0,0]
[6,null,null,null,null,null,null,null,null,null,null,null,null,null,null,null,null,null,null,null,null,null,null,null,null,null,null,"",null,null,null,null,null,null,"",null,null,0,0,0,0,0]
[7,null,null,null,null,null,null,null,null,null,null,null,null,null,null,null,null,null,null,null,null,null,null,null,null,null,null,"",null,null,null,null,null,null,"",null,null,0,0,0,0,0]
[8,null,null,null,null,null,null,null,null,null,null,null,null,null,null,null,null,null,null,null,null,null,null,null,null,null,null,"",null,null,null,null,null,null,"",null,null,0,0,0,0,0]
[9,null,null,null,null,null,null,null,null,null,null,null,null,null,null,null,null,null,null,null,null,null,null,null,null,null,null,"",null,null,null,null,null,null,"",null,null,0,0,0,0,0]
[10,null,null,null,null,null,null,null,null,null,null,null,null,null,null,null,null,null,null,null,null,null,null,null,null,null,null,"",null,null,null,null,null,null,"",null,null,0,0,0,0,0]
[11,null,null,null,null,null,null,null,null,null,null,null,null,null,null,null,null,null,null,null,null,null,null,null,null,null,null,"",null,null,null,null,null,null,"",null,null,0,0,0,0,0]
[12,null,null,null,null,null,null,null,null,null,null,null,null,null,null,null,null,null,null,null,null,null,null,null,null,null,null,"",null,null,null,null,null,null,"",null,null,0,0,0,0,0]
[13,null,null,null,null,null,null,null,null,null,null,null,null,null,null,null,null,null,null,null,null,null,null,null,null,null,null,"",null,null,null,null,null,null,"",null,null,0,0,0,0,0]
[14,null,null,null,null,null,null,null,null,null,null,null,null,null,null,null,null,null,null,null,null,null,null,null,null,null,null,"",null,null,null,null,null,null,"",null,null,0,0,0,0,0]
[15,null,null,null,null,null,null,null,null,null,null,null,null,null,null,null,null,null,null,null,null,null,null,null,null,null,null,"",null,null,null,null,null,null,"",null,null,0,0,0,0,0]
[16,null,null,null,null,null,null,null,null,null,null,null,null,null,null,null,null,null,null,null,null,null,null,null,null,null,null,"",null,null,null,null,null,null,"",null,null,0,0,0,0,0]
[17,null,null,null,null,null,null,null,null,null,null,null,null,null,null,null,null,null,null,null,null,null,null,null,null,null,null,"",null,null,null,null,null,null,"",null,null,0,0,0,0,0]
[18,null,null,null,null,null,null,null,null,null,null,null,null,null,null,null,null,null,null,null,null,null,null,null,null,null,null,"",null,null,null,null,null,null,"",null,null,0,0,0,0,0]
[19,null,null,null,null,null,null,null,null,null,null,null,null,null,null,null,null,null,null,null,null,null,null,null,null,null,null,"",null,null,null,null,null,null,"",null,null,0,0,0,0,0]
[20,null,null,null,null,null,null,null,null,null,null,null,null,null,null,null,null,null,null,null,null,null,null,null,null,null,null,"",null,null,null,null,null,null,"",null,null,0,0,0,0,0]
[21,null,null,null,null,null,null,null,null,null,null,null,null,null,null,null,null,null,null,null,null,null,null,null,null,null,null,"",null,null,null,null,null,null,"",null,null,0,0,0,0,0]
[22,null,null,null,null,null,null,null,null,null,null,null,null,null,null,null,null,null,null,null,null,null,null,null,null,null,null,"",null,null,null,null,null,null,"",null,null,0,0,0,0,0]
[23,null,null,null,null,null,null,null,null,null,null,null,null,null,null,null,null,null,null,null,null,null,null,null,null,null,null,"",null,null,null,null,null,null,"",null,null,0,0,0,0,0]
[24,null,null,null,null,null,null,null,null,null,null,null,null,null,null,null,null,null,null,null,null,null,null,null,null,null,null,"",null,null,null,null,null,null,"",null,null,0,0,0,0,0]
[25,null,null,null,null,null,null,null,null,null,null,null,null,null,null,null,null,null,null,null,null,null,null,null,null,null,null,"",null,null,null,null,null,null,"",null,null,0,0,0,0,0]
[26,null,null,null,null,null,null,null,null,null,null,null,null,null,null,null,null,null,null,null,null,null,null,null,null,null,null,"",null,null,null,null,null,null,"",null,null,0,0,0,0,0]
[27,null,null,null,null,null,null,null,null,null,null,null,null,null,null,null,null,null,null,null,null,null,null,null,null,null,null,"",null,null,null,null,null,null,"",null,null,0,0,0,0,0]
[28,null,null,null,null,null,null,null,null,null,null,null,null,null,null,null,null,null,null,null,null,null,null,null,null,null,null,"",null,null,null,null,null,null,"",null,null,0,0,0,0,0]
[29,null,null,null,null,null,null,null,null,null,null,null,null,null,null,null,null,null,null,null,null,null,null,null,null,null,null,"",null,null,null,null,null,null,"",null,null,0,0,0,0,0]
[30,null,null,null,null,null,null,null,null,null,null,null,null,null,null,null,null,null,null,null,null,null,null,null,null,null,null,"",null,null,null,null,null,null,"",null,null,0,0,0,0,0]
[31,null,null,null,null,null,null,null,null,null,null,null,null,null,null,null,null,null,null,null,null,null,null,null,null,null,null,"",null,null,null,null,null,null,"",null,null,0,0,0,0,0]
[32,null,null,null,null,null,null,null,null,null,null,null,null,null,null,null,null,null,null,null,null,null,null,null,null,null,null,"",null,null,null,null,null,null,"",null,null,0,0,0,0,0]
[33,null,null,null,null,null,null,null,null,null,null,null,null,null,null,null,null,null,null,null,null,null,null,null,null,null,null,"",null,null,null,null,null,null,"",null,null,0,0,0,0,0]
[34,null,null,null,null,null,null,null,null,null,null,null,null,null,null,null,null,null,null,null,null,null,null,null,null,null,null,"",null,null,null,null,null,null,"",null,null,0,0,0,0,0]
[35,null,null,null,null,null,null,null,null,null,null,null,null,null,null,null,null,null,null,null,null,null,null,null,null,null,null,"",null,null,null,null,null,null,"",null,null,0,0,0,0,0]
[36,null,null,null,null,null,null,null,null,null,null,null,null,null,null,null,null,null,null,null,null,null,null,null,null,null,null,"",null,null,null,null,null,null,"",null,null,0,0,0,0,0]
[37,null,null,null,null,null,null,null,null,null,null,null,null,null,null,null,null,null,null,null,null,null,null,null,null,null,null,"",null,null,null,null,null,null,"",null,null,0,0,0,0,0]
[38,null,null,null,null,null,null,null,null,null,null,null,null,null,null,null,null,null,null,null,null,null,null,null,null,null,null,"",null,null,null,null,null,null,"",null,null,0,0,0,0,0]
[39,null,null,null,null,null,null,null,null,null,null,null,null,null,null,null,null,null,null,null,null,null,null,null,null,null,null,"",null,null,null,null,null,null,"",null,null,0,0,0,0,0]
[40,null,null,null,null,null,null,null,null,null,null,null,null,null,null,null,null,null,null,null,null,null,null,null,null,null,null,"",null,null,null,null,null,null,"",null,null,0,0,0,0,0]
[]
[]
[null,"LEYENDA:"]
["Describe trayectorias empleando características y propiedades de formas geométricas conocidas, en planos o mapas.",null,null,null,null,null,null,null,null,null,null,null,null,null,null,null,null,null,null,null,null,null,{"$f":"IF(AA53=\"\",\"\",IF(C9=\"\",\"\",C9))","v":""},null,null,null,{"$f":"IF(C6=\"\",\"\",C6)","v":""}]
[null,null,null,null,null,null,null,null,null,null,null,null,null,null,null,null,null,null,null,null,null,null,{"$f":"IF(AA54=\"\",\"\",IF(D9=\"\",\"\",D9))","v":""},null,null,null,{"$f":"IF(C6=\"\",\"\",C6)","v":""}]
[null,null,null,null,null,null,null,null,null,null,null,null,null,null,null,null,null,null,null,null,null,null,{"$f":"IF(AA55=\"\",\"\",IF(E9=\"\",\"\",E9))","v":""},null,null,null,{"$f":"IF(C6=\"\",\"\",C6)","v":""}]
[null,null,null,null,null,null,null,null,null,null,null,null,null,null,null,null,null,null,null,null,null,null,{"$f":"IF(AA56=\"\",\"\",IF(F9=\"\",\"\",F9))","v":""},null,null,null,{"$f":"IF(C6=\"\",\"\",C6)","v":""}]
[null,null,null,null,null,null,null,null,null,null,null,null,null,null,null,null,null,null,null,null,null,null,{"$f":"IF(AA57=\"\",\"\",IF(G9=\"\",\"\",G9))","v":""},null,null,null,{"$f":"IF(C6=\"\",\"\",C6)","v":""}]
[null,null,null,null,null,null,null,null,null,null,null,null,null,null,null,null,null,null,null,null,null,null,{"$f":"IF(AA58=\"\",\"\",IF(H9=\"\",\"\",H9))","v":""},null,null,null,{"$f":"IF(H6=\"\",\"\",H6)","v":""}]
[null,null,null,null,null,null,null,null,null,null,null,null,null,null,null,null,null,null,null,null,null,null,{"$f":"IF(AA59=\"\",\"\",IF(I9=\"\",\"\",I9))","v":""},null,null,null,{"$f":"IF(H6=\"\",\"\",H6)","v":""}]
[null,null,null,null,null,null,null,null,null,null,null,null,null,null,null,null,null,null,null,null,null,null,{"$f":"IF(AA60=\"\",\"\",IF(J9=\"\",\"\",J9))","v":""},null,null,null,{"$f":"IF(H6=\"\",\"\",H6)","v":""}]
[null,null,null,null,null,null,null,null,null,null,null,null,null,null,null,null,null,null,null,null,null,null,{"$f":"IF(AA61=\"\",\"\",IF(K9=\"\",\"\",K9))","v":""},null,null,null,{"$f":"IF(H6=\"\",\"\",H6)","v":""}]
[null,null,null,null,null,null,null,null,null,null,null,null,null,null,null,null,null,null,null,null,null,null,{"$f":"IF(AA62=\"\",\"\",IF(L9=\"\",\"\",L9))","v":""},null,null,null,{"$f":"IF(H6=\"\",\"\",H6)","v":""}]
[null,null,null,null,null,null,null,null,null,null,null,null,null,null,null,null,null,null,null,null,null,null,{"$f":"IF(AA63=\"\",\"\",IF(M9=\"\",\"\",M9))","v":""},null,null,null,{"$f":"IF(M6=\"\",\"\",M6)","v":""}]
[null,null,null,null,null,null,null,null,null,null,null,null,null,null,null,null,null,null,null,null,null,null,{"$f":"IF(AA64=\"\",\"\",IF(N9=\"\",\"\",N9))","v":""},null,null,null,{"$f":"IF(M6=\"\",\"\",M6)","v":""}]
[null,null,null,null,null,null,null,null,null,null,null,null,null,null,null,null,null,null,null,null,null,null,{"$f":"IF(AA65=\"\",\"\",IF(O9=\"\",\"\",O9))","v":""},null,null,null,{"$f":"IF(M6=\"\",\"\",M6)","v":""}]
[null,null,null,null,null,null,null,null,null,null,null,null,null,null,null,null,null,null,null,null,null,null,{"$f":"IF(AA66=\"\",\"\",IF(P9=\"\",\"\",P9))","v":""},null,null,null,{"$f":"IF(M6=\"\",\"\",M6)","v":""}]
[null,null,null,null,null,null,null,null,null,null,null,null,null,null,null,null,null,null,null,null,null,null,{"$f":"IF(AA67=\"\",\"\",IF(Q9=\"\",\"\",Q9))","v":""},null,null,null,{"$f":"IF(M6=\"\",\"\",M6)","v":""}]
[null,null,null,null,null,null,null,null,null,null,null,null,null,null,null,null,null,null,null,null,null,null,{"$f":"IF(AA68=\"\",\"\",IF(R9=\"\",\"\",R9))","v":""},null,null,null,{"$f":"IF(R6=\"\",\"\",R6)","v":""}]
[null,null,null,null,null,null,null,null,null,null,null,null,null,null,null,null,null,null,null,null,null,null,{"$f":"IF(AA69=\"\",\"\",IF(S9=\"\",\"\",S9))","v":""},null,null,null,{"$f":"IF(R6=\"\",\"\",R6)","v":""}]
[null,null,null,null,null,null,null,null,null,null,null,null,null,null,null,null,null,null,null,null,null,null,{"$f":"IF(AA70=\"\",\"\",IF(T9=\"\",\"\",T9))","v":""},null,null,null,{"$f":"IF(R6=\"\",\"\",R6)","v":""}]
[null,null,null,null,null,null,null,null,null,null,null,null,null,null,null,null,null,null,null,null,null,null,{"$f":"IF(AA71=\"\",\"\",IF(U9=\"\",\"\",U9))","v":""},null,null,null,{"$f":"IF(R6=\"\",\"\",R6)","v":""}]
[null,null,null,null,null,null,null,null,null,null,null,null,null,null,null,null,null,null,null,null,null,null,{"$f":"IF(AA72=\"\",\"\",IF(V9=\"\",\"\",V9))","v":""},null,null,null,{"$f":"IF(R6=\"\",\"\",R6)","v":""}]
[null,null,null,null,null,null,null,null,null,null,null,null,null,null,null,null,null,null,null,null,null,null,{"$f":"IF(AA73=\"\",\"\",IF(W9=\"\",\"\",W9))","v":""},null,null,null,{"$f":"IF(W6=\"\",\"\",W6)","v":""}]
[null,null,null,null,null,null,null,null,null,null,null,null,null,null,null,null,null,null,null,null,null,null,{"$f":"IF(AA74=\"\",\"\",IF(X9=\"\",\"\",X9))","v":""},null,null,null,{"$f":"IF(W6=\"\",\"\",W6)","v":""}]
[null,null,null,null,null,null,null,null,null,null,null,null,null,null,null,null,null,null,null,null,null,null,{"$f":"IF(AA75=\"\",\"\",IF(Y9=\"\",\"\",Y9))","v":""},null,null,null,{"$f":"IF(W6=\"\",\"\",W6)","v":""}]
[null,null,null,null,null,null,null,null,null,null,null,null,null,null,null,null,null,null,null,null,null,null,{"$f":"IF(AA76=\"\",\"\",IF(Z9=\"\",\"\",Z9))","v":""},null,null,null,{"$f":"IF(W6=\"\",\"\",W6)","v":""}]
[null,null,null,null,null,null,null,null,null,null,null,null,null,null,null,null,null,null,null,null,null,null,{"$f":"IF(AA77=\"\",\"\",IF(AA9=\"\",\"\",AA9))","v":""},null,null,null,{"$f":"IF(W6=\"\",\"\",W6)","v":""}]
[]
[]
[]
[]
[]
[]
[null,"ESTADÍSTICA:"]
[null,"TOTAL",{"$f":"IF(COUNT(AB10:AB49)=0,\"\",COUNT(AB10:AB49))","v":""}]
[null,"PROMEDIO",{"$f":"IFERROR(ROUND(AVERAGE(AB10:AB49),2),\"\")","v":""}]
[null,"MEDIANA",{"$f":"IFERROR(MEDIAN(AB10:AB49),\"\")","v":""}]
[null,"MODA",{"$f":"IFERROR(_xlfn.MODE.SNGL(AB10:AB49),\"\")","v":""}]
[null,"NOTA MÁS ALTA",{"$f":"IF(MAX(AB10:AB49)=0,\"\",MAX(AB10:AB49))","v":""}]
[null,"NOTA MÁS BAJA",{"$f":"IF(MIN(AB10:AB49)=0,\"\",MIN(AB10:AB49))","v":""}]
[null,"APROBADOS",{"$f":"IF(COUNT(AB10:AB49)=0,\"\",COUNTIF(AB10:AB49,\">10\"))","v":""},null,null,null,null,{"$f":"IFERROR(ROUND(C91*100/C85,2),\"\")","v":""}]
[null,"DESAPROBADOS",{"$f":"IF(COUNT(AB10:AB49)=0,\"\",COUNTIF(AB10:AB49,\"<11\"))","v":""},null,null,null,null,{"$f":"IFERROR(ROUND(C92*100/C85,2),\"\")","v":""}]

{"sheet":"COTEJO","index":5,"n_rows":77,"n_cols":34,"rows_kept":77,"cut":false,"hidden":false,"merged":[[0,2,0,15],[2,0,2,21],[4,0,5,1],[4,22,9,22],[7,2,7,21],[8,2,8,3],[8,4,8,5],[8,6,8,7],[8,8,8,9],[8,10,8,11],[8,12,8,13],[8,14,8,15],[8,16,8,17],[8,18,8,19],[8,20,8,21],[4,20,4,21],[75,2,75,6],[75,7,75,9],[76,2,76,6],[76,7,76,9],[69,2,69,6],[70,2,70,6],[71,2,71,6],[72,2,72,6],[73,2,73,6],[74,2,74,6],[4,2,4,5],[4,6,4,19],[5,2,5,5],[5,20,5,21],[5,6,5,19],[6,20,6,21],[6,0,6,1],[7,1,9,1],[7,0,9,0],[6,2,6,5],[6,6,6,19]]}
[null,null,{"$f":"IF(INICIO!B12=\"\",\"\",\"I.E. \"&INICIO!B12)","v":"I.E. 86031 NUESTRA SEÑORA DE LA ASUNCIÓN"}]
[]
[{"$f":"\"LISTA DE COTEJO -  \"&INICIO!B13","v":"LISTA DE COTEJO -  MATEMÁTICA"}]
[]
[{"$f":"\"DOCENTE: \"&INICIO!B14","v":"DOCENTE: José Antonio Melgar Camayo"},null,"INDICADOR 1",null,null,null,null,null,null,null,null,null,null,null,null,null,null,null,null,null,{"$f":"IFERROR(VLOOKUP(G5,INDICADORES!$D$6:$H$114,5,FALSE),\"\")","v":""},null,"NOTA PROMEDIO"]
[null,null,"INDICADOR 2",null,null,null,null,null,null,null,null,null,null,null,null,null,null,null,null,null,{"$f":"IFERROR(VLOOKUP(G6,INDICADORES!$D$6:$H$114,5,FALSE),\"\")","v":""}]
[{"$f":"\"GRADO Y SECCIÓN: \"&INDICADORES!B2","v":"GRADO Y SECCIÓN: PRIMERO - A"},null,"INDICADOR 3",null,null,null,null,null,null,null,null,null,null,null,null,null,null,null,null,null,{"$f":"IFERROR(VLOOKUP(G7,INDICADORES!$D$6:$H$114,5,FALSE),\"\")","v":""}]
["N°","APELLIDOS Y NOMBRES","CRITERIOS DE EVALUACIÓN"]
[]
[null,null,"SÍ","NO","SÍ","NO","SI","NO","SÍ","NO","SÍ","NO","SÍ","NO","SÍ","NO","SÍ","NO","SÍ","NO","SÍ","NO",null,null,null,null,null,null,null,null,null,null,"SI","NO"]
[1,null,null,null,null,null,null,null,null,null,null,null,null,null,null,null,null,null,null,null,null,null,{"$f":"IFERROR(ROUND(20*(AG11/SUM(AG11:AH11)),0),\"\")","v":""},null,null,null,null,null,null,{"$f":"IF(W11=\"\",\"\",IF(SUM(C11:D11)>1,\"Error \"&$C$9,IF(SUM(E11:F11)>1,\"Error \"&$E$9,IF(SUM(G11:H11)>1,\"Error \"&$G$9,IF(SUM(I11:J11)>1,\"Error \"&$I$9,IF(SUM(K11:L11)>1,\"Error \"&$K$9,IF(SUM(M11:N11)>1, \"Error \"&$M$9,IF(SUM(O11:P11)>1, \"Error \"&$O$9,IF(SUM(Q11:R11)>1, \"Error \"&$Q$9,IF(SUM(S11:T11)>1, \"Error \"&$S$9,IF(SUM(U11:V11)>1, \"Error \"&$U$9,\"\")))))))))))","v":""},null,null,{"$f":"COUNTIF(C11,1)+COUNTIF(E11,1)+COUNTIF(G11,1)+COUNTIF(I11,1)+COUNTIF(K11,1)+COUNTIF(M11,1)+COUNTIF(O11,1)+COUNTIF(Q11,1)+COUNTIF(S11,1)+COUNTIF(U11,1)","v":0},{"$f":"COUNTIF(D11,1)+COUNTIF(F11,1)+COUNTIF(H11,1)+COUNTIF(J11,1)+COUNTIF(L11,1)+COUNTIF(N11,1)+COUNTIF(P11,1)+COUNTIF(R11,1)+COUNTIF(T11,1)+COUNTIF(V11,1)","v":0}]
[2,null,null,null,null,null,null,null,null,null,null,null,null,null,null,null,null,null,null,null,null,null,{"$f":"IFERROR(ROUND(20*(AG12/SUM(AG12:AH12)),0),\"\")","v":""},null,null,null,null,null,null,{"$f":"IF(W12=\"\",\"\",IF(SUM(C12:D12)>1,\"Error \"&$C$9,IF(SUM(E12:F12)>1,\"Error \"&$E$9,IF(SUM(G12:H12)>1,\"Error \"&$G$9,IF(SUM(I12:J12)>1,\"Error \"&$I$9,IF(SUM(K12:L12)>1,\"Error \"&$K$9,IF(SUM(M12:N12)>1, \"Error \"&$M$9,IF(SUM(O12:P12)>1, \"Error \"&$O$9,IF(SUM(Q12:R12)>1, \"Error \"&$Q$9,IF(SUM(S12:T12)>1, \"Error \"&$S$9,IF(SUM(U12:V12)>1, \"Error \"&$U$9,\"\")))))))))))","v":""},null,null,{"$f":"COUNTIF(C12,1)+COUNTIF(E12,1)+COUNTIF(G12,1)+COUNTIF(I12,1)+COUNTIF(K12,1)+COUNTIF(M12,1)+COUNTIF(O12,1)+COUNTIF(Q12,1)+COUNTIF(S12,1)+COUNTIF(U12,1)","v":0},{"$f":"COUNTIF(D12,1)+COUNTIF(F12,1)+COUNTIF(H12,1)+COUNTIF(J12,1)+COUNTIF(L12,1)+COUNTIF(N12,1)+COUNTIF(P12,1)+COUNTIF(R12,1)+COUNTIF(T12,1)+COUNTIF(V12,1)","v":0}]
[3,null,null,null,null,null,null,null,null,null,null,null,null,null,null,null,null,null,null,null,null,null,"",null,null,null,null,null,null,"",null,null,0,0]
[4,null,null,null,null,null,null,null,null,null,null,null,null,null,null,null,null,null,null,null,null,null,"",null,null,null,null,null,null,"",null,null,0,0]
[5,null,null,null,null,null,null,null,null,null,null,null,null,null,null,null,null,null,null,null,null,null,"",null,null,null,null,null,null,"",null,null,0,0]
[6,null,null,null,null,null,null,null,null,null,null,null,null,null,null,null,null,null,null,null,null,null,"",null,null,null,null,null,null,"",null,null,0,0]
[7,null,null,null,null,null,null,null,null,null,null,null,null,null,null,null,null,null,null,null,null,null,"",null,null,null,null,null,null,"",null,null,0,0]
[8,null,null,null,null,null,null,null,null,null,null,null,null,null,null,null,null,null,null,null,null,null,"",null,null,null,null,null,null,"",null,null,0,0]
[9,null,null,null,null,null,null,null,null,null,null,null,null,null,null,null,null,null,null,null,null,null,"",null,null,null,null,null,null,"",null,null,0,0]
[10,null,null,null,null,null,null,null,null,null,null,null,null,null,null,null,null,null,null,null,null,null,"",null,null,null,null,null,null,"",null,null,0,0]
[11,null,null,null,null,null,null,null,null,null,null,null,null,null,null,null,null,null,null,null,null,null,"",null,null,null,null,null,null,"",null,null,0,0]
[12,null,null,null,null,null,null,null,null,null,null,null,null,null,null,null,null,null,null,null,null,null,"",null,null,null,null,null,null,"",null,null,0,0]
[13,null,null,null,null,null,null,null,null,null,null,null,null,null,null,null,null,null,null,null,null,null,"",null,null,null,null,null,null,"",null,null,0,0]
[14,null,null,null,null,null,null,null,null,null,null,null,null,null,null,null,null,null,null,null,null,null,"",null,null,null,null,null,null,"",null,null,0,0]
[15,null,null,null,null,null,null,null,null,null,null,null,null,null,null,null,null,null,null,null,null,null,"",null,null,null,null,null,null,"",null,null,0,0]
[16,null,null,null,null,null,null,null,null,null,null,null,null,null,null,null,null,null,null,null,null,null,"",null,null,null,null,null,null,"",null,null,0,0]
[17,null,null,null,null,null,null,null,null,null,null,null,null,null,null,null,null,null,null,null,null,null,"",null,null,null,null,null,null,"",null,null,0,0]
[18,null,null,null,null,null,null,null,null,null,null,null,null,null,null,null,null,null,null,null,null,null,"",null,null,null,null,null,null,"",null,null,0,0]
[19,null,null,null,null,null,null,null,null,null,null,null,null,null,null,null,null,null,null,null,null,null,"",null,null,null,null,null,null,"",null,null,0,0]
[20,null,null,null,null,null,null,null,null,null,null,null,null,null,null,null,null,null,null,null,null,null,{"$f":"IFERROR(ROUND(20*(AG30/SUM(AG30:AH30)),0),\"\")","v":""},null,null,null,null,null,null,"",null,null,0,0]
[21,null,null,null,null,null,null,null,null,null,null,null,null,null,null,null,null,null,null,null,null,null,"",null,null,null,null,null,null,"",null,null,0,0]
[22,null,null,null,null,null,null,null,null,null,null,null,null,null,null,null,null,null,null,null,null,null,"",null,null,null,null,null,null,"",null,null,0,0]
[23,null,null,null,null,null,null,null,null,null,null,null,null,null,null,null,null,null,null,null,null,null,"",null,null,null,null,null,null,"",null,null,0,0]
[24,null,null,null,null,null,null,null,null,null,null,null,null,null,null,null,null,null,null,null,null,null,"",null,null,null,null,null,null,"",null,null,0,0]
[25,null,null,null,null,null,null,null,null,null,null,null,null,null,null,null,null,null,null,null,null,null,"",null,null,null,null,null,null,"",null,null,0,0]
[26,null,null,null,null,null,null,null,null,null,null,null,null,null,null,null,null,null,null,null,null,null,"",null,null,null,null,null,null,"",null,null,0,0]
[27,null,null,null,null,null,null,null,null,null,null,null,null,null,null,null,null,null,null,null,null,null,"",null,null,null,null,null,null,"",null,null,0,0]
[28,null,null,null,null,null,null,null,null,null,null,null,null,null,null,null,null,null,null,null,null,null,"",null,null,null,null,null,null,"",null,null,0,0]
[29,null,null,null,null,null,null,null,null,null,null,null,null,null,null,null,null,null,null,null,null,null,"",null,null,null,null,null,null,"",null,null,0,0]
[30,null,null,null,null,null,null,null,null,null,null,null,null,null,null,null,null,null,null,null,null,null,"",null,null,null,null,null,null,"",null,null,0,0]
[31,null,null,null,null,null,null,null,null,null,null,null,null,null,null,null,null,null,null,null,null,null,"",null,null,null,null,null,null,"",null,null,0,0]
[32,null,null,null,null,null,null,null,null,null,null,null,null,null,null,null,null,null,null,null,null,null,"",null,null,null,null,null,null,"",null,null,0,0]
[33,null,null,null,null,null,null,null,null,null,null,null,null,null,null,null,null,null,null,null,null,null,"",null,null,null,null,null,null,"",null,null,0,0]
[34,null,null,null,null,null,null,null,null,null,null,null,null,null,null,null,null,null,null,null,null,null,"",null,null,null,null,null,null,"",null,null,0,0]
[35,null,null,null,null,null,null,null,null,null,null,null,null,null,null,null,null,null,null,null,null,null,"",null,null,null,null,null,null,"",null,null,0,0]
[36,null,null,null,null,null,null,null,null,null,null,null,null,null,null,null,null,null,null,null,null,null,"",null,null,null,null,null,null,"",null,null,0,0]
[37,null,null,null,null,null,null,null,null,null,null,null,null,null,null,null,null,null,null,null,null,null,"",null,null,null,null,null,null,"",null,null,0,0]
[38,null,null,null,null,null,null,null,null,null,null,null,null,null,null,null,null,null,null,null,null,null,"",null,null,null,null,null,null,"",null,null,0,0]
[39,null,null,null,null,null,null,null,null,null,null,null,null,null,null,null,null,null,null,null,null,null,"",null,null,null,null,null,null,"",null,null,0,0]
[40,null,null,null,null,null,null,null,null,null,null,null,null,null,null,null,null,null,null,null,null,null,"",null,null,null,null,null,null,"",null,null,0,0]
[]
[]
[]
[]
[]
[]
[]
[]
[]
[]
[]
[]
[]
[]
[]
[]
[]
[]
[null,"ESTADÍSTICA:"]
[null,"TOTAL",{"$f":"IF(COUNT(W11:W50)=0,\"\",COUNT(W11:W50))","v":""}]
[null,"PROMEDIO",{"$f":"IFERROR(ROUND(AVERAGE(W11:W50),2),\"\")","v":""}]
[null,"MEDIANA",{"$f":"IFERROR(MEDIAN(W11:W50),\"\")","v":""}]
[null,"MODA",{"$f":"IFERROR(_xlfn.MODE.SNGL(W11:W50),\"\")","v":""}]
[null,"NOTA MÁS ALTA",{"$f":"IF(MAX(W11:W50)=0,\"\",MAX(W11:W50))","v":""}]
[null,"NOTA MÁS BAJA",{"$f":"IF(MIN(W11:W50)=0,\"\",MIN(W11:W50))","v":""}]
[null,"APROBADOS",{"$f":"IF(COUNT(W11:W50)=0,\"\",COUNTIF(W11:W50,\">10\"))","v":""},null,null,null,null,{"$f":"IFERROR(ROUND(C76*100/C70,2),\"\")","v":""}]
[null,"DESAPROBADOS",{"$f":"IF(COUNT(W11:W50)=0,\"\",COUNTIF(W11:W50,\"<11\"))","v":""},null,null,null,null,{"$f":"IFERROR(ROUND(C77*100/C70,2),\"\")","v":""}]

{"sheet":"PORTAFOLIO","index":6,"n_rows":92,"n_cols":42,"rows_kept":92,"cut":false,"hidden":false,"merged":[[72,0,72,21],[72,22,72,25],[72,26,72,27],[73,0,73,21],[73,22,73,25],[73,26,73,27],[70,0,70,21],[70,22,70,25],[70,26,70,27],[71,0,71,21],[71,22,71,25],[71,26,71,27],[91,2,91,6],[91,7,91,9],[76,0,76,21],[76,22,76,25],[76,26,76,27],[84,2,84,6],[85,2,85,6],[86,2,86,6],[74,0,74,21],[74,22,74,25],[74,26,74,27],[75,0,75,21],[75,22,75,25],[75,26,75,27],[87,2,87,6],[88,2,88,6],[89,2,89,6],[90,2,90,6],[90,7,90,9],[68,26,68,27],[69,0,69,21],[69,22,69,25],[69,26,69,27],[66,0,66,21],[66,22,66,25],[66,26,66,27],[67,0,67,21],[67,22,67,25],[67,26,67,27],[68,0,68,21],[68,22,68,25],[64,0,64,21],[64,22,64,25],[64,26,64,27],[65,0,65,21],[65,22,65,25],[65,26,65,27],[62,0,62,21],[62,22,62,25],[62,26,62,27],[63,0,63,21],[63,22,63,25],[63,26,63,27],[60,0,60,21],[60,22,60,25],[60,26,60,27],[61,0,61,21],[61,22,61,25],[61,26,61,27],[58,0,58,21],[58,22,58,25],[58,26,58,27],[59,0,59,21],[59,22,59,25],[59,26,59,27],[56,0,56,21],[56,22,56,25],[56,26,56,27],[57,0,57,21],[57,22,57,25],[57,26,57,27],[54,0,54,21],[54,22,54,25],[54,26,54,27],[55,0,55,21],[55,22,55,25],[55,26,55,27],[52,0,52,21],[52,22,52,25],[52,26,52,27],[53,0,53,21],[53,22,53,25],[53,26,53,27],[6,0,7,1],[6,2,6,6],[6,7,6,11],[6,12,6,16],[6,17,6,21],[6,22,6,26],[0,2,0,19],[2,0,2,26],[4,0,5,1],[4,27,8,27],[5,2,5,6],[5,7,5,11],[5,12,5,16],[5,17,5,21],[5,22,5,26],[4,2,4,6],[4,7,4,11],[4,12,4,16],[4,17,4,21],[4,22,4,26]]}
[null,null,{"$f":"IF(INICIO!B12=\"\",\"\",\"I.E. \"&INICIO!B12)","v":"I.E. 86031 NUESTRA SEÑORA DE LA ASUNCIÓN"}]
[]
[{"$f":"\"PORTAFOLIO EDUCATIVO -  \"&INICIO!B13","v":"PORTAFOLIO EDUCATIVO -  MATEMÁTICA"},null,null,null,null,null,null,null,null,null,null,null,null,null,null,null,null,null,null,null,null,null,null,null,null,null,null,null,null,null,null,null,null,null,"Nivel de desempeño"]
[null,null,null,null,null,null,null,null,null,null,null,null,null,null,null,null,null,null,null,null,null,null,null,null,null,null,null,null,null,null,null,null,null,null,4]
[{"$f":"\"DOCENTE: \"&INICIO!B14","v":"DOCENTE: José Antonio Melgar Camayo"},null,{"$f":"IFERROR(VLOOKUP(C6,INDICADORES!$D$6:$H$114,5,FALSE),\"\")","v":""},null,null,null,null,{"$f":"IFERROR(VLOOKUP(H6,INDICADORES!$D$6:$H$114,5,FALSE),\"\")","v":""},null,null,null,null,{"$f":"IFERROR(VLOOKUP(M6,INDICADORES!$D$6:$H$114,5,FALSE),\"\")","v":""},null,null,null,null,{"$f":"IFERROR(VLOOKUP(R6,INDICADORES!$D$6:$H$114,5,FALSE),\"\")","v":""},null,null,null,null,{"$f":"IFERROR(VLOOKUP(W6,INDICADORES!$D$6:$H$114,5,FALSE),\"\")","v":""},null,null,null,null,"NOTA PROMEDIO"]
[]
[{"$f":"\"GRADO Y SECCIÓN: \"&INDICADORES!B2","v":"GRADO Y SECCIÓN: PRIMERO - A"},null,"PUNTUALIDAD",null,null,null,null,"PRODUCTOS CONSIGNADOS",null,null,null,null,"CREATIVIDAD Y ORGANIZACIÓN",null,null,null,null,"INFORMACIÓN RECOPILADA",null,null,null,null,"COHERENCIA CON LOS TEMAS TRABAJADOS",null,null,null,null,null,null,null,null,null,null,null,null,3]
[null,null,{"$f":"IF(AI4=\"\",\"\",IF(AI4=3,\"3\",IF(AI4=4,\"4\",IF(AI4=5,\"5\",\"\"))))","v":"4"},{"$f":"IF(AI4=\"\",\"\",IF(AI4=3,\"2\",IF(AI4=4,\"3\",IF(AI4=5,\"4\",\"\"))))","v":"3"},{"$f":"IF(AI4=\"\",\"\",IF(AI4=3,\"1\",IF(AI4=4,\"2\",IF(AI4=5,\"3\",\"\"))))","v":"2"},{"$f":"IF(AI4=\"\",\"\",IF(AI4=3,\"\",IF(AI4=4,\"1\",IF(AI4=5,\"2\",\"\"))))","v":"1"},{"$f":"IF(AI4=\"\",\"\",IF(AI4=3,\"\",IF(AI4=4,\"\",IF(AI4=5,\"1\",\"\"))))","v":""},{"$f":"IF(AI4=\"\",\"\",IF(AI4=3,\"3\",IF(AI4=4,\"4\",IF(AI4=5,\"5\",\"\"))))","v":"4"},{"$f":"IF(AI4=\"\",\"\",IF(AI4=3,\"2\",IF(AI4=4,\"3\",IF(AI4=5,\"4\",\"\"))))","v":"3"},{"$f":"IF(AI4=\"\",\"\",IF(AI4=3,\"1\",IF(AI4=4,\"2\",IF(AI4=5,\"3\",\"\"))))","v":"2"},{"$f":"IF(AI4=\"\",\"\",IF(AI4=3,\"\",IF(AI4=4,\"1\",IF(AI4=5,\"2\",\"\"))))","v":"1"},{"$f":"IF(AI4=\"\",\"\",IF(AI4=3,\"\",IF(AI4=4,\"\",IF(AI4=5,\"1\",\"\"))))","v":""},{"$f":"IF(AI4=\"\",\"\",IF(AI4=3,\"3\",IF(AI4=4,\"4\",IF(AI4=5,\"5\",\"\"))))","v":"4"},{"$f":"IF(AI4=\"\",\"\",IF(AI4=3,\"2\",IF(AI4=4,\"3\",IF(AI4=5,\"4\",\"\"))))","v":"3"},{"$f":"IF(AI4=\"\",\"\",IF(AI4=3,\"1\",IF(AI4=4,\"2\",IF(AI4=5,\"3\",\"\"))))","v":"2"},{"$f":"IF(AI4=\"\",\"\",IF(AI4=3,\"\",IF(AI4=4,\"1\",IF(AI4=5,\"2\",\"\"))))","v":"1"},{"$f":"IF(AI4=\"\",\"\",IF(AI4=3,\"\",IF(AI4=4,\"\",IF(AI4=5,\"1\",\"\"))))","v":""},{"$f":"IF(AI4=\"\",\"\",IF(AI4=3,\"3\",IF(AI4=4,\"4\",IF(AI4=5,\"5\",\"\"))))","v":"4"},{"$f":"IF(AI4=\"\",\"\",IF(AI4=3,\"2\",IF(AI4=4,\"3\",IF(AI4=5,\"4\",\"\"))))","v":"3"},{"$f":"IF(AI4=\"\",\"\",IF(AI4=3,\"1\",IF(AI4=4,\"2\",IF(AI4=5,\"3\",\"\"))))","v":"2"},{"$f":"IF(AI4=\"\",\"\",IF(AI4=3,\"\",IF(AI4=4,\"1\",IF(AI4=5,\"2\",\"\"))))","v":"1"},{"$f":"IF(AI4=\"\",\"\",IF(AI4=3,\"\",IF(AI4=4,\"\",IF(AI4=5,\"1\",\"\"))))","v":""},{"$f":"IF(AI4=\"\",\"\",IF(AI4=3,\"3\",IF(AI4=4,\"4\",IF(AI4=5,\"5\",\"\"))))","v":"4"},{"$f":"IF(AI4=\"\",\"\",IF(AI4=3,\"2\",IF(AI4=4,\"3\",IF(AI4=5,\"4\",\"\"))))","v":"3"},{"$f":"IF(AI4=\"\",\"\",IF(AI4=3,\"1\",IF(AI4=4,\"2\",IF(AI4=5,\"3\",\"\"))))","v":"2"},{"$f":"IF(AI4=\"\",\"\",IF(AI4=3,\"\",IF(AI4=4,\"1\",IF(AI4=5,\"2\",\"\"))))","v":"1"},{"$f":"IF(AI4=\"\",\"\",IF(AI4=3,\"\",IF(AI4=4,\"\",IF(AI4=5,\"1\",\"\"))))","v":""},null,null,null,null,null,null,null,null,4]
["N°","APELLIDOS Y NOMBRES",{"$f":"IF(AI4=\"\",\"\",IF(AI4=3,\"Bueno\",IF(AI4=4,\"Excelente\",IF(AI4=5,\"Logro Destacado\",\"\"))))","v":"Excelente"},{"$f":"IF(AI4=\"\",\"\",IF(AI4=3,\"Regular\",IF(AI4=4,\"Satisfactorio\",IF(AI4=5,\"Logro Previsto\",\"\"))))","v":"Satisfactorio"},{"$f":"IF(AI4=\"\",\"\",IF(AI4=3,\"Insuficiente\",IF(AI4=4,\"Regular\",IF(AI4=5,\"En Proceso\",\"\"))))","v":"Regular"},{"$f":"IF(AI4=\"\",\"\",IF(AI4=3,\"\",IF(AI4=4,\"Debe Mejorar\",IF(AI4=5,\"En Inicio\",\"\"))))","v":"Debe Mejorar"},{"$f":"IF(AI4=\"\",\"\",IF(AI4=3,\"\",IF(AI4=4,\"\",IF(AI4=5,\"No presentó\",\"\"))))","v":""},{"$f":"IF(AI4=\"\",\"\",IF(AI4=3,\"Bueno\",IF(AI4=4,\"Excelente\",IF(AI4=5,\"Logro Destacado\",\"\"))))","v":"Excelente"},{"$f":"IF(AI4=\"\",\"\",IF(AI4=3,\"Regular\",IF(AI4=4,\"Satisfactorio\",IF(AI4=5,\"Logro Previsto\",\"\"))))","v":"Satisfactorio"},{"$f":"IF(AI4=\"\",\"\",IF(AI4=3,\"Insuficiente\",IF(AI4=4,\"Regular\",IF(AI4=5,\"En Proceso\",\"\"))))","v":"Regular"},{"$f":"IF(AI4=\"\",\"\",IF(AI4=3,\"\",IF(AI4=4,\"Debe Mejorar\",IF(AI4=5,\"En Inicio\",\"\"))))","v":"Debe Mejorar"},{"$f":"IF(AI4=\"\",\"\",IF(AI4=3,\"\",IF(AI4=4,\"\",IF(AI4=5,\"No presentó\",\"\"))))","v":""},{"$f":"IF(AI4=\"\",\"\",IF(AI4=3,\"Bueno\",IF(AI4=4,\"Excelente\",IF(AI4=5,\"Logro Destacado\",\"\"))))","v":"Excelente"},{"$f":"IF(AI4=\"\",\"\",IF(AI4=3,\"Regular\",IF(AI4=4,\"Satisfactorio\",IF(AI4=5,\"Logro Previsto\",\"\"))))","v":"Satisfactorio"},{"$f":"IF(AI4=\"\",\"\",IF(AI4=3,\"Insuficiente\",IF(AI4=4,\"Regular\",IF(AI4=5,\"En Proceso\",\"\"))))","v":"Regular"},{"$f":"IF(AI4=\"\",\"\",IF(AI4=3,\"\",IF(AI4=4,\"Debe Mejorar\",IF(AI4=5,\"En Inicio\",\"\"))))","v":"Debe Mejorar"},{"$f":"IF(AI4=\"\",\"\",IF(AI4=3,\"\",IF(AI4=4,\"\",IF(AI4=5,\"No presentó\",\"\"))))","v":""},{"$f":"IF(AI4=\"\",\"\",IF(AI4=3,\"Bueno\",IF(AI4=4,\"Excelente\",IF(AI4=5,\"Logro Destacado\",\"\"))))","v":"Excelente"},{"$f":"IF(AI4=\"\",\"\",IF(AI4=3,\"Regular\",IF(AI4=4,\"Satisfactorio\",IF(AI4=5,\"Logro Previsto\",\"\"))))","v":"Satisfactorio"},{"$f":"IF(AI4=\"\",\"\",IF(AI4=3,\"Insuficiente\",IF(AI4=4,\"Regular\",IF(AI4=5,\"En Proceso\",\"\"))))","v":"Regular"},{"$f":"IF(AI4=\"\",\"\",IF(AI4=3,\"\",IF(AI4=4,\"Debe Mejorar\",IF(AI4=5,\"En Inicio\",\"\"))))","v":"Debe Mejorar"},{"$f":"IF(AI4=\"\",\"\",IF(AI4=3,\"\",IF(AI4=4,\"\",IF(AI4=5,\"No presentó\",\"\"))))","v":""},{"$f":"IF(AI4=\"\",\"\",IF(AI4=3,\"Bueno\",IF(AI4=4,\"Excelente\",IF(AI4=5,\"Logro Destacado\",\"\"))))","v":"Excelente"},{"$f":"IF(AI4=\"\",\"\",IF(AI4=3,\"Regular\",IF(AI4=4,\"Satisfactorio\",IF(AI4=5,\"Logro Previsto\",\"\"))))","v":"Satisfactorio"},{"$f":"IF(AI4=\"\",\"\",IF(AI4=3,\"Insuficiente\",IF(AI4=4,\"Regular\",IF(AI4=5,\"En Proceso\",\"\"))))","v":"Regular"},{"$f":"IF(AI4=\"\",\"\",IF(AI4=3,\"\",IF(AI4=4,\"Debe Mejorar\",IF(AI4=5,\"En Inicio\",\"\"))))","v":"Debe Mejorar"},{"$f":"IF(AI4=\"\",\"\",IF(AI4=3,\"\",IF(AI4=4,\"\",IF(AI4=5,\"No presentó\",\"\"))))","v":""},null,null,null,null,null,null,null,null,5]
[1,null,null,null,null,null,null,null,null,null,null,null,null,null,null,null,null,null,null,null,null,null,null,null,null,null,null,{"$f":"IFERROR(ROUND(SUM(AL10:AP10)/COUNTIF(AL10:AP10,\">0\"),0),\"\")","v":""},null,null,null,null,null,null,{"$f":"IF(AB10=\"\",\"\",IF(SUM(C10:G10)>1,\"Error \"&$C$5,IF(SUM(H10:L10)>1,\"Error \"&$H$5,IF(SUM(M10:Q10)>1,\"Error \"&$M$5,IF(SUM(R10:V10)>1,\"Error \"&$R$5,IF(SUM(W10:AA10)>1,\"Error \"&$W$5,IF(AB10>20,\"Error\",\"\")))))))","v":""},null,null,{"$f":"ROUND((COUNTIF(C10,1)*$C$8+COUNTIF(D10,1)*$D$8+COUNTIF(E10,1)*$E$8+IFERROR((COUNTIF(F10,1)*$F$8),0)+IFERROR((COUNTIF(G10,1)*$G$8),0))*20/$C$8,0)","v":0},{"$f":"ROUND((COUNTIF(H10,1)*$H$8+COUNTIF(I10,1)*$I$8+COUNTIF(J10,1)*$J$8+IFERROR((COUNTIF(K10,1)*$K$8),0)+IFERROR((COUNTIF(L10,1)*$L$8),0))*20/$H$8,0)","v":0},{"$f":"ROUND((COUNTIF(M10,1)*$M$8+COUNTIF(N10,1)*$N$8+COUNTIF(O10,1)*$O$8+IFERROR((COUNTIF(P10,1)*$P$8),0)+IFERROR((COUNTIF(Q10,1)*$Q$8),0))*20/$M$8,0)","v":0},{"$f":"ROUND((COUNTIF(R10,1)*$R$8+COUNTIF(S10,1)*$S$8+COUNTIF(T10,1)*$T$8+IFERROR((COUNTIF(U10,1)*$U$8),0)+IFERROR((COUNTIF(V10,1)*$V$8),0))*20/$R$8,0)","v":0},{"$f":"ROUND((COUNTIF(W10,1)*$W$8+COUNTIF(X10,1)*$X$8+COUNTIF(Y10,1)*$Y$8+IFERROR((COUNTIF(Z10,1)*$Z$8),0)+IFERROR((COUNTIF(AA10,1)*$AA$8),0))*20/$W$8,0)","v":0}]
[2,null,null,null,null,null,null,null,null,null,null,null,null,null,null,null,null,null,null,null,null,null,null,null,null,null,null,{"$f":"IFERROR(ROUND(SUM(AL11:AP11)/COUNTIF(AL11:AP11,\">0\"),0),\"\")","v":""},null,null,null,null,null,null,{"$f":"IF(AB11=\"\",\"\",IF(SUM(C11:G11)>1,\"Error \"&$C$5,IF(SUM(H11:L11)>1,\"Error \"&$H$5,IF(SUM(M11:Q11)>1,\"Error \"&$M$5,IF(SUM(R11:V11)>1,\"Error \"&$R$5,IF(SUM(W11:AA11)>1,\"Error \"&$W$5,IF(AB11>20,\"Error\",\"\")))))))","v":""},null,null,{"$f":"ROUND((COUNTIF(C11,1)*$C$8+COUNTIF(D11,1)*$D$8+COUNTIF(E11,1)*$E$8+IFERROR((COUNTIF(F11,1)*$F$8),0)+IFERROR((COUNTIF(G11,1)*$G$8),0))*20/$C$8,0)","v":0},{"$f":"ROUND((COUNTIF(H11,1)*$H$8+COUNTIF(I11,1)*$I$8+COUNTIF(J11,1)*$J$8+IFERROR((COUNTIF(K11,1)*$K$8),0)+IFERROR((COUNTIF(L11,1)*$L$8),0))*20/$H$8,0)","v":0},{"$f":"ROUND((COUNTIF(M11,1)*$M$8+COUNTIF(N11,1)*$N$8+COUNTIF(O11,1)*$O$8+IFERROR((COUNTIF(P11,1)*$P$8),0)+IFERROR((COUNTIF(Q11,1)*$Q$8),0))*20/$M$8,0)","v":0},{"$f":"ROUND((COUNTIF(R11,1)*$R$8+COUNTIF(S11,1)*$S$8+COUNTIF(T11,1)*$T$8+IFERROR((COUNTIF(U11,1)*$U$8),0)+IFERROR((COUNTIF(V11,1)*$V$8),0))*20/$R$8,0)","v":0},{"$f":"ROUND((COUNTIF(W11,1)*$W$8+COUNTIF(X11,1)*$X$8+COUNTIF(Y11,1)*$Y$8+IFERROR((COUNTIF(Z11,1)*$Z$8),0)+IFERROR((COUNTIF(AA11,1)*$AA$8),0))*20/$W$8,0)","v":0}]
[3,null,null,null,null,null,null,null,null,null,null,null,null,null,null,null,null,null,null,null,null,null,null,null,null,null,null,"",null,null,null,null,null,null,"",null,null,0,0,0,0,0]
[4,null,null,null,null,null,null,null,null,null,null,null,null,null,null,null,null,null,null,null,null,null,null,null,null,null,null,"",null,null,null,null,null,null,"",null,null,0,0,0,0,0]
[5,null,null,null,null,null,null,null,null,null,null,null,null,null,null,null,null,null,null,null,null,null,null,null,null,null,null,"",null,null,null,null,null,null,"",null,null,0,0,0,0,0]
[6,null,null,null,null,null,null,null,null,null,null,null,null,null,null,null,null,null,null,null,null,null,null,null,null,null,null,"",null,null,null,null,null,null,"",null,null,0,0,0,0,0]
[7,null,null,null,null,null,null,null,null,null,null,null,null,null,null,null,null,null,null,null,null,null,null,null,null,null,null,"",null,null,null,null,null,null,"",null,null,0,0,0,0,0]
[8,null,null,null,null,null,null,null,null,null,null,null,null,null,null,null,null,null,null,null,null,null,null,null,null,null,null,"",null,null,null,null,null,null,"",null,null,0,0,0,0,0]
[9,null,null,null,null,null,null,null,null,null,null,null,null,null,null,null,null,null,null,null,null,null,null,null,null,null,null,"",null,null,null,null,null,null,"",null,null,0,0,0,0,0]
[10,null,null,null,null,null,null,null,null,null,null,null,null,null,null,null,null,null,null,null,null,null,null,null,null,null,null,"",null,null,null,null,null,null,"",null,null,0,0,0,0,0]
[11,null,null,null,null,null,null,null,null,null,null,null,null,null,null,null,null,null,null,null,null,null,null,null,null,null,null,"",null,null,null,null,null,null,"",null,null,0,0,0,0,0]
[12,null,null,null,null,null,null,null,null,null,null,null,null,null,null,null,null,null,null,null,null,null,null,null,null,null,null,"",null,null,null,null,null,null,"",null,null,0,0,0,0,0]
[13,null,null,null,null,null,null,null,null,null,null,null,null,null,null,null,null,null,null,null,null,null,null,null,null,null,null,"",null,null,null,null,null,null,"",null,null,0,0,0,0,0]
[14,null,null,null,null,null,null,null,null,null,null,null,null,null,null,null,null,null,null,null,null,null,null,null,null,null,null,"",null,null,null,null,null,null,"",null,null,0,0,0,0,0]
[15,null,null,null,null,null,null,null,null,null,null,null,null,null,null,null,null,null,null,null,null,null,null,null,null,null,null,"",null,null,null,null,null,null,"",null,null,0,0,0,0,0]
[16,null,null,null,null,null,null,null,null,null,null,null,null,null,null,null,null,null,null,null,null,null,null,null,null,null,null,"",null,null,null,null,null,null,"",null,null,0,0,0,0,0]
[17,null,null,null,null,null,null,null,null,null,null,null,null,null,null,null,null,null,null,null,null,null,null,null,null,null,null,"",null,null,null,null,null,null,"",null,null,0,0,0,0,0]
[18,null,null,null,null,null,null,null,null,null,null,null,null,null,null,null,null,null,null,null,null,null,null,null,null,null,null,"",null,null,null,null,null,null,"",null,null,0,0,0,0,0]
[19,null,null,null,null,null,null,null,null,null,null,null,null,null,null,null,null,null,null,null,null,null,null,null,null,null,null,"",null,null,null,null,null,null,"",null,null,0,0,0,0,0]
[20,null,null,null,null,null,null,null,null,null,null,null,null,null,null,null,null,null,null,null,null,null,null,null,null,null,null,"",null,null,null,null,null,null,"",null,null,0,0,0,0,0]
[21,null,null,null,null,null,null,null,null,null,null,null,null,null,null,null,null,null,null,null,null,null,null,null,null,null,null,"",null,null,null,null,null,null,"",null,null,0,0,0,0,0]
[22,null,null,null,null,null,null,null,null,null,null,null,null,null,null,null,null,null,null,null,null,null,null,null,null,null,null,"",null,null,null,null,null,null,"",null,null,0,0,0,0,0]
[23,null,null,null,null,null,null,null,null,null,null,null,null,null,null,null,null,null,null,null,null,null,null,null,null,null,null,"",null,null,null,null,null,null,"",null,null,0,0,0,0,0]
[24,null,null,null,null,null,null,null,null,null,null,null,null,null,null,null,null,null,null,null,null,null,null,null,null,null,null,"",null,null,null,null,null,null,"",null,null,0,0,0,0,0]
[25,null,null,null,null,null,null,null,null,null,null,null,null,null,null,null,null,null,null,null,null,null,null,null,null,null,null,"",null,null,null,null,null,null,"",null,null,0,0,0,0,0]
[26,null,null,null,null,null,null,null,null,null,null,null,null,null,null,null,null,null,null,null,null,null,null,null,null,null,null,"",null,null,null,null,null,null,"",null,null,0,0,0,0,0]
[27,null,null,null,null,null,null,null,null,null,null,null,null,null,null,null,null,null,null,null,null,null,null,null,null,null,null,"",null,null,null,null,null,null,"",null,null,0,0,0,0,0]
[28,null,null,null,null,null,null,null,null,null,null,null,null,null,null,null,null,null,null,null,null,null,null,null,null,null,null,"",null,null,null,null,null,null,"",null,null,0,0,0,0,0]
[29,null,null,null,null,null,null,null,null,null,null,null,null,null,null,null,null,null,null,null,null,null,null,null,null,null,null,"",null,null,null,null,null,null,"",null,null,0,0,0,0,0]
[30,null,null,null,null,null,null,null,null,null,null,null,null,null,null,null,null,null,null,null,null,null,null,null,null,null,null,"",null,null,null,null,null,null,"",null,null,0,0,0,0,0]
[31,null,null,null,null,null,null,null,null,null,null,null,null,null,null,null,null,null,null,null,null,null,null,null,null,null,null,"",null,null,null,null,null,null,"",null,null,0,0,0,0,0]
[32,null,null,null,null,null,null,null,null,null,null,null,null,null,null,null,null,null,null,null,null,null,null,null,null,null,null,"",null,null,null,null,null,null,"",null,null,0,0,0,0,0]
[33,null,null,null,null,null,null,null,null,null,null,null,null,null,null,null,null,null,null,null,null,null,null,null,null,null,null,"",null,null,null,null,null,null,"",null,null,0,0,0,0,0]
[34,null,null,null,null,null,null,null,null,null,null,null,null,null,null,null,null,null,null,null,null,null,null,null,null,null,null,"",null,null,null,null,null,null,"",null,null,0,0,0,0,0]
[35,null,null,null,null,null,null,null,null,null,null,null,null,null,null,null,null,null,null,null,null,null,null,null,null,null,null,"",null,null,null,null,null,null,"",null,null,0,0,0,0,0]
[36,null,null,null,null,null,null,null,null,null,null,null,null,null,null,null,null,null,null,null,null,null,null,null,null,null,null,"",null,null,null,null,null,null,"",null,null,0,0,0,0,0]
[37,null,null,null,null,null,null,null,null,null,null,null,null,null,null,null,null,null,null,null,null,null,null,null,null,null,null,"",null,null,null,null,null,null,"",null,null,0,0,0,0,0]
[38,null,null,null,null,null,null,null,null,null,null,null,null,null,null,null,null,null,null,null,null,null,null,null,null,null,null,"",null,null,null,null,null,null,"",null,null,0,0,0,0,0]
[39,null,null,null,null,null,null,null,null,null,null,null,null,null,null,null,null,null,null,null,null,null,null,null,null,null,null,"",null,null,null,null,null,null,"",null,null,0,0,0,0,0]
[40,null,null,null,null,null,null,null,null,null,null,null,null,null,null,null,null,null,null,null,null,null,null,null,null,null,null,"",null,null,null,null,null,null,"",null,null,0,0,0,0,0]
[]
[]
[null,"LEYENDA:"]
["Entregó el portafolio en la fecha estipulada.",null,null,null,null,null,null,null,null,null,null,null,null,null,null,null,null,null,null,null,null,null,{"$f":"IF(AA53=\"\",\"\",IF(C9=\"\",\"\",C9))","v":""},null,null,null,{"$f":"IF(C5=\"\",\"\",C5)","v":""}]
["Entregó el portafolio un día después de la fecha estipulada.",null,null,null,null,null,null,null,null,null,null,null,null,null,null,null,null,null,null,null,null,null,{"$f":"IF(AA54=\"\",\"\",IF(D9=\"\",\"\",D9))","v":""},null,null,null,{"$f":"IF(C5=\"\",\"\",C5)","v":""}]
["Entregó el portafolio dos días después de la fecha estipulada.",null,null,null,null,null,null,null,null,null,null,null,null,null,null,null,null,null,null,null,null,null,{"$f":"IF(AA55=\"\",\"\",IF(E9=\"\",\"\",E9))","v":""},null,null,null,{"$f":"IF(C5=\"\",\"\",C5)","v":""}]
["Entregó el portafolio tres días después de la fecha estipulada.",null,null,null,null,null,null,null,null,null,null,null,null,null,null,null,null,null,null,null,null,null,{"$f":"IF(AA56=\"\",\"\",IF(F9=\"\",\"\",F9))","v":""},null,null,null,{"$f":"IF(C5=\"\",\"\",C5)","v":""}]
[null,null,null,null,null,null,null,null,null,null,null,null,null,null,null,null,null,null,null,null,null,null,{"$f":"IF(AA57=\"\",\"\",IF(G9=\"\",\"\",G9))","v":""},null,null,null,{"$f":"IF(C5=\"\",\"\",C5)","v":""}]
["Presentó el 100% de los productos.",null,null,null,null,null,null,null,null,null,null,null,null,null,null,null,null,null,null,null,null,null,{"$f":"IF(AA58=\"\",\"\",IF(H9=\"\",\"\",H9))","v":""},null,null,null,{"$f":"IF(H5=\"\",\"\",H5)","v":""}]
["Presentó el 75% de los productos.",null,null,null,null,null,null,null,null,null,null,null,null,null,null,null,null,null,null,null,null,null,{"$f":"IF(AA59=\"\",\"\",IF(I9=\"\",\"\",I9))","v":""},null,null,null,{"$f":"IF(H5=\"\",\"\",H5)","v":""}]
["Presentó el 50% de los productos.",null,null,null,null,null,null,null,null,null,null,null,null,null,null,null,null,null,null,null,null,null,{"$f":"IF(AA60=\"\",\"\",IF(J9=\"\",\"\",J9))","v":""},null,null,null,{"$f":"IF(H5=\"\",\"\",H5)","v":""}]
["Presentó el 25% de los productos.",null,null,null,null,null,null,null,null,null,null,null,null,null,null,null,null,null,null,null,null,null,{"$f":"IF(AA61=\"\",\"\",IF(K9=\"\",\"\",K9))","v":""},null,null,null,{"$f":"IF(H5=\"\",\"\",H5)","v":""}]
[null,null,null,null,null,null,null,null,null,null,null,null,null,null,null,null,null,null,null,null,null,null,{"$f":"IF(AA62=\"\",\"\",IF(L9=\"\",\"\",L9))","v":""},null,null,null,{"$f":"IF(H5=\"\",\"\",H5)","v":""}]
["Utilizó materiales creativos en su elaboración y organizó satisfactoriamente la presentación de sus productos.",null,null,null,null,null,null,null,null,null,null,null,null,null,null,null,null,null,null,null,null,null,{"$f":"IF(AA63=\"\",\"\",IF(M9=\"\",\"\",M9))","v":""},null,null,null,{"$f":"IF(M5=\"\",\"\",M5)","v":""}]
["Utilizó algunos materiales creativos en su elaboración y organizó adecuadamente los productos.",null,null,null,null,null,null,null,null,null,null,null,null,null,null,null,null,null,null,null,null,null,{"$f":"IF(AA64=\"\",\"\",IF(N9=\"\",\"\",N9))","v":""},null,null,null,{"$f":"IF(M5=\"\",\"\",M5)","v":""}]
["Utilizó materiales  creativos en su elaboración, pero no organizó la secuencia de los productos.",null,null,null,null,null,null,null,null,null,null,null,null,null,null,null,null,null,null,null,null,null,{"$f":"IF(AA65=\"\",\"\",IF(O9=\"\",\"\",O9))","v":""},null,null,null,{"$f":"IF(M5=\"\",\"\",M5)","v":""}]
["No utilizó materiales creativos y careció de  organización en la presentación de sus productos.",null,null,null,null,null,null,null,null,null,null,null,null,null,null,null,null,null,null,null,null,null,{"$f":"IF(AA66=\"\",\"\",IF(P9=\"\",\"\",P9))","v":""},null,null,null,{"$f":"IF(M5=\"\",\"\",M5)","v":""}]
[null,null,null,null,null,null,null,null,null,null,null,null,null,null,null,null,null,null,null,null,null,null,{"$f":"IF(AA67=\"\",\"\",IF(Q9=\"\",\"\",Q9))","v":""},null,null,null,{"$f":"IF(M5=\"\",\"\",M5)","v":""}]
["Toda la información presentada en el portafolio es clara, precisa y minuciosa.",null,null,null,null,null,null,null,null,null,null,null,null,null,null,null,null,null,null,null,null,null,{"$f":"IF(AA68=\"\",\"\",IF(R9=\"\",\"\",R9))","v":""},null,null,null,{"$f":"IF(R5=\"\",\"\",R5)","v":""}]
["La mayor parte de la información presentada en portafolio es clara, precisa y minuciosa.",null,null,null,null,null,null,null,null,null,null,null,null,null,null,null,null,null,null,null,null,null,{"$f":"IF(AA69=\"\",\"\",IF(S9=\"\",\"\",S9))","v":""},null,null,null,{"$f":"IF(R5=\"\",\"\",R5)","v":""}]
["La mayor parte de la información presentada en el portafolio es clara, precisa pero no es minuciosa.",null,null,null,null,null,null,null,null,null,null,null,null,null,null,null,null,null,null,null,null,null,{"$f":"IF(AA70=\"\",\"\",IF(T9=\"\",\"\",T9))","v":""},null,null,null,{"$f":"IF(R5=\"\",\"\",R5)","v":""}]
["Existe alguna información errónea en el portafolio y a otras le faltó claridad.",null,null,null,null,null,null,null,null,null,null,null,null,null,null,null,null,null,null,null,null,null,{"$f":"IF(AA71=\"\",\"\",IF(U9=\"\",\"\",U9))","v":""},null,null,null,{"$f":"IF(R5=\"\",\"\",R5)","v":""}]
[null,null,null,null,null,null,null,null,null,null,null,null,null,null,null,null,null,null,null,null,null,null,{"$f":"IF(AA72=\"\",\"\",IF(V9=\"\",\"\",V9))","v":""},null,null,null,{"$f":"IF(R5=\"\",\"\",R5)","v":""}]
["Presenta las ideas de los trabajos con secuencia lógica y en concordancia efectiva con los temas trabajados.",null,null,null,null,null,null,null,null,null,null,null,null,null,null,null,null,null,null,null,null,null,{"$f":"IF(AA73=\"\",\"\",IF(W9=\"\",\"\",W9))","v":""},null,null,null,{"$f":"IF(W5=\"\",\"\",W5)","v":""}]
["Presenta algunas  ideas de los trabajos con secuencia lógica y en concordancia efectiva con los temas trabajados.",null,null,null,null,null,null,null,null,null,null,null,null,null,null,null,null,null,null,null,null,null,{"$f":"IF(AA74=\"\",\"\",IF(X9=\"\",\"\",X9))","v":""},null,null,null,{"$f":"IF(W5=\"\",\"\",W5)","v":""}]
["Presenta algunas  ideas de los trabajos con secuencia lógica, pero sin concordancia efectiva con los temas trabajados.",null,null,null,null,null,null,null,null,null,null,null,null,null,null,null,null,null,null,null,null,null,{"$f":"IF(AA75=\"\",\"\",IF(Y9=\"\",\"\",Y9))","v":""},null,null,null,{"$f":"IF(W5=\"\",\"\",W5)","v":""}]
["Ninguna de las ideas de los trabajos presenta secuencia lógica y sin concordancia efectiva con los temas trabajados.",null,null,null,null,null,null,null,null,null,null,null,null,null,null,null,null,null,null,null,null,null,{"$f":"IF(AA76=\"\",\"\",IF(Z9=\"\",\"\",Z9))","v":""},null,null,null,{"$f":"IF(W5=\"\",\"\",W5)","v":""}]
[null,null,null,null,null,null,null,null,null,null,null,null,null,null,null,null,null,null,null,null,null,null,{"$f":"IF(AA77=\"\",\"\",IF(AA9=\"\",\"\",AA9))","v":""},null,null,null,{"$f":"IF(W5=\"\",\"\",W5)","v":""}]
[]
[]
[]
[]
[]
[]
[null,"ESTADÍSTICA:"]
[null,"TOTAL",{"$f":"IF(COUNT(AB10:AB49)=0,\"\",COUNT(AB10:AB49))","v":""}]
[null,"PROMEDIO",{"$f":"IFERROR(ROUND(AVERAGE(AB10:AB49),2),\"\")","v":""}]
[null,"MEDIANA",{"$f":"IFERROR(MEDIAN(AB10:AB49),\"\")","v":""}]
[null,"MODA",{"$f":"IFERROR(_xlfn.MODE.SNGL(AB10:AB49),\"\")","v":""}]
[null,"NOTA MÁS ALTA",{"$f":"IF(MAX(AB10:AB49)=0,\"\",MAX(AB10:AB49))","v":""}]
[null,"NOTA MÁS BAJA",{"$f":"IF(MIN(AB10:AB49)=0,\"\",MIN(AB10:AB49))","v":""}]
[null,"APROBADOS",{"$f":"IF(COUNT(AB10:AB49)=0,\"\",COUNTIF(AB10:AB49,\">10\"))","v":""},null,null,null,null,{"$f":"IFERROR(ROUND(C91*100/C85,2),\"\")","v":""}]
[null,"DESAPROBADOS",{"$f":"IF(COUNT(AB10:AB49)=0,\"\",COUNTIF(AB10:AB49,\"<11\"))","v":""},null,null,null,null,{"$f":"IFERROR(ROUND(C92*100/C85,2),\"\")","v":""}]

{"sheet":"ANECDOTICO","index":7,"n_rows":50,"n_cols":12,"rows_kept":50,"cut":false,"hidden":false,"merged":[[50,2,50,3],[50,4,50,6],[50,7,50,8],[2,0,2,8],[7,0,7,1],[8,0,8,4],[8,5,8,8],[4,2,4,6],[6,0,6,1],[6,2,6,3],[4,0,4,1],[5,0,5,1],[5,2,5,3],[5,4,5,5],[5,6,5,8],[6,4,6,5],[6,6,6,8],[9,0,15,4],[9,5,15,8],[7,2,7,3],[7,4,7,5],[7,6,7,8],[49,2,49,3],[49,4,49,6],[49,7,49,8],[48,0,48,8],[21,1,21,3],[21,6,21,8],[22,1,22,3],[22,6,22,8],[23,1,23,3],[23,6,23,8]]}
[]
[]
[{"$f":"\"REGISTRO ANECDÓTICO -  \"&INICIO!B13","v":"REGISTRO ANECDÓTICO -  MATEMÁTICA"}]
[]
["I.E.:",null,"86031 NUESTRA SEÑORA DE LA ASUNCIÓN",null,null,null,null,"REGISTRO:",1,null,null,{"$f":"\"I.E. \"&C5&\". \"&C6&\". \"&\" Siendo las \"&L12&\". Durante la actividad de \"&G7&\". En \"&C8&\". Estudiante: \"&G8","v":"I.E. 86031 NUESTRA SEÑORA DE LA ASUNCIÓN. PRIMERO - A.  Siendo las 9:25. Durante la actividad de Resolución de Problemas. En Salón de Clase. Estudiante: "}]
["GRADO Y SECCIÓN:",null,"PRIMERO - A",null,"FECHA:",null,"2015-09-23"]
["HORA:",null,"09:25:00",null,"ACTIVIDAD:",null,"Resolución de Problemas"]
["LUGAR:",null,"Salón de Clase",null,"ESTUDIANTE",null,null,null,null,null,null,{"$f":"HOUR(C7)","v":9}]
["DESCRIPCIÓN DE LO OBSERVADO\nOBSERVADO\n",null,null,null,null,"INTERPRETACIÓN DE LO OBSERVADO",null,null,null,null,null,{"$f":"MINUTE(C7)","v":25}]
["El día lunes durante la clase de matemática se les estaba ilustrando a los estudiantes sobre las potencialidades del programa Geogebra 5.0, uno que les llamó mucho la atención fue el de sólidos geométricos, Carlos dijo que era espectacular y podemos ver como gira y otros datos más. Además mencionó que nuestro colegio tiene pocas computadoras para que los alumnos practiquen.",null,null,null,null,"La situación demostró que el estudiante Carlos se interesa por utilizar las tecnologías de información y comunicación (TICs), y como se sabe lo mencionado son sólo recursos para el logro de aprendizajes de nuestros estudiantes. Otro hecho real es que la mayoría de los colegios no cuentan con el número necesario de computadoras.",null,null,null,null,null,{"$f":"TEXT(L8,0)","v":"9"}]
[null,null,null,null,null,null,null,null,null,null,null,{"$f":"TEXT(L9,0)","v":"25"}]
[null,null,null,null,null,null,null,null,null,null,null,{"$f":"L10&\":\"&L11","v":"9:25"}]
[null,null,null,null,null,null,null,null,null,null,null,{"$f":"IF(INICIO!B12=\"\",\"\",INICIO!B12)","v":"86031 NUESTRA SEÑORA DE LA ASUNCIÓN"}]
[null,null,null,null,null,null,null,null,null,null,null,{"$f":"INICIO!B15&\" - \"&INICIO!D15","v":"PRIMERO - A"}]
[null,null,null,null,null,null,null,null,null,null,null,{"$f":"IF(INICIO!B14=\"\",\"\",INICIO!B14)","v":"José Antonio Melgar Camayo"}]
[]
[]
[]
[]
[]
[]
[]
[null,{"$f":"IF(G8=\"\",\"\",G8)","v":""},null,null,null,null,"José Antonio Melgar Camayo"]
[null,"Estudiante",null,null,null,null,"Docente"]
[]
[]
[]
[]
[]
[]
[]
[]
[]
[]
[]
[]
[]
[]
[]
[]
[]
[]
[]
[]
[]
[]
[]
[]
["REGISTRO ANECDÓTICO"]
["Nº","FECHA","DATOS",null,"DESCRIPCIÓN DE LO OBSERVADO",null,null,"INTERPRETACIÓN"]

{"sheet":"OBSERVACION","index":8,"n_rows":83,"n_cols":42,"rows_kept":83,"cut":false,"hidden":false,"merged":[[5,0,5,1],[4,0,4,1],[78,2,78,6],[79,2,79,6],[80,2,80,6],[6,2,6,6],[6,0,7,0],[6,1,7,1],[81,2,81,6],[81,7,81,9],[82,2,82,6],[82,7,82,9],[75,2,75,6],[76,2,76,6],[77,2,77,6],[4,27,8,27],[5,2,5,6],[5,7,5,11],[5,12,5,16],[5,17,5,21],[5,22,5,26],[6,7,6,11],[6,12,6,16],[6,17,6,21],[6,22,6,26],[0,2,0,19],[2,0,2,26],[4,2,4,6],[4,7,4,11],[4,12,4,16],[4,17,4,21],[4,22,4,26]]}
[null,null,{"$f":"IF(INICIO!B12=\"\",\"\",\"I.E. \"&INICIO!B12)","v":"I.E. 86031 NUESTRA SEÑORA DE LA ASUNCIÓN"}]
[]
[{"$f":"\"FICHA DE OBSERVACIÓN -  \"&INICIO!B13","v":"FICHA DE OBSERVACIÓN -  MATEMÁTICA"},null,null,null,null,null,null,null,null,null,null,null,null,null,null,null,null,null,null,null,null,null,null,null,null,null,null,null,null,null,null,null,null,null,"Nivel de desempeño"]
[null,null,null,null,null,null,null,null,null,null,null,null,null,null,null,null,null,null,null,null,null,null,null,null,null,null,null,null,null,null,null,null,null,null,5]
[{"$f":"\"DOCENTE: \"&INICIO!B14","v":"DOCENTE: José Antonio Melgar Camayo"},null,{"$f":"IFERROR(VLOOKUP(C6,INDICADORES!$D$6:$H$114,5,FALSE),\"\")","v":""},null,null,null,null,{"$f":"IFERROR(VLOOKUP(H6,INDICADORES!$D$6:$H$114,5,FALSE),\"\")","v":""},null,null,null,null,{"$f":"IFERROR(VLOOKUP(M6,INDICADORES!$D$6:$H$114,5,FALSE),\"\")","v":""},null,null,null,null,{"$f":"IFERROR(VLOOKUP(R6,INDICADORES!$D$6:$H$114,5,FALSE),\"\")","v":""},null,null,null,null,{"$f":"IFERROR(VLOOKUP(W6,INDICADORES!$D$6:$H$114,5,FALSE),\"\")","v":""},null,null,null,null,"NOTA PROMEDIO"]
[{"$f":"\"GRADO Y SECCIÓN: \"&INDICADORES!B2","v":"GRADO Y SECCIÓN: PRIMERO - A"}]
["N°","APELLIDOS Y NOMBRES","Adapta y combina estrategias heurísticas relacionadas a ángulos, razones trigonométricas y proporcionalidad al resolver problemas con planos a escala, usando recursos gráficos y otros.",null,null,null,null,"Justifica las relaciones y estructuras dentro del sistema a  escala con planos y mapas.",null,null,null,null,"Organiza, a partir de fuentes de información, relaciones de variación entre dos magnitudes al expresar modelos referidos a funciones cuadráticas.",null,null,null,null,"Compara y contrasta modelos relacionados a las funciones cuadráticas de acuerdo a situaciones afines.",null,null,null,null,null,null,null,null,null,null,null,null,null,null,null,null,null,3]
[null,null,{"$f":"IF(AI4=\"\",\"\",IF(AI4=3,\"3\",IF(AI4=4,\"4\",IF(AI4=5,\"5\",\"\"))))","v":"5"},{"$f":"IF(AI4=\"\",\"\",IF(AI4=3,\"2\",IF(AI4=4,\"3\",IF(AI4=5,\"4\",\"\"))))","v":"4"},{"$f":"IF(AI4=\"\",\"\",IF(AI4=3,\"1\",IF(AI4=4,\"2\",IF(AI4=5,\"3\",\"\"))))","v":"3"},{"$f":"IF(AI4=\"\",\"\",IF(AI4=3,\"\",IF(AI4=4,\"1\",IF(AI4=5,\"2\",\"\"))))","v":"2"},{"$f":"IF(AI4=\"\",\"\",IF(AI4=3,\"\",IF(AI4=4,\"\",IF(AI4=5,\"1\",\"\"))))","v":"1"},{"$f":"IF(AI4=\"\",\"\",IF(AI4=3,\"3\",IF(AI4=4,\"4\",IF(AI4=5,\"5\",\"\"))))","v":"5"},{"$f":"IF(AI4=\"\",\"\",IF(AI4=3,\"2\",IF(AI4=4,\"3\",IF(AI4=5,\"4\",\"\"))))","v":"4"},{"$f":"IF(AI4=\"\",\"\",IF(AI4=3,\"1\",IF(AI4=4,\"2\",IF(AI4=5,\"3\",\"\"))))","v":"3"},{"$f":"IF(AI4=\"\",\"\",IF(AI4=3,\"\",IF(AI4=4,\"1\",IF(AI4=5,\"2\",\"\"))))","v":"2"},{"$f":"IF(AI4=\"\",\"\",IF(AI4=3,\"\",IF(AI4=4,\"\",IF(AI4=5,\"1\",\"\"))))","v":"1"},{"$f":"IF(AI4=\"\",\"\",IF(AI4=3,\"3\",IF(AI4=4,\"4\",IF(AI4=5,\"5\",\"\"))))","v":"5"},{"$f":"IF(AI4=\"\",\"\",IF(AI4=3,\"2\",IF(AI4=4,\"3\",IF(AI4=5,\"4\",\"\"))))","v":"4"},{"$f":"IF(AI4=\"\",\"\",IF(AI4=3,\"1\",IF(AI4=4,\"2\",IF(AI4=5,\"3\",\"\"))))","v":"3"},{"$f":"IF(AI4=\"\",\"\",IF(AI4=3,\"\",IF(AI4=4,\"1\",IF(AI4=5,\"2\",\"\"))))","v":"2"},{"$f":"IF(AI4=\"\",\"\",IF(AI4=3,\"\",IF(AI4=4,\"\",IF(AI4=5,\"1\",\"\"))))","v":"1"},{"$f":"IF(AI4=\"\",\"\",IF(AI4=3,\"3\",IF(AI4=4,\"4\",IF(AI4=5,\"5\",\"\"))))","v":"5"},{"$f":"IF(AI4=\"\",\"\",IF(AI4=3,\"2\",IF(AI4=4,\"3\",IF(AI4=5,\"4\",\"\"))))","v":"4"},{"$f":"IF(AI4=\"\",\"\",IF(AI4=3,\"1\",IF(AI4=4,\"2\",IF(AI4=5,\"3\",\"\"))))","v":"3"},{"$f":"IF(AI4=\"\",\"\",IF(AI4=3,\"\",IF(AI4=4,\"1\",IF(AI4=5,\"2\",\"\"))))","v":"2"},{"$f":"IF(AI4=\"\",\"\",IF(AI4=3,\"\",IF(AI4=4,\"\",IF(AI4=5,\"1\",\"\"))))","v":"1"},{"$f":"IF(AI4=\"\",\"\",IF(AI4=3,\"3\",IF(AI4=4,\"4\",IF(AI4=5,\"5\",\"\"))))","v":"5"},{"$f":"IF(AI4=\"\",\"\",IF(AI4=3,\"2\",IF(AI4=4,\"3\",IF(AI4=5,\"4\",\"\"))))","v":"4"},{"$f":"IF(AI4=\"\",\"\",IF(AI4=3,\"1\",IF(AI4=4,\"2\",IF(AI4=5,\"3\",\"\"))))","v":"3"},{"$f":"IF(AI4=\"\",\"\",IF(AI4=3,\"\",IF(AI4=4,\"1\",IF(AI4=5,\"2\",\"\"))))","v":"2"},{"$f":"IF(AI4=\"\",\"\",IF(AI4=3,\"\",IF(AI4=4,\"\",IF(AI4=5,\"1\",\"\"))))","v":"1"},null,null,null,null,null,null,null,null,4]
[null,null,{"$f":"IF(AI4=\"\",\"\",IF(AI4=3,\"Bueno\",IF(AI4=4,\"Excelente\",IF(AI4=5,\"Logro Destacado\",\"\"))))","v":"Logro Destacado"},{"$f":"IF(AI4=\"\",\"\",IF(AI4=3,\"Regular\",IF(AI4=4,\"Satisfactorio\",IF(AI4=5,\"Logro Previsto\",\"\"))))","v":"Logro Previsto"},{"$f":"IF(AI4=\"\",\"\",IF(AI4=3,\"Insuficiente\",IF(AI4=4,\"Regular\",IF(AI4=5,\"En Proceso\",\"\"))))","v":"En Proceso"},{"$f":"IF(AI4=\"\",\"\",IF(AI4=3,\"\",IF(AI4=4,\"Debe Mejorar\",IF(AI4=5,\"En Inicio\",\"\"))))","v":"En Inicio"},{"$f":"IF(AI4=\"\",\"\",IF(AI4=3,\"\",IF(AI4=4,\"\",IF(AI4=5,\"No presentó\",IF(AI4=\"Según Tobbón\",\"Preformal\",\"\")))))","v":"No presentó"},{"$f":"IF(AI4=\"\",\"\",IF(AI4=3,\"Bueno\",IF(AI4=4,\"Excelente\",IF(AI4=5,\"Logro Destacado\",\"\"))))","v":"Logro Destacado"},{"$f":"IF(AI4=\"\",\"\",IF(AI4=3,\"Regular\",IF(AI4=4,\"Satisfactorio\",IF(AI4=5,\"Logro Previsto\",\"\"))))","v":"Logro Previsto"},{"$f":"IF(AI4=\"\",\"\",IF(AI4=3,\"Insuficiente\",IF(AI4=4,\"Regular\",IF(AI4=5,\"En Proceso\",\"\"))))","v":"En Proceso"},{"$f":"IF(AI4=\"\",\"\",IF(AI4=3,\"\",IF(AI4=4,\"Debe Mejorar\",IF(AI4=5,\"En Inicio\",\"\"))))","v":"En Inicio"},{"$f":"IF(AI4=\"\",\"\",IF(AI4=3,\"\",IF(AI4=4,\"\",IF(AI4=5,\"No presentó\",IF(AI4=\"Según Tobbón\",\"Preformal\",\"\")))))","v":"No presentó"},{"$f":"IF(AI4=\"\",\"\",IF(AI4=3,\"Bueno\",IF(AI4=4,\"Excelente\",IF(AI4=5,\"Logro Destacado\",\"\"))))","v":"Logro Destacado"},{"$f":"IF(AI4=\"\",\"\",IF(AI4=3,\"Regular\",IF(AI4=4,\"Satisfactorio\",IF(AI4=5,\"Logro Previsto\",\"\"))))","v":"Logro Previsto"},{"$f":"IF(AI4=\"\",\"\",IF(AI4=3,\"Insuficiente\",IF(AI4=4,\"Regular\",IF(AI4=5,\"En Proceso\",\"\"))))","v":"En Proceso"},{"$f":"IF(AI4=\"\",\"\",IF(AI4=3,\"\",IF(AI4=4,\"Debe Mejorar\",IF(AI4=5,\"En Inicio\",\"\"))))","v":"En Inicio"},{"$f":"IF(AI4=\"\",\"\",IF(AI4=3,\"\",IF(AI4=4,\"\",IF(AI4=5,\"No presentó\",IF(AI4=\"Según Tobbón\",\"Preformal\",\"\")))))","v":"No presentó"},{"$f":"IF(AI4=\"\",\"\",IF(AI4=3,\"Bueno\",IF(AI4=4,\"Excelente\",IF(AI4=5,\"Logro Destacado\",\"\"))))","v":"Logro Destacado"},{"$f":"IF(AI4=\"\",\"\",IF(AI4=3,\"Regular\",IF(AI4=4,\"Satisfactorio\",IF(AI4=5,\"Logro Previsto\",\"\"))))","v":"Logro Previsto"},{"$f":"IF(AI4=\"\",\"\",IF(AI4=3,\"Insuficiente\",IF(AI4=4,\"Regular\",IF(AI4=5,\"En Proceso\",\"\"))))","v":"En Proceso"},{"$f":"IF(AI4=\"\",\"\",IF(AI4=3,\"\",IF(AI4=4,\"Debe Mejorar\",IF(AI4=5,\"En Inicio\",\"\"))))","v":"En Inicio"},{"$f":"IF(AI4=\"\",\"\",IF(AI4=3,\"\",IF(AI4=4,\"\",IF(AI4=5,\"No presentó\",IF(AI4=\"Según Tobbón\",\"Preformal\",\"\")))))","v":"No presentó"},{"$f":"IF(AI4=\"\",\"\",IF(AI4=3,\"Bueno\",IF(AI4=4,\"Excelente\",IF(AI4=5,\"Logro Destacado\",\"\"))))","v":"Logro Destacado"},{"$f":"IF(AI4=\"\",\"\",IF(AI4=3,\"Regular\",IF(AI4=4,\"Satisfactorio\",IF(AI4=5,\"Logro Previsto\",\"\"))))","v":"Logro Previsto"},{"$f":"IF(AI4=\"\",\"\",IF(AI4=3,\"Insuficiente\",IF(AI4=4,\"Regular\",IF(AI4=5,\"En Proceso\",\"\"))))","v":"En Proceso"},{"$f":"IF(AI4=\"\",\"\",IF(AI4=3,\"\",IF(AI4=4,\"Debe Mejorar\",IF(AI4=5,\"En Inicio\",\"\"))))","v":"En Inicio"},{"$f":"IF(AI4=\"\",\"\",IF(AI4=3,\"\",IF(AI4=4,\"\",IF(AI4=5,\"No presentó\",IF(AI4=\"Según Tobbón\",\"Preformal\",\"\")))))","v":"No presentó"},null,null,null,null,null,null,null,null,5]
[1,null,null,null,null,null,null,null,null,null,null,null,null,null,null,null,null,null,null,null,null,null,null,null,null,null,null,{"$f":"IFERROR(ROUND(SUM(AL10:AP10)/COUNTIF(AL10:AP10,\">0\"),0),\"\")","v":""},null,null,null,null,null,null,{"$f":"IF(AB10=\"\",\"\",IF(SUM(C10:G10)>1,\"Error \"&$C$5,IF(SUM(H10:L10)>1,\"Error \"&$H$5,IF(SUM(M10:Q10)>1,\"Error \"&$M$5,IF(SUM(R10:V10)>1,\"Error \"&$R$5,IF(SUM(W10:AA10)>1,\"Error \"&$W$5,IF(AB10>20,\"Error\",\"\")))))))","v":""},null,null,{"$f":"ROUND((COUNTIF(C10,1)*$C$8+COUNTIF(D10,1)*$D$8+COUNTIF(E10,1)*$E$8+IFERROR((COUNTIF(F10,1)*$F$8),0)+IFERROR((COUNTIF(G10,1)*$G$8),0))*20/$C$8,0)","v":0},{"$f":"ROUND((COUNTIF(H10,1)*$H$8+COUNTIF(I10,1)*$I$8+COUNTIF(J10,1)*$J$8+IFERROR((COUNTIF(K10,1)*$K$8),0)+IFERROR((COUNTIF(L10,1)*$L$8),0))*20/$H$8,0)","v":0},{"$f":"ROUND((COUNTIF(M10,1)*$M$8+COUNTIF(N10,1)*$N$8+COUNTIF(O10,1)*$O$8+IFERROR((COUNTIF(P10,1)*$P$8),0)+IFERROR((COUNTIF(Q10,1)*$Q$8),0))*20/$M$8,0)","v":0},{"$f":"ROUND((COUNTIF(R10,1)*$R$8+COUNTIF(S10,1)*$S$8+COUNTIF(T10,1)*$T$8+IFERROR((COUNTIF(U10,1)*$U$8),0)+IFERROR((COUNTIF(V10,1)*$V$8),0))*20/$R$8,0)","v":0},{"$f":"ROUND((COUNTIF(W10,1)*$W$8+COUNTIF(X10,1)*$X$8+COUNTIF(Y10,1)*$Y$8+IFERROR((COUNTIF(Z10,1)*$Z$8),0)+IFERROR((COUNTIF(AA10,1)*$AA$8),0))*20/$W$8,0)","v":0}]
[2,null,null,null,null,null,null,null,null,null,null,null,null,null,null,null,null,null,null,null,null,null,null,null,null,null,null,{"$f":"IFERROR(ROUND(SUM(AL11:AP11)/COUNTIF(AL11:AP11,\">0\"),0),\"\")","v":""},null,null,null,null,null,null,{"$f":"IF(AB11=\"\",\"\",IF(SUM(C11:G11)>1,\"Error \"&$C$5,IF(SUM(H11:L11)>1,\"Error \"&$H$5,IF(SUM(M11:Q11)>1,\"Error \"&$M$5,IF(SUM(R11:V11)>1,\"Error \"&$R$5,IF(SUM(W11:AA11)>1,\"Error \"&$W$5,IF(AB11>20,\"Error\",\"\")))))))","v":""},null,null,{"$f":"ROUND((COUNTIF(C11,1)*$C$8+COUNTIF(D11,1)*$D$8+COUNTIF(E11,1)*$E$8+IFERROR((COUNTIF(F11,1)*$F$8),0)+IFERROR((COUNTIF(G11,1)*$G$8),0))*20/$C$8,0)","v":0},{"$f":"ROUND((COUNTIF(H11,1)*$H$8+COUNTIF(I11,1)*$I$8+COUNTIF(J11,1)*$J$8+IFERROR((COUNTIF(K11,1)*$K$8),0)+IFERROR((COUNTIF(L11,1)*$L$8),0))*20/$H$8,0)","v":0},{"$f":"ROUND((COUNTIF(M11,1)*$M$8+COUNTIF(N11,1)*$N$8+COUNTIF(O11,1)*$O$8+IFERROR((COUNTIF(P11,1)*$P$8),0)+IFERROR((COUNTIF(Q11,1)*$Q$8),0))*20/$M$8,0)","v":0},{"$f":"ROUND((COUNTIF(R11,1)*$R$8+COUNTIF(S11,1)*$S$8+COUNTIF(T11,1)*$T$8+IFERROR((COUNTIF(U11,1)*$U$8),0)+IFERROR((COUNTIF(V11,1)*$V$8),0))*20/$R$8,0)","v":0},{"$f":"ROUND((COUNTIF(W11,1)*$W$8+COUNTIF(X11,1)*$X$8+COUNTIF(Y11,1)*$Y$8+IFERROR((COUNTIF(Z11,1)*$Z$8),0)+IFERROR((COUNTIF(AA11,1)*$AA$8),0))*20/$W$8,0)","v":0}]
[3,null,null,null,null,null,null,null,null,null,null,null,null,null,null,null,null,null,null,null,null,null,null,null,null,null,null,"",null,null,null,null,null,null,{"$f":"IF(AB12=\"\",\"\",IF(SUM(C12:G12)>1,\"Error \"&$C$5,IF(SUM(H12:L12)>1,\"Error \"&$H$5,IF(SUM(M12:Q12)>1,\"Error \"&$M$5,IF(SUM(R12:V12)>1,\"Error \"&$R$5,IF(SUM(W12:AA12)>1,\"Error \"&$W$5,IF(AB12>20,\"Error\",\"\")))))))","v":""},null,null,0,0,0,0,0]
[4,null,null,null,null,null,null,null,null,null,null,null,null,null,null,null,null,null,null,null,null,null,null,null,null,null,null,"",null,null,null,null,null,null,"",null,null,0,0,0,0,0]
[5,null,null,null,null,null,null,null,null,null,null,null,null,null,null,null,null,null,null,null,null,null,null,null,null,null,null,"",null,null,null,null,null,null,"",null,null,0,0,0,0,0]
[6,null,null,null,null,null,null,null,null,null,null,null,null,null,null,null,null,null,null,null,null,null,null,null,null,null,null,"",null,null,null,null,null,null,"",null,null,0,0,0,0,0]
[7,null,null,null,null,null,null,null,null,null,null,null,null,null,null,null,null,null,null,null,null,null,null,null,null,null,null,"",null,null,null,null,null,null,"",null,null,0,0,0,0,0]
[8,null,null,null,null,null,null,null,null,null,null,null,null,null,null,null,null,null,null,null,null,null,null,null,null,null,null,"",null,null,null,null,null,null,"",null,null,0,0,0,0,0]
[9,null,null,null,null,null,null,null,null,null,null,null,null,null,null,null,null,null,null,null,null,null,null,null,null,null,null,"",null,null,null,null,null,null,"",null,null,0,0,0,0,0]
[10,null,null,null,null,null,null,null,null,null,null,null,null,null,null,null,null,null,null,null,null,null,null,null,null,null,null,"",null,null,null,null,null,null,"",null,null,0,0,0,0,0]
[11,null,null,null,null,null,null,null,null,null,null,null,null,null,null,null,null,null,null,null,null,null,null,null,null,null,null,"",null,null,null,null,null,null,"",null,null,0,0,0,0,0]
[12,null,null,null,null,null,null,null,null,null,null,null,null,null,null,null,null,null,null,null,null,null,null,null,null,null,null,"",null,null,null,null,null,null,"",null,null,0,0,0,0,0]
[13,null,null,null,null,null,null,null,null,null,null,null,null,null,null,null,null,null,null,null,null,null,null,null,null,null,null,"",null,null,null,null,null,null,"",null,null,0,0,0,0,0]
[14,null,null,null,null,null,null,null,null,null,null,null,null,null,null,null,null,null,null,null,null,null,null,null,null,null,null,"",null,null,null,null,null,null,"",null,null,0,0,0,0,0]
[15,null,null,null,null,null,null,null,null,null,null,null,null,null,null,null,null,null,null,null,null,null,null,null,null,null,null,"",null,null,null,null,null,null,"",null,null,0,0,0,0,0]
[16,null,null,null,null,null,null,null,null,null,null,null,null,null,null,null,null,null,null,null,null,null,null,null,null,null,null,"",null,null,null,null,null,null,"",null,null,0,0,0,0,0]
[17,null,null,null,null,null,null,null,null,null,null,null,null,null,null,null,null,null,null,null,null,null,null,null,null,null,null,"",null,null,null,null,null,null,"",null,null,0,0,0,0,0]
[18,null,null,null,null,null,null,null,null,null,null,null,null,null,null,null,null,null,null,null,null,null,null,null,null,null,null,"",null,null,null,null,null,null,"",null,null,0,0,0,0,0]
[19,null,null,null,null,null,null,null,null,null,null,null,null,null,null,null,null,null,null,null,null,null,null,null,null,null,null,"",null,null,null,null,null,null,"",null,null,0,0,0,0,0]
[20,null,null,null,null,null,null,null,null,null,null,null,null,null,null,null,null,null,null,null,null,null,null,null,null,null,null,"",null,null,null,null,null,null,"",null,null,0,0,0,0,0]
[21,null,null,null,null,null,null,null,null,null,null,null,null,null,null,null,null,null,null,null,null,null,null,null,null,null,null,"",null,null,null,null,null,null,"",null,null,0,0,0,0,0]
[22,null,null,null,null,null,null,null,null,null,null,null,null,null,null,null,null,null,null,null,null,null,null,null,null,null,null,"",null,null,null,null,null,null,"",null,null,0,0,0,0,0]
[23,null,null,null,null,null,null,null,null,null,null,null,null,null,null,null,null,null,null,null,null,null,null,null,null,null,null,"",null,null,null,null,null,null,"",null,null,0,0,0,0,0]
[24,null,null,null,null,null,null,null,null,null,null,null,null,null,null,null,null,null,null,null,null,null,null,null,null,null,null,"",null,null,null,null,null,null,"",null,null,0,0,0,0,0]
[25,null,null,null,null,null,null,null,null,null,null,null,null,null,null,null,null,null,null,null,null,null,null,null,null,null,null,"",null,null,null,null,null,null,"",null,null,0,0,0,0,0]
[26,null,null,null,null,null,null,null,null,null,null,null,null,null,null,null,null,null,null,null,null,null,null,null,null,null,null,"",null,null,null,null,null,null,"",null,null,0,0,0,0,0]
[27,null,null,null,null,null,null,null,null,null,null,null,null,null,null,null,null,null,null,null,null,null,null,null,null,null,null,"",null,null,null,null,null,null,"",null,null,0,0,0,0,0]
[28,null,null,null,null,null,null,null,null,null,null,null,null,null,null,null,null,null,null,null,null,null,null,null,null,null,null,"",null,null,null,null,null,null,"",null,null,0,0,0,0,0]
[29,null,null,null,null,null,null,null,null,null,null,null,null,null,null,null,null,null,null,null,null,null,null,null,null,null,null,"",null,null,null,null,null,null,"",null,null,0,0,0,0,0]
[30,null,null,null,null,null,null,null,null,null,null,null,null,null,null,null,null,null,null,null,null,null,null,null,null,null,null,"",null,null,null,null,null,null,"",null,null,0,0,0,0,0]
[31,null,null,null,null,null,null,null,null,null,null,null,null,null,null,null,null,null,null,null,null,null,null,null,null,null,null,"",null,null,null,null,null,null,"",null,null,0,0,0,0,0]
[32,null,null,null,null,null,null,null,null,null,null,null,null,null,null,null,null,null,null,null,null,null,null,null,null,null,null,"",null,null,null,null,null,null,"",null,null,0,0,0,0,0]
[33,null,null,null,null,null,null,null,null,null,null,null,null,null,null,null,null,null,null,null,null,null,null,null,null,null,null,"",null,null,null,null,null,null,"",null,null,0,0,0,0,0]
[34,null,null,null,null,null,null,null,null,null,null,null,null,null,null,null,null,null,null,null,null,null,null,null,null,null,null,"",null,null,null,null,null,null,"",null,null,0,0,0,0,0]
[35,null,null,null,null,null,null,null,null,null,null,null,null,null,null,null,null,null,null,null,null,null,null,null,null,null,null,"",null,null,null,null,null,null,"",null,null,0,0,0,0,0]
[36,null,null,null,null,null,null,null,null,null,null,null,null,null,null,null,null,null,null,null,null,null,null,null,null,null,null,"",null,null,null,null,null,null,"",null,null,0,0,0,0,0]
[37,null,null,null,null,null,null,null,null,null,null,null,null,null,null,null,null,null,null,null,null,null,null,null,null,null,null,"",null,null,null,null,null,null,"",null,null,0,0,0,0,0]
[38,null,null,null,null,null,null,null,null,null,null,null,null,null,null,null,null,null,null,null,null,null,null,null,null,null,null,"",null,null,null,null,null,null,"",null,null,0,0,0,0,0]
[39,null,null,null,null,null,null,null,null,null,null,null,null,null,null,null,null,null,null,null,null,null,null,null,null,null,null,"",null,null,null,null,null,null,"",null,null,0,0,0,0,0]
[40,null,null,null,null,null,null,null,null,null,null,null,null,null,null,null,null,null,null,null,null,null,null,null,null,null,null,"",null,null,null,null,null,null,"",null,null,0,0,0,0,0]
[]
[]
[null,"LEYENDA"]
[{"$f":"IF(AI4=\"\",\"\",IF(AI4=3,\"3\",IF(AI4=4,\"4\",IF(AI4=5,\"5\",\"\"))))","v":"5"},{"$f":"IF(AI4=\"\",\"\",IF(AI4=3,\"Bueno\",IF(AI4=4,\"Excelente\",IF(AI4=5,\"Logro Destacado\",\"\"))))","v":"Logro Destacado"}]
[{"$f":"IF(AI4=\"\",\"\",IF(AI4=3,\"2\",IF(AI4=4,\"3\",IF(AI4=5,\"4\",\"\"))))","v":"4"},{"$f":"IF(AI4=\"\",\"\",IF(AI4=3,\"Regular\",IF(AI4=4,\"Satisfactorio\",IF(AI4=5,\"Logro Previsto\",\"\"))))","v":"Logro Previsto"}]
[{"$f":"IF(AI4=\"\",\"\",IF(AI4=3,\"1\",IF(AI4=4,\"2\",IF(AI4=5,\"3\",\"\"))))","v":"3"},{"$f":"IF(AI4=\"\",\"\",IF(AI4=3,\"Insuficiente\",IF(AI4=4,\"Regular\",IF(AI4=5,\"En Proceso\",\"\"))))","v":"En Proceso"}]
[{"$f":"IF(AI4=\"\",\"\",IF(AI4=3,\"\",IF(AI4=4,\"1\",IF(AI4=5,\"2\",\"\"))))","v":"2"},{"$f":"IF(AI4=\"\",\"\",IF(AI4=3,\"\",IF(AI4=4,\"Debe Mejorar\",IF(AI4=5,\"En Inicio\",\"\"))))","v":"En Inicio"}]
[{"$f":"IF(AI4=\"\",\"\",IF(AI4=3,\"\",IF(AI4=4,\"\",IF(AI4=5,\"1\",\"\"))))","v":"1"},{"$f":"IF(AI4=\"\",\"\",IF(AI4=3,\"\",IF(AI4=4,\"\",IF(AI4=5,\"No presentó\",\"\"))))","v":"No presentó"}]
[]
[]
[]
[]
[]
[]
[]
[]
[]
[]
[]
[]
[]
[]
[]
[]
[]
[null,"ESTADÍSTICA:"]
[null,"TOTAL",{"$f":"IF(COUNT(AB10:AB49)=0,\"\",COUNT(AB10:AB49))","v":""}]
[null,"PROMEDIO",{"$f":"IFERROR(ROUND(AVERAGE(AB10:AB49),2),\"\")","v":""}]
[null,"MEDIANA",{"$f":"IFERROR(MEDIAN(AB10:AB49),\"\")","v":""}]
[null,"MODA",{"$f":"IFERROR(_xlfn.MODE.SNGL(AB10:AB49),\"\")","v":""}]
[null,"NOTA MÁS ALTA",{"$f":"IF(MAX(AB10:AB49)=0,\"\",MAX(AB10:AB49))","v":""}]
[null,"NOTA MÁS BAJA",{"$f":"IF(MIN(AB10:AB49)=0,\"\",MIN(AB10:AB49))","v":""}]
[null,"APROBADOS",{"$f":"IF(COUNT(AB10:AB49)=0,\"\",COUNTIF(AB10:AB49,\">10\"))","v":""},null,null,null,null,{"$f":"IFERROR(ROUND(C82*100/C76,2)&\"%\",\"\")","v":""}]
[null,"DESAPROBADOS",{"$f":"IF(COUNT(AB10:AB49)=0,\"\",COUNTIF(AB10:AB49,\"<11\"))","v":""},null,null,null,null,{"$f":"IFERROR(ROUND(C83*100/C76,2)&\"%\",\"\")","v":""}]

{"sheet":"MATRIZ","index":9,"n_rows":86,"n_cols":26,"rows_kept":86,"cut":false,"hidden":false,"merged":[[44,14,46,14],[47,14,49,14],[65,14,67,14],[50,14,52,14],[53,14,55,14],[56,14,58,14],[59,14,61,14],[62,14,64,14],[17,14,19,14],[20,14,22,14],[23,14,25,14],[26,14,28,14],[29,14,31,14],[32,14,34,14],[35,14,37,14],[38,14,40,14],[41,14,43,14],[32,11,34,11],[5,11,7,11],[8,11,10,11],[11,11,13,11],[14,11,16,11],[17,11,19,11],[2,0,2,4],[65,11,67,11],[50,11,52,11],[53,11,55,11],[56,11,58,11],[59,11,61,11],[62,11,64,11],[35,11,37,11],[38,11,40,11],[41,11,43,11],[44,11,46,11],[47,11,49,11],[20,11,22,11],[23,11,25,11],[26,11,28,11],[29,11,31,11],[20,4,34,4],[35,4,46,4],[47,4,58,4],[59,0,67,0],[35,1,37,1],[38,1,40,1],[5,0,19,0],[20,0,34,0],[35,0,46,0],[20,1,22,1],[23,1,25,1],[26,1,28,1],[29,1,31,1],[32,1,34,1],[5,1,7,1],[8,1,10,1],[11,1,13,1],[14,1,16,1],[17,1,19,1],[5,4,19,4],[59,4,67,4],[41,1,43,1],[44,1,46,1],[47,1,49,1],[59,1,61,1],[62,1,64,1],[65,1,67,1],[47,0,58,0],[50,1,52,1],[53,1,55,1],[56,1,58,1],[8,18,10,18],[11,18,13,18],[14,18,16,18],[5,16,7,16],[5,17,7,17],[5,18,7,18],[8,16,10,16],[8,17,10,17],[3,0,3,1],[5,14,7,14],[8,14,10,14],[11,14,13,14],[14,14,16,14],[17,16,19,16],[17,17,19,17],[17,18,19,18],[20,16,22,16],[20,17,22,17],[20,18,22,18],[11,16,13,16],[11,17,13,17],[14,16,16,16],[14,17,16,17],[29,16,31,16],[29,17,31,17],[29,18,31,18],[32,16,34,16],[32,17,34,17],[32,18,34,18],[23,16,25,16],[23,17,25,17],[23,18,25,18],[26,16,28,16],[26,17,28,17],[26,18,28,18],[41,16,43,16],[41,17,43,17],[41,18,43,18],[44,16,46,16],[44,17,46,17],[44,18,46,18],[35,16,37,16],[35,17,37,17],[35,18,37,18],[38,16,40,16],[38,17,40,17],[38,18,40,18],[53,16,55,16],[53,17,55,17],[53,18,55,18],[56,16,58,16],[56,17,58,17],[56,18,58,18],[47,16,49,16],[47,17,49,17],[47,18,49,18],[50,16,52,16],[50,17,52,17],[50,18,52,18],[65,16,67,16],[65,17,67,17],[65,18,67,18],[59,16,61,16],[59,17,61,17],[59,18,61,18],[62,16,64,16],[62,17,64,17],[62,18,64,18]]}
[null,null,{"$f":"IF(INICIO!B12=\"\",\"\",\"I.E.: \"&INICIO!B12)","v":"I.E.: 86031 NUESTRA SEÑORA DE LA ASUNCIÓN"}]
[]
[{"$f":"\"MATRIZ DE CAPACIDADES, INDICADORES E ITEMS DEL AREA DE \"&INICIO!B13&\" - PRUEBA ESCRITA\"","v":"MATRIZ DE CAPACIDADES, INDICADORES E ITEMS DEL AREA DE MATEMÁTICA - PRUEBA ESCRITA"}]
[{"$f":"\"GRADO Y SECCIÓN: \"&INDICADORES!B2","v":"GRADO Y SECCIÓN: PRIMERO - A"},null,{"$f":"\"DOCENTE: \"&INICIO!B14","v":"DOCENTE: José Antonio Melgar Camayo"}]
["COMPETENCIA","CAPACIDAD","INDICADOR","IEC","TOTAL"]
["Actúa y piensa matemáticamente en situaciones de cantidad","Matematiza situaciones",null,{"$f":"IFERROR(VLOOKUP(C6,INDICADORES!$D$6:$H$114,5,FALSE),\"\")","v":""},{"$f":"IF(SUM(K6:K20)=0,\"\",SUM(K6:K20))","v":""},null,null,null,null,null,{"$f":"IFERROR((IF(LEN(C6)>0,\"1\",\"\")+1)/2,\"\")","v":""},{"$f":"IF(A6=A72,A73,IF(A6=B72,B73,IF(A6=C72,C73,IF(A6=D72,D73,IF(A6=E72,E73,\"\")))))","v":"COMPETENCIA1"},{"$f":"IF(O6=F72,F73,IF(O6=G72,G73,IF(O6=H72,H73,IF(O6=I72,I73,IF(O6=J72,J73,IF(O6=K72,K73,IF(O6=L72,L73,IF(O6=M72,M73,IF(O6=N72,N73,IF(O6=O72,O73,IF(O6=P72,P73,IF(O6=Q72,Q73,IF(O6=R72,R73,IF(O6=S72,S73,IF(O6=T72,T73,IF(O6=U72,U73,IF(O6=V72,V73,IF(O6=W72,W73,IF(O6=X72,X73,IF(O6=Y72,Y73,IF(O6=Z72,Z73,\"\")))))))))))))))))))))","v":"CAPACIDAD1"},null,{"$f":"B6&\" \"&S6","v":"Matematiza situaciones COMPE1"},{"$f":"IF(O6=F72,F73,\"\")","v":"CAPACIDAD1"},{"$f":"LEFT(L6,5)","v":"COMPE"},{"$f":"RIGHT(L6,1)","v":"1"},{"$f":"Q6&R6","v":"COMPE1"}]
[null,null,null,{"$f":"IFERROR(VLOOKUP(C7,INDICADORES!$D$6:$H$114,5,FALSE),\"\")","v":""},null,null,null,null,null,null,{"$f":"IFERROR((IF(LEN(C7)>0,\"1\",\"\")+1)/2,\"\")","v":""},null,{"$f":"IF(O6=F72,F73,IF(O6=G72,G73,IF(O6=H72,H73,IF(O6=I72,I73,IF(O6=J72,J73,IF(O6=K72,K73,IF(O6=L72,L73,IF(O6=M72,M73,IF(O6=N72,N73,IF(O6=O72,O73,IF(O6=P72,P73,IF(O6=Q72,Q73,IF(O6=R72,R73,IF(O6=S72,S73,IF(O6=T72,T73,IF(O6=U72,U73,IF(O6=V72,V73,IF(O6=W72,W73,IF(O6=X72,X73,IF(O6=Y72,Y73,IF(O6=Z72,Z73,\"\")))))))))))))))))))))","v":"CAPACIDAD1"}]
[null,null,null,{"$f":"IFERROR(VLOOKUP(C8,INDICADORES!$D$6:$H$114,5,FALSE),\"\")","v":""},null,null,null,null,null,null,"",null,{"$f":"IF(O6=F72,F73,IF(O6=G72,G73,IF(O6=H72,H73,IF(O6=I72,I73,IF(O6=J72,J73,IF(O6=K72,K73,IF(O6=L72,L73,IF(O6=M72,M73,IF(O6=N72,N73,IF(O6=O72,O73,IF(O6=P72,P73,IF(O6=Q72,Q73,IF(O6=R72,R73,IF(O6=S72,S73,IF(O6=T72,T73,IF(O6=U72,U73,IF(O6=V72,V73,IF(O6=W72,W73,IF(O6=X72,X73,IF(O6=Y72,Y73,IF(O6=Z72,Z73,\"\")))))))))))))))))))))","v":"CAPACIDAD1"}]
[null,"Comunica y representa ideas matemáticas",null,{"$f":"IFERROR(VLOOKUP(C9,INDICADORES!$D$6:$H$114,5,FALSE),\"\")","v":""},null,null,null,null,null,null,"",{"$f":"IF(A6=A72,A73,IF(A6=B72,B73,IF(A6=C72,C73,IF(A6=D72,D73,IF(A6=E72,E73,\"\")))))","v":"COMPETENCIA1"},{"$f":"IF(O9=F72,F73,IF(O9=G72,G73,IF(O9=H72,H73,IF(O9=I72,I73,IF(O9=J72,J73,IF(O9=K72,K73,IF(O9=L72,L73,IF(O9=M72,M73,IF(O9=N72,N73,IF(O9=O72,O73,IF(O9=P72,P73,IF(O9=Q72,Q73,IF(O9=R72,R73,IF(O9=S72,S73,IF(O9=T72,T73,IF(O9=U72,U73,IF(O9=V72,V73,IF(O9=W72,W73,IF(O9=X72,X73,IF(O9=Y72,Y73,IF(O9=Z72,Z73,\"\")))))))))))))))))))))","v":"CAPACIDAD2"},null,{"$f":"B9&\" \"&S9","v":"Comunica y representa ideas matemáticas COMPE1"},null,{"$f":"LEFT(L9,5)","v":"COMPE"},{"$f":"RIGHT(L9,1)","v":"1"},{"$f":"Q9&R9","v":"COMPE1"}]
[null,null,null,{"$f":"IFERROR(VLOOKUP(C10,INDICADORES!$D$6:$H$114,5,FALSE),\"\")","v":""},null,null,null,null,null,null,"",null,{"$f":"IF(O9=F72,F73,IF(O9=G72,G73,IF(O9=H72,H73,IF(O9=I72,I73,IF(O9=J72,J73,IF(O9=K72,K73,IF(O9=L72,L73,IF(O9=M72,M73,IF(O9=N72,N73,IF(O9=O72,O73,IF(O9=P72,P73,IF(O9=Q72,Q73,IF(O9=R72,R73,IF(O9=S72,S73,IF(O9=T72,T73,IF(O9=U72,U73,IF(O9=V72,V73,IF(O9=W72,W73,IF(O9=X72,X73,IF(O9=Y72,Y73,IF(O9=Z72,Z73,\"\")))))))))))))))))))))","v":"CAPACIDAD2"}]
[null,null,null,{"$f":"IFERROR(VLOOKUP(C11,INDICADORES!$D$6:$H$114,5,FALSE),\"\")","v":""},null,null,null,null,null,null,"",null,{"$f":"IF(O9=F72,F73,IF(O9=G72,G73,IF(O9=H72,H73,IF(O9=I72,I73,IF(O9=J72,J73,IF(O9=K72,K73,IF(O9=L72,L73,IF(O9=M72,M73,IF(O9=N72,N73,IF(O9=O72,O73,IF(O9=P72,P73,IF(O9=Q72,Q73,IF(O9=R72,R73,IF(O9=S72,S73,IF(O9=T72,T73,IF(O9=U72,U73,IF(O9=V72,V73,IF(O9=W72,W73,IF(O9=X72,X73,IF(O9=Y72,Y73,IF(O9=Z72,Z73,\"\")))))))))))))))))))))","v":"CAPACIDAD2"}]
[null,"Elabora y usa estrategias ",null,{"$f":"IFERROR(VLOOKUP(C12,INDICADORES!$D$6:$H$114,5,FALSE),\"\")","v":""},null,null,null,null,null,null,"",{"$f":"IF(A6=A72,A73,IF(A6=B72,B73,IF(A6=C72,C73,IF(A6=D72,D73,IF(A6=E72,E73,\"\")))))","v":"COMPETENCIA1"},{"$f":"IF(O12=F72,F73,IF(O12=G72,G73,IF(O12=H72,H73,IF(O12=I72,I73,IF(O12=J72,J73,IF(O12=K72,K73,IF(O12=L72,L73,IF(O12=M72,M73,IF(O12=N72,N73,IF(O12=O72,O73,IF(O12=P72,P73,IF(O12=Q72,Q73,IF(O12=R72,R73,IF(O12=S72,S73,IF(O12=T72,T73,IF(O12=U72,U73,IF(O12=V72,V73,IF(O12=W72,W73,IF(O12=X72,X73,IF(O12=Y72,Y73,IF(O12=Z72,Z73,\"\")))))))))))))))))))))","v":"CAPACIDAD3"},null,{"$f":"B12&\" \"&S12","v":"Elabora y usa estrategias  COMPE1"},null,{"$f":"LEFT(L12,5)","v":"COMPE"},{"$f":"RIGHT(L12,1)","v":"1"},{"$f":"Q12&R12","v":"COMPE1"}]
[null,null,null,{"$f":"IFERROR(VLOOKUP(C13,INDICADORES!$D$6:$H$114,5,FALSE),\"\")","v":""},null,null,null,null,null,null,"",null,{"$f":"IF(O12=F72,F73,IF(O12=G72,G73,IF(O12=H72,H73,IF(O12=I72,I73,IF(O12=J72,J73,IF(O12=K72,K73,IF(O12=L72,L73,IF(O12=M72,M73,IF(O12=N72,N73,IF(O12=O72,O73,IF(O12=P72,P73,IF(O12=Q72,Q73,IF(O12=R72,R73,IF(O12=S72,S73,IF(O12=T72,T73,IF(O12=U72,U73,IF(O12=V72,V73,IF(O12=W72,W73,IF(O12=X72,X73,IF(O12=Y72,Y73,IF(O12=Z72,Z73,\"\")))))))))))))))))))))","v":"CAPACIDAD3"}]
[null,null,null,{"$f":"IFERROR(VLOOKUP(C14,INDICADORES!$D$6:$H$114,5,FALSE),\"\")","v":""},null,null,null,null,null,null,"",null,{"$f":"IF(O12=F72,F73,IF(O12=G72,G73,IF(O12=H72,H73,IF(O12=I72,I73,IF(O12=J72,J73,IF(O12=K72,K73,IF(O12=L72,L73,IF(O12=M72,M73,IF(O12=N72,N73,IF(O12=O72,O73,IF(O12=P72,P73,IF(O12=Q72,Q73,IF(O12=R72,R73,IF(O12=S72,S73,IF(O12=T72,T73,IF(O12=U72,U73,IF(O12=V72,V73,IF(O12=W72,W73,IF(O12=X72,X73,IF(O12=Y72,Y73,IF(O12=Z72,Z73,\"\")))))))))))))))))))))","v":"CAPACIDAD3"}]
[null,"Razona  y argumenta generando ideas matemáticas ",null,{"$f":"IFERROR(VLOOKUP(C15,INDICADORES!$D$6:$H$114,5,FALSE),\"\")","v":""},null,null,null,null,null,null,"",{"$f":"IF(A6=A72,A73,IF(A6=B72,B73,IF(A6=C72,C73,IF(A6=D72,D73,IF(A6=E72,E73,\"\")))))","v":"COMPETENCIA1"},{"$f":"IF(O15=F72,F73,IF(O15=G72,G73,IF(O15=H72,H73,IF(O15=I72,I73,IF(O15=J72,J73,IF(O15=K72,K73,IF(O15=L72,L73,IF(O15=M72,M73,IF(O15=N72,N73,IF(O15=O72,O73,IF(O15=P72,P73,IF(O15=Q72,Q73,IF(O15=R72,R73,IF(O15=S72,S73,IF(O15=T72,T73,IF(O15=U72,U73,IF(O15=V72,V73,IF(O15=W72,W73,IF(O15=X72,X73,IF(O15=Y72,Y73,IF(O15=Z72,Z73,\"\")))))))))))))))))))))","v":"CAPACIDAD4"},null,{"$f":"B15&\" \"&S15","v":"Razona  y argumenta generando ideas matemáticas  COMPE1"},null,{"$f":"LEFT(L15,5)","v":"COMPE"},{"$f":"RIGHT(L15,1)","v":"1"},{"$f":"Q15&R15","v":"COMPE1"}]
[null,null,null,{"$f":"IFERROR(VLOOKUP(C16,INDICADORES!$D$6:$H$114,5,FALSE),\"\")","v":""},null,null,null,null,null,null,"",null,{"$f":"IF(O15=F72,F73,IF(O15=G72,G73,IF(O15=H72,H73,IF(O15=I72,I73,IF(O15=J72,J73,IF(O15=K72,K73,IF(O15=L72,L73,IF(O15=M72,M73,IF(O15=N72,N73,IF(O15=O72,O73,IF(O15=P72,P73,IF(O15=Q72,Q73,IF(O15=R72,R73,IF(O15=S72,S73,IF(O15=T72,T73,IF(O15=U72,U73,IF(O15=V72,V73,IF(O15=W72,W73,IF(O15=X72,X73,IF(O15=Y72,Y73,IF(O15=Z72,Z73,\"\")))))))))))))))))))))","v":"CAPACIDAD4"}]
[null,null,null,{"$f":"IFERROR(VLOOKUP(C17,INDICADORES!$D$6:$H$114,5,FALSE),\"\")","v":""},null,null,null,null,null,null,"",null,{"$f":"IF(O15=F72,F73,IF(O15=G72,G73,IF(O15=H72,H73,IF(O15=I72,I73,IF(O15=J72,J73,IF(O15=K72,K73,IF(O15=L72,L73,IF(O15=M72,M73,IF(O15=N72,N73,IF(O15=O72,O73,IF(O15=P72,P73,IF(O15=Q72,Q73,IF(O15=R72,R73,IF(O15=S72,S73,IF(O15=T72,T73,IF(O15=U72,U73,IF(O15=V72,V73,IF(O15=W72,W73,IF(O15=X72,X73,IF(O15=Y72,Y73,IF(O15=Z72,Z73,\"\")))))))))))))))))))))","v":"CAPACIDAD4"}]
[null,null,null,{"$f":"IFERROR(VLOOKUP(C18,INDICADORES!$D$6:$H$114,5,FALSE),\"\")","v":""},null,null,null,null,null,null,"",{"$f":"IF(A6=A72,A73,IF(A6=B72,B73,IF(A6=C72,C73,IF(A6=D72,D73,IF(A6=E72,E73,\"\")))))","v":"COMPETENCIA1"},{"$f":"IF(O18=F72,F73,IF(O18=G72,G73,IF(O18=H72,H73,IF(O18=I72,I73,IF(O18=J72,J73,IF(O18=K72,K73,IF(O18=L72,L73,IF(O18=M72,M73,IF(O18=N72,N73,IF(O18=O72,O73,IF(O18=P72,P73,IF(O18=Q72,Q73,IF(O18=R72,R73,IF(O18=S72,S73,IF(O18=T72,T73,IF(O18=U72,U73,IF(O18=V72,V73,IF(O18=W72,W73,IF(O18=X72,X73,IF(O18=Y72,Y73,IF(O18=Z72,Z73,\"\")))))))))))))))))))))","v":""},null,{"$f":"B18&\" \"&S18","v":" COMPE1"},null,{"$f":"LEFT(L18,5)","v":"COMPE"},{"$f":"RIGHT(L18,1)","v":"1"},{"$f":"Q18&R18","v":"COMPE1"}]
[null,null,null,{"$f":"IFERROR(VLOOKUP(C19,INDICADORES!$D$6:$H$114,5,FALSE),\"\")","v":""},null,null,null,null,null,null,"",null,{"$f":"IF(O18=F72,F73,IF(O18=G72,G73,IF(O18=H72,H73,IF(O18=I72,I73,IF(O18=J72,J73,IF(O18=K72,K73,IF(O18=L72,L73,IF(O18=M72,M73,IF(O18=N72,N73,IF(O18=O72,O73,IF(O18=P72,P73,IF(O18=Q72,Q73,IF(O18=R72,R73,IF(O18=S72,S73,IF(O18=T72,T73,IF(O18=U72,U73,IF(O18=V72,V73,IF(O18=W72,W73,IF(O18=X72,X73,IF(O18=Y72,Y73,IF(O18=Z72,Z73,\"\")))))))))))))))))))))","v":""}]
[null,null,null,{"$f":"IFERROR(VLOOKUP(C20,INDICADORES!$D$6:$H$114,5,FALSE),\"\")","v":""},null,null,null,null,null,null,"",null,{"$f":"IF(O18=F72,F73,IF(O18=G72,G73,IF(O18=H72,H73,IF(O18=I72,I73,IF(O18=J72,J73,IF(O18=K72,K73,IF(O18=L72,L73,IF(O18=M72,M73,IF(O18=N72,N73,IF(O18=O72,O73,IF(O18=P72,P73,IF(O18=Q72,Q73,IF(O18=R72,R73,IF(O18=S72,S73,IF(O18=T72,T73,IF(O18=U72,U73,IF(O18=V72,V73,IF(O18=W72,W73,IF(O18=X72,X73,IF(O18=Y72,Y73,IF(O18=Z72,Z73,\"\")))))))))))))))))))))","v":""}]
["Actúa y piensa matemáticamente en situaciones de regularidad, equivalencia y cambio","Matematiza situaciones",null,{"$f":"IFERROR(VLOOKUP(C21,INDICADORES!$D$6:$H$114,5,FALSE),\"\")","v":""},{"$f":"IF(SUM(K21:K35)=0,\"\",SUM(K21:K35))","v":""},null,null,null,null,null,{"$f":"IFERROR((IF(LEN(C21)>0,\"1\",\"\")+1)/2,\"\")","v":""},{"$f":"IF(A21=A72,A73,IF(A21=B72,B73,IF(A21=C72,C73,IF(A21=D72,D73,IF(A21=E72,E73,\"\")))))","v":"COMPETENCIA2"},{"$f":"IF(O21=F72,F73,IF(O21=G72,G73,IF(O21=H72,H73,IF(O21=I72,I73,IF(O21=J72,J73,IF(O21=K72,K73,IF(O21=L72,L73,IF(O21=M72,M73,IF(O21=N72,N73,IF(O21=O72,O73,IF(O21=P72,P73,IF(O21=Q72,Q73,IF(O21=R72,R73,IF(O21=S72,S73,IF(O21=T72,T73,IF(O21=U72,U73,IF(O21=V72,V73,IF(O21=W72,W73,IF(O21=X72,X73,IF(O21=Y72,Y73,IF(O21=Z72,Z73,\"\")))))))))))))))))))))","v":"CAPACIDAD6"},null,{"$f":"B21&\" \"&S21","v":"Matematiza situaciones COMPE2"},null,"COMPE",{"$f":"RIGHT(L21,1)","v":"2"},{"$f":"Q21&R21","v":"COMPE2"}]
[null,null,null,{"$f":"IFERROR(VLOOKUP(C22,INDICADORES!$D$6:$H$114,5,FALSE),\"\")","v":""},null,null,null,null,null,null,"",null,{"$f":"IF(O21=F72,F73,IF(O21=G72,G73,IF(O21=H72,H73,IF(O21=I72,I73,IF(O21=J72,J73,IF(O21=K72,K73,IF(O21=L72,L73,IF(O21=M72,M73,IF(O21=N72,N73,IF(O21=O72,O73,IF(O21=P72,P73,IF(O21=Q72,Q73,IF(O21=R72,R73,IF(O21=S72,S73,IF(O21=T72,T73,IF(O21=U72,U73,IF(O21=V72,V73,IF(O21=W72,W73,IF(O21=X72,X73,IF(O21=Y72,Y73,IF(O21=Z72,Z73,\"\")))))))))))))))))))))","v":"CAPACIDAD6"}]
[null,null,null,{"$f":"IFERROR(VLOOKUP(C23,INDICADORES!$D$6:$H$114,5,FALSE),\"\")","v":""},null,null,null,null,null,null,"",null,{"$f":"IF(O21=F72,F73,IF(O21=G72,G73,IF(O21=H72,H73,IF(O21=I72,I73,IF(O21=J72,J73,IF(O21=K72,K73,IF(O21=L72,L73,IF(O21=M72,M73,IF(O21=N72,N73,IF(O21=O72,O73,IF(O21=P72,P73,IF(O21=Q72,Q73,IF(O21=R72,R73,IF(O21=S72,S73,IF(O21=T72,T73,IF(O21=U72,U73,IF(O21=V72,V73,IF(O21=W72,W73,IF(O21=X72,X73,IF(O21=Y72,Y73,IF(O21=Z72,Z73,\"\")))))))))))))))))))))","v":"CAPACIDAD6"}]
[null,"Comunica y representa ideas matemáticas",null,{"$f":"IFERROR(VLOOKUP(C24,INDICADORES!$D$6:$H$114,5,FALSE),\"\")","v":""},null,null,null,null,null,null,"",{"$f":"IF(A21=A72,A73,IF(A21=B72,B73,IF(A21=C72,C73,IF(A21=D72,D73,IF(A21=E72,E73,\"\")))))","v":"COMPETENCIA2"},{"$f":"IF(O24=F72,F73,IF(O24=G72,G73,IF(O24=H72,H73,IF(O24=I72,I73,IF(O24=J72,J73,IF(O24=K72,K73,IF(O24=L72,L73,IF(O24=M72,M73,IF(O24=N72,N73,IF(O24=O72,O73,IF(O24=P72,P73,IF(O24=Q72,Q73,IF(O24=R72,R73,IF(O24=S72,S73,IF(O24=T72,T73,IF(O24=U72,U73,IF(O24=V72,V73,IF(O24=W72,W73,IF(O24=X72,X73,IF(O24=Y72,Y73,IF(O24=Z72,Z73,\"\")))))))))))))))))))))","v":"CAPACIDAD7"},null,{"$f":"B24&\" \"&S24","v":"Comunica y representa ideas matemáticas COMPE2"},null,"COMPE",{"$f":"RIGHT(L24,1)","v":"2"},{"$f":"Q24&R24","v":"COMPE2"}]
[null,null,null,{"$f":"IFERROR(VLOOKUP(C25,INDICADORES!$D$6:$H$114,5,FALSE),\"\")","v":""},null,null,null,null,null,null,"",null,{"$f":"IF(O24=F72,F73,IF(O24=G72,G73,IF(O24=H72,H73,IF(O24=I72,I73,IF(O24=J72,J73,IF(O24=K72,K73,IF(O24=L72,L73,IF(O24=M72,M73,IF(O24=N72,N73,IF(O24=O72,O73,IF(O24=P72,P73,IF(O24=Q72,Q73,IF(O24=R72,R73,IF(O24=S72,S73,IF(O24=T72,T73,IF(O24=U72,U73,IF(O24=V72,V73,IF(O24=W72,W73,IF(O24=X72,X73,IF(O24=Y72,Y73,IF(O24=Z72,Z73,\"\")))))))))))))))))))))","v":"CAPACIDAD7"}]
[null,null,null,{"$f":"IFERROR(VLOOKUP(C26,INDICADORES!$D$6:$H$114,5,FALSE),\"\")","v":""},null,null,null,null,null,null,"",null,{"$f":"IF(O24=F72,F73,IF(O24=G72,G73,IF(O24=H72,H73,IF(O24=I72,I73,IF(O24=J72,J73,IF(O24=K72,K73,IF(O24=L72,L73,IF(O24=M72,M73,IF(O24=N72,N73,IF(O24=O72,O73,IF(O24=P72,P73,IF(O24=Q72,Q73,IF(O24=R72,R73,IF(O24=S72,S73,IF(O24=T72,T73,IF(O24=U72,U73,IF(O24=V72,V73,IF(O24=W72,W73,IF(O24=X72,X73,IF(O24=Y72,Y73,IF(O24=Z72,Z73,\"\")))))))))))))))))))))","v":"CAPACIDAD7"}]
[null,"Elabora y usa estrategias ",null,{"$f":"IFERROR(VLOOKUP(C27,INDICADORES!$D$6:$H$114,5,FALSE),\"\")","v":""},null,null,null,null,null,null,"",{"$f":"IF(A21=A72,A73,IF(A21=B72,B73,IF(A21=C72,C73,IF(A21=D72,D73,IF(A21=E72,E73,\"\")))))","v":"COMPETENCIA2"},{"$f":"IF(O27=F72,F73,IF(O27=G72,G73,IF(O27=H72,H73,IF(O27=I72,I73,IF(O27=J72,J73,IF(O27=K72,K73,IF(O27=L72,L73,IF(O27=M72,M73,IF(O27=N72,N73,IF(O27=O72,O73,IF(O27=P72,P73,IF(O27=Q72,Q73,IF(O27=R72,R73,IF(O27=S72,S73,IF(O27=T72,T73,IF(O27=U72,U73,IF(O27=V72,V73,IF(O27=W72,W73,IF(O27=X72,X73,IF(O27=Y72,Y73,IF(O27=Z72,Z73,\"\")))))))))))))))))))))","v":"CAPACIDAD8"},null,{"$f":"B27&\" \"&S27","v":"Elabora y usa estrategias  COMPE2"},null,"COMPE",{"$f":"RIGHT(L27,1)","v":"2"},{"$f":"Q27&R27","v":"COMPE2"}]
[null,null,null,{"$f":"IFERROR(VLOOKUP(C28,INDICADORES!$D$6:$H$114,5,FALSE),\"\")","v":""},null,null,null,null,null,null,"",null,{"$f":"IF(O27=F72,F73,IF(O27=G72,G73,IF(O27=H72,H73,IF(O27=I72,I73,IF(O27=J72,J73,IF(O27=K72,K73,IF(O27=L72,L73,IF(O27=M72,M73,IF(O27=N72,N73,IF(O27=O72,O73,IF(O27=P72,P73,IF(O27=Q72,Q73,IF(O27=R72,R73,IF(O27=S72,S73,IF(O27=T72,T73,IF(O27=U72,U73,IF(O27=V72,V73,IF(O27=W72,W73,IF(O27=X72,X73,IF(O27=Y72,Y73,IF(O27=Z72,Z73,\"\")))))))))))))))))))))","v":"CAPACIDAD8"}]
[null,null,null,{"$f":"IFERROR(VLOOKUP(C29,INDICADORES!$D$6:$H$114,5,FALSE),\"\")","v":""},null,null,null,null,null,null,"",null,{"$f":"IF(O27=F72,F73,IF(O27=G72,G73,IF(O27=H72,H73,IF(O27=I72,I73,IF(O27=J72,J73,IF(O27=K72,K73,IF(O27=L72,L73,IF(O27=M72,M73,IF(O27=N72,N73,IF(O27=O72,O73,IF(O27=P72,P73,IF(O27=Q72,Q73,IF(O27=R72,R73,IF(O27=S72,S73,IF(O27=T72,T73,IF(O27=U72,U73,IF(O27=V72,V73,IF(O27=W72,W73,IF(O27=X72,X73,IF(O27=Y72,Y73,IF(O27=Z72,Z73,\"\")))))))))))))))))))))","v":"CAPACIDAD8"}]
[null,"Razona  y argumenta generando ideas matemáticas ",null,{"$f":"IFERROR(VLOOKUP(C30,INDICADORES!$D$6:$H$114,5,FALSE),\"\")","v":""},null,null,null,null,null,null,"",{"$f":"IF(A21=A72,A73,IF(A21=B72,B73,IF(A21=C72,C73,IF(A21=D72,D73,IF(A21=E72,E73,\"\")))))","v":"COMPETENCIA2"},{"$f":"IF(O30=F72,F73,IF(O30=G72,G73,IF(O30=H72,H73,IF(O30=I72,I73,IF(O30=J72,J73,IF(O30=K72,K73,IF(O30=L72,L73,IF(O30=M72,M73,IF(O30=N72,N73,IF(O30=O72,O73,IF(O30=P72,P73,IF(O30=Q72,Q73,IF(O30=R72,R73,IF(O30=S72,S73,IF(O30=T72,T73,IF(O30=U72,U73,IF(O30=V72,V73,IF(O30=W72,W73,IF(O30=X72,X73,IF(O30=Y72,Y73,IF(O30=Z72,Z73,\"\")))))))))))))))))))))","v":"CAPACIDAD9"},null,{"$f":"B30&\" \"&S30","v":"Razona  y argumenta generando ideas matemáticas  COMPE2"},null,"COMPE",{"$f":"RIGHT(L30,1)","v":"2"},{"$f":"Q30&R30","v":"COMPE2"}]
[null,null,null,{"$f":"IFERROR(VLOOKUP(C31,INDICADORES!$D$6:$H$114,5,FALSE),\"\")","v":""},null,null,null,null,null,null,"",null,{"$f":"IF(O30=F72,F73,IF(O30=G72,G73,IF(O30=H72,H73,IF(O30=I72,I73,IF(O30=J72,J73,IF(O30=K72,K73,IF(O30=L72,L73,IF(O30=M72,M73,IF(O30=N72,N73,IF(O30=O72,O73,IF(O30=P72,P73,IF(O30=Q72,Q73,IF(O30=R72,R73,IF(O30=S72,S73,IF(O30=T72,T73,IF(O30=U72,U73,IF(O30=V72,V73,IF(O30=W72,W73,IF(O30=X72,X73,IF(O30=Y72,Y73,IF(O30=Z72,Z73,\"\")))))))))))))))))))))","v":"CAPACIDAD9"}]
[null,null,null,{"$f":"IFERROR(VLOOKUP(C32,INDICADORES!$D$6:$H$114,5,FALSE),\"\")","v":""},null,null,null,null,null,null,"",null,{"$f":"IF(O30=F72,F73,IF(O30=G72,G73,IF(O30=H72,H73,IF(O30=I72,I73,IF(O30=J72,J73,IF(O30=K72,K73,IF(O30=L72,L73,IF(O30=M72,M73,IF(O30=N72,N73,IF(O30=O72,O73,IF(O30=P72,P73,IF(O30=Q72,Q73,IF(O30=R72,R73,IF(O30=S72,S73,IF(O30=T72,T73,IF(O30=U72,U73,IF(O30=V72,V73,IF(O30=W72,W73,IF(O30=X72,X73,IF(O30=Y72,Y73,IF(O30=Z72,Z73,\"\")))))))))))))))))))))","v":"CAPACIDAD9"}]
[null,null,null,{"$f":"IFERROR(VLOOKUP(C33,INDICADORES!$D$6:$H$114,5,FALSE),\"\")","v":""},null,null,null,null,null,null,"",{"$f":"IF(A21=A72,A73,IF(A21=B72,B73,IF(A21=C72,C73,IF(A21=D72,D73,IF(A21=E72,E73,\"\")))))","v":"COMPETENCIA2"},{"$f":"IF(O33=F72,F73,IF(O33=G72,G73,IF(O33=H72,H73,IF(O33=I72,I73,IF(O33=J72,J73,IF(O33=K72,K73,IF(O33=L72,L73,IF(O33=M72,M73,IF(O33=N72,N73,IF(O33=O72,O73,IF(O33=P72,P73,IF(O33=Q72,Q73,IF(O33=R72,R73,IF(O33=S72,S73,IF(O33=T72,T73,IF(O33=U72,U73,IF(O33=V72,V73,IF(O33=W72,W73,IF(O33=X72,X73,IF(O33=Y72,Y73,IF(O33=Z72,Z73,\"\")))))))))))))))))))))","v":""},null,{"$f":"B33&\" \"&S33","v":" COMPE2"},null,"COMPE",{"$f":"RIGHT(L33,1)","v":"2"},{"$f":"Q33&R33","v":"COMPE2"}]
[null,null,null,{"$f":"IFERROR(VLOOKUP(C34,INDICADORES!$D$6:$H$114,5,FALSE),\"\")","v":""},null,null,null,null,null,null,{"$f":"IFERROR((IF(LEN(C34)>0,\"1\",\"\")+1)/2,\"\")","v":""},null,{"$f":"IF(O33=F72,F73,IF(O33=G72,G73,IF(O33=H72,H73,IF(O33=I72,I73,IF(O33=J72,J73,IF(O33=K72,K73,IF(O33=L72,L73,IF(O33=M72,M73,IF(O33=N72,N73,IF(O33=O72,O73,IF(O33=P72,P73,IF(O33=Q72,Q73,IF(O33=R72,R73,IF(O33=S72,S73,IF(O33=T72,T73,IF(O33=U72,U73,IF(O33=V72,V73,IF(O33=W72,W73,IF(O33=X72,X73,IF(O33=Y72,Y73,IF(O33=Z72,Z73,\"\")))))))))))))))))))))","v":""}]
[null,null,null,{"$f":"IFERROR(VLOOKUP(C35,INDICADORES!$D$6:$H$114,5,FALSE),\"\")","v":""},null,null,null,null,null,null,"",null,{"$f":"IF(O33=F72,F73,IF(O33=G72,G73,IF(O33=H72,H73,IF(O33=I72,I73,IF(O33=J72,J73,IF(O33=K72,K73,IF(O33=L72,L73,IF(O33=M72,M73,IF(O33=N72,N73,IF(O33=O72,O73,IF(O33=P72,P73,IF(O33=Q72,Q73,IF(O33=R72,R73,IF(O33=S72,S73,IF(O33=T72,T73,IF(O33=U72,U73,IF(O33=V72,V73,IF(O33=W72,W73,IF(O33=X72,X73,IF(O33=Y72,Y73,IF(O33=Z72,Z73,\"\")))))))))))))))))))))","v":""}]
["Actúa y piensa matemáticamente en situaciones de forma, movimiento y localización","Matematiza situaciones",null,{"$f":"IFERROR(VLOOKUP(C36,INDICADORES!$D$6:$H$114,5,FALSE),\"\")","v":""},{"$f":"IF(SUM(K36:K47)=0,\"\",SUM(K36:K47))","v":""},null,null,null,null,null,"",{"$f":"IF(A36=A72,A73,IF(A36=B72,B73,IF(A36=C72,C73,IF(A36=D72,D73,IF(A36=E72,E73,\"\")))))","v":"COMPETENCIA3"},{"$f":"IF(O36=F72,F73,IF(O36=G72,G73,IF(O36=H72,H73,IF(O36=I72,I73,IF(O36=J72,J73,IF(O36=K72,K73,IF(O36=L72,L73,IF(O36=M72,M73,IF(O36=N72,N73,IF(O36=O72,O73,IF(O36=P72,P73,IF(O36=Q72,Q73,IF(O36=R72,R73,IF(O36=S72,S73,IF(O36=T72,T73,IF(O36=U72,U73,IF(O36=V72,V73,IF(O36=W72,W73,IF(O36=X72,X73,IF(O36=Y72,Y73,IF(O36=Z72,Z73,\"\")))))))))))))))))))))","v":"CAPACIDAD11"},null,{"$f":"B36&\" \"&S36","v":"Matematiza situaciones COMPE3"},null,"COMPE",{"$f":"RIGHT(L36,1)","v":"3"},{"$f":"Q36&R36","v":"COMPE3"}]
[null,null,null,{"$f":"IFERROR(VLOOKUP(C37,INDICADORES!$D$6:$H$114,5,FALSE),\"\")","v":""},null,null,null,null,null,null,"",null,{"$f":"IF(O36=F72,F73,IF(O36=G72,G73,IF(O36=H72,H73,IF(O36=I72,I73,IF(O36=J72,J73,IF(O36=K72,K73,IF(O36=L72,L73,IF(O36=M72,M73,IF(O36=N72,N73,IF(O36=O72,O73,IF(O36=P72,P73,IF(O36=Q72,Q73,IF(O36=R72,R73,IF(O36=S72,S73,IF(O36=T72,T73,IF(O36=U72,U73,IF(O36=V72,V73,IF(O36=W72,W73,IF(O36=X72,X73,IF(O36=Y72,Y73,IF(O36=Z72,Z73,\"\")))))))))))))))))))))","v":"CAPACIDAD11"}]
[null,null,null,{"$f":"IFERROR(VLOOKUP(C38,INDICADORES!$D$6:$H$114,5,FALSE),\"\")","v":""},null,null,null,null,null,null,"",null,{"$f":"IF(O36=F72,F73,IF(O36=G72,G73,IF(O36=H72,H73,IF(O36=I72,I73,IF(O36=J72,J73,IF(O36=K72,K73,IF(O36=L72,L73,IF(O36=M72,M73,IF(O36=N72,N73,IF(O36=O72,O73,IF(O36=P72,P73,IF(O36=Q72,Q73,IF(O36=R72,R73,IF(O36=S72,S73,IF(O36=T72,T73,IF(O36=U72,U73,IF(O36=V72,V73,IF(O36=W72,W73,IF(O36=X72,X73,IF(O36=Y72,Y73,IF(O36=Z72,Z73,\"\")))))))))))))))))))))","v":"CAPACIDAD11"}]
[null,"Comunica y representa ideas matemáticas",null,{"$f":"IFERROR(VLOOKUP(C39,INDICADORES!$D$6:$H$114,5,FALSE),\"\")","v":""},null,null,null,null,null,null,"",{"$f":"IF(A36=A72,A73,IF(A36=B72,B73,IF(A36=C72,C73,IF(A36=D72,D73,IF(A36=E72,E73,\"\")))))","v":"COMPETENCIA3"},{"$f":"IF(O39=F72,F73,IF(O39=G72,G73,IF(O39=H72,H73,IF(O39=I72,I73,IF(O39=J72,J73,IF(O39=K72,K73,IF(O39=L72,L73,IF(O39=M72,M73,IF(O39=N72,N73,IF(O39=O72,O73,IF(O39=P72,P73,IF(O39=Q72,Q73,IF(O39=R72,R73,IF(O39=S72,S73,IF(O39=T72,T73,IF(O39=U72,U73,IF(O39=V72,V73,IF(O39=W72,W73,IF(O39=X72,X73,IF(O39=Y72,Y73,IF(O39=Z72,Z73,\"\")))))))))))))))))))))","v":"CAPACIDAD12"},null,{"$f":"B39&\" \"&S39","v":"Comunica y representa ideas matemáticas COMPE3"},null,"COMPE",{"$f":"RIGHT(L39,1)","v":"3"},{"$f":"Q39&R39","v":"COMPE3"}]
[null,null,null,{"$f":"IFERROR(VLOOKUP(C40,INDICADORES!$D$6:$H$114,5,FALSE),\"\")","v":""},null,null,null,null,null,null,"",null,{"$f":"IF(O39=F72,F73,IF(O39=G72,G73,IF(O39=H72,H73,IF(O39=I72,I73,IF(O39=J72,J73,IF(O39=K72,K73,IF(O39=L72,L73,IF(O39=M72,M73,IF(O39=N72,N73,IF(O39=O72,O73,IF(O39=P72,P73,IF(O39=Q72,Q73,IF(O39=R72,R73,IF(O39=S72,S73,IF(O39=T72,T73,IF(O39=U72,U73,IF(O39=V72,V73,IF(O39=W72,W73,IF(O39=X72,X73,IF(O39=Y72,Y73,IF(O39=Z72,Z73,\"\")))))))))))))))))))))","v":"CAPACIDAD12"}]
[null,null,null,{"$f":"IFERROR(VLOOKUP(C41,INDICADORES!$D$6:$H$114,5,FALSE),\"\")","v":""},null,null,null,null,null,null,"",null,{"$f":"IF(O39=F72,F73,IF(O39=G72,G73,IF(O39=H72,H73,IF(O39=I72,I73,IF(O39=J72,J73,IF(O39=K72,K73,IF(O39=L72,L73,IF(O39=M72,M73,IF(O39=N72,N73,IF(O39=O72,O73,IF(O39=P72,P73,IF(O39=Q72,Q73,IF(O39=R72,R73,IF(O39=S72,S73,IF(O39=T72,T73,IF(O39=U72,U73,IF(O39=V72,V73,IF(O39=W72,W73,IF(O39=X72,X73,IF(O39=Y72,Y73,IF(O39=Z72,Z73,\"\")))))))))))))))))))))","v":"CAPACIDAD12"}]
[null,"Elabora y usa estrategias ",null,{"$f":"IFERROR(VLOOKUP(C42,INDICADORES!$D$6:$H$114,5,FALSE),\"\")","v":""},null,null,null,null,null,null,"",{"$f":"IF(A36=A72,A73,IF(A36=B72,B73,IF(A36=C72,C73,IF(A36=D72,D73,IF(A36=E72,E73,\"\")))))","v":"COMPETENCIA3"},{"$f":"IF(O42=F72,F73,IF(O42=G72,G73,IF(O42=H72,H73,IF(O42=I72,I73,IF(O42=J72,J73,IF(O42=K72,K73,IF(O42=L72,L73,IF(O42=M72,M73,IF(O42=N72,N73,IF(O42=O72,O73,IF(O42=P72,P73,IF(O42=Q72,Q73,IF(O42=R72,R73,IF(O42=S72,S73,IF(O42=T72,T73,IF(O42=U72,U73,IF(O42=V72,V73,IF(O42=W72,W73,IF(O42=X72,X73,IF(O42=Y72,Y73,IF(O42=Z72,Z73,\"\")))))))))))))))))))))","v":"CAPACIDAD13"},null,{"$f":"B42&\" \"&S42","v":"Elabora y usa estrategias  COMPE3"},null,"COMPE",{"$f":"RIGHT(L42,1)","v":"3"},{"$f":"Q42&R42","v":"COMPE3"}]
[null,null,null,{"$f":"IFERROR(VLOOKUP(C43,INDICADORES!$D$6:$H$114,5,FALSE),\"\")","v":""},null,null,null,null,null,null,"",null,{"$f":"IF(O42=F72,F73,IF(O42=G72,G73,IF(O42=H72,H73,IF(O42=I72,I73,IF(O42=J72,J73,IF(O42=K72,K73,IF(O42=L72,L73,IF(O42=M72,M73,IF(O42=N72,N73,IF(O42=O72,O73,IF(O42=P72,P73,IF(O42=Q72,Q73,IF(O42=R72,R73,IF(O42=S72,S73,IF(O42=T72,T73,IF(O42=U72,U73,IF(O42=V72,V73,IF(O42=W72,W73,IF(O42=X72,X73,IF(O42=Y72,Y73,IF(O42=Z72,Z73,\"\")))))))))))))))))))))","v":"CAPACIDAD13"}]
[null,null,null,{"$f":"IFERROR(VLOOKUP(C44,INDICADORES!$D$6:$H$114,5,FALSE),\"\")","v":""},null,null,null,null,null,null,"",null,{"$f":"IF(O42=F72,F73,IF(O42=G72,G73,IF(O42=H72,H73,IF(O42=I72,I73,IF(O42=J72,J73,IF(O42=K72,K73,IF(O42=L72,L73,IF(O42=M72,M73,IF(O42=N72,N73,IF(O42=O72,O73,IF(O42=P72,P73,IF(O42=Q72,Q73,IF(O42=R72,R73,IF(O42=S72,S73,IF(O42=T72,T73,IF(O42=U72,U73,IF(O42=V72,V73,IF(O42=W72,W73,IF(O42=X72,X73,IF(O42=Y72,Y73,IF(O42=Z72,Z73,\"\")))))))))))))))))))))","v":"CAPACIDAD13"}]
[null,"Razona  y argumenta generando ideas matemáticas ",null,{"$f":"IFERROR(VLOOKUP(C45,INDICADORES!$D$6:$H$114,5,FALSE),\"\")","v":""},null,null,null,null,null,null,"",{"$f":"IF(A36=A72,A73,IF(A36=B72,B73,IF(A36=C72,C73,IF(A36=D72,D73,IF(A36=E72,E73,\"\")))))","v":"COMPETENCIA3"},{"$f":"IF(O45=F72,F73,IF(O45=G72,G73,IF(O45=H72,H73,IF(O45=I72,I73,IF(O45=J72,J73,IF(O45=K72,K73,IF(O45=L72,L73,IF(O45=M72,M73,IF(O45=N72,N73,IF(O45=O72,O73,IF(O45=P72,P73,IF(O45=Q72,Q73,IF(O45=R72,R73,IF(O45=S72,S73,IF(O45=T72,T73,IF(O45=U72,U73,IF(O45=V72,V73,IF(O45=W72,W73,IF(O45=X72,X73,IF(O45=Y72,Y73,IF(O45=Z72,Z73,\"\")))))))))))))))))))))","v":"CAPACIDAD14"},null,{"$f":"B45&\" \"&S45","v":"Razona  y argumenta generando ideas matemáticas  COMPE3"},null,"COMPE",{"$f":"RIGHT(L45,1)","v":"3"},{"$f":"Q45&R45","v":"COMPE3"}]
[null,null,null,{"$f":"IFERROR(VLOOKUP(C46,INDICADORES!$D$6:$H$114,5,FALSE),\"\")","v":""},null,null,null,null,null,null,"",null,{"$f":"IF(O45=F72,F73,IF(O45=G72,G73,IF(O45=H72,H73,IF(O45=I72,I73,IF(O45=J72,J73,IF(O45=K72,K73,IF(O45=L72,L73,IF(O45=M72,M73,IF(O45=N72,N73,IF(O45=O72,O73,IF(O45=P72,P73,IF(O45=Q72,Q73,IF(O45=R72,R73,IF(O45=S72,S73,IF(O45=T72,T73,IF(O45=U72,U73,IF(O45=V72,V73,IF(O45=W72,W73,IF(O45=X72,X73,IF(O45=Y72,Y73,IF(O45=Z72,Z73,\"\")))))))))))))))))))))","v":"CAPACIDAD14"}]
[null,null,null,{"$f":"IFERROR(VLOOKUP(C47,INDICADORES!$D$6:$H$114,5,FALSE),\"\")","v":""},null,null,null,null,null,null,"",null,{"$f":"IF(O45=F72,F73,IF(O45=G72,G73,IF(O45=H72,H73,IF(O45=I72,I73,IF(O45=J72,J73,IF(O45=K72,K73,IF(O45=L72,L73,IF(O45=M72,M73,IF(O45=N72,N73,IF(O45=O72,O73,IF(O45=P72,P73,IF(O45=Q72,Q73,IF(O45=R72,R73,IF(O45=S72,S73,IF(O45=T72,T73,IF(O45=U72,U73,IF(O45=V72,V73,IF(O45=W72,W73,IF(O45=X72,X73,IF(O45=Y72,Y73,IF(O45=Z72,Z73,\"\")))))))))))))))))))))","v":"CAPACIDAD14"}]
["Actúa y piensa matemáticamente en situaciones de gestión de datos e incertidumbre","Matematiza situaciones",null,{"$f":"IFERROR(VLOOKUP(C48,INDICADORES!$D$6:$H$114,5,FALSE),\"\")","v":""},{"$f":"IF(SUM(K48:K59)=0,\"\",SUM(K48:K59))","v":""},null,null,null,null,null,"",{"$f":"IF(A48=A72,A73,IF(A48=B72,B73,IF(A48=C72,C73,IF(A48=D72,D73,IF(A48=E72,E73,\"\")))))","v":"COMPETENCIA4"},{"$f":"IF(O48=F72,F73,IF(O48=G72,G73,IF(O48=H72,H73,IF(O48=I72,I73,IF(O48=J72,J73,IF(O48=K72,K73,IF(O48=L72,L73,IF(O48=M72,M73,IF(O48=N72,N73,IF(O48=O72,O73,IF(O48=P72,P73,IF(O48=Q72,Q73,IF(O48=R72,R73,IF(O48=S72,S73,IF(O48=T72,T73,IF(O48=U72,U73,IF(O48=V72,V73,IF(O48=W72,W73,IF(O48=X72,X73,IF(O48=Y72,Y73,IF(O48=Z72,Z73,\"\")))))))))))))))))))))","v":"CAPACIDAD15"},null,{"$f":"B48&\" \"&S48","v":"Matematiza situaciones COMPE4"},null,"COMPE",{"$f":"RIGHT(L48,1)","v":"4"},{"$f":"Q48&R48","v":"COMPE4"}]
[null,null,null,{"$f":"IFERROR(VLOOKUP(C49,INDICADORES!$D$6:$H$114,5,FALSE),\"\")","v":""},null,null,null,null,null,null,{"$f":"IFERROR((IF(LEN(C49)>0,\"1\",\"\")+1)/2,\"\")","v":""},null,{"$f":"IF(O48=F72,F73,IF(O48=G72,G73,IF(O48=H72,H73,IF(O48=I72,I73,IF(O48=J72,J73,IF(O48=K72,K73,IF(O48=L72,L73,IF(O48=M72,M73,IF(O48=N72,N73,IF(O48=O72,O73,IF(O48=P72,P73,IF(O48=Q72,Q73,IF(O48=R72,R73,IF(O48=S72,S73,IF(O48=T72,T73,IF(O48=U72,U73,IF(O48=V72,V73,IF(O48=W72,W73,IF(O48=X72,X73,IF(O48=Y72,Y73,IF(O48=Z72,Z73,\"\")))))))))))))))))))))","v":"CAPACIDAD15"}]
[null,null,null,{"$f":"IFERROR(VLOOKUP(C50,INDICADORES!$D$6:$H$114,5,FALSE),\"\")","v":""},null,null,null,null,null,null,"",null,{"$f":"IF(O48=F72,F73,IF(O48=G72,G73,IF(O48=H72,H73,IF(O48=I72,I73,IF(O48=J72,J73,IF(O48=K72,K73,IF(O48=L72,L73,IF(O48=M72,M73,IF(O48=N72,N73,IF(O48=O72,O73,IF(O48=P72,P73,IF(O48=Q72,Q73,IF(O48=R72,R73,IF(O48=S72,S73,IF(O48=T72,T73,IF(O48=U72,U73,IF(O48=V72,V73,IF(O48=W72,W73,IF(O48=X72,X73,IF(O48=Y72,Y73,IF(O48=Z72,Z73,\"\")))))))))))))))))))))","v":"CAPACIDAD15"}]
[null,"Comunica y representa ideas matemáticas",null,{"$f":"IFERROR(VLOOKUP(C51,INDICADORES!$D$6:$H$114,5,FALSE),\"\")","v":""},null,null,null,null,null,null,{"$f":"IFERROR((IF(LEN(C51)>0,\"1\",\"\")+1)/2,\"\")","v":""},{"$f":"IF(A48=A72,A73,IF(A48=B72,B73,IF(A48=C72,C73,IF(A48=D72,D73,IF(A48=E72,E73,\"\")))))","v":"COMPETENCIA4"},{"$f":"IF(O51=F72,F73,IF(O51=G72,G73,IF(O51=H72,H73,IF(O51=I72,I73,IF(O51=J72,J73,IF(O51=K72,K73,IF(O51=L72,L73,IF(O51=M72,M73,IF(O51=N72,N73,IF(O51=O72,O73,IF(O51=P72,P73,IF(O51=Q72,Q73,IF(O51=R72,R73,IF(O51=S72,S73,IF(O51=T72,T73,IF(O51=U72,U73,IF(O51=V72,V73,IF(O51=W72,W73,IF(O51=X72,X73,IF(O51=Y72,Y73,IF(O51=Z72,Z73,\"\")))))))))))))))))))))","v":"CAPACIDAD16"},null,{"$f":"B51&\" \"&S51","v":"Comunica y representa ideas matemáticas COMPE4"},null,"COMPE",{"$f":"RIGHT(L51,1)","v":"4"},{"$f":"Q51&R51","v":"COMPE4"}]
[null,null,null,{"$f":"IFERROR(VLOOKUP(C52,INDICADORES!$D$6:$H$114,5,FALSE),\"\")","v":""},null,null,null,null,null,null,"",null,{"$f":"IF(O51=F72,F73,IF(O51=G72,G73,IF(O51=H72,H73,IF(O51=I72,I73,IF(O51=J72,J73,IF(O51=K72,K73,IF(O51=L72,L73,IF(O51=M72,M73,IF(O51=N72,N73,IF(O51=O72,O73,IF(O51=P72,P73,IF(O51=Q72,Q73,IF(O51=R72,R73,IF(O51=S72,S73,IF(O51=T72,T73,IF(O51=U72,U73,IF(O51=V72,V73,IF(O51=W72,W73,IF(O51=X72,X73,IF(O51=Y72,Y73,IF(O51=Z72,Z73,\"\")))))))))))))))))))))","v":"CAPACIDAD16"}]
[null,null,null,{"$f":"IFERROR(VLOOKUP(C53,INDICADORES!$D$6:$H$114,5,FALSE),\"\")","v":""},null,null,null,null,null,null,"",null,{"$f":"IF(O51=F72,F73,IF(O51=G72,G73,IF(O51=H72,H73,IF(O51=I72,I73,IF(O51=J72,J73,IF(O51=K72,K73,IF(O51=L72,L73,IF(O51=M72,M73,IF(O51=N72,N73,IF(O51=O72,O73,IF(O51=P72,P73,IF(O51=Q72,Q73,IF(O51=R72,R73,IF(O51=S72,S73,IF(O51=T72,T73,IF(O51=U72,U73,IF(O51=V72,V73,IF(O51=W72,W73,IF(O51=X72,X73,IF(O51=Y72,Y73,IF(O51=Z72,Z73,\"\")))))))))))))))))))))","v":"CAPACIDAD16"}]
[null,"Elabora y usa estrategias ",null,{"$f":"IFERROR(VLOOKUP(C54,INDICADORES!$D$6:$H$114,5,FALSE),\"\")","v":""},null,null,null,null,null,null,"",{"$f":"IF(A48=A72,A73,IF(A48=B72,B73,IF(A48=C72,C73,IF(A48=D72,D73,IF(A48=E72,E73,\"\")))))","v":"COMPETENCIA4"},{"$f":"IF(O54=F72,F73,IF(O54=G72,G73,IF(O54=H72,H73,IF(O54=I72,I73,IF(O54=J72,J73,IF(O54=K72,K73,IF(O54=L72,L73,IF(O54=M72,M73,IF(O54=N72,N73,IF(O54=O72,O73,IF(O54=P72,P73,IF(O54=Q72,Q73,IF(O54=R72,R73,IF(O54=S72,S73,IF(O54=T72,T73,IF(O54=U72,U73,IF(O54=V72,V73,IF(O54=W72,W73,IF(O54=X72,X73,IF(O54=Y72,Y73,IF(O54=Z72,Z73,\"\")))))))))))))))))))))","v":"CAPACIDAD17"},null,{"$f":"B54&\" \"&S54","v":"Elabora y usa estrategias  COMPE4"},null,"COMPE",{"$f":"RIGHT(L54,1)","v":"4"},{"$f":"Q54&R54","v":"COMPE4"}]
[null,null,null,{"$f":"IFERROR(VLOOKUP(C55,INDICADORES!$D$6:$H$114,5,FALSE),\"\")","v":""},null,null,null,null,null,null,"",null,{"$f":"IF(O54=F72,F73,IF(O54=G72,G73,IF(O54=H72,H73,IF(O54=I72,I73,IF(O54=J72,J73,IF(O54=K72,K73,IF(O54=L72,L73,IF(O54=M72,M73,IF(O54=N72,N73,IF(O54=O72,O73,IF(O54=P72,P73,IF(O54=Q72,Q73,IF(O54=R72,R73,IF(O54=S72,S73,IF(O54=T72,T73,IF(O54=U72,U73,IF(O54=V72,V73,IF(O54=W72,W73,IF(O54=X72,X73,IF(O54=Y72,Y73,IF(O54=Z72,Z73,\"\")))))))))))))))))))))","v":"CAPACIDAD17"}]
[null,null,null,{"$f":"IFERROR(VLOOKUP(C56,INDICADORES!$D$6:$H$114,5,FALSE),\"\")","v":""},null,null,null,null,null,null,"",null,{"$f":"IF(O54=F72,F73,IF(O54=G72,G73,IF(O54=H72,H73,IF(O54=I72,I73,IF(O54=J72,J73,IF(O54=K72,K73,IF(O54=L72,L73,IF(O54=M72,M73,IF(O54=N72,N73,IF(O54=O72,O73,IF(O54=P72,P73,IF(O54=Q72,Q73,IF(O54=R72,R73,IF(O54=S72,S73,IF(O54=T72,T73,IF(O54=U72,U73,IF(O54=V72,V73,IF(O54=W72,W73,IF(O54=X72,X73,IF(O54=Y72,Y73,IF(O54=Z72,Z73,\"\")))))))))))))))))))))","v":"CAPACIDAD17"}]
[null,"Razona  y argumenta generando ideas matemáticas ",null,{"$f":"IFERROR(VLOOKUP(C57,INDICADORES!$D$6:$H$114,5,FALSE),\"\")","v":""},null,null,null,null,null,null,"",{"$f":"IF(A48=A72,A73,IF(A48=B72,B73,IF(A48=C72,C73,IF(A48=D72,D73,IF(A48=E72,E73,\"\")))))","v":"COMPETENCIA4"},{"$f":"IF(O57=F72,F73,IF(O57=G72,G73,IF(O57=H72,H73,IF(O57=I72,I73,IF(O57=J72,J73,IF(O57=K72,K73,IF(O57=L72,L73,IF(O57=M72,M73,IF(O57=N72,N73,IF(O57=O72,O73,IF(O57=P72,P73,IF(O57=Q72,Q73,IF(O57=R72,R73,IF(O57=S72,S73,IF(O57=T72,T73,IF(O57=U72,U73,IF(O57=V72,V73,IF(O57=W72,W73,IF(O57=X72,X73,IF(O57=Y72,Y73,IF(O57=Z72,Z73,\"\")))))))))))))))))))))","v":"CAPACIDAD18"},null,{"$f":"B57&\" \"&S57","v":"Razona  y argumenta generando ideas matemáticas  COMPE4"},null,"COMPE",{"$f":"RIGHT(L57,1)","v":"4"},{"$f":"Q57&R57","v":"COMPE4"}]
[null,null,null,{"$f":"IFERROR(VLOOKUP(C58,INDICADORES!$D$6:$H$114,5,FALSE),\"\")","v":""},null,null,null,null,null,null,"",null,{"$f":"IF(O57=F72,F73,IF(O57=G72,G73,IF(O57=H72,H73,IF(O57=I72,I73,IF(O57=J72,J73,IF(O57=K72,K73,IF(O57=L72,L73,IF(O57=M72,M73,IF(O57=N72,N73,IF(O57=O72,O73,IF(O57=P72,P73,IF(O57=Q72,Q73,IF(O57=R72,R73,IF(O57=S72,S73,IF(O57=T72,T73,IF(O57=U72,U73,IF(O57=V72,V73,IF(O57=W72,W73,IF(O57=X72,X73,IF(O57=Y72,Y73,IF(O57=Z72,Z73,\"\")))))))))))))))))))))","v":"CAPACIDAD18"}]
[null,null,null,{"$f":"IFERROR(VLOOKUP(C59,INDICADORES!$D$6:$H$114,5,FALSE),\"\")","v":""},null,null,null,null,null,null,"",null,{"$f":"IF(O57=F72,F73,IF(O57=G72,G73,IF(O57=H72,H73,IF(O57=I72,I73,IF(O57=J72,J73,IF(O57=K72,K73,IF(O57=L72,L73,IF(O57=M72,M73,IF(O57=N72,N73,IF(O57=O72,O73,IF(O57=P72,P73,IF(O57=Q72,Q73,IF(O57=R72,R73,IF(O57=S72,S73,IF(O57=T72,T73,IF(O57=U72,U73,IF(O57=V72,V73,IF(O57=W72,W73,IF(O57=X72,X73,IF(O57=Y72,Y73,IF(O57=Z72,Z73,\"\")))))))))))))))))))))","v":"CAPACIDAD18"}]
[null,null,null,{"$f":"IFERROR(VLOOKUP(C60,INDICADORES!$D$6:$H$114,5,FALSE),\"\")","v":""},{"$f":"IF(SUM(K60:K68)=0,\"\",SUM(K60:K68))","v":""},null,null,null,null,null,"",{"$f":"IF(A60=A72,A73,IF(A60=B72,B73,IF(A60=C72,C73,IF(A60=D72,D73,IF(A60=E72,E73,\"\")))))","v":"COMPETENCIA5"},{"$f":"IF(O60=F72,F73,IF(O60=G72,G73,IF(O60=H72,H73,IF(O60=I72,I73,IF(O60=J72,J73,IF(O60=K72,K73,IF(O60=L72,L73,IF(O60=M72,M73,IF(O60=N72,N73,IF(O60=O72,O73,IF(O60=P72,P73,IF(O60=Q72,Q73,IF(O60=R72,R73,IF(O60=S72,S73,IF(O60=T72,T73,IF(O60=U72,U73,IF(O60=V72,V73,IF(O60=W72,W73,IF(O60=X72,X73,IF(O60=Y72,Y73,IF(O60=Z72,Z73,\"\")))))))))))))))))))))","v":""},null,{"$f":"B60&\" \"&S60","v":" COMPE5"},null,"COMPE",{"$f":"RIGHT(L60,1)","v":"5"},{"$f":"Q60&R60","v":"COMPE5"}]
[null,null,null,{"$f":"IFERROR(VLOOKUP(C61,INDICADORES!$D$6:$H$114,5,FALSE),\"\")","v":""},null,null,null,null,null,null,"",null,{"$f":"IF(O60=F72,F73,IF(O60=G72,G73,IF(O60=H72,H73,IF(O60=I72,I73,IF(O60=J72,J73,IF(O60=K72,K73,IF(O60=L72,L73,IF(O60=M72,M73,IF(O60=N72,N73,IF(O60=O72,O73,IF(O60=P72,P73,IF(O60=Q72,Q73,IF(O60=R72,R73,IF(O60=S72,S73,IF(O60=T72,T73,IF(O60=U72,U73,IF(O60=V72,V73,IF(O60=W72,W73,IF(O60=X72,X73,IF(O60=Y72,Y73,IF(O60=Z72,Z73,\"\")))))))))))))))))))))","v":""}]
[null,null,null,{"$f":"IFERROR(VLOOKUP(C62,INDICADORES!$D$6:$H$114,5,FALSE),\"\")","v":""},null,null,null,null,null,null,"",null,{"$f":"IF(O60=F72,F73,IF(O60=G72,G73,IF(O60=H72,H73,IF(O60=I72,I73,IF(O60=J72,J73,IF(O60=K72,K73,IF(O60=L72,L73,IF(O60=M72,M73,IF(O60=N72,N73,IF(O60=O72,O73,IF(O60=P72,P73,IF(O60=Q72,Q73,IF(O60=R72,R73,IF(O60=S72,S73,IF(O60=T72,T73,IF(O60=U72,U73,IF(O60=V72,V73,IF(O60=W72,W73,IF(O60=X72,X73,IF(O60=Y72,Y73,IF(O60=Z72,Z73,\"\")))))))))))))))))))))","v":""}]
[null,null,null,{"$f":"IFERROR(VLOOKUP(C63,INDICADORES!$D$6:$H$114,5,FALSE),\"\")","v":""},null,null,null,null,null,null,"",{"$f":"IF(A60=A72,A73,IF(A60=B72,B73,IF(A60=C72,C73,IF(A60=D72,D73,IF(A60=E72,E73,\"\")))))","v":"COMPETENCIA5"},{"$f":"IF(O63=F72,F73,IF(O63=G72,G73,IF(O63=H72,H73,IF(O63=I72,I73,IF(O63=J72,J73,IF(O63=K72,K73,IF(O63=L72,L73,IF(O63=M72,M73,IF(O63=N72,N73,IF(O63=O72,O73,IF(O63=P72,P73,IF(O63=Q72,Q73,IF(O63=R72,R73,IF(O63=S72,S73,IF(O63=T72,T73,IF(O63=U72,U73,IF(O63=V72,V73,IF(O63=W72,W73,IF(O63=X72,X73,IF(O63=Y72,Y73,IF(O63=Z72,Z73,\"\")))))))))))))))))))))","v":""},null,{"$f":"B63&\" \"&S63","v":" COMPE5"},null,"COMPE",{"$f":"RIGHT(L63,1)","v":"5"},{"$f":"Q63&R63","v":"COMPE5"}]
[null,null,null,{"$f":"IFERROR(VLOOKUP(C64,INDICADORES!$D$6:$H$114,5,FALSE),\"\")","v":""},null,null,null,null,null,null,{"$f":"IFERROR((IF(LEN(C64)>0,\"1\",\"\")+1)/2,\"\")","v":""},null,{"$f":"IF(O63=F72,F73,IF(O63=G72,G73,IF(O63=H72,H73,IF(O63=I72,I73,IF(O63=J72,J73,IF(O63=K72,K73,IF(O63=L72,L73,IF(O63=M72,M73,IF(O63=N72,N73,IF(O63=O72,O73,IF(O63=P72,P73,IF(O63=Q72,Q73,IF(O63=R72,R73,IF(O63=S72,S73,IF(O63=T72,T73,IF(O63=U72,U73,IF(O63=V72,V73,IF(O63=W72,W73,IF(O63=X72,X73,IF(O63=Y72,Y73,IF(O63=Z72,Z73,\"\")))))))))))))))))))))","v":""}]
[null,null,null,{"$f":"IFERROR(VLOOKUP(C65,INDICADORES!$D$6:$H$114,5,FALSE),\"\")","v":""},null,null,null,null,null,null,"",null,{"$f":"IF(O63=F72,F73,IF(O63=G72,G73,IF(O63=H72,H73,IF(O63=I72,I73,IF(O63=J72,J73,IF(O63=K72,K73,IF(O63=L72,L73,IF(O63=M72,M73,IF(O63=N72,N73,IF(O63=O72,O73,IF(O63=P72,P73,IF(O63=Q72,Q73,IF(O63=R72,R73,IF(O63=S72,S73,IF(O63=T72,T73,IF(O63=U72,U73,IF(O63=V72,V73,IF(O63=W72,W73,IF(O63=X72,X73,IF(O63=Y72,Y73,IF(O63=Z72,Z73,\"\")))))))))))))))))))))","v":""}]
[null,null,null,{"$f":"IFERROR(VLOOKUP(C66,INDICADORES!$D$6:$H$114,5,FALSE),\"\")","v":""},null,null,null,null,null,null,"",{"$f":"IF(A60=A72,A73,IF(A60=B72,B73,IF(A60=C72,C73,IF(A60=D72,D73,IF(A60=E72,E73,\"\")))))","v":"COMPETENCIA5"},{"$f":"IF(O66=F72,F73,IF(O66=G72,G73,IF(O66=H72,H73,IF(O66=I72,I73,IF(O66=J72,J73,IF(O66=K72,K73,IF(O66=L72,L73,IF(O66=M72,M73,IF(O66=N72,N73,IF(O66=O72,O73,IF(O66=P72,P73,IF(O66=Q72,Q73,IF(O66=R72,R73,IF(O66=S72,S73,IF(O66=T72,T73,IF(O66=U72,U73,IF(O66=V72,V73,IF(O66=W72,W73,IF(O66=X72,X73,IF(O66=Y72,Y73,IF(O66=Z72,Z73,\"\")))))))))))))))))))))","v":""},null,{"$f":"B66&\" \"&S66","v":" COMPE5"},null,"COMPE",{"$f":"RIGHT(L66,1)","v":"5"},{"$f":"Q66&R66","v":"COMPE5"}]
[null,null,null,{"$f":"IFERROR(VLOOKUP(C67,INDICADORES!$D$6:$H$114,5,FALSE),\"\")","v":""},null,null,null,null,null,null,"",null,{"$f":"IF(O66=F72,F73,IF(O66=G72,G73,IF(O66=H72,H73,IF(O66=I72,I73,IF(O66=J72,J73,IF(O66=K72,K73,IF(O66=L72,L73,IF(O66=M72,M73,IF(O66=N72,N73,IF(O66=O72,O73,IF(O66=P72,P73,IF(O66=Q72,Q73,IF(O66=R72,R73,IF(O66=S72,S73,IF(O66=T72,T73,IF(O66=U72,U73,IF(O66=V72,V73,IF(O66=W72,W73,IF(O66=X72,X73,IF(O66=Y72,Y73,IF(O66=Z72,Z73,\"\")))))))))))))))))))))","v":""}]
[null,null,null,{"$f":"IFERROR(VLOOKUP(C68,INDICADORES!$D$6:$H$114,5,FALSE),\"\")","v":""},null,null,null,null,null,null,"",null,{"$f":"IF(O66=F72,F73,IF(O66=G72,G73,IF(O66=H72,H73,IF(O66=I72,I73,IF(O66=J72,J73,IF(O66=K72,K73,IF(O66=L72,L73,IF(O66=M72,M73,IF(O66=N72,N73,IF(O66=O72,O73,IF(O66=P72,P73,IF(O66=Q72,Q73,IF(O66=R72,R73,IF(O66=S72,S73,IF(O66=T72,T73,IF(O66=U72,U73,IF(O66=V72,V73,IF(O66=W72,W73,IF(O66=X72,X73,IF(O66=Y72,Y73,IF(O66=Z72,Z73,\"\")))))))))))))))))))))","v":""}]
[]
[]
[]
[{"$f":"INICIO!A17","v":"Actúa y piensa matemáticamente en situaciones de cantidad"},{"$f":"INICIO!A22","v":"Actúa y piensa matemáticamente en situaciones de regularidad, equivalencia y cambio"},{"$f":"INICIO!A27","v":"Actúa y piensa matemáticamente en situaciones de forma, movimiento y localización"},{"$f":"INICIO!A31","v":"Actúa y piensa matemáticamente en situaciones de gestión de datos e incertidumbre"},{"$f":"INICIO!A35","v":""},{"$f":"IF(A74=\"\",\"CAP1\",A74&\" COMPE1\")","v":"Matematiza situaciones COMPE1"},{"$f":"IF(A75=\"\",\"CAP2\",A75&\" COMPE1\")","v":"Comunica y representa ideas matemáticas COMPE1"},{"$f":"IF(A76=\"\",\"CAP3\",A76&\" COMPE1\")","v":"Elabora y usa estrategias  COMPE1"},{"$f":"IF(A77=\"\",\"CAP4\",A77&\" COMPE1\")","v":"Razona  y argumenta generando ideas matemáticas  COMPE1"},{"$f":"IF(A78=\"\",\"CAP5\",A78&\" COMPE1\")","v":"CAP5"},{"$f":"IF(B74=\"\",\"CAP6\",B74&\" COMPE2\")","v":"Matematiza situaciones COMPE2"},{"$f":"IF(B75=\"\",\"CAP7\",B75&\" COMPE2\")","v":"Comunica y representa ideas matemáticas COMPE2"},{"$f":"IF(B76=\"\",\"CAP8\",B76&\" COMPE2\")","v":"Elabora y usa estrategias  COMPE2"},{"$f":"IF(B77=\"\",\"CAP9\",B77&\" COMPE2\")","v":"Razona  y argumenta generando ideas matemáticas  COMPE2"},{"$f":"IF(B78=\"\",\"CAP10\",B78&\" COMPE2\")","v":"CAP10"},{"$f":"IF(C74=\"\",\"CAP11\",C74&\" COMPE3\")","v":"Matematiza situaciones COMPE3"},{"$f":"IF(C75=\"\",\"CAP12\",C75&\" COMPE3\")","v":"Comunica y representa ideas matemáticas COMPE3"},{"$f":"IF(C76=\"\",\"CAP13\",C76&\" COMPE3\")","v":"Elabora y usa estrategias  COMPE3"},{"$f":"IF(C77=\"\",\"CAP14\",C77&\" COMPE3\")","v":"Razona  y argumenta generando ideas matemáticas  COMPE3"},{"$f":"IF(D74=\"\",\"CAP15\",D74&\" COMPE4\")","v":"Matematiza situaciones COMPE4"},{"$f":"IF(D75=\"\",\"CAP16\",D75&\" COMPE4\")","v":"Comunica y representa ideas matemáticas COMPE4"},{"$f":"IF(D76=\"\",\"CAP17\",D76&\" COMPE4\")","v":"Elabora y usa estrategias  COMPE4"},{"$f":"IF(D77=\"\",\"CAP18\",D77&\" COMPE4\")","v":"Razona  y argumenta generando ideas matemáticas  COMPE4"},{"$f":"IF(E74=\"\",\"CAP19\",E74&\" COMPE5\")","v":"CAP19"},{"$f":"IF(E75=\"\",\"CAP20\",E75&\" COMPE5\")","v":"CAP20"},{"$f":"IF(E76=\"\",\"CAP21\",E76&\" COMPE5\")","v":"CAP21"}]
["COMPETENCIA1","COMPETENCIA2","COMPETENCIA3","COMPETENCIA4","COMPETENCIA5","CAPACIDAD1","CAPACIDAD2","CAPACIDAD3","CAPACIDAD4","CAPACIDAD5","CAPACIDAD6","CAPACIDAD7","CAPACIDAD8","CAPACIDAD9","CAPACIDAD10","CAPACIDAD11","CAPACIDAD12","CAPACIDAD13","CAPACIDAD14","CAPACIDAD15","CAPACIDAD16","CAPACIDAD17","CAPACIDAD18","CAPACIDAD19","CAPACIDAD20","CAPACIDAD21"]
[{"$f":"INICIO!B17","v":"Matematiza situaciones"},{"$f":"INICIO!B22","v":"Matematiza situaciones"},{"$f":"INICIO!B27","v":"Matematiza situaciones"},{"$f":"INICIO!B31","v":"Matematiza situaciones"},{"$f":"INICIO!B35","v":""},{"$f":"IF(INDICADORES!D6=\"\",\"\",INDICADORES!D6)","v":""},{"$f":"IF(INDICADORES!D11=\"\",\"\",INDICADORES!D11)","v":""},{"$f":"IF(INDICADORES!D16=\"\",\"\",INDICADORES!D16)","v":""},{"$f":"IF(INDICADORES!D21=\"\",\"\",INDICADORES!D21)","v":""},{"$f":"IF(INDICADORES!D26=\"\",\"\",INDICADORES!D26)","v":""},{"$f":"IF(INDICADORES!D31=\"\",\"\",INDICADORES!D31)","v":""},{"$f":"IF(INDICADORES!D36=\"\",\"\",INDICADORES!D36)","v":""},{"$f":"IF(INDICADORES!D41=\"\",\"\",INDICADORES!D41)","v":""},{"$f":"IF(INDICADORES!D46=\"\",\"\",INDICADORES!D46)","v":""},{"$f":"IF(INDICADORES!D51=\"\",\"\",INDICADORES!D51)","v":""},{"$f":"IF(INDICADORES!D56=\"\",\"\",INDICADORES!D56)","v":""},{"$f":"IF(INDICADORES!D61=\"\",\"\",INDICADORES!D61)","v":""},{"$f":"IF(INDICADORES!D66=\"\",\"\",INDICADORES!D66)","v":""},{"$f":"IF(INDICADORES!D72=\"\",\"\",INDICADORES!D72)","v":""},{"$f":"IF(INDICADORES!D77=\"\",\"\",INDICADORES!D77)","v":""},{"$f":"IF(INDICADORES!D82=\"\",\"\",INDICADORES!D82)","v":""},{"$f":"IF(INDICADORES!D88=\"\",\"\",INDICADORES!D88)","v":""},{"$f":"IF(INDICADORES!D95=\"\",\"\",INDICADORES!D95)","v":""},{"$f":"IF(INDICADORES!D100=\"\",\"\",INDICADORES!D100)","v":""},{"$f":"IF(INDICADORES!D105=\"\",\"\",INDICADORES!D105)","v":""},{"$f":"IF(INDICADORES!D110=\"\",\"\",INDICADORES!D110)","v":""}]
[{"$f":"INICIO!B18","v":"Comunica y representa ideas matemáticas"},{"$f":"INICIO!B23","v":"Comunica y representa ideas matemáticas"},{"$f":"INICIO!B28","v":"Comunica y representa ideas matemáticas"},{"$f":"INICIO!B32","v":"Comunica y representa ideas matemáticas"},{"$f":"INICIO!B36","v":""},{"$f":"IF(INDICADORES!D7=\"\",\"\",INDICADORES!D7)","v":""},{"$f":"IF(INDICADORES!D12=\"\",\"\",INDICADORES!D12)","v":""},{"$f":"IF(INDICADORES!D17=\"\",\"\",INDICADORES!D17)","v":""},{"$f":"IF(INDICADORES!D22=\"\",\"\",INDICADORES!D22)","v":""},{"$f":"IF(INDICADORES!D27=\"\",\"\",INDICADORES!D27)","v":""},{"$f":"IF(INDICADORES!D32=\"\",\"\",INDICADORES!D32)","v":""},{"$f":"IF(INDICADORES!D37=\"\",\"\",INDICADORES!D37)","v":""},{"$f":"IF(INDICADORES!D42=\"\",\"\",INDICADORES!D42)","v":""},{"$f":"IF(INDICADORES!D47=\"\",\"\",INDICADORES!D47)","v":""},{"$f":"IF(INDICADORES!D52=\"\",\"\",INDICADORES!D52)","v":""},{"$f":"IF(INDICADORES!D57=\"\",\"\",INDICADORES!D57)","v":""},{"$f":"IF(INDICADORES!D62=\"\",\"\",INDICADORES!D62)","v":""},{"$f":"IF(INDICADORES!D67=\"\",\"\",INDICADORES!D67)","v":""},{"$f":"IF(INDICADORES!D73=\"\",\"\",INDICADORES!D73)","v":""},{"$f":"IF(INDICADORES!D78=\"\",\"\",INDICADORES!D78)","v":""},{"$f":"IF(INDICADORES!D83=\"\",\"\",INDICADORES!D83)","v":""},{"$f":"IF(INDICADORES!D89=\"\",\"\",INDICADORES!D89)","v":""},{"$f":"IF(INDICADORES!D96=\"\",\"\",INDICADORES!D96)","v":""},{"$f":"IF(INDICADORES!D101=\"\",\"\",INDICADORES!D101)","v":""},{"$f":"IF(INDICADORES!D106=\"\",\"\",INDICADORES!D106)","v":""},{"$f":"IF(INDICADORES!D111=\"\",\"\",INDICADORES!D111)","v":""}]
[{"$f":"INICIO!B19","v":"Elabora y usa estrategias "},{"$f":"INICIO!B24","v":"Elabora y usa estrategias "},{"$f":"INICIO!B29","v":"Elabora y usa estrategias "},{"$f":"INICIO!B33","v":"Elabora y usa estrategias "},{"$f":"INICIO!B37","v":""},{"$f":"IF(INDICADORES!D8=\"\",\"\",INDICADORES!D8)","v":""},{"$f":"IF(INDICADORES!D13=\"\",\"\",INDICADORES!D13)","v":""},{"$f":"IF(INDICADORES!D18=\"\",\"\",INDICADORES!D18)","v":""},{"$f":"IF(INDICADORES!D23=\"\",\"\",INDICADORES!D23)","v":""},{"$f":"IF(INDICADORES!D28=\"\",\"\",INDICADORES!D28)","v":""},{"$f":"IF(INDICADORES!D33=\"\",\"\",INDICADORES!D33)","v":""},{"$f":"IF(INDICADORES!D38=\"\",\"\",INDICADORES!D38)","v":""},{"$f":"IF(INDICADORES!D43=\"\",\"\",INDICADORES!D43)","v":""},{"$f":"IF(INDICADORES!D48=\"\",\"\",INDICADORES!D48)","v":""},{"$f":"IF(INDICADORES!D53=\"\",\"\",INDICADORES!D53)","v":""},{"$f":"IF(INDICADORES!D58=\"\",\"\",INDICADORES!D58)","v":""},{"$f":"IF(INDICADORES!D63=\"\",\"\",INDICADORES!D63)","v":""},{"$f":"IF(INDICADORES!D68=\"\",\"\",INDICADORES!D68)","v":""},{"$f":"IF(INDICADORES!D74=\"\",\"\",INDICADORES!D74)","v":""},{"$f":"IF(INDICADORES!D79=\"\",\"\",INDICADORES!D79)","v":""},{"$f":"IF(INDICADORES!D84=\"\",\"\",INDICADORES!D84)","v":""},{"$f":"IF(INDICADORES!D90=\"\",\"\",INDICADORES!D90)","v":""},{"$f":"IF(INDICADORES!D97=\"\",\"\",INDICADORES!D97)","v":""},{"$f":"IF(INDICADORES!D102=\"\",\"\",INDICADORES!D102)","v":""},{"$f":"IF(INDICADORES!D107=\"\",\"\",INDICADORES!D107)","v":""},{"$f":"IF(INDICADORES!D112=\"\",\"\",INDICADORES!D112)","v":""}]
[{"$f":"INICIO!B20","v":"Razona  y argumenta generando ideas matemáticas "},{"$f":"INICIO!B25","v":"Razona  y argumenta generando ideas matemáticas "},{"$f":"INICIO!B30","v":"Razona  y argumenta generando ideas matemáticas "},{"$f":"INICIO!B34","v":"Razona  y argumenta generando ideas matemáticas "},null,{"$f":"IF(INDICADORES!D9=\"\",\"\",INDICADORES!D9)","v":""},{"$f":"IF(INDICADORES!D14=\"\",\"\",INDICADORES!D14)","v":""},{"$f":"IF(INDICADORES!D19=\"\",\"\",INDICADORES!D19)","v":""},{"$f":"IF(INDICADORES!D24=\"\",\"\",INDICADORES!D24)","v":""},{"$f":"IF(INDICADORES!D29=\"\",\"\",INDICADORES!D29)","v":""},{"$f":"IF(INDICADORES!D34=\"\",\"\",INDICADORES!D34)","v":""},{"$f":"IF(INDICADORES!D39=\"\",\"\",INDICADORES!D39)","v":""},{"$f":"IF(INDICADORES!D44=\"\",\"\",INDICADORES!D44)","v":""},{"$f":"IF(INDICADORES!D49=\"\",\"\",INDICADORES!D49)","v":""},{"$f":"IF(INDICADORES!D54=\"\",\"\",INDICADORES!D54)","v":""},{"$f":"IF(INDICADORES!D59=\"\",\"\",INDICADORES!D59)","v":""},{"$f":"IF(INDICADORES!D64=\"\",\"\",INDICADORES!D64)","v":""},{"$f":"IF(INDICADORES!D69=\"\",\"\",INDICADORES!D69)","v":""},{"$f":"IF(INDICADORES!D75=\"\",\"\",INDICADORES!D75)","v":""},{"$f":"IF(INDICADORES!D80=\"\",\"\",INDICADORES!D80)","v":""},{"$f":"IF(INDICADORES!D85=\"\",\"\",INDICADORES!D85)","v":""},{"$f":"IF(INDICADORES!D91=\"\",\"\",INDICADORES!D91)","v":""},{"$f":"IF(INDICADORES!D98=\"\",\"\",INDICADORES!D98)","v":""},{"$f":"IF(INDICADORES!D103=\"\",\"\",INDICADORES!D103)","v":""},{"$f":"IF(INDICADORES!D108=\"\",\"\",INDICADORES!D108)","v":""},{"$f":"IF(INDICADORES!D113=\"\",\"\",INDICADORES!D113)","v":""}]
[{"$f":"INICIO!B21","v":""},{"$f":"INICIO!B26","v":""},null,null,null,{"$f":"IF(INDICADORES!D10=\"\",\"\",INDICADORES!D10)","v":""},{"$f":"IF(INDICADORES!D15=\"\",\"\",INDICADORES!D15)","v":""},{"$f":"IF(INDICADORES!D20=\"\",\"\",INDICADORES!D20)","v":""},{"$f":"IF(INDICADORES!D25=\"\",\"\",INDICADORES!D25)","v":""},{"$f":"IF(INDICADORES!D30=\"\",\"\",INDICADORES!D30)","v":""},{"$f":"IF(INDICADORES!D35=\"\",\"\",INDICADORES!D35)","v":""},{"$f":"IF(INDICADORES!D40=\"\",\"\",INDICADORES!D40)","v":""},{"$f":"IF(INDICADORES!D45=\"\",\"\",INDICADORES!D45)","v":""},{"$f":"IF(INDICADORES!D50=\"\",\"\",INDICADORES!D50)","v":""},{"$f":"IF(INDICADORES!D55=\"\",\"\",INDICADORES!D55)","v":""},{"$f":"IF(INDICADORES!D60=\"\",\"\",INDICADORES!D60)","v":""},{"$f":"IF(INDICADORES!D65=\"\",\"\",INDICADORES!D65)","v":""},{"$f":"IF(INDICADORES!D70=\"\",\"\",INDICADORES!D70)","v":""},{"$f":"IF(INDICADORES!D76=\"\",\"\",INDICADORES!D76)","v":""},{"$f":"IF(INDICADORES!D81=\"\",\"\",INDICADORES!D81)","v":""},{"$f":"IF(INDICADORES!D86=\"\",\"\",INDICADORES!D86)","v":""},{"$f":"IF(INDICADORES!D92=\"\",\"\",INDICADORES!D92)","v":""},{"$f":"IF(INDICADORES!D99=\"\",\"\",INDICADORES!D99)","v":""},{"$f":"IF(INDICADORES!D104=\"\",\"\",INDICADORES!D104)","v":""},{"$f":"IF(INDICADORES!D109=\"\",\"\",INDICADORES!D109)","v":""},{"$f":"IF(INDICADORES!D114=\"\",\"\",INDICADORES!D114)","v":""}]
[null,null,null,null,null,1,2,3,4,5,6,7,8,9,10,11,12,{"$f":"IF(INDICADORES!D71=\"\",\"\",INDICADORES!D71)","v":""},14,15,{"$f":"IF(INDICADORES!D87=\"\",\"\",INDICADORES!D87)","v":""},{"$f":"IF(INDICADORES!D93=\"\",\"\",INDICADORES!D93)","v":""},18,19,20,21]
[null,null,null,null,null,null,null,null,null,null,null,null,null,null,null,null,null,13,null,null,16,{"$f":"IF(INDICADORES!D94=\"\",\"\",INDICADORES!D94)","v":""}]
[null,null,null,null,null,null,null,null,null,null,null,null,null,null,null,null,null,null,null,null,null,17]
[{"$f":"INICIO!A17","v":"Actúa y piensa matemáticamente en situaciones de cantidad"},null,null,null,null,{"$f":"F72","v":"Matematiza situaciones COMPE1"}]
[{"$f":"INICIO!A22","v":"Actúa y piensa matemáticamente en situaciones de regularidad, equivalencia y cambio"}]
[{"$f":"INICIO!A27","v":"Actúa y piensa matemáticamente en situaciones de forma, movimiento y localización"}]
[{"$f":"INICIO!A31","v":"Actúa y piensa matemáticamente en situaciones de gestión de datos e incertidumbre"}]
[{"$f":"INICIO!A35","v":""}]

{"sheet":"REGISTRO_PE","index":10,"n_rows":86,"n_cols":75,"rows_kept":86,"cut":false,"hidden":false,"merged":[[84,2,84,4],[84,5,84,7],[85,2,85,4],[85,5,85,7],[81,2,81,4],[81,5,81,7],[82,2,82,4],[82,5,82,7],[83,2,83,4],[83,5,83,7],[76,2,76,6],[77,2,77,6],[78,2,78,6],[79,2,79,6],[78,7,78,9],[79,7,79,9],[0,5,0,23],[72,2,72,6],[73,2,73,6],[74,2,74,6],[75,2,75,6],[55,2,55,3],[54,4,54,5],[55,4,55,5],[2,1,2,64],[54,2,54,3],[51,56,51,58],[51,59,51,64],[3,14,3,16],[3,59,3,60],[50,0,50,1],[50,13,50,16],[48,0,48,1],[49,0,49,1],[4,65,7,65],[4,66,7,66],[4,67,7,67],[4,0,4,1],[5,0,5,1],[6,0,7,0],[6,1,7,1],[5,11,5,13],[5,2,5,4],[5,5,5,7],[5,8,5,10],[4,2,4,16],[4,56,4,64],[4,17,4,31],[50,56,50,58],[50,59,50,64],[51,0,51,1],[51,13,51,16],[5,14,5,16],[5,56,5,58],[5,38,5,40],[5,47,5,49],[5,50,5,52],[5,53,5,55],[5,59,5,61],[5,62,5,64],[5,17,5,19],[5,20,5,22],[5,23,5,25],[5,26,5,28],[4,44,4,55],[5,44,5,46],[5,29,5,31],[4,32,4,43],[5,32,5,34],[5,35,5,37],[5,41,5,43]]}
[null,null,null,null,null,{"$f":"IF(INICIO!B12=\"\",\"\",\"I.E. \"&INICIO!B12)","v":"I.E. 86031 NUESTRA SEÑORA DE LA ASUNCIÓN"}]
[]
[null,{"$f":"\"REGISTRO DE EVALUACIÓN DE PRUEBA ESCRITA DEL AREA DE \"&INICIO!B13","v":"REGISTRO DE EVALUACIÓN DE PRUEBA ESCRITA DEL AREA DE MATEMÁTICA"}]
[]
[{"$f":"\"DOCENTE: \"&INICIO!B14","v":"DOCENTE: José Antonio Melgar Camayo"},null,{"$f":"IF(MATRIZ!A6=\"\",\"\",MATRIZ!A6)","v":"Actúa y piensa matemáticamente en situaciones de cantidad"},null,null,null,null,null,null,null,null,null,null,null,null,null,null,{"$f":"IF(MATRIZ!A21=\"\",\"\",MATRIZ!A21)","v":"Actúa y piensa matemáticamente en situaciones de regularidad, equivalencia y cambio"},null,null,null,null,null,null,null,null,null,null,null,null,null,null,{"$f":"IF(MATRIZ!A36=\"\",\"\",MATRIZ!A36)","v":"Actúa y piensa matemáticamente en situaciones de forma, movimiento y localización"},null,null,null,null,null,null,null,null,null,null,null,{"$f":"IF(MATRIZ!A48=\"\",\"\",MATRIZ!A48)","v":"Actúa y piensa matemáticamente en situaciones de gestión de datos e incertidumbre"},null,null,null,null,null,null,null,null,null,null,null,{"$f":"IF(MATRIZ!A60=\"\",\"\",MATRIZ!A60)","v":""},null,null,null,null,null,null,null,null,"RESPUESTAS CORRECTAS","RESPUESTAS INCORRECTAS","NOTA FINAL"]
[{"$f":"\"GRADO Y SECCIÓN: \"&INDICADORES!B2","v":"GRADO Y SECCIÓN: PRIMERO - A"},null,{"$f":"IF(MATRIZ!B6=\"\",\"\",MATRIZ!B6)","v":"Matematiza situaciones"},null,null,{"$f":"IF(MATRIZ!B9=\"\",\"\",MATRIZ!B9)","v":"Comunica y representa ideas matemáticas"},null,null,{"$f":"IF(MATRIZ!B12=\"\",\"\",MATRIZ!B12)","v":"Elabora y usa estrategias "},null,null,{"$f":"IF(MATRIZ!B15=\"\",\"\",MATRIZ!B15)","v":"Razona  y argumenta generando ideas matemáticas "},null,null,{"$f":"IF(MATRIZ!B18=\"\",\"\",MATRIZ!B18)","v":""},null,null,{"$f":"IF(MATRIZ!B21=\"\",\"\",MATRIZ!B21)","v":"Matematiza situaciones"},null,null,{"$f":"IF(MATRIZ!B24=\"\",\"\",MATRIZ!B24)","v":"Comunica y representa ideas matemáticas"},null,null,{"$f":"IF(MATRIZ!B27=\"\",\"\",MATRIZ!B27)","v":"Elabora y usa estrategias "},null,null,{"$f":"IF(MATRIZ!B30=\"\",\"\",MATRIZ!B30)","v":"Razona  y argumenta generando ideas matemáticas "},null,null,{"$f":"IF(MATRIZ!B33=\"\",\"\",MATRIZ!B33)","v":""},null,null,{"$f":"IF(MATRIZ!B36=\"\",\"\",MATRIZ!B36)","v":"Matematiza situaciones"},null,null,{"$f":"IF(MATRIZ!B39=\"\",\"\",MATRIZ!B39)","v":"Comunica y representa ideas matemáticas"},null,null,{"$f":"IF(MATRIZ!B42=\"\",\"\",MATRIZ!B42)","v":"Elabora y usa estrategias "},null,null,{"$f":"IF(MATRIZ!B45=\"\",\"\",MATRIZ!B45)","v":"Razona  y argumenta generando ideas matemáticas "},null,null,{"$f":"IF(MATRIZ!B48=\"\",\"\",MATRIZ!B48)","v":"Matematiza situaciones"},null,null,{"$f":"IF(MATRIZ!B51=\"\",\"\",MATRIZ!B51)","v":"Comunica y representa ideas matemáticas"},null,null,{"$f":"IF(MATRIZ!B54=\"\",\"\",MATRIZ!B54)","v":"Elabora y usa estrategias "},null,null,{"$f":"IF(MATRIZ!B57=\"\",\"\",MATRIZ!B57)","v":"Razona  y argumenta generando ideas matemáticas "},null,null,{"$f":"IF(MATRIZ!B60=\"\",\"\",MATRIZ!B60)","v":""},null,null,{"$f":"IF(MATRIZ!B63=\"\",\"\",MATRIZ!B63)","v":""},null,null,{"$f":"IF(MATRIZ!B66=\"\",\"\",MATRIZ!B66)","v":""}]
["Nº","APELLIDOS Y NOMBRES",{"$f":"IF(MATRIZ!D6=\"\",\"\",MATRIZ!D6)","v":""},{"$f":"IF(MATRIZ!D7=\"\",\"\",MATRIZ!D7)","v":""},{"$f":"IF(MATRIZ!D8=\"\",\"\",MATRIZ!D8)","v":""},{"$f":"IF(MATRIZ!D9=\"\",\"\",MATRIZ!D9)","v":""},{"$f":"IF(MATRIZ!D10=\"\",\"\",MATRIZ!D10)","v":""},{"$f":"IF(MATRIZ!D11=\"\",\"\",MATRIZ!D11)","v":""},{"$f":"IF(MATRIZ!D12=\"\",\"\",MATRIZ!D12)","v":""},{"$f":"IF(MATRIZ!D13=\"\",\"\",MATRIZ!D13)","v":""},{"$f":"IF(MATRIZ!D14=\"\",\"\",MATRIZ!D14)","v":""},{"$f":"IF(MATRIZ!D15=\"\",\"\",MATRIZ!D15)","v":""},{"$f":"IF(MATRIZ!D16=\"\",\"\",MATRIZ!D16)","v":""},{"$f":"IF(MATRIZ!D17=\"\",\"\",MATRIZ!D17)","v":""},{"$f":"IF(MATRIZ!D18=\"\",\"\",MATRIZ!D18)","v":""},{"$f":"IF(MATRIZ!D19=\"\",\"\",MATRIZ!D19)","v":""},{"$f":"IF(MATRIZ!D20=\"\",\"\",MATRIZ!D20)","v":""},{"$f":"IF(MATRIZ!D21=\"\",\"\",MATRIZ!D21)","v":""},{"$f":"IF(MATRIZ!D22=\"\",\"\",MATRIZ!D22)","v":""},{"$f":"IF(MATRIZ!D23=\"\",\"\",MATRIZ!D23)","v":""},{"$f":"IF(MATRIZ!D24=\"\",\"\",MATRIZ!D24)","v":""},{"$f":"IF(MATRIZ!D25=\"\",\"\",MATRIZ!D25)","v":""},{"$f":"IF(MATRIZ!D26=\"\",\"\",MATRIZ!D26)","v":""},{"$f":"IF(MATRIZ!D27=\"\",\"\",MATRIZ!D27)","v":""},{"$f":"IF(MATRIZ!D28=\"\",\"\",MATRIZ!D28)","v":""},{"$f":"IF(MATRIZ!D29=\"\",\"\",MATRIZ!D29)","v":""},{"$f":"IF(MATRIZ!D30=\"\",\"\",MATRIZ!D30)","v":""},{"$f":"IF(MATRIZ!D31=\"\",\"\",MATRIZ!D31)","v":""},{"$f":"IF(MATRIZ!D32=\"\",\"\",MATRIZ!D32)","v":""},{"$f":"IF(MATRIZ!D33=\"\",\"\",MATRIZ!D33)","v":""},{"$f":"IF(MATRIZ!D34=\"\",\"\",MATRIZ!D34)","v":""},{"$f":"IF(MATRIZ!D35=\"\",\"\",MATRIZ!D35)","v":""},{"$f":"IF(MATRIZ!D36=\"\",\"\",MATRIZ!D36)","v":""},{"$f":"IF(MATRIZ!D37=\"\",\"\",MATRIZ!D37)","v":""},{"$f":"IF(MATRIZ!D38=\"\",\"\",MATRIZ!D38)","v":""},{"$f":"IF(MATRIZ!D39=\"\",\"\",MATRIZ!D39)","v":""},{"$f":"IF(MATRIZ!D40=\"\",\"\",MATRIZ!D40)","v":""},{"$f":"IF(MATRIZ!D41=\"\",\"\",MATRIZ!D41)","v":""},{"$f":"IF(MATRIZ!D42=\"\",\"\",MATRIZ!D42)","v":""},{"$f":"IF(MATRIZ!D43=\"\",\"\",MATRIZ!D43)","v":""},{"$f":"IF(MATRIZ!D44=\"\",\"\",MATRIZ!D44)","v":""},{"$f":"IF(MATRIZ!D45=\"\",\"\",MATRIZ!D45)","v":""},{"$f":"IF(MATRIZ!D46=\"\",\"\",MATRIZ!D46)","v":""},{"$f":"IF(MATRIZ!D47=\"\",\"\",MATRIZ!D47)","v":""},{"$f":"IF(MATRIZ!D48=\"\",\"\",MATRIZ!D48)","v":""},{"$f":"IF(MATRIZ!D49=\"\",\"\",MATRIZ!D49)","v":""},{"$f":"IF(MATRIZ!D50=\"\",\"\",MATRIZ!D50)","v":""},{"$f":"IF(MATRIZ!D51=\"\",\"\",MATRIZ!D51)","v":""},{"$f":"IF(MATRIZ!D52=\"\",\"\",MATRIZ!D52)","v":""},{"$f":"IF(MATRIZ!D53=\"\",\"\",MATRIZ!D53)","v":""},{"$f":"IF(MATRIZ!D54=\"\",\"\",MATRIZ!D54)","v":""},{"$f":"IF(MATRIZ!D55=\"\",\"\",MATRIZ!D55)","v":""},{"$f":"IF(MATRIZ!D56=\"\",\"\",MATRIZ!D56)","v":""},{"$f":"IF(MATRIZ!D57=\"\",\"\",MATRIZ!D57)","v":""},{"$f":"IF(MATRIZ!D58=\"\",\"\",MATRIZ!D58)","v":""},{"$f":"IF(MATRIZ!D59=\"\",\"\",MATRIZ!D59)","v":""},{"$f":"IF(MATRIZ!D60=\"\",\"\",MATRIZ!D60)","v":""},{"$f":"IF(MATRIZ!D61=\"\",\"\",MATRIZ!D61)","v":""},{"$f":"IF(MATRIZ!D62=\"\",\"\",MATRIZ!D62)","v":""},{"$f":"IF(MATRIZ!D63=\"\",\"\",MATRIZ!D63)","v":""},{"$f":"IF(MATRIZ!D64=\"\",\"\",MATRIZ!D64)","v":""},{"$f":"IF(MATRIZ!D65=\"\",\"\",MATRIZ!D65)","v":""},{"$f":"IF(MATRIZ!D66=\"\",\"\",MATRIZ!D66)","v":""},{"$f":"IF(MATRIZ!D67=\"\",\"\",MATRIZ!D67)","v":""},{"$f":"IF(MATRIZ!D68=\"\",\"\",MATRIZ!D68)","v":""}]
[null,null,{"$f":"IF(C7=\"\",\"\",C67)","v":""},{"$f":"IF(D7=\"\",\"\",D67)","v":""},"","","","","","","","","","","","","","","","","","","","","","","","","","","","","","",{"$f":"IF(AI7=\"\",\"\",AI67)","v":""},{"$f":"IF(AJ7=\"\",\"\",AJ67)","v":""},{"$f":"IF(AK7=\"\",\"\",AK67)","v":""},{"$f":"IF(AL7=\"\",\"\",AL67)","v":""},{"$f":"IF(AM7=\"\",\"\",AM67)","v":""},{"$f":"IF(AN7=\"\",\"\",AN67)","v":""},{"$f":"IF(AO7=\"\",\"\",AO67)","v":""},{"$f":"IF(AP7=\"\",\"\",AP67)","v":""},{"$f":"IF(AQ7=\"\",\"\",AQ67)","v":""},{"$f":"IF(AR7=\"\",\"\",AR67)","v":""},{"$f":"IF(AS7=\"\",\"\",AS67)","v":""},{"$f":"IF(AT7=\"\",\"\",AT67)","v":""},{"$f":"IF(AU7=\"\",\"\",AU67)","v":""},{"$f":"IF(AV7=\"\",\"\",AV67)","v":""},{"$f":"IF(AW7=\"\",\"\",AW67)","v":""},{"$f":"IF(AX7=\"\",\"\",AX67)","v":""},{"$f":"IF(AY7=\"\",\"\",AY67)","v":""},{"$f":"IF(AZ7=\"\",\"\",AZ67)","v":""},{"$f":"IF(BA7=\"\",\"\",BA67)","v":""},{"$f":"IF(BB7=\"\",\"\",BB67)","v":""},{"$f":"IF(BC7=\"\",\"\",BC67)","v":""},{"$f":"IF(BD7=\"\",\"\",BD67)","v":""},{"$f":"IF(BE7=\"\",\"\",BE67)","v":""},{"$f":"IF(BF7=\"\",\"\",BF67)","v":""},{"$f":"IF(BG7=\"\",\"\",BG67)","v":""},{"$f":"IF(BH7=\"\",\"\",BH67)","v":""},{"$f":"IF(BI7=\"\",\"\",BI67)","v":""},{"$f":"IF(BJ7=\"\",\"\",BJ67)","v":""},{"$f":"IF(BK7=\"\",\"\",BK67)","v":""},{"$f":"IF(BL7=\"\",\"\",BL67)","v":""},{"$f":"IF(BM7=\"\",\"\",BM67)","v":""},null,null,null,null,null,null,"CO","INC","TOT"]
[1,null,null,null,null,null,null,null,null,null,null,null,null,null,null,null,null,null,null,null,null,null,null,null,null,null,null,null,null,null,null,null,null,null,null,null,null,null,null,null,null,null,null,null,null,null,null,null,null,null,null,null,null,null,null,null,null,null,null,null,null,null,null,null,null,{"$f":"IF(COUNTIF(C9:BM9,\"=2\")=0,\"\",COUNTIF(C9:BM9,\"=2\"))","v":""},{"$f":"IF(COUNTIF(C9:BM9,\"=1\")=0,\"\",COUNTIF(C9:BM9,\"=1\"))","v":""},{"$f":"BW9","v":""},null,null,null,{"$f":"COUNTIF(C9:BM9,\"=2\")","v":0},{"$f":"COUNTIF(C9:BM9,\"=1\")","v":0},{"$f":"SUM(BT9:BU9)","v":0},{"$f":"IFERROR(ROUND(20*BT9/BV9,0),\"\")","v":""}]
[2,null,null,null,null,null,null,null,null,null,null,null,null,null,null,null,null,null,null,null,null,null,null,null,null,null,null,null,null,null,null,null,null,null,null,null,null,null,null,null,null,null,null,null,null,null,null,null,null,null,null,null,null,null,null,null,null,null,null,null,null,null,null,null,null,{"$f":"IF(COUNTIF(C10:BM10,\"=2\")=0,\"\",COUNTIF(C10:BM10,\"=2\"))","v":""},{"$f":"IF(COUNTIF(C10:BM10,\"=1\")=0,\"\",COUNTIF(C10:BM10,\"=1\"))","v":""},{"$f":"BW10","v":""},null,null,null,{"$f":"COUNTIF(C10:BM10,\"=2\")","v":0},{"$f":"COUNTIF(C10:BM10,\"=1\")","v":0},{"$f":"SUM(BT10:BU10)","v":0},{"$f":"IFERROR(ROUND(20*BT10/BV10,0),\"\")","v":""}]
[3,null,null,null,null,null,null,null,null,null,null,null,null,null,null,null,null,null,null,null,null,null,null,null,null,null,null,null,null,null,null,null,null,null,null,null,null,null,null,null,null,null,null,null,null,null,null,null,null,null,null,null,null,null,null,null,null,null,null,null,null,null,null,null,null,"","","",null,null,null,0,0,0,""]
[4,null,null,null,null,null,null,null,null,null,null,null,null,null,null,null,null,null,null,null,null,null,null,null,null,null,null,null,null,null,null,null,null,null,null,null,null,null,null,null,null,null,null,null,null,null,null,null,null,null,null,null,null,null,null,null,null,null,null,null,null,null,null,null,null,"","","",null,null,null,0,0,0,""]
[5,null,null,null,null,null,null,null,null,null,null,null,null,null,null,null,null,null,null,null,null,null,null,null,null,null,null,null,null,null,null,null,null,null,null,null,null,null,null,null,null,null,null,null,null,null,null,null,null,null,null,null,null,null,null,null,null,null,null,null,null,null,null,null,null,"","","",null,null,null,0,0,0,""]
[6,null,null,null,null,null,null,null,null,null,null,null,null,null,null,null,null,null,null,null,null,null,null,null,null,null,null,null,null,null,null,null,null,null,null,null,null,null,null,null,null,null,null,null,null,null,null,null,null,null,null,null,null,null,null,null,null,null,null,null,null,null,null,null,null,"","","",null,null,null,0,0,0,""]
[7,null,null,null,null,null,null,null,null,null,null,null,null,null,null,null,null,null,null,null,null,null,null,null,null,null,null,null,null,null,null,null,null,null,null,null,null,null,null,null,null,null,null,null,null,null,null,null,null,null,null,null,null,null,null,null,null,null,null,null,null,null,null,null,null,"","","",null,null,null,0,0,0,""]
[8,null,null,null,null,null,null,null,null,null,null,null,null,null,null,null,null,null,null,null,null,null,null,null,null,null,null,null,null,null,null,null,null,null,null,null,null,null,null,null,null,null,null,null,null,null,null,null,null,null,null,null,null,null,null,null,null,null,null,null,null,null,null,null,null,"","","",null,null,null,0,0,0,""]
[9,null,null,null,null,null,null,null,null,null,null,null,null,null,null,null,null,null,null,null,null,null,null,null,null,null,null,null,null,null,null,null,null,null,null,null,null,null,null,null,null,null,null,null,null,null,null,null,null,null,null,null,null,null,null,null,null,null,null,null,null,null,null,null,null,"","","",null,null,null,0,0,0,""]
[10,null,null,null,null,null,null,null,null,null,null,null,null,null,null,null,null,null,null,null,null,null,null,null,null,null,null,null,null,null,null,null,null,null,null,null,null,null,null,null,null,null,null,null,null,null,null,null,null,null,null,null,null,null,null,null,null,null,null,null,null,null,null,null,null,"","","",null,null,null,0,0,0,""]
[11,null,null,null,null,null,null,null,null,null,null,null,null,null,null,null,null,null,null,null,null,null,null,null,null,null,null,null,null,null,null,null,null,null,null,null,null,null,null,null,null,null,null,null,null,null,null,null,null,null,null,null,null,null,null,null,null,null,null,null,null,null,null,null,null,"","","",null,null,null,0,0,0,""]
[12,null,null,null,null,null,null,null,null,null,null,null,null,null,null,null,null,null,null,null,null,null,null,null,null,null,null,null,null,null,null,null,null,null,null,null,null,null,null,null,null,null,null,null,null,null,null,null,null,null,null,null,null,null,null,null,null,null,null,null,null,null,null,null,null,"","","",null,null,null,0,0,0,""]
[13,null,null,null,null,null,null,null,null,null,null,null,null,null,null,null,null,null,null,null,null,null,null,null,null,null,null,null,null,null,null,null,null,null,null,null,null,null,null,null,null,null,null,null,null,null,null,null,null,null,null,null,null,null,null,null,null,null,null,null,null,null,null,null,null,"","","",null,null,null,0,0,0,""]
[14,null,null,null,null,null,null,null,null,null,null,null,null,null,null,null,null,null,null,null,null,null,null,null,null,null,null,null,null,null,null,null,null,null,null,null,null,null,null,null,null,null,null,null,null,null,null,null,null,null,null,null,null,null,null,null,null,null,null,null,null,null,null,null,null,"","","",null,null,null,0,0,0,""]
[15,null,null,null,null,null,null,null,null,null,null,null,null,null,null,null,null,null,null,null,null,null,null,null,null,null,null,null,null,null,null,null,null,null,null,null,null,null,null,null,null,null,null,null,null,null,null,null,null,null,null,null,null,null,null,null,null,null,null,null,null,null,null,null,null,"","","",null,null,null,0,0,0,""]
[16,null,null,null,null,null,null,null,null,null,null,null,null,null,null,null,null,null,null,null,null,null,null,null,null,null,null,null,null,null,null,null,null,null,null,null,null,null,null,null,null,null,null,null,null,null,null,null,null,null,null,null,null,null,null,null,null,null,null,null,null,null,null,null,null,"","","",null,null,null,0,0,0,""]
[17,null,null,null,null,null,null,null,null,null,null,null,null,null,null,null,null,null,null,null,null,null,null,null,null,null,null,null,null,null,null,null,null,null,null,null,null,null,null,null,null,null,null,null,null,null,null,null,null,null,null,null,null,null,null,null,null,null,null,null,null,null,null,null,null,"","","",null,null,null,0,0,0,""]
[18,null,null,null,null,null,null,null,null,null,null,null,null,null,null,null,null,null,null,null,null,null,null,null,null,null,null,null,null,null,null,null,null,null,null,null,null,null,null,null,null,null,null,null,null,null,null,null,null,null,null,null,null,null,null,null,null,null,null,null,null,null,null,null,null,"","","",null,null,null,0,0,0,""]
[19,null,null,null,null,null,null,null,null,null,null,null,null,null,null,null,null,null,null,null,null,null,null,null,null,null,null,null,null,null,null,null,null,null,null,null,null,null,null,null,null,null,null,null,null,null,null,null,null,null,null,null,null,null,null,null,null,null,null,null,null,null,null,null,null,"","","",null,null,null,0,0,0,""]
[20,null,null,null,null,null,null,null,null,null,null,null,null,null,null,null,null,null,null,null,null,null,null,null,null,null,null,null,null,null,null,null,null,null,null,null,null,null,null,null,null,null,null,null,null,null,null,null,null,null,null,null,null,null,null,null,null,null,null,null,null,null,null,null,null,"","","",null,null,null,0,0,0,""]
[21,null,null,null,null,null,null,null,null,null,null,null,null,null,null,null,null,null,null,null,null,null,null,null,null,null,null,null,null,null,null,null,null,null,null,null,null,null,null,null,null,null,null,null,null,null,null,null,null,null,null,null,null,null,null,null,null,null,null,null,null,null,null,null,null,"","","",null,null,null,0,0,0,""]
[22,null,null,null,null,null,null,null,null,null,null,null,null,null,null,null,null,null,null,null,null,null,null,null,null,null,null,null,null,null,null,null,null,null,null,null,null,null,null,null,null,null,null,null,null,null,null,null,null,null,null,null,null,null,null,null,null,null,null,null,null,null,null,null,null,"","","",null,null,null,0,0,0,""]
[23,null,null,null,null,null,null,null,null,null,null,null,null,null,null,null,null,null,null,null,null,null,null,null,null,null,null,null,null,null,null,null,null,null,null,null,null,null,null,null,null,null,null,null,null,null,null,null,null,null,null,null,null,null,null,null,null,null,null,null,null,null,null,null,null,"","","",null,null,null,0,0,0,""]
[24,null,null,null,null,null,null,null,null,null,null,null,null,null,null,null,null,null,null,null,null,null,null,null,null,null,null,null,null,null,null,null,null,null,null,null,null,null,null,null,null,null,null,null,null,null,null,null,null,null,null,null,null,null,null,null,null,null,null,null,null,null,null,null,null,"","","",null,null,null,0,0,0,""]
[25,null,null,null,null,null,null,null,null,null,null,null,null,null,null,null,null,null,null,null,null,null,null,null,null,null,null,null,null,null,null,null,null,null,null,null,null,null,null,null,null,null,null,null,null,null,null,null,null,null,null,null,null,null,null,null,null,null,null,null,null,null,null,null,null,"","","",null,null,null,0,0,0,""]
[26,null,null,null,null,null,null,null,null,null,null,null,null,null,null,null,null,null,null,null,null,null,null,null,null,null,null,null,null,null,null,null,null,null,null,null,null,null,null,null,null,null,null,null,null,null,null,null,null,null,null,null,null,null,null,null,null,null,null,null,null,null,null,null,null,"","","",null,null,null,0,0,0,""]
[27,null,null,null,null,null,null,null,null,null,null,null,null,null,null,null,null,null,null,null,null,null,null,null,null,null,null,null,null,null,null,null,null,null,null,null,null,null,null,null,null,null,null,null,null,null,null,null,null,null,null,null,null,null,null,null,null,null,null,null,null,null,null,null,null,"","","",null,null,null,0,0,0,""]
[28,null,null,null,null,null,null,null,null,null,null,null,null,null,null,null,null,null,null,null,null,null,null,null,null,null,null,null,null,null,null,null,null,null,null,null,null,null,null,null,null,null,null,null,null,null,null,null,null,null,null,null,null,null,null,null,null,null,null,null,null,null,null,null,null,"","","",null,null,null,0,0,0,""]
[29,null,null,null,null,null,null,null,null,null,null,null,null,null,null,null,null,null,null,null,null,null,null,null,null,null,null,null,null,null,null,null,null,null,null,null,null,null,null,null,null,null,null,null,null,null,null,null,null,null,null,null,null,null,null,null,null,null,null,null,null,null,null,null,null,"","","",null,null,null,0,0,0,""]
[30,null,null,null,null,null,null,null,null,null,null,null,null,null,null,null,null,null,null,null,null,null,null,null,null,null,null,null,null,null,null,null,null,null,null,null,null,null,null,null,null,null,null,null,null,null,null,null,null,null,null,null,null,null,null,null,null,null,null,null,null,null,null,null,null,"","","",null,null,null,0,0,0,""]
[31,null,null,null,null,null,null,null,null,null,null,null,null,null,null,null,null,null,null,null,null,null,null,null,null,null,null,null,null,null,null,null,null,null,null,null,null,null,null,null,null,null,null,null,null,null,null,null,null,null,null,null,null,null,null,null,null,null,null,null,null,null,null,null,null,"","","",null,null,null,0,0,0,""]
[32,null,null,null,null,null,null,null,null,null,null,null,null,null,null,null,null,null,null,null,null,null,null,null,null,null,null,null,null,null,null,null,null,null,null,null,null,null,null,null,null,null,null,null,null,null,null,null,null,null,null,null,null,null,null,null,null,null,null,null,null,null,null,null,null,"","","",null,null,null,0,0,0,""]
[33,null,null,null,null,null,null,null,null,null,null,null,null,null,null,null,null,null,null,null,null,null,null,null,null,null,null,null,null,null,null,null,null,null,null,null,null,null,null,null,null,null,null,null,null,null,null,null,null,null,null,null,null,null,null,null,null,null,null,null,null,null,null,null,null,"","","",null,null,null,0,0,0,""]
[34,null,null,null,null,null,null,null,null,null,null,null,null,null,null,null,null,null,null,null,null,null,null,null,null,null,null,null,null,null,null,null,null,null,null,null,null,null,null,null,null,null,null,null,null,null,null,null,null,null,null,null,null,null,null,null,null,null,null,null,null,null,null,null,null,"","","",null,null,null,0,0,0,""]
[35,null,null,null,null,null,null,null,null,null,null,null,null,null,null,null,null,null,null,null,null,null,null,null,null,null,null,null,null,null,null,null,null,null,null,null,null,null,null,null,null,null,null,null,null,null,null,null,null,null,null,null,null,null,null,null,null,null,null,null,null,null,null,null,null,"","","",null,null,null,0,0,0,""]
[36,null,null,null,null,null,null,null,null,null,null,null,null,null,null,null,null,null,null,null,null,null,null,null,null,null,null,null,null,null,null,null,null,null,null,null,null,null,null,null,null,null,null,null,null,null,null,null,null,null,null,null,null,null,null,null,null,null,null,null,null,null,null,null,null,"","","",null,null,null,0,0,0,""]
[37,null,null,null,null,null,null,null,null,null,null,null,null,null,null,null,null,null,null,null,null,null,null,null,null,null,null,null,null,null,null,null,null,null,null,null,null,null,null,null,null,null,null,null,null,null,null,null,null,null,null,null,null,null,null,null,null,null,null,null,null,null,null,null,null,"","","",null,null,null,0,0,0,""]
[38,null,null,null,null,null,null,null,null,null,null,null,null,null,null,null,null,null,null,null,null,null,null,null,null,null,null,null,null,null,null,null,null,null,null,null,null,null,null,null,null,null,null,null,null,null,null,null,null,null,null,null,null,null,null,null,null,null,null,null,null,null,null,null,null,"","","",null,null,null,0,0,0,""]
[39,null,null,null,null,null,null,null,null,null,null,null,null,null,null,null,null,null,null,null,null,null,null,null,null,null,null,null,null,null,null,null,null,null,null,null,null,null,null,null,null,null,null,null,null,null,null,null,null,null,null,null,null,null,null,null,null,null,null,null,null,null,null,null,null,"","","",null,null,null,0,0,0,""]
[40,null,null,null,null,null,null,null,null,null,null,null,null,null,null,null,null,null,null,null,null,null,null,null,null,null,null,null,null,null,null,null,null,null,null,null,null,null,null,null,null,null,null,null,null,null,null,null,null,null,null,null,null,null,null,null,null,null,null,null,null,null,null,null,null,"","","",null,null,null,0,0,0,""]
["CANTIDAD DE ACIERTOS",null,{"$f":"IF(C63>0,C61,\"\")","v":""},{"$f":"IF(D63>0,D61,\"\")","v":""},"","","","","","","","","","","","",{"$f":"IF(Q63>0,Q61,\"\")","v":""},"","","","","","","","","","","","","","","","","","","","","","","","","","","","","","","","","","","","","","","","","","","","","","",{"$f":"IF(BL63>0,BL61,\"\")","v":""},{"$f":"IF(BM63>0,BM61,\"\")","v":""}]
["CANTIDAD DE ERRORES",null,{"$f":"IF(C63>0,C62,\"\")","v":""},{"$f":"IF(D63>0,D62,\"\")","v":""},"","","","","","","","","","","","","","","","","","","","","","","","","","","","","","","","","","","","","","","","","","","","","","","","","","","","","","","","","","","","",""]
[]
[]
[]
[null,"LEYENDA:"]
[null,"RESPUESTA CORRECTA",2,null,2]
[null,"RESPUESTA INCORRECTA",1,null,1]
[]
[]
[]
[]
[null,null,{"$f":"COUNTIF(C9:C48,\"=2\")","v":0},{"$f":"COUNTIF(D9:D48,\"=2\")","v":0},0,0,0,0,0,0,0,0,0,0,0,0,0,0,0,0,0,0,0,0,0,0,0,0,0,0,0,0,0,0,0,0,0,0,0,0,0,0,0,0,0,0,0,0,0,0,0,0,0,0,0,0,0,0,0,0,0,0,0,0,0]
[null,null,{"$f":"COUNTIF(C9:C48,\"=1\")","v":0},{"$f":"COUNTIF(D9:D48,\"=1\")","v":0},0,0,0,0,0,0,0,0,0,0,0,0,0,0,0,0,0,0,0,0,0,0,0,0,0,0,0,0,0,0,0,0,0,0,0,0,0,0,0,0,0,0,0,0,0,0,0,0,0,0,0,0,0,0,0,0,0,0,0,0,0]
[null,null,{"$f":"SUM(C61:C62)","v":0},{"$f":"SUM(D61:D62)","v":0},0,0,0,0,0,0,0,0,0,0,0,0,0,0,0,0,0,0,0,0,0,0,0,0,0,0,0,0,0,0,0,0,0,0,0,0,0,0,0,0,0,0,0,0,0,0,0,0,0,0,0,0,0,0,0,0,0,0,0,0,0]
[null,null,{"$f":"LEN(C7)","v":0},{"$f":"LEN(D7)","v":0},0,0,0,0,0,0,0,0,0,0,0,0,0,0,0,0,0,0,0,0,0,0,0,0,0,0,0,0,0,0,0,0,0,0,0,0,0,0,0,0,0,0,0,0,0,0,0,0,0,0,0,0,0,0,0,0,0,0,0,0,0]
[null,null,{"$f":"IF(C64=4,\"1\",IF(C64=5,\"1\",IF(C64=6,\"1\",\"\")))","v":""},{"$f":"IF(D64=4,\"1\",IF(D64=5,\"1\",IF(D64=6,\"1\",\"\")))","v":""},"","","","","","","","","","","","","","","","","","","","","","","","","","","","","","","","","","","","","","","","","","","","","","","","","","","","","","","","","","","","",""]
[null,null,{"$f":"IFERROR((C65+C65)/2,\"\")","v":""},{"$f":"IFERROR((D65+D65)/2,\"\")","v":""},{"$f":"IFERROR((E65+E65)/2,\"\")","v":""},{"$f":"IFERROR((F65+F65)/2,\"\")","v":""},"","","","","",{"$f":"IFERROR((L65+L65)/2,\"\")","v":""},"","","","","","","","","","","","","","","","","","","","","","","","","","","","","","","","","",{"$f":"IFERROR((AT65+AT65)/2,\"\")","v":""},"","","","","","","","","","","","","","","","","","",""]
[null,null,{"$f":"SUM(C66)","v":0},{"$f":"SUM(C66:D66)","v":0},{"$f":"SUM(C66:E66)","v":0},{"$f":"SUM(C66:F66)","v":0},{"$f":"SUM(C66:G66)","v":0},{"$f":"SUM(C66:H66)","v":0},{"$f":"SUM(C66:I66)","v":0},{"$f":"SUM(C66:J66)","v":0},{"$f":"SUM(C66:K66)","v":0},{"$f":"SUM(C66:L66)","v":0},{"$f":"SUM(C66:M66)","v":0},{"$f":"SUM(C66:N66)","v":0},{"$f":"SUM(C66:O66)","v":0},{"$f":"SUM(C66:P66)","v":0},{"$f":"SUM(C66:Q66)","v":0},{"$f":"SUM(C66:R66)","v":0},{"$f":"SUM(C66:S66)","v":0},{"$f":"SUM(C66:T66)","v":0},{"$f":"SUM(C66:U66)","v":0},{"$f":"SUM(C66:V66)","v":0},{"$f":"SUM(C66:W66)","v":0},{"$f":"SUM(C66:X66)","v":0},{"$f":"SUM(C66:Y66)","v":0},{"$f":"SUM(C66:Z66)","v":0},{"$f":"SUM(C66:AA66)","v":0},{"$f":"SUM(C66:AB66)","v":0},{"$f":"SUM(C66:AC66)","v":0},{"$f":"SUM(C66:AD66)","v":0},{"$f":"SUM(C66:AE66)","v":0},{"$f":"SUM(C66:AF66)","v":0},{"$f":"SUM(C66:AG66)","v":0},{"$f":"SUM(C66:AH66)","v":0},{"$f":"SUM(C66:AI66)","v":0},{"$f":"SUM(C66:AJ66)","v":0},{"$f":"SUM(C66:AK66)","v":0},{"$f":"SUM(C66:AL66)","v":0},{"$f":"SUM(C66:AM66)","v":0},{"$f":"SUM(C66:AN66)","v":0},{"$f":"SUM(C66:AO66)","v":0},{"$f":"SUM(C66:AP66)","v":0},{"$f":"SUM(C66:AQ66)","v":0},{"$f":"SUM(C66:AR66)","v":0},{"$f":"SUM(C66:AS66)","v":0},{"$f":"SUM(C66:AT66)","v":0},{"$f":"SUM(C66:AU66)","v":0},{"$f":"SUM(C66:AV66)","v":0},{"$f":"SUM(C66:AW66)","v":0},{"$f":"SUM(C66:AX66)","v":0},{"$f":"SUM(C66:AY66)","v":0},{"$f":"SUM(C66:AZ66)","v":0},{"$f":"SUM(C66:BA66)","v":0},{"$f":"SUM(C66:BB66)","v":0},{"$f":"SUM(C66:BC66)","v":0},{"$f":"SUM(C66:BD66)","v":0},{"$f":"SUM(C66:BE66)","v":0},{"$f":"SUM(C66:BF66)","v":0},{"$f":"SUM(C66:BG66)","v":0},{"$f":"SUM(C66:BH66)","v":0},{"$f":"SUM(C66:BI66)","v":0},{"$f":"SUM(C66:BJ66)","v":0},{"$f":"SUM(C66:BK66)","v":0},{"$f":"SUM(C66:BL66)","v":0},{"$f":"SUM(C66:BM66)","v":0}]
[]
[]
[]
[]
[null,"ESTADÍSTICA:"]
[null,"TOTAL",{"$f":"IF(COUNT(BP9:BP48)=0,\"\",COUNT(BP9:BP48))","v":""}]
[null,"PROMEDIO",{"$f":"IFERROR(ROUND(AVERAGE(BP9:BP48),2),\"\")","v":""}]
[null,"MEDIANA",{"$f":"IFERROR(MEDIAN(BP9:BP48),\"\")","v":""}]
[null,"MODA",{"$f":"IFERROR(_xlfn.MODE.SNGL(BP9:BP48),\"\")","v":""}]
[null,"NOTA MÁS ALTA",{"$f":"IF(MAX(BP9:BP48)=0,\"\",MAX(BP9:BP48))","v":""}]
[null,"NOTA MÁS BAJA",{"$f":"IF(MIN(BP9:BP48)=0,\"\",MIN(BP9:BP48))","v":""}]
[null,"APROBADOS",{"$f":"IF(COUNT(BP9:BP48)=0,\"\",COUNTIF(BP9:BP48,\">10\"))","v":""},null,null,null,null,{"$f":"IFERROR(ROUND(C79*100/C73,2)&\"%\",\"\")","v":""}]
[null,"DESAPROBADOS",{"$f":"IF(COUNT(BP9:BP48)=0,\"\",COUNTIF(BP9:BP48,\"<11\"))","v":""},null,null,null,null,{"$f":"IFERROR(ROUND(C80*100/C73,2)&\"%\",\"\")","v":""}]
[]
[null,"INTERVALOS","Nº",null,null,"%"]
[null,"18 - 20",{"$f":"IF(COUNT(BP9:BP48)=0,\"\",COUNTIF(BP9:BP48,\">17\"))","v":""},null,null,{"$f":"IFERROR(ROUND((C83*100)/$C$73,2),\"\")","v":""}]
[null,"14-17",{"$f":"IF(COUNT(BP9:BP48)=0,\"\",COUNTIF(BP9:BP48,\"=14\")+COUNTIF(BP9:BP48,\"=15\")+COUNTIF(BP9:BP48,\"=16\")+COUNTIF(BP9:BP48,\"=17\"))","v":""},null,null,{"$f":"IFERROR(ROUND((C84*100)/$C$73,2),\"\")","v":""}]
[null,"11-13",{"$f":"IF(COUNT(BP9:BP48)=0,\"\",COUNTIF(BP9:BP48,\"=11\")+COUNTIF(BP9:BP48,\"=12\")+COUNTIF(BP9:BP48,\"=13\"))","v":""},null,null,{"$f":"IFERROR(ROUND((C85*100)/$C$73,2),\"\")","v":""}]
[null,"0-10",{"$f":"IF(COUNT(BP9:BP48)=0,\"\",COUNTIF(BP9:BP48,\"<11\"))","v":""},null,null,{"$f":"IFERROR(ROUND((C86*100)/$C$73,2),\"\")","v":""}]

{"sheet":"DATOS","index":11,"n_rows":55,"n_cols":9,"rows_kept":55,"cut":false,"hidden":false,"merged":[[22,0,25,0],[27,0,28,0],[1,0,4,0],[6,0,10,0],[11,1,11,2],[12,0,15,0],[17,0,18,0],[47,0,48,0],[52,0,54,0],[32,0,33,0],[37,0,39,0],[42,0,44,0]]}
[null,"COMPETENCIA","CAPACIDAD","CAPACIDAD","CAPACIDAD","CAPACIDAD","CAPACIDAD"]
["MATEMÁTICA","Actúa y piensa matemáticamente en situaciones de cantidad","Matematiza situaciones","Comunica y representa ideas matemáticas","Elabora y usa estrategias ","Razona  y argumenta generando ideas matemáticas ",null,null,{"$f":"A2","v":"MATEMÁTICA"}]
[null,"Actúa y piensa matemáticamente en situaciones de regularidad, equivalencia y cambio","Matematiza situaciones","Comunica y representa ideas matemáticas","Elabora y usa estrategias ","Razona  y argumenta generando ideas matemáticas ",null,null,{"$f":"A7","v":"COMUNICACIÓN"}]
[null,"Actúa y piensa matemáticamente en situaciones de forma, movimiento y localización","Matematiza situaciones","Comunica y representa ideas matemáticas","Elabora y usa estrategias ","Razona  y argumenta generando ideas matemáticas ",null,null,{"$f":"A13","v":"CIENCIA, TECNOLOGÍA Y AMBIENTE"}]
[null,"Actúa y piensa matemáticamente en situaciones de gestión de datos e incertidumbre","Matematiza situaciones","Comunica y representa ideas matemáticas","Elabora y usa estrategias ","Razona  y argumenta generando ideas matemáticas ",null,null,{"$f":"A18","v":"PERSONA, FAMILIA Y RELACIONES HUMANAS"}]
[null,null,null,null,null,null,null,null,{"$f":"A23","v":"HISTORIA, GEOGRAFÍA Y ECONOMÍA"}]
["COMUNICACIÓN","Comprende textos orales","Escucha activamente diversos textos orales","Recupera y organiza información de diversos textos","Infiere el significado de los textos orales","Reflexiona sobre la forma, contenido y contexto de los textos orales",null,null,{"$f":"A28","v":"FORMACIÓN CIUDADANA Y CÍVICA"}]
[null,"Se expresa oralmente","Adecúa sus textos orales a la situación comunicativa","Expresa con claridad sus ideas","Utiliza estratégicamente variados recursos expresivos","Reflexiona sobre la forma, contenido y contexto de sus textos orales","Interactúa colaborativamente manteniendo el hilo temático",null,{"$f":"A33","v":"ARTE"}]
[null,"Comprende textos escritos","Recupera información de diversos textos escritos","Reorganiza información de diversos textos escritos","Infiere el significado de los textos escritos","Reflexiona sobre la forma, contenido y contexto de los textos escritos",null,null,{"$f":"A38","v":"EDUCACIÓN FÍSICA"}]
[null,"Produce textos escritos","Planifica la producción de diversos textos escritos","Textualiza sus ideas según las convenciones de la escritura","Reflexiona sobre la forma, contenido y contexto de sus textos escritos",null,null,null,{"$f":"A43","v":"EDUCACIÓN PARA EL TRABAJO"}]
[null,"Interactúa con expresiones literarias","Interpreta textos literarios en relación con diversos contextos","Crea textos literarios según sus necesidades expresivas","Se vincula con tradiciones literarias mediante el diálogo intercultural",null,null,null,{"$f":"A48","v":"EDUCACIÓN RELIGIOSA"}]
[null,null,null,null,null,null,null,null,{"$f":"A53","v":"INGLÉS"}]
["CIENCIA, TECNOLOGÍA Y AMBIENTE","Indaga, mediante métodos científicos, situaciones que pueden ser investigadas por la ciencia","Problematiza situaciones","Diseña estrategias para hacer una indagación","Genera y registra datos e información","Analiza datos o información","Evalúa y comunica"]
[null,"Explica el mundo físico, basado en conocimientos científicos","Comprende y aplica conocimientos científicos","Argumenta científicamente"]
[null,"Diseña y produce prototipos tecnológicos para resolver problemas de su entorno","Plantea problemas que requieren soluciones tecnológicas y selecciona alternativas de solución","Diseña alternativas de solución al problema","Implementa y valida alternativas de solución","Evalúa y comunica la eficiencia, la confiabilidad y los posibles impactos de su prototipo"]
[null,"Construye una posición crítica sobre la ciencia y la tecnología en sociedad","Evalúa las implicancias del saber y del quehacer científico y tecnológico","Toma posición crítica frente a situaciones sociocientíficas"]
[]
["PERSONA, FAMILIA Y RELACIONES HUMANAS","Afirma su identidad","Se valora a sí mismo","Autorregula sus emociones y comportamientos"]
[null,"Se desenvuelve éticamente","Se cuestiona éticamente ante situaciones cotidianas","Sustenta sus principios éticos","Reflexiona sobre las relaciones entre sus principios, decisiones y acciones"]
[]
[]
[]
["HISTORIA, GEOGRAFÍA Y ECONOMÍA","Construye interpretaciones históricas","Interpreta críticamente fuentes diversas","Comprende el tiempo histórico y emplea categorías temporales","Elabora explicaciones históricas reconociendo la relevancia de determinados procesos"]
[null,"Actúa responsablemente en el ambiente","Explica las relaciones entre los elementos naturales y sociales que intervienen en la construcción de los espacios geográficos","Evalúa problemáticas ambientales y territoriales desde múltiples perspectivas","Evalúa situaciones de riesgo y propone acciones para disminuir la vulnerabilidad frente a los desastres","Maneja y elabora diversas fuentes de información y herramientas digitales para comprender el espacio geográfico"]
[null,"Actúa responsablemente respecto a los recursos económicos","Comprende las relaciones entre los elementos del sistema económico y financiero","Toma conciencia de que es parte de un sistema económico","Gestiona los recursos de manera responsable"]
[null,"Participa en asuntos públicos para promover el bien común","Problematiza asuntos públicos a partir del análisis crítico","Aplica principios, conceptos e información vinculada a la institucionalidad y a la ciudadanía","Asume una posición sobre un asunto público que le permita construir consensos","Propone iniciativas y usa mecanismos para el bienestar de todos y la promoción de los derechos humanos"]
[]
["FORMACIÓN CIUDADANA Y CÍVICA","Convive respetándose a sí mismo y a los demás","Interactúa con cada persona reconociendo que todos son sujetos de derechos y tienen deberes","Construye y asume normas y leyes utilizando conocimientos y principios democráticos","Se relaciona interculturalmente con otros desde su identidad enriqueciéndose mutuamente","Maneja conflictos de manera constructiva a través de pautas, estrategias y canales apropiados","Cuida los espacios públicos y el ambiente desde la perspectiva sostenible"]
[null,"Participa en asuntos públicos para promover el bien común","Problematiza asuntos públicos a partir del análisis crítico","Aplica principios, conceptos e información vinculada a la institucionalidad y a la ciudadanía","Asume una posición sobre un asunto público que le permita construir consensos","propone iniciativas y usa mecanismo para el bienestar de todos y la promoción de los derechos humanos"]
[]
[]
[]
["ARTE","Expresión artística"]
[null,"Expresión artística"]
[]
[]
[]
["EDUCACIÓN FÍSICA","Comprensión  y desarrollo de la Corp. y la Salud"]
[null,"Dominio corporal y expresión creativa"]
[null,"Convivencia  e interacción sociomotriz"]
[]
[]
["EDUCACIÓN PARA EL TRABAJO","Gestión de procesos"]
[null,"Ejecución de procesos"]
[null,"Comprensión  y aplicación de tecnologías"]
[]
[]
["EDUCACIÓN RELIGIOSA","Comprensión  doctrinal cristiana"]
[null,"Discernimiento  de fe"]
[]
[]
[]
["INGLÉS","Expresión y comprensión  oral"]
[null,"Comprensión  de textos"]
[null,"Producción de textos"]